Workbook

Sheet טיימר עבודות
M1: =_xlfn.IFS(M3="","",WEEKDAY(M3)=1,"יום ראשון",WEEKDAY(M3)=2,"יום שני",WEEKDAY(M3)=3,"יום שלישי",WEEKDAY(M3)=4,"יום רביעי",WEEKDAY(M3)=5,"יום חמישי",WEEKDAY(M3)=6,"יום שישי",WEEKDAY(M3)=7,"מוצאי שבת") -> יום רביעי
Q2: שעות | R2: שכר | S2: אחוזים | T2: יעד
L3: =IF(AN10=1,$AN$18,$AN$19) -> û | M3: =NOW() -> 2024-01-17T23:45:33.820 | P3: ="יומי: " & TEXT(TODAY(),"dd/mm/yyyy") -> יומי: 17/01/2024 | Q3: =IF(SUMIFS(שעות_עבודה7[שעות],שעות_עבודה7[התחלה],">="&(TODAY()),שעות_עבודה7[התחלה],"<"&(TODAY()+1))=0,"", SUMIFS(שעות_עבודה7[שעות],שעות_עבודה7[התחלה],">="&(TODAY()),שעות_עבודה7[התחלה],"<"&(TODAY()+1))) -> 0.07559027778 | R3: =IF(SUMIFS(שעות_עבודה7[השכר],שעות_עבודה7[התחלה],">="&(TODAY()),שעות_עבודה7[התחלה],"<"&(TODAY()+1))=0,"", SUMIFS(שעות_עבודה7[השכר],שעות_עבודה7[התחלה],">="&(TODAY()),שעות_עבודה7[התחלה],"<"&(TODAY()+1))) -> 40.57916667 | S3: =IF(OR(טבלה2[[#This Row],[שכר]]="",טבלה2[[#This Row],[יעד שכר]]=""),"", IF(R3>=טבלה2[[#This Row],[יעד שכר]],"הגעת ליעד!", R3/T3)) -> 0.2705277778 | T3: 150
P4: ="שבועי: שבוע " & TEXT(WEEKNUM(TODAY()),0)& " (" & YEAR(TODAY())& ")" -> שבועי: שבוע 3 (2024) | Q4: =IF(SUMIFS(שעות_עבודה7[שעות],שעות_עבודה7[התחלה],">="&(TODAY())-WEEKDAY(TODAY())+1,שעות_עבודה7[התחלה],"<="&(TODAY())-WEEKDAY(TODAY())+7)=0,"", SUMIFS(שעות_עבודה7[שעות],שעות_עבודה7[התחלה],">="&(TODAY())-WEEKDAY(TODAY())+1,שעות_עבודה7[התחלה],"<="&(TODAY())-WEEKDAY(TODAY())+7)) -> 0.1172800926 | R4: =IF(SUMIFS(שעות_עבודה7[השכר],שעות_עבודה7[התחלה],">="&(TODAY())-WEEKDAY(TODAY())+1,שעות_עבודה7[התחלה],"<="&(TODAY())-WEEKDAY(TODAY())+7)=0,"", SUMIFS(שעות_עבודה7[השכר],שעות_עבודה7[התחלה],">="&(TODAY())-WEEKDAY(TODAY())+1,שעות_עבודה7[התחלה],"<="&(TODAY())-WEEKDAY(TODAY())+7)) -> 40.57916667 | S4: =IF(OR(טבלה2[[#This Row],[שכר]]="",טבלה2[[#This Row],[יעד שכר]]=""),"", IF(R4>=טבלה2[[#This Row],[יעד שכר]],"הגעת ליעד!", R4/T4)) -> 0.08115833333 | T4: 500
L5: =IF(הקלקה=1,$AN$18,$AN$19) -> ü | M5: =NOW() -> 45308.98997 | P5: ="חודשי: חודש " & TEXT(MONTH(TODAY()),0) & " (" & YEAR(TODAY())& ")" -> חודשי: חודש 1 (2024) | Q5: =IF(SUMIFS(שעות_עבודה7[שעות],שעות_עבודה7[התחלה], ">="&DATE(YEAR(TODAY()),MONTH(TODAY()),1),שעות_עבודה7[התחלה], "<="&EOMONTH(TODAY(),0))=0,"", SUMIFS(שעות_עבודה7[שעות],שעות_עבודה7[התחלה], ">="&DATE(YEAR(TODAY()),MONTH(TODAY()),1),שעות_עבודה7[התחלה], "<="&EOMONTH(TODAY(),0))) -> 0.2099421296 | R5: =IF(SUMIFS(שעות_עבודה7[השכר],שעות_עבודה7[התחלה], ">="&DATE(YEAR(TODAY()),MONTH(TODAY()),1),שעות_עבודה7[התחלה], "<="&EOMONTH(TODAY(),0))=0,"", SUMIFS(שעות_עבודה7[השכר],שעות_עבודה7[התחלה], ">="&DATE(YEAR(TODAY()),MONTH(TODAY()),1),שעות_עבודה7[התחלה], "<="&EOMONTH(TODAY(),0))) -> 97.42638885 | S5: =IF(OR(טבלה2[[#This Row],[שכר]]="",טבלה2[[#This Row],[יעד שכר]]=""),"", IF(R5>=טבלה2[[#This Row],[יעד שכר]],"הגעת ליעד!", R5/T5)) -> 0.04871319442 | T5: 2000
P6: סך הכל: | Q6: =IF(SUM(שעות_עבודה7[שעות])=0,"",SUM(שעות_עבודה7[שעות])) -> 0.2099421296 | R6: =IF(SUM(שעות_עבודה7[השכר])=0,"",SUM(שעות_עבודה7[השכר])) -> 97.42638885 | S6: =IF(OR(טבלה2[[#This Row],[שכר]]="",טבלה2[[#This Row],[יעד שכר]]=""),"", IF(R6>=טבלה2[[#This Row],[יעד שכר]],"הגעת ליעד!", R6/T6)) -> 0.01948527777 | T6: 5000
C8: יום | D8: תאריך | E8: התחלה | F8: שם העבודה | G8: סיום | H8: הוספת דקות | I8: הפחתת דקות | J8: שעות | K8: השכר | L8: הערות | O8: שמות העבודות | P8: שכר לשעה | Q8: שעות העבודה | R8: השכר לעבודה | S8: מטבע | T8: הערות
B9: =IF(AND(שעות_עבודה7[[#This Row],[התחלה]]="",שעות_עבודה7[[#This Row],[שם העבודה]]=""),"",ROW(A1)) -> 1 | C9: =_xlfn.IFS(שעות_עבודה7[[#This Row],[התחלה]]="","",WEEKDAY(שעות_עבודה7[[#This Row],[התחלה]])=1,"ראשון",WEEKDAY(שעות_עבודה7[[#This Row],[התחלה]])=2,"שני",WEEKDAY(שעות_עבודה7[[#This Row],[התחלה]])=3,"שלישי",WEEKDAY(שעות_עבודה7[[#This Row],[התחלה]])=4,"רביעי",WEEKDAY(שעות_עבודה7[[#This Row],[התחלה]])=5,"חמישי",WEEKDAY(שעות_עבודה7[[#This Row],[התחלה]])=6,"שישי",WEEKDAY(שעות_עבודה7[[#This Row],[התחלה]])=7,"מוצ""ש") -> שלישי | D9: =IF(שעות_עבודה7[[#This Row],[התחלה]]="","",שעות_עבודה7[[#This Row],[התחלה]]) -> 2024-01-09T16:37:56 | E9: 45300.69301 | F9: עריכת מהדו"ת | G9: 45300.73483 | H9: 10 | I9: 5 | J9: =IF(IF(OR(שעות_עבודה7[[#This Row],[התחלה]]="",שעות_עבודה7[[#This Row],[סיום]]=""), IF(שעות_עבודה7[[#This Row],[הפחתת דקות]]>שעות_עבודה7[[#This Row],[הוספת דקות]],"",שעות_עבודה7[[#This Row],[הוספת דקות]]/1440-שעות_עבודה7[[#This Row],[הפחתת דקות]]/1440), IF(שעות_עבודה7[[#This Row],[סיום]]-שעות_עבודה7[[#This Row],[התחלה]]+שעות_עבודה7[[#This Row],[הוספת דקות]]/1440<שעות_עבודה7[[#This Row],[הפחתת דקות]]/1440,"", SUM(שעות_עבודה7[[#This Row],[סיום]]-שעות_עבודה7[[#This Row],[התחלה]],שעות_עבודה7[[#This Row],[הוספת דקות]]/1440,-שעות_עבודה7[[#This Row],[הפחתת דקות]]/1440)))=0,"", IF(OR(שעות_עבודה7[[#This Row],[התחלה]]="",שעות_עבודה7[[#This Row],[סיום]]=""), IF(שעות_עבודה7[[#This Row],[הפחתת דקות]]>שעות_עבודה7[[#This Row],[הוספת דקות]],"",שעות_עבודה7[[#This Row],[הוספת דקות]]/1440-שעות_עבודה7[[#This Row],[הפחתת דקות]]/1440), IF(שעות_עבודה7[[#This Row],[סיום]]-שעות_עבודה7[[#This Row],[התחלה]]+שעות_עבודה7[[#This Row],[הוספת דקות]]/1440<שעות_עבודה7[[#This Row],[הפחתת דקות]]/1440,"", SUM(שעות_עבודה7[[#This Row],[סיום]]-שעות_עבודה7[[#This Row],[התחלה]],שעות_עבודה7[[#This Row],[הוספת דקות]]/1440,-שעות_עבודה7[[#This Row],[הפחתת דקות]]/1440)))) -> 0.04528935185 | K9: =IF(שעות_עבודה7[[#This Row],[שעות]]="","", IFERROR(IF(IF(VLOOKUP(שעות_עבודה7[[#This Row],[שם העבודה]],טבלה1[],5,FALSE)="דולרים-$", SUMPRODUCT((שעות_עבודה7[[#This Row],[שם העבודה]]=$O$9:$O$38)*שעות_עבודה7[[#This Row],[שעות]]*($P$9:$P$38*24*שער)), SUMPRODUCT((שעות_עבודה7[[#This Row],[שם העבודה]]=$O$9:$O$38)*שעות_עבודה7[[#This Row],[שעות]]*($P$9:$P$38*24)))=0,"", IF(VLOOKUP(שעות_עבודה7[[#This Row],[שם העבודה]],טבלה1[],5,FALSE)="דולרים-$", SUMPRODUCT((שעות_עבודה7[[#This Row],[שם העבודה]]=$O$9:$O$38)*שעות_עבודה7[[#This Row],[שעות]]*($P$9:$P$38*24*שער)), SUMPRODUCT((שעות_עבודה7[[#This Row],[שם העבודה]]=$O$9:$O$38)*שעות_עבודה7[[#This Row],[שעות]]*($P$9:$P$38*24)))),"")) ->  | O9: עריכת מהדו"ת | P9: 10 | Q9: =IF(O9="","", IFERROR(IF(SUMIFS(שעות_עבודה7[שעות],שעות_עבודה7[שם העבודה],O9)=0,"", SUMIFS(שעות_עבודה7[שעות],שעות_עבודה7[שם העבודה],O9)),"")) -> 0.08697916667 | R9: =IF(OR(P9="",Q9=""),"", IF(Q9*P9*24=0,"",Q9*P9*24)) -> 20.875 | S9: דולרים-$ | AN9: שמירה אוטומטית1=שמור, 0=אל תשמור
B10: =IF(AND(שעות_עבודה7[[#This Row],[התחלה]]="",שעות_עבודה7[[#This Row],[שם העבודה]]=""),"",ROW(A2)) -> 2 | C10: =_xlfn.IFS(שעות_עבודה7[[#This Row],[התחלה]]="","",WEEKDAY(שעות_עבודה7[[#This Row],[התחלה]])=1,"ראשון",WEEKDAY(שעות_עבודה7[[#This Row],[התחלה]])=2,"שני",WEEKDAY(שעות_עבודה7[[#This Row],[התחלה]])=3,"שלישי",WEEKDAY(שעות_עבודה7[[#This Row],[התחלה]])=4,"רביעי",WEEKDAY(שעות_עבודה7[[#This Row],[התחלה]])=5,"חמישי",WEEKDAY(שעות_עבודה7[[#This Row],[התחלה]])=6,"שישי",WEEKDAY(שעות_עבודה7[[#This Row],[התחלה]])=7,"מוצ""ש") -> שלישי | D10: =IF(שעות_עבודה7[[#This Row],[התחלה]]="","",שעות_עבודה7[[#This Row],[התחלה]]) -> 2024-01-09T17:37:56 | E10: 45300.73468 | F10: עיון במקורות | G10: 45300.77649 | H10: 8 | J10: =IF(IF(OR(שעות_עבודה7[[#This Row],[התחלה]]="",שעות_עבודה7[[#This Row],[סיום]]=""), IF(שעות_עבודה7[[#This Row],[הפחתת דקות]]>שעות_עבודה7[[#This Row],[הוספת דקות]],"",שעות_עבודה7[[#This Row],[הוספת דקות]]/1440-שעות_עבודה7[[#This Row],[הפחתת דקות]]/1440), IF(שעות_עבודה7[[#This Row],[סיום]]-שעות_עבודה7[[#This Row],[התחלה]]+שעות_עבודה7[[#This Row],[הוספת דקות]]/1440<שעות_עבודה7[[#This Row],[הפחתת דקות]]/1440,"", SUM(שעות_עבודה7[[#This Row],[סיום]]-שעות_עבודה7[[#This Row],[התחלה]],שעות_עבודה7[[#This Row],[הוספת דקות]]/1440,-שעות_עבודה7[[#This Row],[הפחתת דקות]]/1440)))=0,"", IF(OR(שעות_עבודה7[[#This Row],[התחלה]]="",שעות_עבודה7[[#This Row],[סיום]]=""), IF(שעות_עבודה7[[#This Row],[הפחתת דקות]]>שעות_עבודה7[[#This Row],[הוספת דקות]],"",שעות_עבודה7[[#This Row],[הוספת דקות]]/1440-שעות_עבודה7[[#This Row],[הפחתת דקות]]/1440), IF(שעות_עבודה7[[#This Row],[סיום]]-שעות_עבודה7[[#This Row],[התחלה]]+שעות_עבודה7[[#This Row],[הוספת דקות]]/1440<שעות_עבודה7[[#This Row],[הפחתת דקות]]/1440,"", SUM(שעות_עבודה7[[#This Row],[סיום]]-שעות_עבודה7[[#This Row],[התחלה]],שעות_עבודה7[[#This Row],[הוספת דקות]]/1440,-שעות_עבודה7[[#This Row],[הפחתת דקות]]/1440)))) -> 0.04737268515 | K10: =IF(שעות_עבודה7[[#This Row],[שעות]]="","", IFERROR(IF(IF(VLOOKUP(שעות_עבודה7[[#This Row],[שם העבודה]],טבלה1[],5,FALSE)="דולרים-$", SUMPRODUCT((שעות_עבודה7[[#This Row],[שם העבודה]]=$O$9:$O$38)*שעות_עבודה7[[#This Row],[שעות]]*($P$9:$P$38*24*שער)), SUMPRODUCT((שעות_עבודה7[[#This Row],[שם העבודה]]=$O$9:$O$38)*שעות_עבודה7[[#This Row],[שעות]]*($P$9:$P$38*24)))=0,"", IF(VLOOKUP(שעות_עבודה7[[#This Row],[שם העבודה]],טבלה1[],5,FALSE)="דולרים-$", SUMPRODUCT((שעות_עבודה7[[#This Row],[שם העבודה]]=$O$9:$O$38)*שעות_עבודה7[[#This Row],[שעות]]*($P$9:$P$38*24*שער)), SUMPRODUCT((שעות_עבודה7[[#This Row],[שם העבודה]]=$O$9:$O$38)*שעות_עבודה7[[#This Row],[שעות]]*($P$9:$P$38*24)))),"")) -> 56.84722218 | O10: עיון במקורות | P10: 50 | Q10: =IF(O10="","", IFERROR(IF(SUMIFS(שעות_עבודה7[שעות],שעות_עבודה7[שם העבודה],O10)=0,"", SUMIFS(שעות_עבודה7[שעות],שעות_עבודה7[שם העבודה],O10)),"")) -> 0.04737268515 | R10: 56.84722218 | S10: שקלים-₪ | AN10: 0
B11: =IF(AND(שעות_עבודה7[[#This Row],[התחלה]]="",שעות_עבודה7[[#This Row],[שם העבודה]]=""),"",ROW(A3)) -> 3 | C11: =_xlfn.IFS(שעות_עבודה7[[#This Row],[התחלה]]="","",WEEKDAY(שעות_עבודה7[[#This Row],[התחלה]])=1,"ראשון",WEEKDAY(שעות_עבודה7[[#This Row],[התחלה]])=2,"שני",WEEKDAY(שעות_עבודה7[[#This Row],[התחלה]])=3,"שלישי",WEEKDAY(שעות_עבודה7[[#This Row],[התחלה]])=4,"רביעי",WEEKDAY(שעות_עבודה7[[#This Row],[התחלה]])=5,"חמישי",WEEKDAY(שעות_עבודה7[[#This Row],[התחלה]])=6,"שישי",WEEKDAY(שעות_עבודה7[[#This Row],[התחלה]])=7,"מוצ""ש") -> ראשון | D11: =IF(שעות_עבודה7[[#This Row],[התחלה]]="","",שעות_עבודה7[[#This Row],[התחלה]]) -> 2024-01-14T22:03:00 | E11: 45305.91875 | F11: עריכת מהדו"ת | G11: 45305.96043 | J11: =IF(IF(OR(שעות_עבודה7[[#This Row],[התחלה]]="",שעות_עבודה7[[#This Row],[סיום]]=""), IF(שעות_עבודה7[[#This Row],[הפחתת דקות]]>שעות_עבודה7[[#This Row],[הוספת דקות]],"",שעות_עבודה7[[#This Row],[הוספת דקות]]/1440-שעות_עבודה7[[#This Row],[הפחתת דקות]]/1440), IF(שעות_עבודה7[[#This Row],[סיום]]-שעות_עבודה7[[#This Row],[התחלה]]+שעות_עבודה7[[#This Row],[הוספת דקות]]/1440<שעות_עבודה7[[#This Row],[הפחתת דקות]]/1440,"", SUM(שעות_עבודה7[[#This Row],[סיום]]-שעות_עבודה7[[#This Row],[התחלה]],שעות_עבודה7[[#This Row],[הוספת דקות]]/1440,-שעות_עבודה7[[#This Row],[הפחתת דקות]]/1440)))=0,"", IF(OR(שעות_עבודה7[[#This Row],[התחלה]]="",שעות_עבודה7[[#This Row],[סיום]]=""), IF(שעות_עבודה7[[#This Row],[הפחתת דקות]]>שעות_עבודה7[[#This Row],[הוספת דקות]],"",שעות_עבודה7[[#This Row],[הוספת דקות]]/1440-שעות_עבודה7[[#This Row],[הפחתת דקות]]/1440), IF(שעות_עבודה7[[#This Row],[סיום]]-שעות_עבודה7[[#This Row],[התחלה]]+שעות_עבודה7[[#This Row],[הוספת דקות]]/1440<שעות_עבודה7[[#This Row],[הפחתת דקות]]/1440,"", SUM(שעות_עבודה7[[#This Row],[סיום]]-שעות_עבודה7[[#This Row],[התחלה]],שעות_עבודה7[[#This Row],[הוספת דקות]]/1440,-שעות_עבודה7[[#This Row],[הפחתת דקות]]/1440)))) -> 0.04167824074 | K11: =IF(שעות_עבודה7[[#This Row],[שעות]]="","", IFERROR(IF(IF(VLOOKUP(שעות_עבודה7[[#This Row],[שם העבודה]],טבלה1[],5,FALSE)="דולרים-$", SUMPRODUCT((שעות_עבודה7[[#This Row],[שם העבודה]]=$O$9:$O$38)*שעות_עבודה7[[#This Row],[שעות]]*($P$9:$P$38*24*שער)), SUMPRODUCT((שעות_עבודה7[[#This Row],[שם העבודה]]=$O$9:$O$38)*שעות_עבודה7[[#This Row],[שעות]]*($P$9:$P$38*24)))=0,"", IF(VLOOKUP(שעות_עבודה7[[#This Row],[שם העבודה]],טבלה1[],5,FALSE)="דולרים-$", SUMPRODUCT((שעות_עבודה7[[#This Row],[שם העבודה]]=$O$9:$O$38)*שעות_עבודה7[[#This Row],[שעות]]*($P$9:$P$38*24*שער)), SUMPRODUCT((שעות_עבודה7[[#This Row],[שם העבודה]]=$O$9:$O$38)*שעות_עבודה7[[#This Row],[שעות]]*($P$9:$P$38*24)))),"")) ->  | O11: הגהת קונטרס | P11: 55 | Q11: =IF(O11="","", IFERROR(IF(SUMIFS(שעות_עבודה7[שעות],שעות_עבודה7[שם העבודה],O11)=0,"", SUMIFS(שעות_עבודה7[שעות],שעות_עבודה7[שם העבודה],O11)),"")) -> 1.15740695e-05 | R11: 0.01527777174 | S11: שקלים-₪ | AN11: עבודה נבחרת
B12: =IF(AND(שעות_עבודה7[[#This Row],[התחלה]]="",שעות_עבודה7[[#This Row],[שם העבודה]]=""),"",ROW(A4)) -> 4 | C12: =_xlfn.IFS(שעות_עבודה7[[#This Row],[התחלה]]="","",WEEKDAY(שעות_עבודה7[[#This Row],[התחלה]])=1,"ראשון",WEEKDAY(שעות_עבודה7[[#This Row],[התחלה]])=2,"שני",WEEKDAY(שעות_עבודה7[[#This Row],[התחלה]])=3,"שלישי",WEEKDAY(שעות_עבודה7[[#This Row],[התחלה]])=4,"רביעי",WEEKDAY(שעות_עבודה7[[#This Row],[התחלה]])=5,"חמישי",WEEKDAY(שעות_עבודה7[[#This Row],[התחלה]])=6,"שישי",WEEKDAY(שעות_עבודה7[[#This Row],[התחלה]])=7,"מוצ""ש") -> ראשון | D12: =IF(שעות_עבודה7[[#This Row],[התחלה]]="","",שעות_עבודה7[[#This Row],[התחלה]]) -> 2024-01-14T22:03:01 | E12: 45305.91876 | F12: עריכת מהדו"ת | G12: 45305.91877 | J12: =IF(IF(OR(שעות_עבודה7[[#This Row],[התחלה]]="",שעות_עבודה7[[#This Row],[סיום]]=""), IF(שעות_עבודה7[[#This Row],[הפחתת דקות]]>שעות_עבודה7[[#This Row],[הוספת דקות]],"",שעות_עבודה7[[#This Row],[הוספת דקות]]/1440-שעות_עבודה7[[#This Row],[הפחתת דקות]]/1440), IF(שעות_עבודה7[[#This Row],[סיום]]-שעות_עבודה7[[#This Row],[התחלה]]+שעות_עבודה7[[#This Row],[הוספת דקות]]/1440<שעות_עבודה7[[#This Row],[הפחתת דקות]]/1440,"", SUM(שעות_עבודה7[[#This Row],[סיום]]-שעות_עבודה7[[#This Row],[התחלה]],שעות_עבודה7[[#This Row],[הוספת דקות]]/1440,-שעות_עבודה7[[#This Row],[הפחתת דקות]]/1440)))=0,"", IF(OR(שעות_עבודה7[[#This Row],[התחלה]]="",שעות_עבודה7[[#This Row],[סיום]]=""), IF(שעות_עבודה7[[#This Row],[הפחתת דקות]]>שעות_עבודה7[[#This Row],[הוספת דקות]],"",שעות_עבודה7[[#This Row],[הוספת דקות]]/1440-שעות_עבודה7[[#This Row],[הפחתת דקות]]/1440), IF(שעות_עבודה7[[#This Row],[סיום]]-שעות_עבודה7[[#This Row],[התחלה]]+שעות_עבודה7[[#This Row],[הוספת דקות]]/1440<שעות_עבודה7[[#This Row],[הפחתת דקות]]/1440,"", SUM(שעות_עבודה7[[#This Row],[סיום]]-שעות_עבודה7[[#This Row],[התחלה]],שעות_עבודה7[[#This Row],[הוספת דקות]]/1440,-שעות_עבודה7[[#This Row],[הפחתת דקות]]/1440)))) -> 1.157407678e-05 | K12: =IF(שעות_עבודה7[[#This Row],[שעות]]="","", IFERROR(IF(IF(VLOOKUP(שעות_עבודה7[[#This Row],[שם העבודה]],טבלה1[],5,FALSE)="דולרים-$", SUMPRODUCT((שעות_עבודה7[[#This Row],[שם העבודה]]=$O$9:$O$38)*שעות_עבודה7[[#This Row],[שעות]]*($P$9:$P$38*24*שער)), SUMPRODUCT((שעות_עבודה7[[#This Row],[שם העבודה]]=$O$9:$O$38)*שעות_עבודה7[[#This Row],[שעות]]*($P$9:$P$38*24)))=0,"", IF(VLOOKUP(שעות_עבודה7[[#This Row],[שם העבודה]],טבלה1[],5,FALSE)="דולרים-$", SUMPRODUCT((שעות_עבודה7[[#This Row],[שם העבודה]]=$O$9:$O$38)*שעות_עבודה7[[#This Row],[שעות]]*($P$9:$P$38*24*שער)), SUMPRODUCT((שעות_עבודה7[[#This Row],[שם העבודה]]=$O$9:$O$38)*שעות_עבודה7[[#This Row],[שעות]]*($P$9:$P$38*24)))),"")) ->  | O12: סיכום הנושאים | P12: 40 | Q12: =IF(O12="","", IFERROR(IF(SUMIFS(שעות_עבודה7[שעות],שעות_עבודה7[שם העבודה],O12)=0,"", SUMIFS(שעות_עבודה7[שעות],שעות_עבודה7[שם העבודה],O12)),"")) -> 0.03518518519 | R12: 33.77777778 | S12: שקלים-₪ | AN12: 5
B13: =IF(AND(שעות_עבודה7[[#This Row],[התחלה]]="",שעות_עבודה7[[#This Row],[שם העבודה]]=""),"",ROW(A5)) -> 5 | C13: =_xlfn.IFS(שעות_עבודה7[[#This Row],[התחלה]]="","",WEEKDAY(שעות_עבודה7[[#This Row],[התחלה]])=1,"ראשון",WEEKDAY(שעות_עבודה7[[#This Row],[התחלה]])=2,"שני",WEEKDAY(שעות_עבודה7[[#This Row],[התחלה]])=3,"שלישי",WEEKDAY(שעות_עבודה7[[#This Row],[התחלה]])=4,"רביעי",WEEKDAY(שעות_עבודה7[[#This Row],[התחלה]])=5,"חמישי",WEEKDAY(שעות_עבודה7[[#This Row],[התחלה]])=6,"שישי",WEEKDAY(שעות_עבודה7[[#This Row],[התחלה]])=7,"מוצ""ש") -> רביעי | D13: =IF(שעות_עבודה7[[#This Row],[התחלה]]="","",שעות_עבודה7[[#This Row],[התחלה]]) -> 2024-01-17T21:47:42 | E13: 45308.90813 | F13: מכון לעורך | G13: 45308.90822 | H13: 5 | J13: =IF(IF(OR(שעות_עבודה7[[#This Row],[התחלה]]="",שעות_עבודה7[[#This Row],[סיום]]=""), IF(שעות_עבודה7[[#This Row],[הפחתת דקות]]>שעות_עבודה7[[#This Row],[הוספת דקות]],"",שעות_עבודה7[[#This Row],[הוספת דקות]]/1440-שעות_עבודה7[[#This Row],[הפחתת דקות]]/1440), IF(שעות_עבודה7[[#This Row],[סיום]]-שעות_עבודה7[[#This Row],[התחלה]]+שעות_עבודה7[[#This Row],[הוספת דקות]]/1440<שעות_עבודה7[[#This Row],[הפחתת דקות]]/1440,"", SUM(שעות_עבודה7[[#This Row],[סיום]]-שעות_עבודה7[[#This Row],[התחלה]],שעות_עבודה7[[#This Row],[הוספת דקות]]/1440,-שעות_עבודה7[[#This Row],[הפחתת דקות]]/1440)))=0,"", IF(OR(שעות_עבודה7[[#This Row],[התחלה]]="",שעות_עבודה7[[#This Row],[סיום]]=""), IF(שעות_עבודה7[[#This Row],[הפחתת דקות]]>שעות_עבודה7[[#This Row],[הוספת דקות]],"",שעות_עבודה7[[#This Row],[הוספת דקות]]/1440-שעות_עבודה7[[#This Row],[הפחתת דקות]]/1440), IF(שעות_עבודה7[[#This Row],[סיום]]-שעות_עבודה7[[#This Row],[התחלה]]+שעות_עבודה7[[#This Row],[הוספת דקות]]/1440<שעות_עבודה7[[#This Row],[הפחתת דקות]]/1440,"", SUM(שעות_עבודה7[[#This Row],[סיום]]-שעות_עבודה7[[#This Row],[התחלה]],שעות_עבודה7[[#This Row],[הוספת דקות]]/1440,-שעות_עבודה7[[#This Row],[הפחתת דקות]]/1440)))) -> 0.003564814815 | K13: =IF(שעות_עבודה7[[#This Row],[שעות]]="","", IFERROR(IF(IF(VLOOKUP(שעות_עבודה7[[#This Row],[שם העבודה]],טבלה1[],5,FALSE)="דולרים-$", SUMPRODUCT((שעות_עבודה7[[#This Row],[שם העבודה]]=$O$9:$O$38)*שעות_עבודה7[[#This Row],[שעות]]*($P$9:$P$38*24*שער)), SUMPRODUCT((שעות_עבודה7[[#This Row],[שם העבודה]]=$O$9:$O$38)*שעות_עבודה7[[#This Row],[שעות]]*($P$9:$P$38*24)))=0,"", IF(VLOOKUP(שעות_עבודה7[[#This Row],[שם העבודה]],טבלה1[],5,FALSE)="דולרים-$", SUMPRODUCT((שעות_עבודה7[[#This Row],[שם העבודה]]=$O$9:$O$38)*שעות_עבודה7[[#This Row],[שעות]]*($P$9:$P$38*24*שער)), SUMPRODUCT((שעות_עבודה7[[#This Row],[שם העבודה]]=$O$9:$O$38)*שעות_עבודה7[[#This Row],[שעות]]*($P$9:$P$38*24)))),"")) -> 0.5988888889 | O13: מכון לעורך | P13: 7 | Q13: =IF(O13="","", IFERROR(IF(SUMIFS(שעות_עבודה7[שעות],שעות_עבודה7[שם העבודה],O13)=0,"", SUMIFS(שעות_עבודה7[שעות],שעות_עבודה7[שם העבודה],O13)),"")) -> 0.04039351852 | R13: 6.786111111 | S13: שקלים-₪ | AN13: שם עבודה נבחרת
B14: =IF(AND(שעות_עבודה7[[#This Row],[התחלה]]="",שעות_עבודה7[[#This Row],[שם העבודה]]=""),"",ROW(A6)) -> 6 | C14: =_xlfn.IFS(שעות_עבודה7[[#This Row],[התחלה]]="","",WEEKDAY(שעות_עבודה7[[#This Row],[התחלה]])=1,"ראשון",WEEKDAY(שעות_עבודה7[[#This Row],[התחלה]])=2,"שני",WEEKDAY(שעות_עבודה7[[#This Row],[התחלה]])=3,"שלישי",WEEKDAY(שעות_עבודה7[[#This Row],[התחלה]])=4,"רביעי",WEEKDAY(שעות_עבודה7[[#This Row],[התחלה]])=5,"חמישי",WEEKDAY(שעות_עבודה7[[#This Row],[התחלה]])=6,"שישי",WEEKDAY(שעות_עבודה7[[#This Row],[התחלה]])=7,"מוצ""ש") -> רביעי | D14: =IF(שעות_עבודה7[[#This Row],[התחלה]]="","",שעות_עבודה7[[#This Row],[התחלה]]) -> 2024-01-17T21:47:53 | E14: 45308.90825 | F14: הגהת קונטרס | G14: 45308.90826 | J14: =IF(IF(OR(שעות_עבודה7[[#This Row],[התחלה]]="",שעות_עבודה7[[#This Row],[סיום]]=""), IF(שעות_עבודה7[[#This Row],[הפחתת דקות]]>שעות_עבודה7[[#This Row],[הוספת דקות]],"",שעות_עבודה7[[#This Row],[הוספת דקות]]/1440-שעות_עבודה7[[#This Row],[הפחתת דקות]]/1440), IF(שעות_עבודה7[[#This Row],[סיום]]-שעות_עבודה7[[#This Row],[התחלה]]+שעות_עבודה7[[#This Row],[הוספת דקות]]/1440<שעות_עבודה7[[#This Row],[הפחתת דקות]]/1440,"", SUM(שעות_עבודה7[[#This Row],[סיום]]-שעות_עבודה7[[#This Row],[התחלה]],שעות_עבודה7[[#This Row],[הוספת דקות]]/1440,-שעות_עבודה7[[#This Row],[הפחתת דקות]]/1440)))=0,"", IF(OR(שעות_עבודה7[[#This Row],[התחלה]]="",שעות_עבודה7[[#This Row],[סיום]]=""), IF(שעות_עבודה7[[#This Row],[הפחתת דקות]]>שעות_עבודה7[[#This Row],[הוספת דקות]],"",שעות_עבודה7[[#This Row],[הוספת דקות]]/1440-שעות_עבודה7[[#This Row],[הפחתת דקות]]/1440), IF(שעות_עבודה7[[#This Row],[סיום]]-שעות_עבודה7[[#This Row],[התחלה]]+שעות_עבודה7[[#This Row],[הוספת דקות]]/1440<שעות_עבודה7[[#This Row],[הפחתת דקות]]/1440,"", SUM(שעות_עבודה7[[#This Row],[סיום]]-שעות_עבודה7[[#This Row],[התחלה]],שעות_עבודה7[[#This Row],[הוספת דקות]]/1440,-שעות_עבודה7[[#This Row],[הפחתת דקות]]/1440)))) -> 1.15740695e-05 | K14: =IF(שעות_עבודה7[[#This Row],[שעות]]="","", IFERROR(IF(IF(VLOOKUP(שעות_עבודה7[[#This Row],[שם העבודה]],טבלה1[],5,FALSE)="דולרים-$", SUMPRODUCT((שעות_עבודה7[[#This Row],[שם העבודה]]=$O$9:$O$38)*שעות_עבודה7[[#This Row],[שעות]]*($P$9:$P$38*24*שער)), SUMPRODUCT((שעות_עבודה7[[#This Row],[שם העבודה]]=$O$9:$O$38)*שעות_עבודה7[[#This Row],[שעות]]*($P$9:$P$38*24)))=0,"", IF(VLOOKUP(שעות_עבודה7[[#This Row],[שם העבודה]],טבלה1[],5,FALSE)="דולרים-$", SUMPRODUCT((שעות_עבודה7[[#This Row],[שם העבודה]]=$O$9:$O$38)*שעות_עבודה7[[#This Row],[שעות]]*($P$9:$P$38*24*שער)), SUMPRODUCT((שעות_עבודה7[[#This Row],[שם העבודה]]=$O$9:$O$38)*שעות_עבודה7[[#This Row],[שעות]]*($P$9:$P$38*24)))),"")) -> 0.01527777174 | Q14: =IF(O14="","", IFERROR(IF(SUMIFS(שעות_עבודה7[שעות],שעות_עבודה7[שם העבודה],O14)=0,"", SUMIFS(שעות_עבודה7[שעות],שעות_עבודה7[שם העבודה],O14)),"")) ->  | AN14: =INDEX('טיימר עבודות'!$O$9:$O$38,AN12) -> מכון לעורך
B15: =IF(AND(שעות_עבודה7[[#This Row],[התחלה]]="",שעות_עבודה7[[#This Row],[שם העבודה]]=""),"",ROW(A7)) -> 7 | C15: =_xlfn.IFS(שעות_עבודה7[[#This Row],[התחלה]]="","",WEEKDAY(שעות_עבודה7[[#This Row],[התחלה]])=1,"ראשון",WEEKDAY(שעות_עבודה7[[#This Row],[התחלה]])=2,"שני",WEEKDAY(שעות_עבודה7[[#This Row],[התחלה]])=3,"שלישי",WEEKDAY(שעות_עבודה7[[#This Row],[התחלה]])=4,"רביעי",WEEKDAY(שעות_עבודה7[[#This Row],[התחלה]])=5,"חמישי",WEEKDAY(שעות_עבודה7[[#This Row],[התחלה]])=6,"שישי",WEEKDAY(שעות_עבודה7[[#This Row],[התחלה]])=7,"מוצ""ש") -> רביעי | D15: =IF(שעות_עבודה7[[#This Row],[התחלה]]="","",שעות_עבודה7[[#This Row],[התחלה]]) -> 2024-01-17T21:48:15 | E15: 45308.90851 | F15: סיכום הנושאים | G15: 45308.90897 | H15: 50 | J15: =IF(IF(OR(שעות_עבודה7[[#This Row],[התחלה]]="",שעות_עבודה7[[#This Row],[סיום]]=""), IF(שעות_עבודה7[[#This Row],[הפחתת דקות]]>שעות_עבודה7[[#This Row],[הוספת דקות]],"",שעות_עבודה7[[#This Row],[הוספת דקות]]/1440-שעות_עבודה7[[#This Row],[הפחתת דקות]]/1440), IF(שעות_עבודה7[[#This Row],[סיום]]-שעות_עבודה7[[#This Row],[התחלה]]+שעות_עבודה7[[#This Row],[הוספת דקות]]/1440<שעות_עבודה7[[#This Row],[הפחתת דקות]]/1440,"", SUM(שעות_עבודה7[[#This Row],[סיום]]-שעות_עבודה7[[#This Row],[התחלה]],שעות_עבודה7[[#This Row],[הוספת דקות]]/1440,-שעות_עבודה7[[#This Row],[הפחתת דקות]]/1440)))=0,"", IF(OR(שעות_עבודה7[[#This Row],[התחלה]]="",שעות_עבודה7[[#This Row],[סיום]]=""), IF(שעות_עבודה7[[#This Row],[הפחתת דקות]]>שעות_עבודה7[[#This Row],[הוספת דקות]],"",שעות_עבודה7[[#This Row],[הוספת דקות]]/1440-שעות_עבודה7[[#This Row],[הפחתת דקות]]/1440), IF(שעות_עבודה7[[#This Row],[סיום]]-שעות_עבודה7[[#This Row],[התחלה]]+שעות_עבודה7[[#This Row],[הוספת דקות]]/1440<שעות_עבודה7[[#This Row],[הפחתת דקות]]/1440,"", SUM(שעות_עבודה7[[#This Row],[סיום]]-שעות_עבודה7[[#This Row],[התחלה]],שעות_עבודה7[[#This Row],[הוספת דקות]]/1440,-שעות_עבודה7[[#This Row],[הפחתת דקות]]/1440)))) -> 0.03518518519 | K15: =IF(שעות_עבודה7[[#This Row],[שעות]]="","", IFERROR(IF(IF(VLOOKUP(שעות_עבודה7[[#This Row],[שם העבודה]],טבלה1[],5,FALSE)="דולרים-$", SUMPRODUCT((שעות_עבודה7[[#This Row],[שם העבודה]]=$O$9:$O$38)*שעות_עבודה7[[#This Row],[שעות]]*($P$9:$P$38*24*שער)), SUMPRODUCT((שעות_עבודה7[[#This Row],[שם העבודה]]=$O$9:$O$38)*שעות_עבודה7[[#This Row],[שעות]]*($P$9:$P$38*24)))=0,"", IF(VLOOKUP(שעות_עבודה7[[#This Row],[שם העבודה]],טבלה1[],5,FALSE)="דולרים-$", SUMPRODUCT((שעות_עבודה7[[#This Row],[שם העבודה]]=$O$9:$O$38)*שעות_עבודה7[[#This Row],[שעות]]*($P$9:$P$38*24*שער)), SUMPRODUCT((שעות_עבודה7[[#This Row],[שם העבודה]]=$O$9:$O$38)*שעות_עבודה7[[#This Row],[שעות]]*($P$9:$P$38*24)))),"")) -> 33.77777778 | Q15: =IF(O15="","", IFERROR(IF(SUMIFS(שעות_עבודה7[שעות],שעות_עבודה7[שם העבודה],O15)=0,"", SUMIFS(שעות_עבודה7[שעות],שעות_עבודה7[שם העבודה],O15)),"")) ->  | AN15: שכר לעבודה נבחרת
B16: =IF(AND(שעות_עבודה7[[#This Row],[התחלה]]="",שעות_עבודה7[[#This Row],[שם העבודה]]=""),"",ROW(A8)) -> 8 | C16: =_xlfn.IFS(שעות_עבודה7[[#This Row],[התחלה]]="","",WEEKDAY(שעות_עבודה7[[#This Row],[התחלה]])=1,"ראשון",WEEKDAY(שעות_עבודה7[[#This Row],[התחלה]])=2,"שני",WEEKDAY(שעות_עבודה7[[#This Row],[התחלה]])=3,"שלישי",WEEKDAY(שעות_עבודה7[[#This Row],[התחלה]])=4,"רביעי",WEEKDAY(שעות_עבודה7[[#This Row],[התחלה]])=5,"חמישי",WEEKDAY(שעות_עבודה7[[#This Row],[התחלה]])=6,"שישי",WEEKDAY(שעות_עבודה7[[#This Row],[התחלה]])=7,"מוצ""ש") -> רביעי | D16: =IF(שעות_עבודה7[[#This Row],[התחלה]]="","",שעות_עבודה7[[#This Row],[התחלה]]) -> 2024-01-17T22:47:31 | E16: 45308.94966 | F16: מכון לעורך | G16: 45308.98997 | I16: 5 | J16: =IF(IF(OR(שעות_עבודה7[[#This Row],[התחלה]]="",שעות_עבודה7[[#This Row],[סיום]]=""), IF(שעות_עבודה7[[#This Row],[הפחתת דקות]]>שעות_עבודה7[[#This Row],[הוספת דקות]],"",שעות_עבודה7[[#This Row],[הוספת דקות]]/1440-שעות_עבודה7[[#This Row],[הפחתת דקות]]/1440), IF(שעות_עבודה7[[#This Row],[סיום]]-שעות_עבודה7[[#This Row],[התחלה]]+שעות_עבודה7[[#This Row],[הוספת דקות]]/1440<שעות_עבודה7[[#This Row],[הפחתת דקות]]/1440,"", SUM(שעות_עבודה7[[#This Row],[סיום]]-שעות_עבודה7[[#This Row],[התחלה]],שעות_עבודה7[[#This Row],[הוספת דקות]]/1440,-שעות_עבודה7[[#This Row],[הפחתת דקות]]/1440)))=0,"", IF(OR(שעות_עבודה7[[#This Row],[התחלה]]="",שעות_עבודה7[[#This Row],[סיום]]=""), IF(שעות_עבודה7[[#This Row],[הפחתת דקות]]>שעות_עבודה7[[#This Row],[הוספת דקות]],"",שעות_עבודה7[[#This Row],[הוספת דקות]]/1440-שעות_עבודה7[[#This Row],[הפחתת דקות]]/1440), IF(שעות_עבודה7[[#This Row],[סיום]]-שעות_עבודה7[[#This Row],[התחלה]]+שעות_עבודה7[[#This Row],[הוספת דקות]]/1440<שעות_עבודה7[[#This Row],[הפחתת דקות]]/1440,"", SUM(שעות_עבודה7[[#This Row],[סיום]]-שעות_עבודה7[[#This Row],[התחלה]],שעות_עבודה7[[#This Row],[הוספת דקות]]/1440,-שעות_עבודה7[[#This Row],[הפחתת דקות]]/1440)))) -> 0.0368287037 | K16: =IF(שעות_עבודה7[[#This Row],[שעות]]="","", IFERROR(IF(IF(VLOOKUP(שעות_עבודה7[[#This Row],[שם העבודה]],טבלה1[],5,FALSE)="דולרים-$", SUMPRODUCT((שעות_עבודה7[[#This Row],[שם העבודה]]=$O$9:$O$38)*שעות_עבודה7[[#This Row],[שעות]]*($P$9:$P$38*24*שער)), SUMPRODUCT((שעות_עבודה7[[#This Row],[שם העבודה]]=$O$9:$O$38)*שעות_עבודה7[[#This Row],[שעות]]*($P$9:$P$38*24)))=0,"", IF(VLOOKUP(שעות_עבודה7[[#This Row],[שם העבודה]],טבלה1[],5,FALSE)="דולרים-$", SUMPRODUCT((שעות_עבודה7[[#This Row],[שם העבודה]]=$O$9:$O$38)*שעות_עבודה7[[#This Row],[שעות]]*($P$9:$P$38*24*שער)), SUMPRODUCT((שעות_עבודה7[[#This Row],[שם העבודה]]=$O$9:$O$38)*שעות_עבודה7[[#This Row],[שעות]]*($P$9:$P$38*24)))),"")) -> 6.187222222 | Q16: =IF(O16="","", IFERROR(IF(SUMIFS(שעות_עבודה7[שעות],שעות_עבודה7[שם העבודה],O16)=0,"", SUMIFS(שעות_עבודה7[שעות],שעות_עבודה7[שם העבודה],O16)),"")) ->  | AN16: =VLOOKUP(שם_העבודה,'טיימר עבודות'!$O$9:$R$38,3) -> 0.04039351852
B17: =IF(AND(שעות_עבודה7[[#This Row],[התחלה]]="",שעות_עבודה7[[#This Row],[שם העבודה]]=""),"",ROW(A9)) ->  | C17: =_xlfn.IFS(שעות_עבודה7[[#This Row],[התחלה]]="","",WEEKDAY(שעות_עבודה7[[#This Row],[התחלה]])=1,"ראשון",WEEKDAY(שעות_עבודה7[[#This Row],[התחלה]])=2,"שני",WEEKDAY(שעות_עבודה7[[#This Row],[התחלה]])=3,"שלישי",WEEKDAY(שעות_עבודה7[[#This Row],[התחלה]])=4,"רביעי",WEEKDAY(שעות_עבודה7[[#This Row],[התחלה]])=5,"חמישי",WEEKDAY(שעות_עבודה7[[#This Row],[התחלה]])=6,"שישי",WEEKDAY(שעות_עבודה7[[#This Row],[התחלה]])=7,"מוצ""ש") ->  | D17: =IF(שעות_עבודה7[[#This Row],[התחלה]]="","",שעות_עבודה7[[#This Row],[התחלה]]) ->  | J17: =IF(IF(OR(שעות_עבודה7[[#This Row],[התחלה]]="",שעות_עבודה7[[#This Row],[סיום]]=""), IF(שעות_עבודה7[[#This Row],[הפחתת דקות]]>שעות_עבודה7[[#This Row],[הוספת דקות]],"",שעות_עבודה7[[#This Row],[הוספת דקות]]/1440-שעות_עבודה7[[#This Row],[הפחתת דקות]]/1440), IF(שעות_עבודה7[[#This Row],[סיום]]-שעות_עבודה7[[#This Row],[התחלה]]+שעות_עבודה7[[#This Row],[הוספת דקות]]/1440<שעות_עבודה7[[#This Row],[הפחתת דקות]]/1440,"", SUM(שעות_עבודה7[[#This Row],[סיום]]-שעות_עבודה7[[#This Row],[התחלה]],שעות_עבודה7[[#This Row],[הוספת דקות]]/1440,-שעות_עבודה7[[#This Row],[הפחתת דקות]]/1440)))=0,"", IF(OR(שעות_עבודה7[[#This Row],[התחלה]]="",שעות_עבודה7[[#This Row],[סיום]]=""), IF(שעות_עבודה7[[#This Row],[הפחתת דקות]]>שעות_עבודה7[[#This Row],[הוספת דקות]],"",שעות_עבודה7[[#This Row],[הוספת דקות]]/1440-שעות_עבודה7[[#This Row],[הפחתת דקות]]/1440), IF(שעות_עבודה7[[#This Row],[סיום]]-שעות_עבודה7[[#This Row],[התחלה]]+שעות_עבודה7[[#This Row],[הוספת דקות]]/1440<שעות_עבודה7[[#This Row],[הפחתת דקות]]/1440,"", SUM(שעות_עבודה7[[#This Row],[סיום]]-שעות_עבודה7[[#This Row],[התחלה]],שעות_עבודה7[[#This Row],[הוספת דקות]]/1440,-שעות_עבודה7[[#This Row],[הפחתת דקות]]/1440)))) ->  | K17: =IF(שעות_עבודה7[[#This Row],[שעות]]="","", IFERROR(IF(IF(VLOOKUP(שעות_עבודה7[[#This Row],[שם העבודה]],טבלה1[],5,FALSE)="דולרים-$", SUMPRODUCT((שעות_עבודה7[[#This Row],[שם העבודה]]=$O$9:$O$38)*שעות_עבודה7[[#This Row],[שעות]]*($P$9:$P$38*24*שער)), SUMPRODUCT((שעות_עבודה7[[#This Row],[שם העבודה]]=$O$9:$O$38)*שעות_עבודה7[[#This Row],[שעות]]*($P$9:$P$38*24)))=0,"", IF(VLOOKUP(שעות_עבודה7[[#This Row],[שם העבודה]],טבלה1[],5,FALSE)="דולרים-$", SUMPRODUCT((שעות_עבודה7[[#This Row],[שם העבודה]]=$O$9:$O$38)*שעות_עבודה7[[#This Row],[שעות]]*($P$9:$P$38*24*שער)), SUMPRODUCT((שעות_עבודה7[[#This Row],[שם העבודה]]=$O$9:$O$38)*שעות_עבודה7[[#This Row],[שעות]]*($P$9:$P$38*24)))),"")) ->  | Q17: =IF(O17="","", IFERROR(IF(SUMIFS(שעות_עבודה7[שעות],שעות_עבודה7[שם העבודה],O17)=0,"", SUMIFS(שעות_עבודה7[שעות],שעות_עבודה7[שם העבודה],O17)),"")) ->  | AN17: סימנים
B18: =IF(AND(שעות_עבודה7[[#This Row],[התחלה]]="",שעות_עבודה7[[#This Row],[שם העבודה]]=""),"",ROW(A10)) ->  | C18: =_xlfn.IFS(שעות_עבודה7[[#This Row],[התחלה]]="","",WEEKDAY(שעות_עבודה7[[#This Row],[התחלה]])=1,"ראשון",WEEKDAY(שעות_עבודה7[[#This Row],[התחלה]])=2,"שני",WEEKDAY(שעות_עבודה7[[#This Row],[התחלה]])=3,"שלישי",WEEKDAY(שעות_עבודה7[[#This Row],[התחלה]])=4,"רביעי",WEEKDAY(שעות_עבודה7[[#This Row],[התחלה]])=5,"חמישי",WEEKDAY(שעות_עבודה7[[#This Row],[התחלה]])=6,"שישי",WEEKDAY(שעות_עבודה7[[#This Row],[התחלה]])=7,"מוצ""ש") ->  | D18: =IF(שעות_עבודה7[[#This Row],[התחלה]]="","",שעות_עבודה7[[#This Row],[התחלה]]) ->  | J18: =IF(IF(OR(שעות_עבודה7[[#This Row],[התחלה]]="",שעות_עבודה7[[#This Row],[סיום]]=""), IF(שעות_עבודה7[[#This Row],[הפחתת דקות]]>שעות_עבודה7[[#This Row],[הוספת דקות]],"",שעות_עבודה7[[#This Row],[הוספת דקות]]/1440-שעות_עבודה7[[#This Row],[הפחתת דקות]]/1440), IF(שעות_עבודה7[[#This Row],[סיום]]-שעות_עבודה7[[#This Row],[התחלה]]+שעות_עבודה7[[#This Row],[הוספת דקות]]/1440<שעות_עבודה7[[#This Row],[הפחתת דקות]]/1440,"", SUM(שעות_עבודה7[[#This Row],[סיום]]-שעות_עבודה7[[#This Row],[התחלה]],שעות_עבודה7[[#This Row],[הוספת דקות]]/1440,-שעות_עבודה7[[#This Row],[הפחתת דקות]]/1440)))=0,"", IF(OR(שעות_עבודה7[[#This Row],[התחלה]]="",שעות_עבודה7[[#This Row],[סיום]]=""), IF(שעות_עבודה7[[#This Row],[הפחתת דקות]]>שעות_עבודה7[[#This Row],[הוספת דקות]],"",שעות_עבודה7[[#This Row],[הוספת דקות]]/1440-שעות_עבודה7[[#This Row],[הפחתת דקות]]/1440), IF(שעות_עבודה7[[#This Row],[סיום]]-שעות_עבודה7[[#This Row],[התחלה]]+שעות_עבודה7[[#This Row],[הוספת דקות]]/1440<שעות_עבודה7[[#This Row],[הפחתת דקות]]/1440,"", SUM(שעות_עבודה7[[#This Row],[סיום]]-שעות_עבודה7[[#This Row],[התחלה]],שעות_עבודה7[[#This Row],[הוספת דקות]]/1440,-שעות_עבודה7[[#This Row],[הפחתת דקות]]/1440)))) ->  | K18: =IF(שעות_עבודה7[[#This Row],[שעות]]="","", IFERROR(IF(IF(VLOOKUP(שעות_עבודה7[[#This Row],[שם העבודה]],טבלה1[],5,FALSE)="דולרים-$", SUMPRODUCT((שעות_עבודה7[[#This Row],[שם העבודה]]=$O$9:$O$38)*שעות_עבודה7[[#This Row],[שעות]]*($P$9:$P$38*24*שער)), SUMPRODUCT((שעות_עבודה7[[#This Row],[שם העבודה]]=$O$9:$O$38)*שעות_עבודה7[[#This Row],[שעות]]*($P$9:$P$38*24)))=0,"", IF(VLOOKUP(שעות_עבודה7[[#This Row],[שם העבודה]],טבלה1[],5,FALSE)="דולרים-$", SUMPRODUCT((שעות_עבודה7[[#This Row],[שם העבודה]]=$O$9:$O$38)*שעות_עבודה7[[#This Row],[שעות]]*($P$9:$P$38*24*שער)), SUMPRODUCT((שעות_עבודה7[[#This Row],[שם העבודה]]=$O$9:$O$38)*שעות_עבודה7[[#This Row],[שעות]]*($P$9:$P$38*24)))),"")) ->  | Q18: =IF(O18="","", IFERROR(IF(SUMIFS(שעות_עבודה7[שעות],שעות_עבודה7[שם העבודה],O18)=0,"", SUMIFS(שעות_עבודה7[שעות],שעות_עבודה7[שם העבודה],O18)),"")) ->  | AN18: ü
B19: =IF(AND(שעות_עבודה7[[#This Row],[התחלה]]="",שעות_עבודה7[[#This Row],[שם העבודה]]=""),"",ROW(A11)) ->  | C19: =_xlfn.IFS(שעות_עבודה7[[#This Row],[התחלה]]="","",WEEKDAY(שעות_עבודה7[[#This Row],[התחלה]])=1,"ראשון",WEEKDAY(שעות_עבודה7[[#This Row],[התחלה]])=2,"שני",WEEKDAY(שעות_עבודה7[[#This Row],[התחלה]])=3,"שלישי",WEEKDAY(שעות_עבודה7[[#This Row],[התחלה]])=4,"רביעי",WEEKDAY(שעות_עבודה7[[#This Row],[התחלה]])=5,"חמישי",WEEKDAY(שעות_עבודה7[[#This Row],[התחלה]])=6,"שישי",WEEKDAY(שעות_עבודה7[[#This Row],[התחלה]])=7,"מוצ""ש") ->  | D19: =IF(שעות_עבודה7[[#This Row],[התחלה]]="","",שעות_עבודה7[[#This Row],[התחלה]]) ->  | J19: =IF(IF(OR(שעות_עבודה7[[#This Row],[התחלה]]="",שעות_עבודה7[[#This Row],[סיום]]=""), IF(שעות_עבודה7[[#This Row],[הפחתת דקות]]>שעות_עבודה7[[#This Row],[הוספת דקות]],"",שעות_עבודה7[[#This Row],[הוספת דקות]]/1440-שעות_עבודה7[[#This Row],[הפחתת דקות]]/1440), IF(שעות_עבודה7[[#This Row],[סיום]]-שעות_עבודה7[[#This Row],[התחלה]]+שעות_עבודה7[[#This Row],[הוספת דקות]]/1440<שעות_עבודה7[[#This Row],[הפחתת דקות]]/1440,"", SUM(שעות_עבודה7[[#This Row],[סיום]]-שעות_עבודה7[[#This Row],[התחלה]],שעות_עבודה7[[#This Row],[הוספת דקות]]/1440,-שעות_עבודה7[[#This Row],[הפחתת דקות]]/1440)))=0,"", IF(OR(שעות_עבודה7[[#This Row],[התחלה]]="",שעות_עבודה7[[#This Row],[סיום]]=""), IF(שעות_עבודה7[[#This Row],[הפחתת דקות]]>שעות_עבודה7[[#This Row],[הוספת דקות]],"",שעות_עבודה7[[#This Row],[הוספת דקות]]/1440-שעות_עבודה7[[#This Row],[הפחתת דקות]]/1440), IF(שעות_עבודה7[[#This Row],[סיום]]-שעות_עבודה7[[#This Row],[התחלה]]+שעות_עבודה7[[#This Row],[הוספת דקות]]/1440<שעות_עבודה7[[#This Row],[הפחתת דקות]]/1440,"", SUM(שעות_עבודה7[[#This Row],[סיום]]-שעות_עבודה7[[#This Row],[התחלה]],שעות_עבודה7[[#This Row],[הוספת דקות]]/1440,-שעות_עבודה7[[#This Row],[הפחתת דקות]]/1440)))) ->  | K19: =IF(שעות_עבודה7[[#This Row],[שעות]]="","", IFERROR(IF(IF(VLOOKUP(שעות_עבודה7[[#This Row],[שם העבודה]],טבלה1[],5,FALSE)="דולרים-$", SUMPRODUCT((שעות_עבודה7[[#This Row],[שם העבודה]]=$O$9:$O$38)*שעות_עבודה7[[#This Row],[שעות]]*($P$9:$P$38*24*שער)), SUMPRODUCT((שעות_עבודה7[[#This Row],[שם העבודה]]=$O$9:$O$38)*שעות_עבודה7[[#This Row],[שעות]]*($P$9:$P$38*24)))=0,"", IF(VLOOKUP(שעות_עבודה7[[#This Row],[שם העבודה]],טבלה1[],5,FALSE)="דולרים-$", SUMPRODUCT((שעות_עבודה7[[#This Row],[שם העבודה]]=$O$9:$O$38)*שעות_עבודה7[[#This Row],[שעות]]*($P$9:$P$38*24*שער)), SUMPRODUCT((שעות_עבודה7[[#This Row],[שם העבודה]]=$O$9:$O$38)*שעות_עבודה7[[#This Row],[שעות]]*($P$9:$P$38*24)))),"")) ->  | Q19: =IF(O19="","", IFERROR(IF(SUMIFS(שעות_עבודה7[שעות],שעות_עבודה7[שם העבודה],O19)=0,"", SUMIFS(שעות_עבודה7[שעות],שעות_עבודה7[שם העבודה],O19)),"")) ->  | AN19: û
B20: =IF(AND(שעות_עבודה7[[#This Row],[התחלה]]="",שעות_עבודה7[[#This Row],[שם העבודה]]=""),"",ROW(A12)) ->  | C20: =_xlfn.IFS(שעות_עבודה7[[#This Row],[התחלה]]="","",WEEKDAY(שעות_עבודה7[[#This Row],[התחלה]])=1,"ראשון",WEEKDAY(שעות_עבודה7[[#This Row],[התחלה]])=2,"שני",WEEKDAY(שעות_עבודה7[[#This Row],[התחלה]])=3,"שלישי",WEEKDAY(שעות_עבודה7[[#This Row],[התחלה]])=4,"רביעי",WEEKDAY(שעות_עבודה7[[#This Row],[התחלה]])=5,"חמישי",WEEKDAY(שעות_עבודה7[[#This Row],[התחלה]])=6,"שישי",WEEKDAY(שעות_עבודה7[[#This Row],[התחלה]])=7,"מוצ""ש") ->  | D20: =IF(שעות_עבודה7[[#This Row],[התחלה]]="","",שעות_עבודה7[[#This Row],[התחלה]]) ->  | J20: =IF(IF(OR(שעות_עבודה7[[#This Row],[התחלה]]="",שעות_עבודה7[[#This Row],[סיום]]=""), IF(שעות_עבודה7[[#This Row],[הפחתת דקות]]>שעות_עבודה7[[#This Row],[הוספת דקות]],"",שעות_עבודה7[[#This Row],[הוספת דקות]]/1440-שעות_עבודה7[[#This Row],[הפחתת דקות]]/1440), IF(שעות_עבודה7[[#This Row],[סיום]]-שעות_עבודה7[[#This Row],[התחלה]]+שעות_עבודה7[[#This Row],[הוספת דקות]]/1440<שעות_עבודה7[[#This Row],[הפחתת דקות]]/1440,"", SUM(שעות_עבודה7[[#This Row],[סיום]]-שעות_עבודה7[[#This Row],[התחלה]],שעות_עבודה7[[#This Row],[הוספת דקות]]/1440,-שעות_עבודה7[[#This Row],[הפחתת דקות]]/1440)))=0,"", IF(OR(שעות_עבודה7[[#This Row],[התחלה]]="",שעות_עבודה7[[#This Row],[סיום]]=""), IF(שעות_עבודה7[[#This Row],[הפחתת דקות]]>שעות_עבודה7[[#This Row],[הוספת דקות]],"",שעות_עבודה7[[#This Row],[הוספת דקות]]/1440-שעות_עבודה7[[#This Row],[הפחתת דקות]]/1440), IF(שעות_עבודה7[[#This Row],[סיום]]-שעות_עבודה7[[#This Row],[התחלה]]+שעות_עבודה7[[#This Row],[הוספת דקות]]/1440<שעות_עבודה7[[#This Row],[הפחתת דקות]]/1440,"", SUM(שעות_עבודה7[[#This Row],[סיום]]-שעות_עבודה7[[#This Row],[התחלה]],שעות_עבודה7[[#This Row],[הוספת דקות]]/1440,-שעות_עבודה7[[#This Row],[הפחתת דקות]]/1440)))) ->  | K20: =IF(שעות_עבודה7[[#This Row],[שעות]]="","", IFERROR(IF(IF(VLOOKUP(שעות_עבודה7[[#This Row],[שם העבודה]],טבלה1[],5,FALSE)="דולרים-$", SUMPRODUCT((שעות_עבודה7[[#This Row],[שם העבודה]]=$O$9:$O$38)*שעות_עבודה7[[#This Row],[שעות]]*($P$9:$P$38*24*שער)), SUMPRODUCT((שעות_עבודה7[[#This Row],[שם העבודה]]=$O$9:$O$38)*שעות_עבודה7[[#This Row],[שעות]]*($P$9:$P$38*24)))=0,"", IF(VLOOKUP(שעות_עבודה7[[#This Row],[שם העבודה]],טבלה1[],5,FALSE)="דולרים-$", SUMPRODUCT((שעות_עבודה7[[#This Row],[שם העבודה]]=$O$9:$O$38)*שעות_עבודה7[[#This Row],[שעות]]*($P$9:$P$38*24*שער)), SUMPRODUCT((שעות_עבודה7[[#This Row],[שם העבודה]]=$O$9:$O$38)*שעות_עבודה7[[#This Row],[שעות]]*($P$9:$P$38*24)))),"")) ->  | Q20: =IF(O20="","", IFERROR(IF(SUMIFS(שעות_עבודה7[שעות],שעות_עבודה7[שם העבודה],O20)=0,"", SUMIFS(שעות_עבודה7[שעות],שעות_עבודה7[שם העבודה],O20)),"")) ->  | AN20: הקלקה כפולה
B21: =IF(AND(שעות_עבודה7[[#This Row],[התחלה]]="",שעות_עבודה7[[#This Row],[שם העבודה]]=""),"",ROW(A13)) ->  | C21: =_xlfn.IFS(שעות_עבודה7[[#This Row],[התחלה]]="","",WEEKDAY(שעות_עבודה7[[#This Row],[התחלה]])=1,"ראשון",WEEKDAY(שעות_עבודה7[[#This Row],[התחלה]])=2,"שני",WEEKDAY(שעות_עבודה7[[#This Row],[התחלה]])=3,"שלישי",WEEKDAY(שעות_עבודה7[[#This Row],[התחלה]])=4,"רביעי",WEEKDAY(שעות_עבודה7[[#This Row],[התחלה]])=5,"חמישי",WEEKDAY(שעות_עבודה7[[#This Row],[התחלה]])=6,"שישי",WEEKDAY(שעות_עבודה7[[#This Row],[התחלה]])=7,"מוצ""ש") ->  | D21: =IF(שעות_עבודה7[[#This Row],[התחלה]]="","",שעות_עבודה7[[#This Row],[התחלה]]) ->  | J21: =IF(IF(OR(שעות_עבודה7[[#This Row],[התחלה]]="",שעות_עבודה7[[#This Row],[סיום]]=""), IF(שעות_עבודה7[[#This Row],[הפחתת דקות]]>שעות_עבודה7[[#This Row],[הוספת דקות]],"",שעות_עבודה7[[#This Row],[הוספת דקות]]/1440-שעות_עבודה7[[#This Row],[הפחתת דקות]]/1440), IF(שעות_עבודה7[[#This Row],[סיום]]-שעות_עבודה7[[#This Row],[התחלה]]+שעות_עבודה7[[#This Row],[הוספת דקות]]/1440<שעות_עבודה7[[#This Row],[הפחתת דקות]]/1440,"", SUM(שעות_עבודה7[[#This Row],[סיום]]-שעות_עבודה7[[#This Row],[התחלה]],שעות_עבודה7[[#This Row],[הוספת דקות]]/1440,-שעות_עבודה7[[#This Row],[הפחתת דקות]]/1440)))=0,"", IF(OR(שעות_עבודה7[[#This Row],[התחלה]]="",שעות_עבודה7[[#This Row],[סיום]]=""), IF(שעות_עבודה7[[#This Row],[הפחתת דקות]]>שעות_עבודה7[[#This Row],[הוספת דקות]],"",שעות_עבודה7[[#This Row],[הוספת דקות]]/1440-שעות_עבודה7[[#This Row],[הפחתת דקות]]/1440), IF(שעות_עבודה7[[#This Row],[סיום]]-שעות_עבודה7[[#This Row],[התחלה]]+שעות_עבודה7[[#This Row],[הוספת דקות]]/1440<שעות_עבודה7[[#This Row],[הפחתת דקות]]/1440,"", SUM(שעות_עבודה7[[#This Row],[סיום]]-שעות_עבודה7[[#This Row],[התחלה]],שעות_עבודה7[[#This Row],[הוספת דקות]]/1440,-שעות_עבודה7[[#This Row],[הפחתת דקות]]/1440)))) ->  | K21: =IF(שעות_עבודה7[[#This Row],[שעות]]="","", IFERROR(IF(IF(VLOOKUP(שעות_עבודה7[[#This Row],[שם העבודה]],טבלה1[],5,FALSE)="דולרים-$", SUMPRODUCT((שעות_עבודה7[[#This Row],[שם העבודה]]=$O$9:$O$38)*שעות_עבודה7[[#This Row],[שעות]]*($P$9:$P$38*24*שער)), SUMPRODUCT((שעות_עבודה7[[#This Row],[שם העבודה]]=$O$9:$O$38)*שעות_עבודה7[[#This Row],[שעות]]*($P$9:$P$38*24)))=0,"", IF(VLOOKUP(שעות_עבודה7[[#This Row],[שם העבודה]],טבלה1[],5,FALSE)="דולרים-$", SUMPRODUCT((שעות_עבודה7[[#This Row],[שם העבודה]]=$O$9:$O$38)*שעות_עבודה7[[#This Row],[שעות]]*($P$9:$P$38*24*שער)), SUMPRODUCT((שעות_עבודה7[[#This Row],[שם העבודה]]=$O$9:$O$38)*שעות_עבודה7[[#This Row],[שעות]]*($P$9:$P$38*24)))),"")) ->  | Q21: =IF(O21="","", IFERROR(IF(SUMIFS(שעות_עבודה7[שעות],שעות_עבודה7[שם העבודה],O21)=0,"", SUMIFS(שעות_עבודה7[שעות],שעות_עבודה7[שם העבודה],O21)),"")) ->  | AN21: 1
B22: =IF(AND(שעות_עבודה7[[#This Row],[התחלה]]="",שעות_עבודה7[[#This Row],[שם העבודה]]=""),"",ROW(A14)) ->  | C22: =_xlfn.IFS(שעות_עבודה7[[#This Row],[התחלה]]="","",WEEKDAY(שעות_עבודה7[[#This Row],[התחלה]])=1,"ראשון",WEEKDAY(שעות_עבודה7[[#This Row],[התחלה]])=2,"שני",WEEKDAY(שעות_עבודה7[[#This Row],[התחלה]])=3,"שלישי",WEEKDAY(שעות_עבודה7[[#This Row],[התחלה]])=4,"רביעי",WEEKDAY(שעות_עבודה7[[#This Row],[התחלה]])=5,"חמישי",WEEKDAY(שעות_עבודה7[[#This Row],[התחלה]])=6,"שישי",WEEKDAY(שעות_עבודה7[[#This Row],[התחלה]])=7,"מוצ""ש") ->  | D22: =IF(שעות_עבודה7[[#This Row],[התחלה]]="","",שעות_עבודה7[[#This Row],[התחלה]]) ->  | J22: =IF(IF(OR(שעות_עבודה7[[#This Row],[התחלה]]="",שעות_עבודה7[[#This Row],[סיום]]=""), IF(שעות_עבודה7[[#This Row],[הפחתת דקות]]>שעות_עבודה7[[#This Row],[הוספת דקות]],"",שעות_עבודה7[[#This Row],[הוספת דקות]]/1440-שעות_עבודה7[[#This Row],[הפחתת דקות]]/1440), IF(שעות_עבודה7[[#This Row],[סיום]]-שעות_עבודה7[[#This Row],[התחלה]]+שעות_עבודה7[[#This Row],[הוספת דקות]]/1440<שעות_עבודה7[[#This Row],[הפחתת דקות]]/1440,"", SUM(שעות_עבודה7[[#This Row],[סיום]]-שעות_עבודה7[[#This Row],[התחלה]],שעות_עבודה7[[#This Row],[הוספת דקות]]/1440,-שעות_עבודה7[[#This Row],[הפחתת דקות]]/1440)))=0,"", IF(OR(שעות_עבודה7[[#This Row],[התחלה]]="",שעות_עבודה7[[#This Row],[סיום]]=""), IF(שעות_עבודה7[[#This Row],[הפחתת דקות]]>שעות_עבודה7[[#This Row],[הוספת דקות]],"",שעות_עבודה7[[#This Row],[הוספת דקות]]/1440-שעות_עבודה7[[#This Row],[הפחתת דקות]]/1440), IF(שעות_עבודה7[[#This Row],[סיום]]-שעות_עבודה7[[#This Row],[התחלה]]+שעות_עבודה7[[#This Row],[הוספת דקות]]/1440<שעות_עבודה7[[#This Row],[הפחתת דקות]]/1440,"", SUM(שעות_עבודה7[[#This Row],[סיום]]-שעות_עבודה7[[#This Row],[התחלה]],שעות_עבודה7[[#This Row],[הוספת דקות]]/1440,-שעות_עבודה7[[#This Row],[הפחתת דקות]]/1440)))) ->  | K22: =IF(שעות_עבודה7[[#This Row],[שעות]]="","", IFERROR(IF(IF(VLOOKUP(שעות_עבודה7[[#This Row],[שם העבודה]],טבלה1[],5,FALSE)="דולרים-$", SUMPRODUCT((שעות_עבודה7[[#This Row],[שם העבודה]]=$O$9:$O$38)*שעות_עבודה7[[#This Row],[שעות]]*($P$9:$P$38*24*שער)), SUMPRODUCT((שעות_עבודה7[[#This Row],[שם העבודה]]=$O$9:$O$38)*שעות_עבודה7[[#This Row],[שעות]]*($P$9:$P$38*24)))=0,"", IF(VLOOKUP(שעות_עבודה7[[#This Row],[שם העבודה]],טבלה1[],5,FALSE)="דולרים-$", SUMPRODUCT((שעות_עבודה7[[#This Row],[שם העבודה]]=$O$9:$O$38)*שעות_עבודה7[[#This Row],[שעות]]*($P$9:$P$38*24*שער)), SUMPRODUCT((שעות_עבודה7[[#This Row],[שם העבודה]]=$O$9:$O$38)*שעות_עבודה7[[#This Row],[שעות]]*($P$9:$P$38*24)))),"")) ->  | Q22: =IF(O22="","", IFERROR(IF(SUMIFS(שעות_עבודה7[שעות],שעות_עבודה7[שם העבודה],O22)=0,"", SUMIFS(שעות_עבודה7[שעות],שעות_עבודה7[שם העבודה],O22)),"")) -> 
B23: =IF(AND(שעות_עבודה7[[#This Row],[התחלה]]="",שעות_עבודה7[[#This Row],[שם העבודה]]=""),"",ROW(A15)) ->  | C23: =_xlfn.IFS(שעות_עבודה7[[#This Row],[התחלה]]="","",WEEKDAY(שעות_עבודה7[[#This Row],[התחלה]])=1,"ראשון",WEEKDAY(שעות_עבודה7[[#This Row],[התחלה]])=2,"שני",WEEKDAY(שעות_עבודה7[[#This Row],[התחלה]])=3,"שלישי",WEEKDAY(שעות_עבודה7[[#This Row],[התחלה]])=4,"רביעי",WEEKDAY(שעות_עבודה7[[#This Row],[התחלה]])=5,"חמישי",WEEKDAY(שעות_עבודה7[[#This Row],[התחלה]])=6,"שישי",WEEKDAY(שעות_עבודה7[[#This Row],[התחלה]])=7,"מוצ""ש") ->  | D23: =IF(שעות_עבודה7[[#This Row],[התחלה]]="","",שעות_עבודה7[[#This Row],[התחלה]]) ->  | J23: =IF(IF(OR(שעות_עבודה7[[#This Row],[התחלה]]="",שעות_עבודה7[[#This Row],[סיום]]=""), IF(שעות_עבודה7[[#This Row],[הפחתת דקות]]>שעות_עבודה7[[#This Row],[הוספת דקות]],"",שעות_עבודה7[[#This Row],[הוספת דקות]]/1440-שעות_עבודה7[[#This Row],[הפחתת דקות]]/1440), IF(שעות_עבודה7[[#This Row],[סיום]]-שעות_עבודה7[[#This Row],[התחלה]]+שעות_עבודה7[[#This Row],[הוספת דקות]]/1440<שעות_עבודה7[[#This Row],[הפחתת דקות]]/1440,"", SUM(שעות_עבודה7[[#This Row],[סיום]]-שעות_עבודה7[[#This Row],[התחלה]],שעות_עבודה7[[#This Row],[הוספת דקות]]/1440,-שעות_עבודה7[[#This Row],[הפחתת דקות]]/1440)))=0,"", IF(OR(שעות_עבודה7[[#This Row],[התחלה]]="",שעות_עבודה7[[#This Row],[סיום]]=""), IF(שעות_עבודה7[[#This Row],[הפחתת דקות]]>שעות_עבודה7[[#This Row],[הוספת דקות]],"",שעות_עבודה7[[#This Row],[הוספת דקות]]/1440-שעות_עבודה7[[#This Row],[הפחתת דקות]]/1440), IF(שעות_עבודה7[[#This Row],[סיום]]-שעות_עבודה7[[#This Row],[התחלה]]+שעות_עבודה7[[#This Row],[הוספת דקות]]/1440<שעות_עבודה7[[#This Row],[הפחתת דקות]]/1440,"", SUM(שעות_עבודה7[[#This Row],[סיום]]-שעות_עבודה7[[#This Row],[התחלה]],שעות_עבודה7[[#This Row],[הוספת דקות]]/1440,-שעות_עבודה7[[#This Row],[הפחתת דקות]]/1440)))) ->  | K23: =IF(שעות_עבודה7[[#This Row],[שעות]]="","", IFERROR(IF(IF(VLOOKUP(שעות_עבודה7[[#This Row],[שם העבודה]],טבלה1[],5,FALSE)="דולרים-$", SUMPRODUCT((שעות_עבודה7[[#This Row],[שם העבודה]]=$O$9:$O$38)*שעות_עבודה7[[#This Row],[שעות]]*($P$9:$P$38*24*שער)), SUMPRODUCT((שעות_עבודה7[[#This Row],[שם העבודה]]=$O$9:$O$38)*שעות_עבודה7[[#This Row],[שעות]]*($P$9:$P$38*24)))=0,"", IF(VLOOKUP(שעות_עבודה7[[#This Row],[שם העבודה]],טבלה1[],5,FALSE)="דולרים-$", SUMPRODUCT((שעות_עבודה7[[#This Row],[שם העבודה]]=$O$9:$O$38)*שעות_עבודה7[[#This Row],[שעות]]*($P$9:$P$38*24*שער)), SUMPRODUCT((שעות_עבודה7[[#This Row],[שם העבודה]]=$O$9:$O$38)*שעות_עבודה7[[#This Row],[שעות]]*($P$9:$P$38*24)))),"")) ->  | Q23: =IF(O23="","", IFERROR(IF(SUMIFS(שעות_עבודה7[שעות],שעות_עבודה7[שם העבודה],O23)=0,"", SUMIFS(שעות_עבודה7[שעות],שעות_עבודה7[שם העבודה],O23)),"")) -> 
B24: =IF(AND(שעות_עבודה7[[#This Row],[התחלה]]="",שעות_עבודה7[[#This Row],[שם העבודה]]=""),"",ROW(A16)) ->  | C24: =_xlfn.IFS(שעות_עבודה7[[#This Row],[התחלה]]="","",WEEKDAY(שעות_עבודה7[[#This Row],[התחלה]])=1,"ראשון",WEEKDAY(שעות_עבודה7[[#This Row],[התחלה]])=2,"שני",WEEKDAY(שעות_עבודה7[[#This Row],[התחלה]])=3,"שלישי",WEEKDAY(שעות_עבודה7[[#This Row],[התחלה]])=4,"רביעי",WEEKDAY(שעות_עבודה7[[#This Row],[התחלה]])=5,"חמישי",WEEKDAY(שעות_עבודה7[[#This Row],[התחלה]])=6,"שישי",WEEKDAY(שעות_עבודה7[[#This Row],[התחלה]])=7,"מוצ""ש") ->  | D24: =IF(שעות_עבודה7[[#This Row],[התחלה]]="","",שעות_עבודה7[[#This Row],[התחלה]]) ->  | J24: =IF(IF(OR(שעות_עבודה7[[#This Row],[התחלה]]="",שעות_עבודה7[[#This Row],[סיום]]=""), IF(שעות_עבודה7[[#This Row],[הפחתת דקות]]>שעות_עבודה7[[#This Row],[הוספת דקות]],"",שעות_עבודה7[[#This Row],[הוספת דקות]]/1440-שעות_עבודה7[[#This Row],[הפחתת דקות]]/1440), IF(שעות_עבודה7[[#This Row],[סיום]]-שעות_עבודה7[[#This Row],[התחלה]]+שעות_עבודה7[[#This Row],[הוספת דקות]]/1440<שעות_עבודה7[[#This Row],[הפחתת דקות]]/1440,"", SUM(שעות_עבודה7[[#This Row],[סיום]]-שעות_עבודה7[[#This Row],[התחלה]],שעות_עבודה7[[#This Row],[הוספת דקות]]/1440,-שעות_עבודה7[[#This Row],[הפחתת דקות]]/1440)))=0,"", IF(OR(שעות_עבודה7[[#This Row],[התחלה]]="",שעות_עבודה7[[#This Row],[סיום]]=""), IF(שעות_עבודה7[[#This Row],[הפחתת דקות]]>שעות_עבודה7[[#This Row],[הוספת דקות]],"",שעות_עבודה7[[#This Row],[הוספת דקות]]/1440-שעות_עבודה7[[#This Row],[הפחתת דקות]]/1440), IF(שעות_עבודה7[[#This Row],[סיום]]-שעות_עבודה7[[#This Row],[התחלה]]+שעות_עבודה7[[#This Row],[הוספת דקות]]/1440<שעות_עבודה7[[#This Row],[הפחתת דקות]]/1440,"", SUM(שעות_עבודה7[[#This Row],[סיום]]-שעות_עבודה7[[#This Row],[התחלה]],שעות_עבודה7[[#This Row],[הוספת דקות]]/1440,-שעות_עבודה7[[#This Row],[הפחתת דקות]]/1440)))) ->  | K24: =IF(שעות_עבודה7[[#This Row],[שעות]]="","", IFERROR(IF(IF(VLOOKUP(שעות_עבודה7[[#This Row],[שם העבודה]],טבלה1[],5,FALSE)="דולרים-$", SUMPRODUCT((שעות_עבודה7[[#This Row],[שם העבודה]]=$O$9:$O$38)*שעות_עבודה7[[#This Row],[שעות]]*($P$9:$P$38*24*שער)), SUMPRODUCT((שעות_עבודה7[[#This Row],[שם העבודה]]=$O$9:$O$38)*שעות_עבודה7[[#This Row],[שעות]]*($P$9:$P$38*24)))=0,"", IF(VLOOKUP(שעות_עבודה7[[#This Row],[שם העבודה]],טבלה1[],5,FALSE)="דולרים-$", SUMPRODUCT((שעות_עבודה7[[#This Row],[שם העבודה]]=$O$9:$O$38)*שעות_עבודה7[[#This Row],[שעות]]*($P$9:$P$38*24*שער)), SUMPRODUCT((שעות_עבודה7[[#This Row],[שם העבודה]]=$O$9:$O$38)*שעות_עבודה7[[#This Row],[שעות]]*($P$9:$P$38*24)))),"")) ->  | Q24: =IF(O24="","", IFERROR(IF(SUMIFS(שעות_עבודה7[שעות],שעות_עבודה7[שם העבודה],O24)=0,"", SUMIFS(שעות_עבודה7[שעות],שעות_עבודה7[שם העבודה],O24)),"")) -> 
B25: =IF(AND(שעות_עבודה7[[#This Row],[התחלה]]="",שעות_עבודה7[[#This Row],[שם העבודה]]=""),"",ROW(A17)) ->  | C25: =_xlfn.IFS(שעות_עבודה7[[#This Row],[התחלה]]="","",WEEKDAY(שעות_עבודה7[[#This Row],[התחלה]])=1,"ראשון",WEEKDAY(שעות_עבודה7[[#This Row],[התחלה]])=2,"שני",WEEKDAY(שעות_עבודה7[[#This Row],[התחלה]])=3,"שלישי",WEEKDAY(שעות_עבודה7[[#This Row],[התחלה]])=4,"רביעי",WEEKDAY(שעות_עבודה7[[#This Row],[התחלה]])=5,"חמישי",WEEKDAY(שעות_עבודה7[[#This Row],[התחלה]])=6,"שישי",WEEKDAY(שעות_עבודה7[[#This Row],[התחלה]])=7,"מוצ""ש") ->  | D25: =IF(שעות_עבודה7[[#This Row],[התחלה]]="","",שעות_עבודה7[[#This Row],[התחלה]]) ->  | J25: =IF(IF(OR(שעות_עבודה7[[#This Row],[התחלה]]="",שעות_עבודה7[[#This Row],[סיום]]=""), IF(שעות_עבודה7[[#This Row],[הפחתת דקות]]>שעות_עבודה7[[#This Row],[הוספת דקות]],"",שעות_עבודה7[[#This Row],[הוספת דקות]]/1440-שעות_עבודה7[[#This Row],[הפחתת דקות]]/1440), IF(שעות_עבודה7[[#This Row],[סיום]]-שעות_עבודה7[[#This Row],[התחלה]]+שעות_עבודה7[[#This Row],[הוספת דקות]]/1440<שעות_עבודה7[[#This Row],[הפחתת דקות]]/1440,"", SUM(שעות_עבודה7[[#This Row],[סיום]]-שעות_עבודה7[[#This Row],[התחלה]],שעות_עבודה7[[#This Row],[הוספת דקות]]/1440,-שעות_עבודה7[[#This Row],[הפחתת דקות]]/1440)))=0,"", IF(OR(שעות_עבודה7[[#This Row],[התחלה]]="",שעות_עבודה7[[#This Row],[סיום]]=""), IF(שעות_עבודה7[[#This Row],[הפחתת דקות]]>שעות_עבודה7[[#This Row],[הוספת דקות]],"",שעות_עבודה7[[#This Row],[הוספת דקות]]/1440-שעות_עבודה7[[#This Row],[הפחתת דקות]]/1440), IF(שעות_עבודה7[[#This Row],[סיום]]-שעות_עבודה7[[#This Row],[התחלה]]+שעות_עבודה7[[#This Row],[הוספת דקות]]/1440<שעות_עבודה7[[#This Row],[הפחתת דקות]]/1440,"", SUM(שעות_עבודה7[[#This Row],[סיום]]-שעות_עבודה7[[#This Row],[התחלה]],שעות_עבודה7[[#This Row],[הוספת דקות]]/1440,-שעות_עבודה7[[#This Row],[הפחתת דקות]]/1440)))) ->  | K25: =IF(שעות_עבודה7[[#This Row],[שעות]]="","", IFERROR(IF(IF(VLOOKUP(שעות_עבודה7[[#This Row],[שם העבודה]],טבלה1[],5,FALSE)="דולרים-$", SUMPRODUCT((שעות_עבודה7[[#This Row],[שם העבודה]]=$O$9:$O$38)*שעות_עבודה7[[#This Row],[שעות]]*($P$9:$P$38*24*שער)), SUMPRODUCT((שעות_עבודה7[[#This Row],[שם העבודה]]=$O$9:$O$38)*שעות_עבודה7[[#This Row],[שעות]]*($P$9:$P$38*24)))=0,"", IF(VLOOKUP(שעות_עבודה7[[#This Row],[שם העבודה]],טבלה1[],5,FALSE)="דולרים-$", SUMPRODUCT((שעות_עבודה7[[#This Row],[שם העבודה]]=$O$9:$O$38)*שעות_עבודה7[[#This Row],[שעות]]*($P$9:$P$38*24*שער)), SUMPRODUCT((שעות_עבודה7[[#This Row],[שם העבודה]]=$O$9:$O$38)*שעות_עבודה7[[#This Row],[שעות]]*($P$9:$P$38*24)))),"")) ->  | Q25: =IF(O25="","", IFERROR(IF(SUMIFS(שעות_עבודה7[שעות],שעות_עבודה7[שם העבודה],O25)=0,"", SUMIFS(שעות_עבודה7[שעות],שעות_עבודה7[שם העבודה],O25)),"")) -> 
B26: =IF(AND(שעות_עבודה7[[#This Row],[התחלה]]="",שעות_עבודה7[[#This Row],[שם העבודה]]=""),"",ROW(A18)) ->  | C26: =_xlfn.IFS(שעות_עבודה7[[#This Row],[התחלה]]="","",WEEKDAY(שעות_עבודה7[[#This Row],[התחלה]])=1,"ראשון",WEEKDAY(שעות_עבודה7[[#This Row],[התחלה]])=2,"שני",WEEKDAY(שעות_עבודה7[[#This Row],[התחלה]])=3,"שלישי",WEEKDAY(שעות_עבודה7[[#This Row],[התחלה]])=4,"רביעי",WEEKDAY(שעות_עבודה7[[#This Row],[התחלה]])=5,"חמישי",WEEKDAY(שעות_עבודה7[[#This Row],[התחלה]])=6,"שישי",WEEKDAY(שעות_עבודה7[[#This Row],[התחלה]])=7,"מוצ""ש") ->  | D26: =IF(שעות_עבודה7[[#This Row],[התחלה]]="","",שעות_עבודה7[[#This Row],[התחלה]]) ->  | J26: =IF(IF(OR(שעות_עבודה7[[#This Row],[התחלה]]="",שעות_עבודה7[[#This Row],[סיום]]=""), IF(שעות_עבודה7[[#This Row],[הפחתת דקות]]>שעות_עבודה7[[#This Row],[הוספת דקות]],"",שעות_עבודה7[[#This Row],[הוספת דקות]]/1440-שעות_עבודה7[[#This Row],[הפחתת דקות]]/1440), IF(שעות_עבודה7[[#This Row],[סיום]]-שעות_עבודה7[[#This Row],[התחלה]]+שעות_עבודה7[[#This Row],[הוספת דקות]]/1440<שעות_עבודה7[[#This Row],[הפחתת דקות]]/1440,"", SUM(שעות_עבודה7[[#This Row],[סיום]]-שעות_עבודה7[[#This Row],[התחלה]],שעות_עבודה7[[#This Row],[הוספת דקות]]/1440,-שעות_עבודה7[[#This Row],[הפחתת דקות]]/1440)))=0,"", IF(OR(שעות_עבודה7[[#This Row],[התחלה]]="",שעות_עבודה7[[#This Row],[סיום]]=""), IF(שעות_עבודה7[[#This Row],[הפחתת דקות]]>שעות_עבודה7[[#This Row],[הוספת דקות]],"",שעות_עבודה7[[#This Row],[הוספת דקות]]/1440-שעות_עבודה7[[#This Row],[הפחתת דקות]]/1440), IF(שעות_עבודה7[[#This Row],[סיום]]-שעות_עבודה7[[#This Row],[התחלה]]+שעות_עבודה7[[#This Row],[הוספת דקות]]/1440<שעות_עבודה7[[#This Row],[הפחתת דקות]]/1440,"", SUM(שעות_עבודה7[[#This Row],[סיום]]-שעות_עבודה7[[#This Row],[התחלה]],שעות_עבודה7[[#This Row],[הוספת דקות]]/1440,-שעות_עבודה7[[#This Row],[הפחתת דקות]]/1440)))) ->  | K26: =IF(שעות_עבודה7[[#This Row],[שעות]]="","", IFERROR(IF(IF(VLOOKUP(שעות_עבודה7[[#This Row],[שם העבודה]],טבלה1[],5,FALSE)="דולרים-$", SUMPRODUCT((שעות_עבודה7[[#This Row],[שם העבודה]]=$O$9:$O$38)*שעות_עבודה7[[#This Row],[שעות]]*($P$9:$P$38*24*שער)), SUMPRODUCT((שעות_עבודה7[[#This Row],[שם העבודה]]=$O$9:$O$38)*שעות_עבודה7[[#This Row],[שעות]]*($P$9:$P$38*24)))=0,"", IF(VLOOKUP(שעות_עבודה7[[#This Row],[שם העבודה]],טבלה1[],5,FALSE)="דולרים-$", SUMPRODUCT((שעות_עבודה7[[#This Row],[שם העבודה]]=$O$9:$O$38)*שעות_עבודה7[[#This Row],[שעות]]*($P$9:$P$38*24*שער)), SUMPRODUCT((שעות_עבודה7[[#This Row],[שם העבודה]]=$O$9:$O$38)*שעות_עבודה7[[#This Row],[שעות]]*($P$9:$P$38*24)))),"")) ->  | Q26: =IF(O26="","", IFERROR(IF(SUMIFS(שעות_עבודה7[שעות],שעות_עבודה7[שם העבודה],O26)=0,"", SUMIFS(שעות_עבודה7[שעות],שעות_עבודה7[שם העבודה],O26)),"")) -> 
B27: =IF(AND(שעות_עבודה7[[#This Row],[התחלה]]="",שעות_עבודה7[[#This Row],[שם העבודה]]=""),"",ROW(A19)) ->  | C27: =_xlfn.IFS(שעות_עבודה7[[#This Row],[התחלה]]="","",WEEKDAY(שעות_עבודה7[[#This Row],[התחלה]])=1,"ראשון",WEEKDAY(שעות_עבודה7[[#This Row],[התחלה]])=2,"שני",WEEKDAY(שעות_עבודה7[[#This Row],[התחלה]])=3,"שלישי",WEEKDAY(שעות_עבודה7[[#This Row],[התחלה]])=4,"רביעי",WEEKDAY(שעות_עבודה7[[#This Row],[התחלה]])=5,"חמישי",WEEKDAY(שעות_עבודה7[[#This Row],[התחלה]])=6,"שישי",WEEKDAY(שעות_עבודה7[[#This Row],[התחלה]])=7,"מוצ""ש") ->  | D27: =IF(שעות_עבודה7[[#This Row],[התחלה]]="","",שעות_עבודה7[[#This Row],[התחלה]]) ->  | J27: =IF(IF(OR(שעות_עבודה7[[#This Row],[התחלה]]="",שעות_עבודה7[[#This Row],[סיום]]=""), IF(שעות_עבודה7[[#This Row],[הפחתת דקות]]>שעות_עבודה7[[#This Row],[הוספת דקות]],"",שעות_עבודה7[[#This Row],[הוספת דקות]]/1440-שעות_עבודה7[[#This Row],[הפחתת דקות]]/1440), IF(שעות_עבודה7[[#This Row],[סיום]]-שעות_עבודה7[[#This Row],[התחלה]]+שעות_עבודה7[[#This Row],[הוספת דקות]]/1440<שעות_עבודה7[[#This Row],[הפחתת דקות]]/1440,"", SUM(שעות_עבודה7[[#This Row],[סיום]]-שעות_עבודה7[[#This Row],[התחלה]],שעות_עבודה7[[#This Row],[הוספת דקות]]/1440,-שעות_עבודה7[[#This Row],[הפחתת דקות]]/1440)))=0,"", IF(OR(שעות_עבודה7[[#This Row],[התחלה]]="",שעות_עבודה7[[#This Row],[סיום]]=""), IF(שעות_עבודה7[[#This Row],[הפחתת דקות]]>שעות_עבודה7[[#This Row],[הוספת דקות]],"",שעות_עבודה7[[#This Row],[הוספת דקות]]/1440-שעות_עבודה7[[#This Row],[הפחתת דקות]]/1440), IF(שעות_עבודה7[[#This Row],[סיום]]-שעות_עבודה7[[#This Row],[התחלה]]+שעות_עבודה7[[#This Row],[הוספת דקות]]/1440<שעות_עבודה7[[#This Row],[הפחתת דקות]]/1440,"", SUM(שעות_עבודה7[[#This Row],[סיום]]-שעות_עבודה7[[#This Row],[התחלה]],שעות_עבודה7[[#This Row],[הוספת דקות]]/1440,-שעות_עבודה7[[#This Row],[הפחתת דקות]]/1440)))) ->  | K27: =IF(שעות_עבודה7[[#This Row],[שעות]]="","", IFERROR(IF(IF(VLOOKUP(שעות_עבודה7[[#This Row],[שם העבודה]],טבלה1[],5,FALSE)="דולרים-$", SUMPRODUCT((שעות_עבודה7[[#This Row],[שם העבודה]]=$O$9:$O$38)*שעות_עבודה7[[#This Row],[שעות]]*($P$9:$P$38*24*שער)), SUMPRODUCT((שעות_עבודה7[[#This Row],[שם העבודה]]=$O$9:$O$38)*שעות_עבודה7[[#This Row],[שעות]]*($P$9:$P$38*24)))=0,"", IF(VLOOKUP(שעות_עבודה7[[#This Row],[שם העבודה]],טבלה1[],5,FALSE)="דולרים-$", SUMPRODUCT((שעות_עבודה7[[#This Row],[שם העבודה]]=$O$9:$O$38)*שעות_עבודה7[[#This Row],[שעות]]*($P$9:$P$38*24*שער)), SUMPRODUCT((שעות_עבודה7[[#This Row],[שם העבודה]]=$O$9:$O$38)*שעות_עבודה7[[#This Row],[שעות]]*($P$9:$P$38*24)))),"")) ->  | Q27: =IF(O27="","", IFERROR(IF(SUMIFS(שעות_עבודה7[שעות],שעות_עבודה7[שם העבודה],O27)=0,"", SUMIFS(שעות_עבודה7[שעות],שעות_עבודה7[שם העבודה],O27)),"")) -> 
B28: =IF(AND(שעות_עבודה7[[#This Row],[התחלה]]="",שעות_עבודה7[[#This Row],[שם העבודה]]=""),"",ROW(A20)) ->  | C28: =_xlfn.IFS(שעות_עבודה7[[#This Row],[התחלה]]="","",WEEKDAY(שעות_עבודה7[[#This Row],[התחלה]])=1,"ראשון",WEEKDAY(שעות_עבודה7[[#This Row],[התחלה]])=2,"שני",WEEKDAY(שעות_עבודה7[[#This Row],[התחלה]])=3,"שלישי",WEEKDAY(שעות_עבודה7[[#This Row],[התחלה]])=4,"רביעי",WEEKDAY(שעות_עבודה7[[#This Row],[התחלה]])=5,"חמישי",WEEKDAY(שעות_עבודה7[[#This Row],[התחלה]])=6,"שישי",WEEKDAY(שעות_עבודה7[[#This Row],[התחלה]])=7,"מוצ""ש") ->  | D28: =IF(שעות_עבודה7[[#This Row],[התחלה]]="","",שעות_עבודה7[[#This Row],[התחלה]]) ->  | J28: =IF(IF(OR(שעות_עבודה7[[#This Row],[התחלה]]="",שעות_עבודה7[[#This Row],[סיום]]=""), IF(שעות_עבודה7[[#This Row],[הפחתת דקות]]>שעות_עבודה7[[#This Row],[הוספת דקות]],"",שעות_עבודה7[[#This Row],[הוספת דקות]]/1440-שעות_עבודה7[[#This Row],[הפחתת דקות]]/1440), IF(שעות_עבודה7[[#This Row],[סיום]]-שעות_עבודה7[[#This Row],[התחלה]]+שעות_עבודה7[[#This Row],[הוספת דקות]]/1440<שעות_עבודה7[[#This Row],[הפחתת דקות]]/1440,"", SUM(שעות_עבודה7[[#This Row],[סיום]]-שעות_עבודה7[[#This Row],[התחלה]],שעות_עבודה7[[#This Row],[הוספת דקות]]/1440,-שעות_עבודה7[[#This Row],[הפחתת דקות]]/1440)))=0,"", IF(OR(שעות_עבודה7[[#This Row],[התחלה]]="",שעות_עבודה7[[#This Row],[סיום]]=""), IF(שעות_עבודה7[[#This Row],[הפחתת דקות]]>שעות_עבודה7[[#This Row],[הוספת דקות]],"",שעות_עבודה7[[#This Row],[הוספת דקות]]/1440-שעות_עבודה7[[#This Row],[הפחתת דקות]]/1440), IF(שעות_עבודה7[[#This Row],[סיום]]-שעות_עבודה7[[#This Row],[התחלה]]+שעות_עבודה7[[#This Row],[הוספת דקות]]/1440<שעות_עבודה7[[#This Row],[הפחתת דקות]]/1440,"", SUM(שעות_עבודה7[[#This Row],[סיום]]-שעות_עבודה7[[#This Row],[התחלה]],שעות_עבודה7[[#This Row],[הוספת דקות]]/1440,-שעות_עבודה7[[#This Row],[הפחתת דקות]]/1440)))) ->  | K28: =IF(שעות_עבודה7[[#This Row],[שעות]]="","", IFERROR(IF(IF(VLOOKUP(שעות_עבודה7[[#This Row],[שם העבודה]],טבלה1[],5,FALSE)="דולרים-$", SUMPRODUCT((שעות_עבודה7[[#This Row],[שם העבודה]]=$O$9:$O$38)*שעות_עבודה7[[#This Row],[שעות]]*($P$9:$P$38*24*שער)), SUMPRODUCT((שעות_עבודה7[[#This Row],[שם העבודה]]=$O$9:$O$38)*שעות_עבודה7[[#This Row],[שעות]]*($P$9:$P$38*24)))=0,"", IF(VLOOKUP(שעות_עבודה7[[#This Row],[שם העבודה]],טבלה1[],5,FALSE)="דולרים-$", SUMPRODUCT((שעות_עבודה7[[#This Row],[שם העבודה]]=$O$9:$O$38)*שעות_עבודה7[[#This Row],[שעות]]*($P$9:$P$38*24*שער)), SUMPRODUCT((שעות_עבודה7[[#This Row],[שם העבודה]]=$O$9:$O$38)*שעות_עבודה7[[#This Row],[שעות]]*($P$9:$P$38*24)))),"")) ->  | Q28: =IF(O28="","", IFERROR(IF(SUMIFS(שעות_עבודה7[שעות],שעות_עבודה7[שם העבודה],O28)=0,"", SUMIFS(שעות_עבודה7[שעות],שעות_עבודה7[שם העבודה],O28)),"")) -> 
B29: =IF(AND(שעות_עבודה7[[#This Row],[התחלה]]="",שעות_עבודה7[[#This Row],[שם העבודה]]=""),"",ROW(A21)) ->  | C29: =_xlfn.IFS(שעות_עבודה7[[#This Row],[התחלה]]="","",WEEKDAY(שעות_עבודה7[[#This Row],[התחלה]])=1,"ראשון",WEEKDAY(שעות_עבודה7[[#This Row],[התחלה]])=2,"שני",WEEKDAY(שעות_עבודה7[[#This Row],[התחלה]])=3,"שלישי",WEEKDAY(שעות_עבודה7[[#This Row],[התחלה]])=4,"רביעי",WEEKDAY(שעות_עבודה7[[#This Row],[התחלה]])=5,"חמישי",WEEKDAY(שעות_עבודה7[[#This Row],[התחלה]])=6,"שישי",WEEKDAY(שעות_עבודה7[[#This Row],[התחלה]])=7,"מוצ""ש") ->  | D29: =IF(שעות_עבודה7[[#This Row],[התחלה]]="","",שעות_עבודה7[[#This Row],[התחלה]]) ->  | J29: =IF(IF(OR(שעות_עבודה7[[#This Row],[התחלה]]="",שעות_עבודה7[[#This Row],[סיום]]=""), IF(שעות_עבודה7[[#This Row],[הפחתת דקות]]>שעות_עבודה7[[#This Row],[הוספת דקות]],"",שעות_עבודה7[[#This Row],[הוספת דקות]]/1440-שעות_עבודה7[[#This Row],[הפחתת דקות]]/1440), IF(שעות_עבודה7[[#This Row],[סיום]]-שעות_עבודה7[[#This Row],[התחלה]]+שעות_עבודה7[[#This Row],[הוספת דקות]]/1440<שעות_עבודה7[[#This Row],[הפחתת דקות]]/1440,"", SUM(שעות_עבודה7[[#This Row],[סיום]]-שעות_עבודה7[[#This Row],[התחלה]],שעות_עבודה7[[#This Row],[הוספת דקות]]/1440,-שעות_עבודה7[[#This Row],[הפחתת דקות]]/1440)))=0,"", IF(OR(שעות_עבודה7[[#This Row],[התחלה]]="",שעות_עבודה7[[#This Row],[סיום]]=""), IF(שעות_עבודה7[[#This Row],[הפחתת דקות]]>שעות_עבודה7[[#This Row],[הוספת דקות]],"",שעות_עבודה7[[#This Row],[הוספת דקות]]/1440-שעות_עבודה7[[#This Row],[הפחתת דקות]]/1440), IF(שעות_עבודה7[[#This Row],[סיום]]-שעות_עבודה7[[#This Row],[התחלה]]+שעות_עבודה7[[#This Row],[הוספת דקות]]/1440<שעות_עבודה7[[#This Row],[הפחתת דקות]]/1440,"", SUM(שעות_עבודה7[[#This Row],[סיום]]-שעות_עבודה7[[#This Row],[התחלה]],שעות_עבודה7[[#This Row],[הוספת דקות]]/1440,-שעות_עבודה7[[#This Row],[הפחתת דקות]]/1440)))) ->  | K29: =IF(שעות_עבודה7[[#This Row],[שעות]]="","", IFERROR(IF(IF(VLOOKUP(שעות_עבודה7[[#This Row],[שם העבודה]],טבלה1[],5,FALSE)="דולרים-$", SUMPRODUCT((שעות_עבודה7[[#This Row],[שם העבודה]]=$O$9:$O$38)*שעות_עבודה7[[#This Row],[שעות]]*($P$9:$P$38*24*שער)), SUMPRODUCT((שעות_עבודה7[[#This Row],[שם העבודה]]=$O$9:$O$38)*שעות_עבודה7[[#This Row],[שעות]]*($P$9:$P$38*24)))=0,"", IF(VLOOKUP(שעות_עבודה7[[#This Row],[שם העבודה]],טבלה1[],5,FALSE)="דולרים-$", SUMPRODUCT((שעות_עבודה7[[#This Row],[שם העבודה]]=$O$9:$O$38)*שעות_עבודה7[[#This Row],[שעות]]*($P$9:$P$38*24*שער)), SUMPRODUCT((שעות_עבודה7[[#This Row],[שם העבודה]]=$O$9:$O$38)*שעות_עבודה7[[#This Row],[שעות]]*($P$9:$P$38*24)))),"")) ->  | Q29: =IF(O29="","", IFERROR(IF(SUMIFS(שעות_עבודה7[שעות],שעות_עבודה7[שם העבודה],O29)=0,"", SUMIFS(שעות_עבודה7[שעות],שעות_עבודה7[שם העבודה],O29)),"")) -> 
B30: =IF(AND(שעות_עבודה7[[#This Row],[התחלה]]="",שעות_עבודה7[[#This Row],[שם העבודה]]=""),"",ROW(A22)) ->  | C30: =_xlfn.IFS(שעות_עבודה7[[#This Row],[התחלה]]="","",WEEKDAY(שעות_עבודה7[[#This Row],[התחלה]])=1,"ראשון",WEEKDAY(שעות_עבודה7[[#This Row],[התחלה]])=2,"שני",WEEKDAY(שעות_עבודה7[[#This Row],[התחלה]])=3,"שלישי",WEEKDAY(שעות_עבודה7[[#This Row],[התחלה]])=4,"רביעי",WEEKDAY(שעות_עבודה7[[#This Row],[התחלה]])=5,"חמישי",WEEKDAY(שעות_עבודה7[[#This Row],[התחלה]])=6,"שישי",WEEKDAY(שעות_עבודה7[[#This Row],[התחלה]])=7,"מוצ""ש") ->  | D30: =IF(שעות_עבודה7[[#This Row],[התחלה]]="","",שעות_עבודה7[[#This Row],[התחלה]]) ->  | J30: =IF(IF(OR(שעות_עבודה7[[#This Row],[התחלה]]="",שעות_עבודה7[[#This Row],[סיום]]=""), IF(שעות_עבודה7[[#This Row],[הפחתת דקות]]>שעות_עבודה7[[#This Row],[הוספת דקות]],"",שעות_עבודה7[[#This Row],[הוספת דקות]]/1440-שעות_עבודה7[[#This Row],[הפחתת דקות]]/1440), IF(שעות_עבודה7[[#This Row],[סיום]]-שעות_עבודה7[[#This Row],[התחלה]]+שעות_עבודה7[[#This Row],[הוספת דקות]]/1440<שעות_עבודה7[[#This Row],[הפחתת דקות]]/1440,"", SUM(שעות_עבודה7[[#This Row],[סיום]]-שעות_עבודה7[[#This Row],[התחלה]],שעות_עבודה7[[#This Row],[הוספת דקות]]/1440,-שעות_עבודה7[[#This Row],[הפחתת דקות]]/1440)))=0,"", IF(OR(שעות_עבודה7[[#This Row],[התחלה]]="",שעות_עבודה7[[#This Row],[סיום]]=""), IF(שעות_עבודה7[[#This Row],[הפחתת דקות]]>שעות_עבודה7[[#This Row],[הוספת דקות]],"",שעות_עבודה7[[#This Row],[הוספת דקות]]/1440-שעות_עבודה7[[#This Row],[הפחתת דקות]]/1440), IF(שעות_עבודה7[[#This Row],[סיום]]-שעות_עבודה7[[#This Row],[התחלה]]+שעות_עבודה7[[#This Row],[הוספת דקות]]/1440<שעות_עבודה7[[#This Row],[הפחתת דקות]]/1440,"", SUM(שעות_עבודה7[[#This Row],[סיום]]-שעות_עבודה7[[#This Row],[התחלה]],שעות_עבודה7[[#This Row],[הוספת דקות]]/1440,-שעות_עבודה7[[#This Row],[הפחתת דקות]]/1440)))) ->  | K30: =IF(שעות_עבודה7[[#This Row],[שעות]]="","", IFERROR(IF(IF(VLOOKUP(שעות_עבודה7[[#This Row],[שם העבודה]],טבלה1[],5,FALSE)="דולרים-$", SUMPRODUCT((שעות_עבודה7[[#This Row],[שם העבודה]]=$O$9:$O$38)*שעות_עבודה7[[#This Row],[שעות]]*($P$9:$P$38*24*שער)), SUMPRODUCT((שעות_עבודה7[[#This Row],[שם העבודה]]=$O$9:$O$38)*שעות_עבודה7[[#This Row],[שעות]]*($P$9:$P$38*24)))=0,"", IF(VLOOKUP(שעות_עבודה7[[#This Row],[שם העבודה]],טבלה1[],5,FALSE)="דולרים-$", SUMPRODUCT((שעות_עבודה7[[#This Row],[שם העבודה]]=$O$9:$O$38)*שעות_עבודה7[[#This Row],[שעות]]*($P$9:$P$38*24*שער)), SUMPRODUCT((שעות_עבודה7[[#This Row],[שם העבודה]]=$O$9:$O$38)*שעות_עבודה7[[#This Row],[שעות]]*($P$9:$P$38*24)))),"")) ->  | Q30: =IF(O30="","", IFERROR(IF(SUMIFS(שעות_עבודה7[שעות],שעות_עבודה7[שם העבודה],O30)=0,"", SUMIFS(שעות_עבודה7[שעות],שעות_עבודה7[שם העבודה],O30)),"")) -> 
B31: =IF(AND(שעות_עבודה7[[#This Row],[התחלה]]="",שעות_עבודה7[[#This Row],[שם העבודה]]=""),"",ROW(A23)) ->  | C31: =_xlfn.IFS(שעות_עבודה7[[#This Row],[התחלה]]="","",WEEKDAY(שעות_עבודה7[[#This Row],[התחלה]])=1,"ראשון",WEEKDAY(שעות_עבודה7[[#This Row],[התחלה]])=2,"שני",WEEKDAY(שעות_עבודה7[[#This Row],[התחלה]])=3,"שלישי",WEEKDAY(שעות_עבודה7[[#This Row],[התחלה]])=4,"רביעי",WEEKDAY(שעות_עבודה7[[#This Row],[התחלה]])=5,"חמישי",WEEKDAY(שעות_עבודה7[[#This Row],[התחלה]])=6,"שישי",WEEKDAY(שעות_עבודה7[[#This Row],[התחלה]])=7,"מוצ""ש") ->  | D31: =IF(שעות_עבודה7[[#This Row],[התחלה]]="","",שעות_עבודה7[[#This Row],[התחלה]]) ->  | J31: =IF(IF(OR(שעות_עבודה7[[#This Row],[התחלה]]="",שעות_עבודה7[[#This Row],[סיום]]=""), IF(שעות_עבודה7[[#This Row],[הפחתת דקות]]>שעות_עבודה7[[#This Row],[הוספת דקות]],"",שעות_עבודה7[[#This Row],[הוספת דקות]]/1440-שעות_עבודה7[[#This Row],[הפחתת דקות]]/1440), IF(שעות_עבודה7[[#This Row],[סיום]]-שעות_עבודה7[[#This Row],[התחלה]]+שעות_עבודה7[[#This Row],[הוספת דקות]]/1440<שעות_עבודה7[[#This Row],[הפחתת דקות]]/1440,"", SUM(שעות_עבודה7[[#This Row],[סיום]]-שעות_עבודה7[[#This Row],[התחלה]],שעות_עבודה7[[#This Row],[הוספת דקות]]/1440,-שעות_עבודה7[[#This Row],[הפחתת דקות]]/1440)))=0,"", IF(OR(שעות_עבודה7[[#This Row],[התחלה]]="",שעות_עבודה7[[#This Row],[סיום]]=""), IF(שעות_עבודה7[[#This Row],[הפחתת דקות]]>שעות_עבודה7[[#This Row],[הוספת דקות]],"",שעות_עבודה7[[#This Row],[הוספת דקות]]/1440-שעות_עבודה7[[#This Row],[הפחתת דקות]]/1440), IF(שעות_עבודה7[[#This Row],[סיום]]-שעות_עבודה7[[#This Row],[התחלה]]+שעות_עבודה7[[#This Row],[הוספת דקות]]/1440<שעות_עבודה7[[#This Row],[הפחתת דקות]]/1440,"", SUM(שעות_עבודה7[[#This Row],[סיום]]-שעות_עבודה7[[#This Row],[התחלה]],שעות_עבודה7[[#This Row],[הוספת דקות]]/1440,-שעות_עבודה7[[#This Row],[הפחתת דקות]]/1440)))) ->  | K31: =IF(שעות_עבודה7[[#This Row],[שעות]]="","", IFERROR(IF(IF(VLOOKUP(שעות_עבודה7[[#This Row],[שם העבודה]],טבלה1[],5,FALSE)="דולרים-$", SUMPRODUCT((שעות_עבודה7[[#This Row],[שם העבודה]]=$O$9:$O$38)*שעות_עבודה7[[#This Row],[שעות]]*($P$9:$P$38*24*שער)), SUMPRODUCT((שעות_עבודה7[[#This Row],[שם העבודה]]=$O$9:$O$38)*שעות_עבודה7[[#This Row],[שעות]]*($P$9:$P$38*24)))=0,"", IF(VLOOKUP(שעות_עבודה7[[#This Row],[שם העבודה]],טבלה1[],5,FALSE)="דולרים-$", SUMPRODUCT((שעות_עבודה7[[#This Row],[שם העבודה]]=$O$9:$O$38)*שעות_עבודה7[[#This Row],[שעות]]*($P$9:$P$38*24*שער)), SUMPRODUCT((שעות_עבודה7[[#This Row],[שם העבודה]]=$O$9:$O$38)*שעות_עבודה7[[#This Row],[שעות]]*($P$9:$P$38*24)))),"")) ->  | Q31: =IF(O31="","", IFERROR(IF(SUMIFS(שעות_עבודה7[שעות],שעות_עבודה7[שם העבודה],O31)=0,"", SUMIFS(שעות_עבודה7[שעות],שעות_עבודה7[שם העבודה],O31)),"")) -> 
B32: =IF(AND(שעות_עבודה7[[#This Row],[התחלה]]="",שעות_עבודה7[[#This Row],[שם העבודה]]=""),"",ROW(A24)) ->  | C32: =_xlfn.IFS(שעות_עבודה7[[#This Row],[התחלה]]="","",WEEKDAY(שעות_עבודה7[[#This Row],[התחלה]])=1,"ראשון",WEEKDAY(שעות_עבודה7[[#This Row],[התחלה]])=2,"שני",WEEKDAY(שעות_עבודה7[[#This Row],[התחלה]])=3,"שלישי",WEEKDAY(שעות_עבודה7[[#This Row],[התחלה]])=4,"רביעי",WEEKDAY(שעות_עבודה7[[#This Row],[התחלה]])=5,"חמישי",WEEKDAY(שעות_עבודה7[[#This Row],[התחלה]])=6,"שישי",WEEKDAY(שעות_עבודה7[[#This Row],[התחלה]])=7,"מוצ""ש") ->  | D32: =IF(שעות_עבודה7[[#This Row],[התחלה]]="","",שעות_עבודה7[[#This Row],[התחלה]]) ->  | J32: =IF(IF(OR(שעות_עבודה7[[#This Row],[התחלה]]="",שעות_עבודה7[[#This Row],[סיום]]=""), IF(שעות_עבודה7[[#This Row],[הפחתת דקות]]>שעות_עבודה7[[#This Row],[הוספת דקות]],"",שעות_עבודה7[[#This Row],[הוספת דקות]]/1440-שעות_עבודה7[[#This Row],[הפחתת דקות]]/1440), IF(שעות_עבודה7[[#This Row],[סיום]]-שעות_עבודה7[[#This Row],[התחלה]]+שעות_עבודה7[[#This Row],[הוספת דקות]]/1440<שעות_עבודה7[[#This Row],[הפחתת דקות]]/1440,"", SUM(שעות_עבודה7[[#This Row],[סיום]]-שעות_עבודה7[[#This Row],[התחלה]],שעות_עבודה7[[#This Row],[הוספת דקות]]/1440,-שעות_עבודה7[[#This Row],[הפחתת דקות]]/1440)))=0,"", IF(OR(שעות_עבודה7[[#This Row],[התחלה]]="",שעות_עבודה7[[#This Row],[סיום]]=""), IF(שעות_עבודה7[[#This Row],[הפחתת דקות]]>שעות_עבודה7[[#This Row],[הוספת דקות]],"",שעות_עבודה7[[#This Row],[הוספת דקות]]/1440-שעות_עבודה7[[#This Row],[הפחתת דקות]]/1440), IF(שעות_עבודה7[[#This Row],[סיום]]-שעות_עבודה7[[#This Row],[התחלה]]+שעות_עבודה7[[#This Row],[הוספת דקות]]/1440<שעות_עבודה7[[#This Row],[הפחתת דקות]]/1440,"", SUM(שעות_עבודה7[[#This Row],[סיום]]-שעות_עבודה7[[#This Row],[התחלה]],שעות_עבודה7[[#This Row],[הוספת דקות]]/1440,-שעות_עבודה7[[#This Row],[הפחתת דקות]]/1440)))) ->  | K32: =IF(שעות_עבודה7[[#This Row],[שעות]]="","", IFERROR(IF(IF(VLOOKUP(שעות_עבודה7[[#This Row],[שם העבודה]],טבלה1[],5,FALSE)="דולרים-$", SUMPRODUCT((שעות_עבודה7[[#This Row],[שם העבודה]]=$O$9:$O$38)*שעות_עבודה7[[#This Row],[שעות]]*($P$9:$P$38*24*שער)), SUMPRODUCT((שעות_עבודה7[[#This Row],[שם העבודה]]=$O$9:$O$38)*שעות_עבודה7[[#This Row],[שעות]]*($P$9:$P$38*24)))=0,"", IF(VLOOKUP(שעות_עבודה7[[#This Row],[שם העבודה]],טבלה1[],5,FALSE)="דולרים-$", SUMPRODUCT((שעות_עבודה7[[#This Row],[שם העבודה]]=$O$9:$O$38)*שעות_עבודה7[[#This Row],[שעות]]*($P$9:$P$38*24*שער)), SUMPRODUCT((שעות_עבודה7[[#This Row],[שם העבודה]]=$O$9:$O$38)*שעות_עבודה7[[#This Row],[שעות]]*($P$9:$P$38*24)))),"")) ->  | Q32: =IF(O32="","", IFERROR(IF(SUMIFS(שעות_עבודה7[שעות],שעות_עבודה7[שם העבודה],O32)=0,"", SUMIFS(שעות_עבודה7[שעות],שעות_עבודה7[שם העבודה],O32)),"")) -> 
B33: =IF(AND(שעות_עבודה7[[#This Row],[התחלה]]="",שעות_עבודה7[[#This Row],[שם העבודה]]=""),"",ROW(A25)) ->  | C33: =_xlfn.IFS(שעות_עבודה7[[#This Row],[התחלה]]="","",WEEKDAY(שעות_עבודה7[[#This Row],[התחלה]])=1,"ראשון",WEEKDAY(שעות_עבודה7[[#This Row],[התחלה]])=2,"שני",WEEKDAY(שעות_עבודה7[[#This Row],[התחלה]])=3,"שלישי",WEEKDAY(שעות_עבודה7[[#This Row],[התחלה]])=4,"רביעי",WEEKDAY(שעות_עבודה7[[#This Row],[התחלה]])=5,"חמישי",WEEKDAY(שעות_עבודה7[[#This Row],[התחלה]])=6,"שישי",WEEKDAY(שעות_עבודה7[[#This Row],[התחלה]])=7,"מוצ""ש") ->  | D33: =IF(שעות_עבודה7[[#This Row],[התחלה]]="","",שעות_עבודה7[[#This Row],[התחלה]]) ->  | J33: =IF(IF(OR(שעות_עבודה7[[#This Row],[התחלה]]="",שעות_עבודה7[[#This Row],[סיום]]=""), IF(שעות_עבודה7[[#This Row],[הפחתת דקות]]>שעות_עבודה7[[#This Row],[הוספת דקות]],"",שעות_עבודה7[[#This Row],[הוספת דקות]]/1440-שעות_עבודה7[[#This Row],[הפחתת דקות]]/1440), IF(שעות_עבודה7[[#This Row],[סיום]]-שעות_עבודה7[[#This Row],[התחלה]]+שעות_עבודה7[[#This Row],[הוספת דקות]]/1440<שעות_עבודה7[[#This Row],[הפחתת דקות]]/1440,"", SUM(שעות_עבודה7[[#This Row],[סיום]]-שעות_עבודה7[[#This Row],[התחלה]],שעות_עבודה7[[#This Row],[הוספת דקות]]/1440,-שעות_עבודה7[[#This Row],[הפחתת דקות]]/1440)))=0,"", IF(OR(שעות_עבודה7[[#This Row],[התחלה]]="",שעות_עבודה7[[#This Row],[סיום]]=""), IF(שעות_עבודה7[[#This Row],[הפחתת דקות]]>שעות_עבודה7[[#This Row],[הוספת דקות]],"",שעות_עבודה7[[#This Row],[הוספת דקות]]/1440-שעות_עבודה7[[#This Row],[הפחתת דקות]]/1440), IF(שעות_עבודה7[[#This Row],[סיום]]-שעות_עבודה7[[#This Row],[התחלה]]+שעות_עבודה7[[#This Row],[הוספת דקות]]/1440<שעות_עבודה7[[#This Row],[הפחתת דקות]]/1440,"", SUM(שעות_עבודה7[[#This Row],[סיום]]-שעות_עבודה7[[#This Row],[התחלה]],שעות_עבודה7[[#This Row],[הוספת דקות]]/1440,-שעות_עבודה7[[#This Row],[הפחתת דקות]]/1440)))) ->  | K33: =IF(שעות_עבודה7[[#This Row],[שעות]]="","", IFERROR(IF(IF(VLOOKUP(שעות_עבודה7[[#This Row],[שם העבודה]],טבלה1[],5,FALSE)="דולרים-$", SUMPRODUCT((שעות_עבודה7[[#This Row],[שם העבודה]]=$O$9:$O$38)*שעות_עבודה7[[#This Row],[שעות]]*($P$9:$P$38*24*שער)), SUMPRODUCT((שעות_עבודה7[[#This Row],[שם העבודה]]=$O$9:$O$38)*שעות_עבודה7[[#This Row],[שעות]]*($P$9:$P$38*24)))=0,"", IF(VLOOKUP(שעות_עבודה7[[#This Row],[שם העבודה]],טבלה1[],5,FALSE)="דולרים-$", SUMPRODUCT((שעות_עבודה7[[#This Row],[שם העבודה]]=$O$9:$O$38)*שעות_עבודה7[[#This Row],[שעות]]*($P$9:$P$38*24*שער)), SUMPRODUCT((שעות_עבודה7[[#This Row],[שם העבודה]]=$O$9:$O$38)*שעות_עבודה7[[#This Row],[שעות]]*($P$9:$P$38*24)))),"")) ->  | Q33: =IF(O33="","", IFERROR(IF(SUMIFS(שעות_עבודה7[שעות],שעות_עבודה7[שם העבודה],O33)=0,"", SUMIFS(שעות_עבודה7[שעות],שעות_עבודה7[שם העבודה],O33)),"")) -> 
B34: =IF(AND(שעות_עבודה7[[#This Row],[התחלה]]="",שעות_עבודה7[[#This Row],[שם העבודה]]=""),"",ROW(A26)) ->  | C34: =_xlfn.IFS(שעות_עבודה7[[#This Row],[התחלה]]="","",WEEKDAY(שעות_עבודה7[[#This Row],[התחלה]])=1,"ראשון",WEEKDAY(שעות_עבודה7[[#This Row],[התחלה]])=2,"שני",WEEKDAY(שעות_עבודה7[[#This Row],[התחלה]])=3,"שלישי",WEEKDAY(שעות_עבודה7[[#This Row],[התחלה]])=4,"רביעי",WEEKDAY(שעות_עבודה7[[#This Row],[התחלה]])=5,"חמישי",WEEKDAY(שעות_עבודה7[[#This Row],[התחלה]])=6,"שישי",WEEKDAY(שעות_עבודה7[[#This Row],[התחלה]])=7,"מוצ""ש") ->  | D34: =IF(שעות_עבודה7[[#This Row],[התחלה]]="","",שעות_עבודה7[[#This Row],[התחלה]]) ->  | J34: =IF(IF(OR(שעות_עבודה7[[#This Row],[התחלה]]="",שעות_עבודה7[[#This Row],[סיום]]=""), IF(שעות_עבודה7[[#This Row],[הפחתת דקות]]>שעות_עבודה7[[#This Row],[הוספת דקות]],"",שעות_עבודה7[[#This Row],[הוספת דקות]]/1440-שעות_עבודה7[[#This Row],[הפחתת דקות]]/1440), IF(שעות_עבודה7[[#This Row],[סיום]]-שעות_עבודה7[[#This Row],[התחלה]]+שעות_עבודה7[[#This Row],[הוספת דקות]]/1440<שעות_עבודה7[[#This Row],[הפחתת דקות]]/1440,"", SUM(שעות_עבודה7[[#This Row],[סיום]]-שעות_עבודה7[[#This Row],[התחלה]],שעות_עבודה7[[#This Row],[הוספת דקות]]/1440,-שעות_עבודה7[[#This Row],[הפחתת דקות]]/1440)))=0,"", IF(OR(שעות_עבודה7[[#This Row],[התחלה]]="",שעות_עבודה7[[#This Row],[סיום]]=""), IF(שעות_עבודה7[[#This Row],[הפחתת דקות]]>שעות_עבודה7[[#This Row],[הוספת דקות]],"",שעות_עבודה7[[#This Row],[הוספת דקות]]/1440-שעות_עבודה7[[#This Row],[הפחתת דקות]]/1440), IF(שעות_עבודה7[[#This Row],[סיום]]-שעות_עבודה7[[#This Row],[התחלה]]+שעות_עבודה7[[#This Row],[הוספת דקות]]/1440<שעות_עבודה7[[#This Row],[הפחתת דקות]]/1440,"", SUM(שעות_עבודה7[[#This Row],[סיום]]-שעות_עבודה7[[#This Row],[התחלה]],שעות_עבודה7[[#This Row],[הוספת דקות]]/1440,-שעות_עבודה7[[#This Row],[הפחתת דקות]]/1440)))) ->  | K34: =IF(שעות_עבודה7[[#This Row],[שעות]]="","", IFERROR(IF(IF(VLOOKUP(שעות_עבודה7[[#This Row],[שם העבודה]],טבלה1[],5,FALSE)="דולרים-$", SUMPRODUCT((שעות_עבודה7[[#This Row],[שם העבודה]]=$O$9:$O$38)*שעות_עבודה7[[#This Row],[שעות]]*($P$9:$P$38*24*שער)), SUMPRODUCT((שעות_עבודה7[[#This Row],[שם העבודה]]=$O$9:$O$38)*שעות_עבודה7[[#This Row],[שעות]]*($P$9:$P$38*24)))=0,"", IF(VLOOKUP(שעות_עבודה7[[#This Row],[שם העבודה]],טבלה1[],5,FALSE)="דולרים-$", SUMPRODUCT((שעות_עבודה7[[#This Row],[שם העבודה]]=$O$9:$O$38)*שעות_עבודה7[[#This Row],[שעות]]*($P$9:$P$38*24*שער)), SUMPRODUCT((שעות_עבודה7[[#This Row],[שם העבודה]]=$O$9:$O$38)*שעות_עבודה7[[#This Row],[שעות]]*($P$9:$P$38*24)))),"")) ->  | Q34: =IF(O34="","", IFERROR(IF(SUMIFS(שעות_עבודה7[שעות],שעות_עבודה7[שם העבודה],O34)=0,"", SUMIFS(שעות_עבודה7[שעות],שעות_עבודה7[שם העבודה],O34)),"")) -> 
B35: =IF(AND(שעות_עבודה7[[#This Row],[התחלה]]="",שעות_עבודה7[[#This Row],[שם העבודה]]=""),"",ROW(A27)) ->  | C35: =_xlfn.IFS(שעות_עבודה7[[#This Row],[התחלה]]="","",WEEKDAY(שעות_עבודה7[[#This Row],[התחלה]])=1,"ראשון",WEEKDAY(שעות_עבודה7[[#This Row],[התחלה]])=2,"שני",WEEKDAY(שעות_עבודה7[[#This Row],[התחלה]])=3,"שלישי",WEEKDAY(שעות_עבודה7[[#This Row],[התחלה]])=4,"רביעי",WEEKDAY(שעות_עבודה7[[#This Row],[התחלה]])=5,"חמישי",WEEKDAY(שעות_עבודה7[[#This Row],[התחלה]])=6,"שישי",WEEKDAY(שעות_עבודה7[[#This Row],[התחלה]])=7,"מוצ""ש") ->  | D35: =IF(שעות_עבודה7[[#This Row],[התחלה]]="","",שעות_עבודה7[[#This Row],[התחלה]]) ->  | J35: =IF(IF(OR(שעות_עבודה7[[#This Row],[התחלה]]="",שעות_עבודה7[[#This Row],[סיום]]=""), IF(שעות_עבודה7[[#This Row],[הפחתת דקות]]>שעות_עבודה7[[#This Row],[הוספת דקות]],"",שעות_עבודה7[[#This Row],[הוספת דקות]]/1440-שעות_עבודה7[[#This Row],[הפחתת דקות]]/1440), IF(שעות_עבודה7[[#This Row],[סיום]]-שעות_עבודה7[[#This Row],[התחלה]]+שעות_עבודה7[[#This Row],[הוספת דקות]]/1440<שעות_עבודה7[[#This Row],[הפחתת דקות]]/1440,"", SUM(שעות_עבודה7[[#This Row],[סיום]]-שעות_עבודה7[[#This Row],[התחלה]],שעות_עבודה7[[#This Row],[הוספת דקות]]/1440,-שעות_עבודה7[[#This Row],[הפחתת דקות]]/1440)))=0,"", IF(OR(שעות_עבודה7[[#This Row],[התחלה]]="",שעות_עבודה7[[#This Row],[סיום]]=""), IF(שעות_עבודה7[[#This Row],[הפחתת דקות]]>שעות_עבודה7[[#This Row],[הוספת דקות]],"",שעות_עבודה7[[#This Row],[הוספת דקות]]/1440-שעות_עבודה7[[#This Row],[הפחתת דקות]]/1440), IF(שעות_עבודה7[[#This Row],[סיום]]-שעות_עבודה7[[#This Row],[התחלה]]+שעות_עבודה7[[#This Row],[הוספת דקות]]/1440<שעות_עבודה7[[#This Row],[הפחתת דקות]]/1440,"", SUM(שעות_עבודה7[[#This Row],[סיום]]-שעות_עבודה7[[#This Row],[התחלה]],שעות_עבודה7[[#This Row],[הוספת דקות]]/1440,-שעות_עבודה7[[#This Row],[הפחתת דקות]]/1440)))) ->  | K35: =IF(שעות_עבודה7[[#This Row],[שעות]]="","", IFERROR(IF(IF(VLOOKUP(שעות_עבודה7[[#This Row],[שם העבודה]],טבלה1[],5,FALSE)="דולרים-$", SUMPRODUCT((שעות_עבודה7[[#This Row],[שם העבודה]]=$O$9:$O$38)*שעות_עבודה7[[#This Row],[שעות]]*($P$9:$P$38*24*שער)), SUMPRODUCT((שעות_עבודה7[[#This Row],[שם העבודה]]=$O$9:$O$38)*שעות_עבודה7[[#This Row],[שעות]]*($P$9:$P$38*24)))=0,"", IF(VLOOKUP(שעות_עבודה7[[#This Row],[שם העבודה]],טבלה1[],5,FALSE)="דולרים-$", SUMPRODUCT((שעות_עבודה7[[#This Row],[שם העבודה]]=$O$9:$O$38)*שעות_עבודה7[[#This Row],[שעות]]*($P$9:$P$38*24*שער)), SUMPRODUCT((שעות_עבודה7[[#This Row],[שם העבודה]]=$O$9:$O$38)*שעות_עבודה7[[#This Row],[שעות]]*($P$9:$P$38*24)))),"")) ->  | Q35: =IF(O35="","", IFERROR(IF(SUMIFS(שעות_עבודה7[שעות],שעות_עבודה7[שם העבודה],O35)=0,"", SUMIFS(שעות_עבודה7[שעות],שעות_עבודה7[שם העבודה],O35)),"")) -> 
B36: =IF(AND(שעות_עבודה7[[#This Row],[התחלה]]="",שעות_עבודה7[[#This Row],[שם העבודה]]=""),"",ROW(A28)) ->  | C36: =_xlfn.IFS(שעות_עבודה7[[#This Row],[התחלה]]="","",WEEKDAY(שעות_עבודה7[[#This Row],[התחלה]])=1,"ראשון",WEEKDAY(שעות_עבודה7[[#This Row],[התחלה]])=2,"שני",WEEKDAY(שעות_עבודה7[[#This Row],[התחלה]])=3,"שלישי",WEEKDAY(שעות_עבודה7[[#This Row],[התחלה]])=4,"רביעי",WEEKDAY(שעות_עבודה7[[#This Row],[התחלה]])=5,"חמישי",WEEKDAY(שעות_עבודה7[[#This Row],[התחלה]])=6,"שישי",WEEKDAY(שעות_עבודה7[[#This Row],[התחלה]])=7,"מוצ""ש") ->  | D36: =IF(שעות_עבודה7[[#This Row],[התחלה]]="","",שעות_עבודה7[[#This Row],[התחלה]]) ->  | J36: =IF(IF(OR(שעות_עבודה7[[#This Row],[התחלה]]="",שעות_עבודה7[[#This Row],[סיום]]=""), IF(שעות_עבודה7[[#This Row],[הפחתת דקות]]>שעות_עבודה7[[#This Row],[הוספת דקות]],"",שעות_עבודה7[[#This Row],[הוספת דקות]]/1440-שעות_עבודה7[[#This Row],[הפחתת דקות]]/1440), IF(שעות_עבודה7[[#This Row],[סיום]]-שעות_עבודה7[[#This Row],[התחלה]]+שעות_עבודה7[[#This Row],[הוספת דקות]]/1440<שעות_עבודה7[[#This Row],[הפחתת דקות]]/1440,"", SUM(שעות_עבודה7[[#This Row],[סיום]]-שעות_עבודה7[[#This Row],[התחלה]],שעות_עבודה7[[#This Row],[הוספת דקות]]/1440,-שעות_עבודה7[[#This Row],[הפחתת דקות]]/1440)))=0,"", IF(OR(שעות_עבודה7[[#This Row],[התחלה]]="",שעות_עבודה7[[#This Row],[סיום]]=""), IF(שעות_עבודה7[[#This Row],[הפחתת דקות]]>שעות_עבודה7[[#This Row],[הוספת דקות]],"",שעות_עבודה7[[#This Row],[הוספת דקות]]/1440-שעות_עבודה7[[#This Row],[הפחתת דקות]]/1440), IF(שעות_עבודה7[[#This Row],[סיום]]-שעות_עבודה7[[#This Row],[התחלה]]+שעות_עבודה7[[#This Row],[הוספת דקות]]/1440<שעות_עבודה7[[#This Row],[הפחתת דקות]]/1440,"", SUM(שעות_עבודה7[[#This Row],[סיום]]-שעות_עבודה7[[#This Row],[התחלה]],שעות_עבודה7[[#This Row],[הוספת דקות]]/1440,-שעות_עבודה7[[#This Row],[הפחתת דקות]]/1440)))) ->  | K36: =IF(שעות_עבודה7[[#This Row],[שעות]]="","", IFERROR(IF(IF(VLOOKUP(שעות_עבודה7[[#This Row],[שם העבודה]],טבלה1[],5,FALSE)="דולרים-$", SUMPRODUCT((שעות_עבודה7[[#This Row],[שם העבודה]]=$O$9:$O$38)*שעות_עבודה7[[#This Row],[שעות]]*($P$9:$P$38*24*שער)), SUMPRODUCT((שעות_עבודה7[[#This Row],[שם העבודה]]=$O$9:$O$38)*שעות_עבודה7[[#This Row],[שעות]]*($P$9:$P$38*24)))=0,"", IF(VLOOKUP(שעות_עבודה7[[#This Row],[שם העבודה]],טבלה1[],5,FALSE)="דולרים-$", SUMPRODUCT((שעות_עבודה7[[#This Row],[שם העבודה]]=$O$9:$O$38)*שעות_עבודה7[[#This Row],[שעות]]*($P$9:$P$38*24*שער)), SUMPRODUCT((שעות_עבודה7[[#This Row],[שם העבודה]]=$O$9:$O$38)*שעות_עבודה7[[#This Row],[שעות]]*($P$9:$P$38*24)))),"")) ->  | Q36: =IF(O36="","", IFERROR(IF(SUMIFS(שעות_עבודה7[שעות],שעות_עבודה7[שם העבודה],O36)=0,"", SUMIFS(שעות_עבודה7[שעות],שעות_עבודה7[שם העבודה],O36)),"")) -> 
B37: =IF(AND(שעות_עבודה7[[#This Row],[התחלה]]="",שעות_עבודה7[[#This Row],[שם העבודה]]=""),"",ROW(A29)) ->  | C37: =_xlfn.IFS(שעות_עבודה7[[#This Row],[התחלה]]="","",WEEKDAY(שעות_עבודה7[[#This Row],[התחלה]])=1,"ראשון",WEEKDAY(שעות_עבודה7[[#This Row],[התחלה]])=2,"שני",WEEKDAY(שעות_עבודה7[[#This Row],[התחלה]])=3,"שלישי",WEEKDAY(שעות_עבודה7[[#This Row],[התחלה]])=4,"רביעי",WEEKDAY(שעות_עבודה7[[#This Row],[התחלה]])=5,"חמישי",WEEKDAY(שעות_עבודה7[[#This Row],[התחלה]])=6,"שישי",WEEKDAY(שעות_עבודה7[[#This Row],[התחלה]])=7,"מוצ""ש") ->  | D37: =IF(שעות_עבודה7[[#This Row],[התחלה]]="","",שעות_עבודה7[[#This Row],[התחלה]]) ->  | J37: =IF(IF(OR(שעות_עבודה7[[#This Row],[התחלה]]="",שעות_עבודה7[[#This Row],[סיום]]=""), IF(שעות_עבודה7[[#This Row],[הפחתת דקות]]>שעות_עבודה7[[#This Row],[הוספת דקות]],"",שעות_עבודה7[[#This Row],[הוספת דקות]]/1440-שעות_עבודה7[[#This Row],[הפחתת דקות]]/1440), IF(שעות_עבודה7[[#This Row],[סיום]]-שעות_עבודה7[[#This Row],[התחלה]]+שעות_עבודה7[[#This Row],[הוספת דקות]]/1440<שעות_עבודה7[[#This Row],[הפחתת דקות]]/1440,"", SUM(שעות_עבודה7[[#This Row],[סיום]]-שעות_עבודה7[[#This Row],[התחלה]],שעות_עבודה7[[#This Row],[הוספת דקות]]/1440,-שעות_עבודה7[[#This Row],[הפחתת דקות]]/1440)))=0,"", IF(OR(שעות_עבודה7[[#This Row],[התחלה]]="",שעות_עבודה7[[#This Row],[סיום]]=""), IF(שעות_עבודה7[[#This Row],[הפחתת דקות]]>שעות_עבודה7[[#This Row],[הוספת דקות]],"",שעות_עבודה7[[#This Row],[הוספת דקות]]/1440-שעות_עבודה7[[#This Row],[הפחתת דקות]]/1440), IF(שעות_עבודה7[[#This Row],[סיום]]-שעות_עבודה7[[#This Row],[התחלה]]+שעות_עבודה7[[#This Row],[הוספת דקות]]/1440<שעות_עבודה7[[#This Row],[הפחתת דקות]]/1440,"", SUM(שעות_עבודה7[[#This Row],[סיום]]-שעות_עבודה7[[#This Row],[התחלה]],שעות_עבודה7[[#This Row],[הוספת דקות]]/1440,-שעות_עבודה7[[#This Row],[הפחתת דקות]]/1440)))) ->  | K37: =IF(שעות_עבודה7[[#This Row],[שעות]]="","", IFERROR(IF(IF(VLOOKUP(שעות_עבודה7[[#This Row],[שם העבודה]],טבלה1[],5,FALSE)="דולרים-$", SUMPRODUCT((שעות_עבודה7[[#This Row],[שם העבודה]]=$O$9:$O$38)*שעות_עבודה7[[#This Row],[שעות]]*($P$9:$P$38*24*שער)), SUMPRODUCT((שעות_עבודה7[[#This Row],[שם העבודה]]=$O$9:$O$38)*שעות_עבודה7[[#This Row],[שעות]]*($P$9:$P$38*24)))=0,"", IF(VLOOKUP(שעות_עבודה7[[#This Row],[שם העבודה]],טבלה1[],5,FALSE)="דולרים-$", SUMPRODUCT((שעות_עבודה7[[#This Row],[שם העבודה]]=$O$9:$O$38)*שעות_עבודה7[[#This Row],[שעות]]*($P$9:$P$38*24*שער)), SUMPRODUCT((שעות_עבודה7[[#This Row],[שם העבודה]]=$O$9:$O$38)*שעות_עבודה7[[#This Row],[שעות]]*($P$9:$P$38*24)))),"")) ->  | Q37: =IF(O37="","", IFERROR(IF(SUMIFS(שעות_עבודה7[שעות],שעות_עבודה7[שם העבודה],O37)=0,"", SUMIFS(שעות_עבודה7[שעות],שעות_עבודה7[שם העבודה],O37)),"")) -> 
B38: =IF(AND(שעות_עבודה7[[#This Row],[התחלה]]="",שעות_עבודה7[[#This Row],[שם העבודה]]=""),"",ROW(A30)) ->  | C38: =_xlfn.IFS(שעות_עבודה7[[#This Row],[התחלה]]="","",WEEKDAY(שעות_עבודה7[[#This Row],[התחלה]])=1,"ראשון",WEEKDAY(שעות_עבודה7[[#This Row],[התחלה]])=2,"שני",WEEKDAY(שעות_עבודה7[[#This Row],[התחלה]])=3,"שלישי",WEEKDAY(שעות_עבודה7[[#This Row],[התחלה]])=4,"רביעי",WEEKDAY(שעות_עבודה7[[#This Row],[התחלה]])=5,"חמישי",WEEKDAY(שעות_עבודה7[[#This Row],[התחלה]])=6,"שישי",WEEKDAY(שעות_עבודה7[[#This Row],[התחלה]])=7,"מוצ""ש") ->  | D38: =IF(שעות_עבודה7[[#This Row],[התחלה]]="","",שעות_עבודה7[[#This Row],[התחלה]]) ->  | J38: =IF(IF(OR(שעות_עבודה7[[#This Row],[התחלה]]="",שעות_עבודה7[[#This Row],[סיום]]=""), IF(שעות_עבודה7[[#This Row],[הפחתת דקות]]>שעות_עבודה7[[#This Row],[הוספת דקות]],"",שעות_עבודה7[[#This Row],[הוספת דקות]]/1440-שעות_עבודה7[[#This Row],[הפחתת דקות]]/1440), IF(שעות_עבודה7[[#This Row],[סיום]]-שעות_עבודה7[[#This Row],[התחלה]]+שעות_עבודה7[[#This Row],[הוספת דקות]]/1440<שעות_עבודה7[[#This Row],[הפחתת דקות]]/1440,"", SUM(שעות_עבודה7[[#This Row],[סיום]]-שעות_עבודה7[[#This Row],[התחלה]],שעות_עבודה7[[#This Row],[הוספת דקות]]/1440,-שעות_עבודה7[[#This Row],[הפחתת דקות]]/1440)))=0,"", IF(OR(שעות_עבודה7[[#This Row],[התחלה]]="",שעות_עבודה7[[#This Row],[סיום]]=""), IF(שעות_עבודה7[[#This Row],[הפחתת דקות]]>שעות_עבודה7[[#This Row],[הוספת דקות]],"",שעות_עבודה7[[#This Row],[הוספת דקות]]/1440-שעות_עבודה7[[#This Row],[הפחתת דקות]]/1440), IF(שעות_עבודה7[[#This Row],[סיום]]-שעות_עבודה7[[#This Row],[התחלה]]+שעות_עבודה7[[#This Row],[הוספת דקות]]/1440<שעות_עבודה7[[#This Row],[הפחתת דקות]]/1440,"", SUM(שעות_עבודה7[[#This Row],[סיום]]-שעות_עבודה7[[#This Row],[התחלה]],שעות_עבודה7[[#This Row],[הוספת דקות]]/1440,-שעות_עבודה7[[#This Row],[הפחתת דקות]]/1440)))) ->  | K38: =IF(שעות_עבודה7[[#This Row],[שעות]]="","", IFERROR(IF(IF(VLOOKUP(שעות_עבודה7[[#This Row],[שם העבודה]],טבלה1[],5,FALSE)="דולרים-$", SUMPRODUCT((שעות_עבודה7[[#This Row],[שם העבודה]]=$O$9:$O$38)*שעות_עבודה7[[#This Row],[שעות]]*($P$9:$P$38*24*שער)), SUMPRODUCT((שעות_עבודה7[[#This Row],[שם העבודה]]=$O$9:$O$38)*שעות_עבודה7[[#This Row],[שעות]]*($P$9:$P$38*24)))=0,"", IF(VLOOKUP(שעות_עבודה7[[#This Row],[שם העבודה]],טבלה1[],5,FALSE)="דולרים-$", SUMPRODUCT((שעות_עבודה7[[#This Row],[שם העבודה]]=$O$9:$O$38)*שעות_עבודה7[[#This Row],[שעות]]*($P$9:$P$38*24*שער)), SUMPRODUCT((שעות_עבודה7[[#This Row],[שם העבודה]]=$O$9:$O$38)*שעות_עבודה7[[#This Row],[שעות]]*($P$9:$P$38*24)))),"")) ->  | Q38: =IF(O38="","", IFERROR(IF(SUMIFS(שעות_עבודה7[שעות],שעות_עבודה7[שם העבודה],O38)=0,"", SUMIFS(שעות_עבודה7[שעות],שעות_עבודה7[שם העבודה],O38)),"")) -> 
B39: =IF(AND(שעות_עבודה7[[#This Row],[התחלה]]="",שעות_עבודה7[[#This Row],[שם העבודה]]=""),"",ROW(A31)) ->  | C39: =_xlfn.IFS(שעות_עבודה7[[#This Row],[התחלה]]="","",WEEKDAY(שעות_עבודה7[[#This Row],[התחלה]])=1,"ראשון",WEEKDAY(שעות_עבודה7[[#This Row],[התחלה]])=2,"שני",WEEKDAY(שעות_עבודה7[[#This Row],[התחלה]])=3,"שלישי",WEEKDAY(שעות_עבודה7[[#This Row],[התחלה]])=4,"רביעי",WEEKDAY(שעות_עבודה7[[#This Row],[התחלה]])=5,"חמישי",WEEKDAY(שעות_עבודה7[[#This Row],[התחלה]])=6,"שישי",WEEKDAY(שעות_עבודה7[[#This Row],[התחלה]])=7,"מוצ""ש") ->  | D39: =IF(שעות_עבודה7[[#This Row],[התחלה]]="","",שעות_עבודה7[[#This Row],[התחלה]]) ->  | J39: =IF(IF(OR(שעות_עבודה7[[#This Row],[התחלה]]="",שעות_עבודה7[[#This Row],[סיום]]=""), IF(שעות_עבודה7[[#This Row],[הפחתת דקות]]>שעות_עבודה7[[#This Row],[הוספת דקות]],"",שעות_עבודה7[[#This Row],[הוספת דקות]]/1440-שעות_עבודה7[[#This Row],[הפחתת דקות]]/1440), IF(שעות_עבודה7[[#This Row],[סיום]]-שעות_עבודה7[[#This Row],[התחלה]]+שעות_עבודה7[[#This Row],[הוספת דקות]]/1440<שעות_עבודה7[[#This Row],[הפחתת דקות]]/1440,"", SUM(שעות_עבודה7[[#This Row],[סיום]]-שעות_עבודה7[[#This Row],[התחלה]],שעות_עבודה7[[#This Row],[הוספת דקות]]/1440,-שעות_עבודה7[[#This Row],[הפחתת דקות]]/1440)))=0,"", IF(OR(שעות_עבודה7[[#This Row],[התחלה]]="",שעות_עבודה7[[#This Row],[סיום]]=""), IF(שעות_עבודה7[[#This Row],[הפחתת דקות]]>שעות_עבודה7[[#This Row],[הוספת דקות]],"",שעות_עבודה7[[#This Row],[הוספת דקות]]/1440-שעות_עבודה7[[#This Row],[הפחתת דקות]]/1440), IF(שעות_עבודה7[[#This Row],[סיום]]-שעות_עבודה7[[#This Row],[התחלה]]+שעות_עבודה7[[#This Row],[הוספת דקות]]/1440<שעות_עבודה7[[#This Row],[הפחתת דקות]]/1440,"", SUM(שעות_עבודה7[[#This Row],[סיום]]-שעות_עבודה7[[#This Row],[התחלה]],שעות_עבודה7[[#This Row],[הוספת דקות]]/1440,-שעות_עבודה7[[#This Row],[הפחתת דקות]]/1440)))) ->  | K39: =IF(שעות_עבודה7[[#This Row],[שעות]]="","", IFERROR(IF(IF(VLOOKUP(שעות_עבודה7[[#This Row],[שם העבודה]],טבלה1[],5,FALSE)="דולרים-$", SUMPRODUCT((שעות_עבודה7[[#This Row],[שם העבודה]]=$O$9:$O$38)*שעות_עבודה7[[#This Row],[שעות]]*($P$9:$P$38*24*שער)), SUMPRODUCT((שעות_עבודה7[[#This Row],[שם העבודה]]=$O$9:$O$38)*שעות_עבודה7[[#This Row],[שעות]]*($P$9:$P$38*24)))=0,"", IF(VLOOKUP(שעות_עבודה7[[#This Row],[שם העבודה]],טבלה1[],5,FALSE)="דולרים-$", SUMPRODUCT((שעות_עבודה7[[#This Row],[שם העבודה]]=$O$9:$O$38)*שעות_עבודה7[[#This Row],[שעות]]*($P$9:$P$38*24*שער)), SUMPRODUCT((שעות_עבודה7[[#This Row],[שם העבודה]]=$O$9:$O$38)*שעות_עבודה7[[#This Row],[שעות]]*($P$9:$P$38*24)))),"")) -> 
B40: =IF(AND(שעות_עבודה7[[#This Row],[התחלה]]="",שעות_עבודה7[[#This Row],[שם העבודה]]=""),"",ROW(A32)) ->  | C40: =_xlfn.IFS(שעות_עבודה7[[#This Row],[התחלה]]="","",WEEKDAY(שעות_עבודה7[[#This Row],[התחלה]])=1,"ראשון",WEEKDAY(שעות_עבודה7[[#This Row],[התחלה]])=2,"שני",WEEKDAY(שעות_עבודה7[[#This Row],[התחלה]])=3,"שלישי",WEEKDAY(שעות_עבודה7[[#This Row],[התחלה]])=4,"רביעי",WEEKDAY(שעות_עבודה7[[#This Row],[התחלה]])=5,"חמישי",WEEKDAY(שעות_עבודה7[[#This Row],[התחלה]])=6,"שישי",WEEKDAY(שעות_עבודה7[[#This Row],[התחלה]])=7,"מוצ""ש") ->  | D40: =IF(שעות_עבודה7[[#This Row],[התחלה]]="","",שעות_עבודה7[[#This Row],[התחלה]]) ->  | J40: =IF(IF(OR(שעות_עבודה7[[#This Row],[התחלה]]="",שעות_עבודה7[[#This Row],[סיום]]=""), IF(שעות_עבודה7[[#This Row],[הפחתת דקות]]>שעות_עבודה7[[#This Row],[הוספת דקות]],"",שעות_עבודה7[[#This Row],[הוספת דקות]]/1440-שעות_עבודה7[[#This Row],[הפחתת דקות]]/1440), IF(שעות_עבודה7[[#This Row],[סיום]]-שעות_עבודה7[[#This Row],[התחלה]]+שעות_עבודה7[[#This Row],[הוספת דקות]]/1440<שעות_עבודה7[[#This Row],[הפחתת דקות]]/1440,"", SUM(שעות_עבודה7[[#This Row],[סיום]]-שעות_עבודה7[[#This Row],[התחלה]],שעות_עבודה7[[#This Row],[הוספת דקות]]/1440,-שעות_עבודה7[[#This Row],[הפחתת דקות]]/1440)))=0,"", IF(OR(שעות_עבודה7[[#This Row],[התחלה]]="",שעות_עבודה7[[#This Row],[סיום]]=""), IF(שעות_עבודה7[[#This Row],[הפחתת דקות]]>שעות_עבודה7[[#This Row],[הוספת דקות]],"",שעות_עבודה7[[#This Row],[הוספת דקות]]/1440-שעות_עבודה7[[#This Row],[הפחתת דקות]]/1440), IF(שעות_עבודה7[[#This Row],[סיום]]-שעות_עבודה7[[#This Row],[התחלה]]+שעות_עבודה7[[#This Row],[הוספת דקות]]/1440<שעות_עבודה7[[#This Row],[הפחתת דקות]]/1440,"", SUM(שעות_עבודה7[[#This Row],[סיום]]-שעות_עבודה7[[#This Row],[התחלה]],שעות_עבודה7[[#This Row],[הוספת דקות]]/1440,-שעות_עבודה7[[#This Row],[הפחתת דקות]]/1440)))) ->  | K40: =IF(שעות_עבודה7[[#This Row],[שעות]]="","", IFERROR(IF(IF(VLOOKUP(שעות_עבודה7[[#This Row],[שם העבודה]],טבלה1[],5,FALSE)="דולרים-$", SUMPRODUCT((שעות_עבודה7[[#This Row],[שם העבודה]]=$O$9:$O$38)*שעות_עבודה7[[#This Row],[שעות]]*($P$9:$P$38*24*שער)), SUMPRODUCT((שעות_עבודה7[[#This Row],[שם העבודה]]=$O$9:$O$38)*שעות_עבודה7[[#This Row],[שעות]]*($P$9:$P$38*24)))=0,"", IF(VLOOKUP(שעות_עבודה7[[#This Row],[שם העבודה]],טבלה1[],5,FALSE)="דולרים-$", SUMPRODUCT((שעות_עבודה7[[#This Row],[שם העבודה]]=$O$9:$O$38)*שעות_עבודה7[[#This Row],[שעות]]*($P$9:$P$38*24*שער)), SUMPRODUCT((שעות_עבודה7[[#This Row],[שם העבודה]]=$O$9:$O$38)*שעות_עבודה7[[#This Row],[שעות]]*($P$9:$P$38*24)))),"")) ->  | Q40: כשהמחשב מקוון ניתן לעדכן את השער באמצעות הפקד הזה השולף את הנתונים מאתר בנק ישראל | S40: שער הדולר בשקלים-
B41: =IF(AND(שעות_עבודה7[[#This Row],[התחלה]]="",שעות_עבודה7[[#This Row],[שם העבודה]]=""),"",ROW(A33)) ->  | C41: =_xlfn.IFS(שעות_עבודה7[[#This Row],[התחלה]]="","",WEEKDAY(שעות_עבודה7[[#This Row],[התחלה]])=1,"ראשון",WEEKDAY(שעות_עבודה7[[#This Row],[התחלה]])=2,"שני",WEEKDAY(שעות_עבודה7[[#This Row],[התחלה]])=3,"שלישי",WEEKDAY(שעות_עבודה7[[#This Row],[התחלה]])=4,"רביעי",WEEKDAY(שעות_עבודה7[[#This Row],[התחלה]])=5,"חמישי",WEEKDAY(שעות_עבודה7[[#This Row],[התחלה]])=6,"שישי",WEEKDAY(שעות_עבודה7[[#This Row],[התחלה]])=7,"מוצ""ש") ->  | D41: =IF(שעות_עבודה7[[#This Row],[התחלה]]="","",שעות_עבודה7[[#This Row],[התחלה]]) ->  | J41: =IF(IF(OR(שעות_עבודה7[[#This Row],[התחלה]]="",שעות_עבודה7[[#This Row],[סיום]]=""), IF(שעות_עבודה7[[#This Row],[הפחתת דקות]]>שעות_עבודה7[[#This Row],[הוספת דקות]],"",שעות_עבודה7[[#This Row],[הוספת דקות]]/1440-שעות_עבודה7[[#This Row],[הפחתת דקות]]/1440), IF(שעות_עבודה7[[#This Row],[סיום]]-שעות_עבודה7[[#This Row],[התחלה]]+שעות_עבודה7[[#This Row],[הוספת דקות]]/1440<שעות_עבודה7[[#This Row],[הפחתת דקות]]/1440,"", SUM(שעות_עבודה7[[#This Row],[סיום]]-שעות_עבודה7[[#This Row],[התחלה]],שעות_עבודה7[[#This Row],[הוספת דקות]]/1440,-שעות_עבודה7[[#This Row],[הפחתת דקות]]/1440)))=0,"", IF(OR(שעות_עבודה7[[#This Row],[התחלה]]="",שעות_עבודה7[[#This Row],[סיום]]=""), IF(שעות_עבודה7[[#This Row],[הפחתת דקות]]>שעות_עבודה7[[#This Row],[הוספת דקות]],"",שעות_עבודה7[[#This Row],[הוספת דקות]]/1440-שעות_עבודה7[[#This Row],[הפחתת דקות]]/1440), IF(שעות_עבודה7[[#This Row],[סיום]]-שעות_עבודה7[[#This Row],[התחלה]]+שעות_עבודה7[[#This Row],[הוספת דקות]]/1440<שעות_עבודה7[[#This Row],[הפחתת דקות]]/1440,"", SUM(שעות_עבודה7[[#This Row],[סיום]]-שעות_עבודה7[[#This Row],[התחלה]],שעות_עבודה7[[#This Row],[הוספת דקות]]/1440,-שעות_עבודה7[[#This Row],[הפחתת דקות]]/1440)))) ->  | K41: =IF(שעות_עבודה7[[#This Row],[שעות]]="","", IFERROR(IF(IF(VLOOKUP(שעות_עבודה7[[#This Row],[שם העבודה]],טבלה1[],5,FALSE)="דולרים-$", SUMPRODUCT((שעות_עבודה7[[#This Row],[שם העבודה]]=$O$9:$O$38)*שעות_עבודה7[[#This Row],[שעות]]*($P$9:$P$38*24*שער)), SUMPRODUCT((שעות_עבודה7[[#This Row],[שם העבודה]]=$O$9:$O$38)*שעות_עבודה7[[#This Row],[שעות]]*($P$9:$P$38*24)))=0,"", IF(VLOOKUP(שעות_עבודה7[[#This Row],[שם העבודה]],טבלה1[],5,FALSE)="דולרים-$", SUMPRODUCT((שעות_עבודה7[[#This Row],[שם העבודה]]=$O$9:$O$38)*שעות_עבודה7[[#This Row],[שעות]]*($P$9:$P$38*24*שער)), SUMPRODUCT((שעות_עבודה7[[#This Row],[שם העבודה]]=$O$9:$O$38)*שעות_עבודה7[[#This Row],[שעות]]*($P$9:$P$38*24)))),"")) -> 
B42: =IF(AND(שעות_עבודה7[[#This Row],[התחלה]]="",שעות_עבודה7[[#This Row],[שם העבודה]]=""),"",ROW(A34)) ->  | C42: =_xlfn.IFS(שעות_עבודה7[[#This Row],[התחלה]]="","",WEEKDAY(שעות_עבודה7[[#This Row],[התחלה]])=1,"ראשון",WEEKDAY(שעות_עבודה7[[#This Row],[התחלה]])=2,"שני",WEEKDAY(שעות_עבודה7[[#This Row],[התחלה]])=3,"שלישי",WEEKDAY(שעות_עבודה7[[#This Row],[התחלה]])=4,"רביעי",WEEKDAY(שעות_עבודה7[[#This Row],[התחלה]])=5,"חמישי",WEEKDAY(שעות_עבודה7[[#This Row],[התחלה]])=6,"שישי",WEEKDAY(שעות_עבודה7[[#This Row],[התחלה]])=7,"מוצ""ש") ->  | D42: =IF(שעות_עבודה7[[#This Row],[התחלה]]="","",שעות_עבודה7[[#This Row],[התחלה]]) ->  | J42: =IF(IF(OR(שעות_עבודה7[[#This Row],[התחלה]]="",שעות_עבודה7[[#This Row],[סיום]]=""), IF(שעות_עבודה7[[#This Row],[הפחתת דקות]]>שעות_עבודה7[[#This Row],[הוספת דקות]],"",שעות_עבודה7[[#This Row],[הוספת דקות]]/1440-שעות_עבודה7[[#This Row],[הפחתת דקות]]/1440), IF(שעות_עבודה7[[#This Row],[סיום]]-שעות_עבודה7[[#This Row],[התחלה]]+שעות_עבודה7[[#This Row],[הוספת דקות]]/1440<שעות_עבודה7[[#This Row],[הפחתת דקות]]/1440,"", SUM(שעות_עבודה7[[#This Row],[סיום]]-שעות_עבודה7[[#This Row],[התחלה]],שעות_עבודה7[[#This Row],[הוספת דקות]]/1440,-שעות_עבודה7[[#This Row],[הפחתת דקות]]/1440)))=0,"", IF(OR(שעות_עבודה7[[#This Row],[התחלה]]="",שעות_עבודה7[[#This Row],[סיום]]=""), IF(שעות_עבודה7[[#This Row],[הפחתת דקות]]>שעות_עבודה7[[#This Row],[הוספת דקות]],"",שעות_עבודה7[[#This Row],[הוספת דקות]]/1440-שעות_עבודה7[[#This Row],[הפחתת דקות]]/1440), IF(שעות_עבודה7[[#This Row],[סיום]]-שעות_עבודה7[[#This Row],[התחלה]]+שעות_עבודה7[[#This Row],[הוספת דקות]]/1440<שעות_עבודה7[[#This Row],[הפחתת דקות]]/1440,"", SUM(שעות_עבודה7[[#This Row],[סיום]]-שעות_עבודה7[[#This Row],[התחלה]],שעות_עבודה7[[#This Row],[הוספת דקות]]/1440,-שעות_עבודה7[[#This Row],[הפחתת דקות]]/1440)))) ->  | K42: =IF(שעות_עבודה7[[#This Row],[שעות]]="","", IFERROR(IF(IF(VLOOKUP(שעות_עבודה7[[#This Row],[שם העבודה]],טבלה1[],5,FALSE)="דולרים-$", SUMPRODUCT((שעות_עבודה7[[#This Row],[שם העבודה]]=$O$9:$O$38)*שעות_עבודה7[[#This Row],[שעות]]*($P$9:$P$38*24*שער)), SUMPRODUCT((שעות_עבודה7[[#This Row],[שם העבודה]]=$O$9:$O$38)*שעות_עבודה7[[#This Row],[שעות]]*($P$9:$P$38*24)))=0,"", IF(VLOOKUP(שעות_עבודה7[[#This Row],[שם העבודה]],טבלה1[],5,FALSE)="דולרים-$", SUMPRODUCT((שעות_עבודה7[[#This Row],[שם העבודה]]=$O$9:$O$38)*שעות_עבודה7[[#This Row],[שעות]]*($P$9:$P$38*24*שער)), SUMPRODUCT((שעות_עבודה7[[#This Row],[שם העבודה]]=$O$9:$O$38)*שעות_עבודה7[[#This Row],[שעות]]*($P$9:$P$38*24)))),"")) ->  | S42: תאריך שינוי אחרון-
B43: =IF(AND(שעות_עבודה7[[#This Row],[התחלה]]="",שעות_עבודה7[[#This Row],[שם העבודה]]=""),"",ROW(A35)) ->  | C43: =_xlfn.IFS(שעות_עבודה7[[#This Row],[התחלה]]="","",WEEKDAY(שעות_עבודה7[[#This Row],[התחלה]])=1,"ראשון",WEEKDAY(שעות_עבודה7[[#This Row],[התחלה]])=2,"שני",WEEKDAY(שעות_עבודה7[[#This Row],[התחלה]])=3,"שלישי",WEEKDAY(שעות_עבודה7[[#This Row],[התחלה]])=4,"רביעי",WEEKDAY(שעות_עבודה7[[#This Row],[התחלה]])=5,"חמישי",WEEKDAY(שעות_עבודה7[[#This Row],[התחלה]])=6,"שישי",WEEKDAY(שעות_עבודה7[[#This Row],[התחלה]])=7,"מוצ""ש") ->  | D43: =IF(שעות_עבודה7[[#This Row],[התחלה]]="","",שעות_עבודה7[[#This Row],[התחלה]]) ->  | J43: =IF(IF(OR(שעות_עבודה7[[#This Row],[התחלה]]="",שעות_עבודה7[[#This Row],[סיום]]=""), IF(שעות_עבודה7[[#This Row],[הפחתת דקות]]>שעות_עבודה7[[#This Row],[הוספת דקות]],"",שעות_עבודה7[[#This Row],[הוספת דקות]]/1440-שעות_עבודה7[[#This Row],[הפחתת דקות]]/1440), IF(שעות_עבודה7[[#This Row],[סיום]]-שעות_עבודה7[[#This Row],[התחלה]]+שעות_עבודה7[[#This Row],[הוספת דקות]]/1440<שעות_עבודה7[[#This Row],[הפחתת דקות]]/1440,"", SUM(שעות_עבודה7[[#This Row],[סיום]]-שעות_עבודה7[[#This Row],[התחלה]],שעות_עבודה7[[#This Row],[הוספת דקות]]/1440,-שעות_עבודה7[[#This Row],[הפחתת דקות]]/1440)))=0,"", IF(OR(שעות_עבודה7[[#This Row],[התחלה]]="",שעות_עבודה7[[#This Row],[סיום]]=""), IF(שעות_עבודה7[[#This Row],[הפחתת דקות]]>שעות_עבודה7[[#This Row],[הוספת דקות]],"",שעות_עבודה7[[#This Row],[הוספת דקות]]/1440-שעות_עבודה7[[#This Row],[הפחתת דקות]]/1440), IF(שעות_עבודה7[[#This Row],[סיום]]-שעות_עבודה7[[#This Row],[התחלה]]+שעות_עבודה7[[#This Row],[הוספת דקות]]/1440<שעות_עבודה7[[#This Row],[הפחתת דקות]]/1440,"", SUM(שעות_עבודה7[[#This Row],[סיום]]-שעות_עבודה7[[#This Row],[התחלה]],שעות_עבודה7[[#This Row],[הוספת דקות]]/1440,-שעות_עבודה7[[#This Row],[הפחתת דקות]]/1440)))) ->  | K43: =IF(שעות_עבודה7[[#This Row],[שעות]]="","", IFERROR(IF(IF(VLOOKUP(שעות_עבודה7[[#This Row],[שם העבודה]],טבלה1[],5,FALSE)="דולרים-$", SUMPRODUCT((שעות_עבודה7[[#This Row],[שם העבודה]]=$O$9:$O$38)*שעות_עבודה7[[#This Row],[שעות]]*($P$9:$P$38*24*שער)), SUMPRODUCT((שעות_עבודה7[[#This Row],[שם העבודה]]=$O$9:$O$38)*שעות_עבודה7[[#This Row],[שעות]]*($P$9:$P$38*24)))=0,"", IF(VLOOKUP(שעות_עבודה7[[#This Row],[שם העבודה]],טבלה1[],5,FALSE)="דולרים-$", SUMPRODUCT((שעות_עבודה7[[#This Row],[שם העבודה]]=$O$9:$O$38)*שעות_עבודה7[[#This Row],[שעות]]*($P$9:$P$38*24*שער)), SUMPRODUCT((שעות_עבודה7[[#This Row],[שם העבודה]]=$O$9:$O$38)*שעות_עבודה7[[#This Row],[שעות]]*($P$9:$P$38*24)))),"")) -> 
B44: =IF(AND(שעות_עבודה7[[#This Row],[התחלה]]="",שעות_עבודה7[[#This Row],[שם העבודה]]=""),"",ROW(A36)) ->  | C44: =_xlfn.IFS(שעות_עבודה7[[#This Row],[התחלה]]="","",WEEKDAY(שעות_עבודה7[[#This Row],[התחלה]])=1,"ראשון",WEEKDAY(שעות_עבודה7[[#This Row],[התחלה]])=2,"שני",WEEKDAY(שעות_עבודה7[[#This Row],[התחלה]])=3,"שלישי",WEEKDAY(שעות_עבודה7[[#This Row],[התחלה]])=4,"רביעי",WEEKDAY(שעות_עבודה7[[#This Row],[התחלה]])=5,"חמישי",WEEKDAY(שעות_עבודה7[[#This Row],[התחלה]])=6,"שישי",WEEKDAY(שעות_עבודה7[[#This Row],[התחלה]])=7,"מוצ""ש") ->  | D44: =IF(שעות_עבודה7[[#This Row],[התחלה]]="","",שעות_עבודה7[[#This Row],[התחלה]]) ->  | J44: =IF(IF(OR(שעות_עבודה7[[#This Row],[התחלה]]="",שעות_עבודה7[[#This Row],[סיום]]=""), IF(שעות_עבודה7[[#This Row],[הפחתת דקות]]>שעות_עבודה7[[#This Row],[הוספת דקות]],"",שעות_עבודה7[[#This Row],[הוספת דקות]]/1440-שעות_עבודה7[[#This Row],[הפחתת דקות]]/1440), IF(שעות_עבודה7[[#This Row],[סיום]]-שעות_עבודה7[[#This Row],[התחלה]]+שעות_עבודה7[[#This Row],[הוספת דקות]]/1440<שעות_עבודה7[[#This Row],[הפחתת דקות]]/1440,"", SUM(שעות_עבודה7[[#This Row],[סיום]]-שעות_עבודה7[[#This Row],[התחלה]],שעות_עבודה7[[#This Row],[הוספת דקות]]/1440,-שעות_עבודה7[[#This Row],[הפחתת דקות]]/1440)))=0,"", IF(OR(שעות_עבודה7[[#This Row],[התחלה]]="",שעות_עבודה7[[#This Row],[סיום]]=""), IF(שעות_עבודה7[[#This Row],[הפחתת דקות]]>שעות_עבודה7[[#This Row],[הוספת דקות]],"",שעות_עבודה7[[#This Row],[הוספת דקות]]/1440-שעות_עבודה7[[#This Row],[הפחתת דקות]]/1440), IF(שעות_עבודה7[[#This Row],[סיום]]-שעות_עבודה7[[#This Row],[התחלה]]+שעות_עבודה7[[#This Row],[הוספת דקות]]/1440<שעות_עבודה7[[#This Row],[הפחתת דקות]]/1440,"", SUM(שעות_עבודה7[[#This Row],[סיום]]-שעות_עבודה7[[#This Row],[התחלה]],שעות_עבודה7[[#This Row],[הוספת דקות]]/1440,-שעות_עבודה7[[#This Row],[הפחתת דקות]]/1440)))) ->  | K44: =IF(שעות_עבודה7[[#This Row],[שעות]]="","", IFERROR(IF(IF(VLOOKUP(שעות_עבודה7[[#This Row],[שם העבודה]],טבלה1[],5,FALSE)="דולרים-$", SUMPRODUCT((שעות_עבודה7[[#This Row],[שם העבודה]]=$O$9:$O$38)*שעות_עבודה7[[#This Row],[שעות]]*($P$9:$P$38*24*שער)), SUMPRODUCT((שעות_עבודה7[[#This Row],[שם העבודה]]=$O$9:$O$38)*שעות_עבודה7[[#This Row],[שעות]]*($P$9:$P$38*24)))=0,"", IF(VLOOKUP(שעות_עבודה7[[#This Row],[שם העבודה]],טבלה1[],5,FALSE)="דולרים-$", SUMPRODUCT((שעות_עבודה7[[#This Row],[שם העבודה]]=$O$9:$O$38)*שעות_עבודה7[[#This Row],[שעות]]*($P$9:$P$38*24*שער)), SUMPRODUCT((שעות_עבודה7[[#This Row],[שם העבודה]]=$O$9:$O$38)*שעות_עבודה7[[#This Row],[שעות]]*($P$9:$P$38*24)))),"")) -> 
B45: =IF(AND(שעות_עבודה7[[#This Row],[התחלה]]="",שעות_עבודה7[[#This Row],[שם העבודה]]=""),"",ROW(A37)) ->  | C45: =_xlfn.IFS(שעות_עבודה7[[#This Row],[התחלה]]="","",WEEKDAY(שעות_עבודה7[[#This Row],[התחלה]])=1,"ראשון",WEEKDAY(שעות_עבודה7[[#This Row],[התחלה]])=2,"שני",WEEKDAY(שעות_עבודה7[[#This Row],[התחלה]])=3,"שלישי",WEEKDAY(שעות_עבודה7[[#This Row],[התחלה]])=4,"רביעי",WEEKDAY(שעות_עבודה7[[#This Row],[התחלה]])=5,"חמישי",WEEKDAY(שעות_עבודה7[[#This Row],[התחלה]])=6,"שישי",WEEKDAY(שעות_עבודה7[[#This Row],[התחלה]])=7,"מוצ""ש") ->  | D45: =IF(שעות_עבודה7[[#This Row],[התחלה]]="","",שעות_עבודה7[[#This Row],[התחלה]]) ->  | J45: =IF(IF(OR(שעות_עבודה7[[#This Row],[התחלה]]="",שעות_עבודה7[[#This Row],[סיום]]=""), IF(שעות_עבודה7[[#This Row],[הפחתת דקות]]>שעות_עבודה7[[#This Row],[הוספת דקות]],"",שעות_עבודה7[[#This Row],[הוספת דקות]]/1440-שעות_עבודה7[[#This Row],[הפחתת דקות]]/1440), IF(שעות_עבודה7[[#This Row],[סיום]]-שעות_עבודה7[[#This Row],[התחלה]]+שעות_עבודה7[[#This Row],[הוספת דקות]]/1440<שעות_עבודה7[[#This Row],[הפחתת דקות]]/1440,"", SUM(שעות_עבודה7[[#This Row],[סיום]]-שעות_עבודה7[[#This Row],[התחלה]],שעות_עבודה7[[#This Row],[הוספת דקות]]/1440,-שעות_עבודה7[[#This Row],[הפחתת דקות]]/1440)))=0,"", IF(OR(שעות_עבודה7[[#This Row],[התחלה]]="",שעות_עבודה7[[#This Row],[סיום]]=""), IF(שעות_עבודה7[[#This Row],[הפחתת דקות]]>שעות_עבודה7[[#This Row],[הוספת דקות]],"",שעות_עבודה7[[#This Row],[הוספת דקות]]/1440-שעות_עבודה7[[#This Row],[הפחתת דקות]]/1440), IF(שעות_עבודה7[[#This Row],[סיום]]-שעות_עבודה7[[#This Row],[התחלה]]+שעות_עבודה7[[#This Row],[הוספת דקות]]/1440<שעות_עבודה7[[#This Row],[הפחתת דקות]]/1440,"", SUM(שעות_עבודה7[[#This Row],[סיום]]-שעות_עבודה7[[#This Row],[התחלה]],שעות_עבודה7[[#This Row],[הוספת דקות]]/1440,-שעות_עבודה7[[#This Row],[הפחתת דקות]]/1440)))) ->  | K45: =IF(שעות_עבודה7[[#This Row],[שעות]]="","", IFERROR(IF(IF(VLOOKUP(שעות_עבודה7[[#This Row],[שם העבודה]],טבלה1[],5,FALSE)="דולרים-$", SUMPRODUCT((שעות_עבודה7[[#This Row],[שם העבודה]]=$O$9:$O$38)*שעות_עבודה7[[#This Row],[שעות]]*($P$9:$P$38*24*שער)), SUMPRODUCT((שעות_עבודה7[[#This Row],[שם העבודה]]=$O$9:$O$38)*שעות_עבודה7[[#This Row],[שעות]]*($P$9:$P$38*24)))=0,"", IF(VLOOKUP(שעות_עבודה7[[#This Row],[שם העבודה]],טבלה1[],5,FALSE)="דולרים-$", SUMPRODUCT((שעות_עבודה7[[#This Row],[שם העבודה]]=$O$9:$O$38)*שעות_עבודה7[[#This Row],[שעות]]*($P$9:$P$38*24*שער)), SUMPRODUCT((שעות_עבודה7[[#This Row],[שם העבודה]]=$O$9:$O$38)*שעות_עבודה7[[#This Row],[שעות]]*($P$9:$P$38*24)))),"")) -> 
B46: =IF(AND(שעות_עבודה7[[#This Row],[התחלה]]="",שעות_עבודה7[[#This Row],[שם העבודה]]=""),"",ROW(A38)) ->  | C46: =_xlfn.IFS(שעות_עבודה7[[#This Row],[התחלה]]="","",WEEKDAY(שעות_עבודה7[[#This Row],[התחלה]])=1,"ראשון",WEEKDAY(שעות_עבודה7[[#This Row],[התחלה]])=2,"שני",WEEKDAY(שעות_עבודה7[[#This Row],[התחלה]])=3,"שלישי",WEEKDAY(שעות_עבודה7[[#This Row],[התחלה]])=4,"רביעי",WEEKDAY(שעות_עבודה7[[#This Row],[התחלה]])=5,"חמישי",WEEKDAY(שעות_עבודה7[[#This Row],[התחלה]])=6,"שישי",WEEKDAY(שעות_עבודה7[[#This Row],[התחלה]])=7,"מוצ""ש") ->  | D46: =IF(שעות_עבודה7[[#This Row],[התחלה]]="","",שעות_עבודה7[[#This Row],[התחלה]]) ->  | J46: =IF(IF(OR(שעות_עבודה7[[#This Row],[התחלה]]="",שעות_עבודה7[[#This Row],[סיום]]=""), IF(שעות_עבודה7[[#This Row],[הפחתת דקות]]>שעות_עבודה7[[#This Row],[הוספת דקות]],"",שעות_עבודה7[[#This Row],[הוספת דקות]]/1440-שעות_עבודה7[[#This Row],[הפחתת דקות]]/1440), IF(שעות_עבודה7[[#This Row],[סיום]]-שעות_עבודה7[[#This Row],[התחלה]]+שעות_עבודה7[[#This Row],[הוספת דקות]]/1440<שעות_עבודה7[[#This Row],[הפחתת דקות]]/1440,"", SUM(שעות_עבודה7[[#This Row],[סיום]]-שעות_עבודה7[[#This Row],[התחלה]],שעות_עבודה7[[#This Row],[הוספת דקות]]/1440,-שעות_עבודה7[[#This Row],[הפחתת דקות]]/1440)))=0,"", IF(OR(שעות_עבודה7[[#This Row],[התחלה]]="",שעות_עבודה7[[#This Row],[סיום]]=""), IF(שעות_עבודה7[[#This Row],[הפחתת דקות]]>שעות_עבודה7[[#This Row],[הוספת דקות]],"",שעות_עבודה7[[#This Row],[הוספת דקות]]/1440-שעות_עבודה7[[#This Row],[הפחתת דקות]]/1440), IF(שעות_עבודה7[[#This Row],[סיום]]-שעות_עבודה7[[#This Row],[התחלה]]+שעות_עבודה7[[#This Row],[הוספת דקות]]/1440<שעות_עבודה7[[#This Row],[הפחתת דקות]]/1440,"", SUM(שעות_עבודה7[[#This Row],[סיום]]-שעות_עבודה7[[#This Row],[התחלה]],שעות_עבודה7[[#This Row],[הוספת דקות]]/1440,-שעות_עבודה7[[#This Row],[הפחתת דקות]]/1440)))) ->  | K46: =IF(שעות_עבודה7[[#This Row],[שעות]]="","", IFERROR(IF(IF(VLOOKUP(שעות_עבודה7[[#This Row],[שם העבודה]],טבלה1[],5,FALSE)="דולרים-$", SUMPRODUCT((שעות_עבודה7[[#This Row],[שם העבודה]]=$O$9:$O$38)*שעות_עבודה7[[#This Row],[שעות]]*($P$9:$P$38*24*שער)), SUMPRODUCT((שעות_עבודה7[[#This Row],[שם העבודה]]=$O$9:$O$38)*שעות_עבודה7[[#This Row],[שעות]]*($P$9:$P$38*24)))=0,"", IF(VLOOKUP(שעות_עבודה7[[#This Row],[שם העבודה]],טבלה1[],5,FALSE)="דולרים-$", SUMPRODUCT((שעות_עבודה7[[#This Row],[שם העבודה]]=$O$9:$O$38)*שעות_עבודה7[[#This Row],[שעות]]*($P$9:$P$38*24*שער)), SUMPRODUCT((שעות_עבודה7[[#This Row],[שם העבודה]]=$O$9:$O$38)*שעות_עבודה7[[#This Row],[שעות]]*($P$9:$P$38*24)))),"")) -> 
B47: =IF(AND(שעות_עבודה7[[#This Row],[התחלה]]="",שעות_עבודה7[[#This Row],[שם העבודה]]=""),"",ROW(A39)) ->  | C47: =_xlfn.IFS(שעות_עבודה7[[#This Row],[התחלה]]="","",WEEKDAY(שעות_עבודה7[[#This Row],[התחלה]])=1,"ראשון",WEEKDAY(שעות_עבודה7[[#This Row],[התחלה]])=2,"שני",WEEKDAY(שעות_עבודה7[[#This Row],[התחלה]])=3,"שלישי",WEEKDAY(שעות_עבודה7[[#This Row],[התחלה]])=4,"רביעי",WEEKDAY(שעות_עבודה7[[#This Row],[התחלה]])=5,"חמישי",WEEKDAY(שעות_עבודה7[[#This Row],[התחלה]])=6,"שישי",WEEKDAY(שעות_עבודה7[[#This Row],[התחלה]])=7,"מוצ""ש") ->  | D47: =IF(שעות_עבודה7[[#This Row],[התחלה]]="","",שעות_עבודה7[[#This Row],[התחלה]]) ->  | J47: =IF(IF(OR(שעות_עבודה7[[#This Row],[התחלה]]="",שעות_עבודה7[[#This Row],[סיום]]=""), IF(שעות_עבודה7[[#This Row],[הפחתת דקות]]>שעות_עבודה7[[#This Row],[הוספת דקות]],"",שעות_עבודה7[[#This Row],[הוספת דקות]]/1440-שעות_עבודה7[[#This Row],[הפחתת דקות]]/1440), IF(שעות_עבודה7[[#This Row],[סיום]]-שעות_עבודה7[[#This Row],[התחלה]]+שעות_עבודה7[[#This Row],[הוספת דקות]]/1440<שעות_עבודה7[[#This Row],[הפחתת דקות]]/1440,"", SUM(שעות_עבודה7[[#This Row],[סיום]]-שעות_עבודה7[[#This Row],[התחלה]],שעות_עבודה7[[#This Row],[הוספת דקות]]/1440,-שעות_עבודה7[[#This Row],[הפחתת דקות]]/1440)))=0,"", IF(OR(שעות_עבודה7[[#This Row],[התחלה]]="",שעות_עבודה7[[#This Row],[סיום]]=""), IF(שעות_עבודה7[[#This Row],[הפחתת דקות]]>שעות_עבודה7[[#This Row],[הוספת דקות]],"",שעות_עבודה7[[#This Row],[הוספת דקות]]/1440-שעות_עבודה7[[#This Row],[הפחתת דקות]]/1440), IF(שעות_עבודה7[[#This Row],[סיום]]-שעות_עבודה7[[#This Row],[התחלה]]+שעות_עבודה7[[#This Row],[הוספת דקות]]/1440<שעות_עבודה7[[#This Row],[הפחתת דקות]]/1440,"", SUM(שעות_עבודה7[[#This Row],[סיום]]-שעות_עבודה7[[#This Row],[התחלה]],שעות_עבודה7[[#This Row],[הוספת דקות]]/1440,-שעות_עבודה7[[#This Row],[הפחתת דקות]]/1440)))) ->  | K47: =IF(שעות_עבודה7[[#This Row],[שעות]]="","", IFERROR(IF(IF(VLOOKUP(שעות_עבודה7[[#This Row],[שם העבודה]],טבלה1[],5,FALSE)="דולרים-$", SUMPRODUCT((שעות_עבודה7[[#This Row],[שם העבודה]]=$O$9:$O$38)*שעות_עבודה7[[#This Row],[שעות]]*($P$9:$P$38*24*שער)), SUMPRODUCT((שעות_עבודה7[[#This Row],[שם העבודה]]=$O$9:$O$38)*שעות_עבודה7[[#This Row],[שעות]]*($P$9:$P$38*24)))=0,"", IF(VLOOKUP(שעות_עבודה7[[#This Row],[שם העבודה]],טבלה1[],5,FALSE)="דולרים-$", SUMPRODUCT((שעות_עבודה7[[#This Row],[שם העבודה]]=$O$9:$O$38)*שעות_עבודה7[[#This Row],[שעות]]*($P$9:$P$38*24*שער)), SUMPRODUCT((שעות_עבודה7[[#This Row],[שם העבודה]]=$O$9:$O$38)*שעות_עבודה7[[#This Row],[שעות]]*($P$9:$P$38*24)))),"")) -> 
B48: =IF(AND(שעות_עבודה7[[#This Row],[התחלה]]="",שעות_עבודה7[[#This Row],[שם העבודה]]=""),"",ROW(A40)) ->  | C48: =_xlfn.IFS(שעות_עבודה7[[#This Row],[התחלה]]="","",WEEKDAY(שעות_עבודה7[[#This Row],[התחלה]])=1,"ראשון",WEEKDAY(שעות_עבודה7[[#This Row],[התחלה]])=2,"שני",WEEKDAY(שעות_עבודה7[[#This Row],[התחלה]])=3,"שלישי",WEEKDAY(שעות_עבודה7[[#This Row],[התחלה]])=4,"רביעי",WEEKDAY(שעות_עבודה7[[#This Row],[התחלה]])=5,"חמישי",WEEKDAY(שעות_עבודה7[[#This Row],[התחלה]])=6,"שישי",WEEKDAY(שעות_עבודה7[[#This Row],[התחלה]])=7,"מוצ""ש") ->  | D48: =IF(שעות_עבודה7[[#This Row],[התחלה]]="","",שעות_עבודה7[[#This Row],[התחלה]]) ->  | J48: =IF(IF(OR(שעות_עבודה7[[#This Row],[התחלה]]="",שעות_עבודה7[[#This Row],[סיום]]=""), IF(שעות_עבודה7[[#This Row],[הפחתת דקות]]>שעות_עבודה7[[#This Row],[הוספת דקות]],"",שעות_עבודה7[[#This Row],[הוספת דקות]]/1440-שעות_עבודה7[[#This Row],[הפחתת דקות]]/1440), IF(שעות_עבודה7[[#This Row],[סיום]]-שעות_עבודה7[[#This Row],[התחלה]]+שעות_עבודה7[[#This Row],[הוספת דקות]]/1440<שעות_עבודה7[[#This Row],[הפחתת דקות]]/1440,"", SUM(שעות_עבודה7[[#This Row],[סיום]]-שעות_עבודה7[[#This Row],[התחלה]],שעות_עבודה7[[#This Row],[הוספת דקות]]/1440,-שעות_עבודה7[[#This Row],[הפחתת דקות]]/1440)))=0,"", IF(OR(שעות_עבודה7[[#This Row],[התחלה]]="",שעות_עבודה7[[#This Row],[סיום]]=""), IF(שעות_עבודה7[[#This Row],[הפחתת דקות]]>שעות_עבודה7[[#This Row],[הוספת דקות]],"",שעות_עבודה7[[#This Row],[הוספת דקות]]/1440-שעות_עבודה7[[#This Row],[הפחתת דקות]]/1440), IF(שעות_עבודה7[[#This Row],[סיום]]-שעות_עבודה7[[#This Row],[התחלה]]+שעות_עבודה7[[#This Row],[הוספת דקות]]/1440<שעות_עבודה7[[#This Row],[הפחתת דקות]]/1440,"", SUM(שעות_עבודה7[[#This Row],[סיום]]-שעות_עבודה7[[#This Row],[התחלה]],שעות_עבודה7[[#This Row],[הוספת דקות]]/1440,-שעות_עבודה7[[#This Row],[הפחתת דקות]]/1440)))) ->  | K48: =IF(שעות_עבודה7[[#This Row],[שעות]]="","", IFERROR(IF(IF(VLOOKUP(שעות_עבודה7[[#This Row],[שם העבודה]],טבלה1[],5,FALSE)="דולרים-$", SUMPRODUCT((שעות_עבודה7[[#This Row],[שם העבודה]]=$O$9:$O$38)*שעות_עבודה7[[#This Row],[שעות]]*($P$9:$P$38*24*שער)), SUMPRODUCT((שעות_עבודה7[[#This Row],[שם העבודה]]=$O$9:$O$38)*שעות_עבודה7[[#This Row],[שעות]]*($P$9:$P$38*24)))=0,"", IF(VLOOKUP(שעות_עבודה7[[#This Row],[שם העבודה]],טבלה1[],5,FALSE)="דולרים-$", SUMPRODUCT((שעות_עבודה7[[#This Row],[שם העבודה]]=$O$9:$O$38)*שעות_עבודה7[[#This Row],[שעות]]*($P$9:$P$38*24*שער)), SUMPRODUCT((שעות_עבודה7[[#This Row],[שם העבודה]]=$O$9:$O$38)*שעות_עבודה7[[#This Row],[שעות]]*($P$9:$P$38*24)))),"")) -> 
B49: =IF(AND(שעות_עבודה7[[#This Row],[התחלה]]="",שעות_עבודה7[[#This Row],[שם העבודה]]=""),"",ROW(A41)) ->  | C49: =_xlfn.IFS(שעות_עבודה7[[#This Row],[התחלה]]="","",WEEKDAY(שעות_עבודה7[[#This Row],[התחלה]])=1,"ראשון",WEEKDAY(שעות_עבודה7[[#This Row],[התחלה]])=2,"שני",WEEKDAY(שעות_עבודה7[[#This Row],[התחלה]])=3,"שלישי",WEEKDAY(שעות_עבודה7[[#This Row],[התחלה]])=4,"רביעי",WEEKDAY(שעות_עבודה7[[#This Row],[התחלה]])=5,"חמישי",WEEKDAY(שעות_עבודה7[[#This Row],[התחלה]])=6,"שישי",WEEKDAY(שעות_עבודה7[[#This Row],[התחלה]])=7,"מוצ""ש") ->  | D49: =IF(שעות_עבודה7[[#This Row],[התחלה]]="","",שעות_עבודה7[[#This Row],[התחלה]]) ->  | J49: =IF(IF(OR(שעות_עבודה7[[#This Row],[התחלה]]="",שעות_עבודה7[[#This Row],[סיום]]=""), IF(שעות_עבודה7[[#This Row],[הפחתת דקות]]>שעות_עבודה7[[#This Row],[הוספת דקות]],"",שעות_עבודה7[[#This Row],[הוספת דקות]]/1440-שעות_עבודה7[[#This Row],[הפחתת דקות]]/1440), IF(שעות_עבודה7[[#This Row],[סיום]]-שעות_עבודה7[[#This Row],[התחלה]]+שעות_עבודה7[[#This Row],[הוספת דקות]]/1440<שעות_עבודה7[[#This Row],[הפחתת דקות]]/1440,"", SUM(שעות_עבודה7[[#This Row],[סיום]]-שעות_עבודה7[[#This Row],[התחלה]],שעות_עבודה7[[#This Row],[הוספת דקות]]/1440,-שעות_עבודה7[[#This Row],[הפחתת דקות]]/1440)))=0,"", IF(OR(שעות_עבודה7[[#This Row],[התחלה]]="",שעות_עבודה7[[#This Row],[סיום]]=""), IF(שעות_עבודה7[[#This Row],[הפחתת דקות]]>שעות_עבודה7[[#This Row],[הוספת דקות]],"",שעות_עבודה7[[#This Row],[הוספת דקות]]/1440-שעות_עבודה7[[#This Row],[הפחתת דקות]]/1440), IF(שעות_עבודה7[[#This Row],[סיום]]-שעות_עבודה7[[#This Row],[התחלה]]+שעות_עבודה7[[#This Row],[הוספת דקות]]/1440<שעות_עבודה7[[#This Row],[הפחתת דקות]]/1440,"", SUM(שעות_עבודה7[[#This Row],[סיום]]-שעות_עבודה7[[#This Row],[התחלה]],שעות_עבודה7[[#This Row],[הוספת דקות]]/1440,-שעות_עבודה7[[#This Row],[הפחתת דקות]]/1440)))) ->  | K49: =IF(שעות_עבודה7[[#This Row],[שעות]]="","", IFERROR(IF(IF(VLOOKUP(שעות_עבודה7[[#This Row],[שם העבודה]],טבלה1[],5,FALSE)="דולרים-$", SUMPRODUCT((שעות_עבודה7[[#This Row],[שם העבודה]]=$O$9:$O$38)*שעות_עבודה7[[#This Row],[שעות]]*($P$9:$P$38*24*שער)), SUMPRODUCT((שעות_עבודה7[[#This Row],[שם העבודה]]=$O$9:$O$38)*שעות_עבודה7[[#This Row],[שעות]]*($P$9:$P$38*24)))=0,"", IF(VLOOKUP(שעות_עבודה7[[#This Row],[שם העבודה]],טבלה1[],5,FALSE)="דולרים-$", SUMPRODUCT((שעות_עבודה7[[#This Row],[שם העבודה]]=$O$9:$O$38)*שעות_עבודה7[[#This Row],[שעות]]*($P$9:$P$38*24*שער)), SUMPRODUCT((שעות_עבודה7[[#This Row],[שם העבודה]]=$O$9:$O$38)*שעות_עבודה7[[#This Row],[שעות]]*($P$9:$P$38*24)))),"")) -> 
B50: =IF(AND(שעות_עבודה7[[#This Row],[התחלה]]="",שעות_עבודה7[[#This Row],[שם העבודה]]=""),"",ROW(A42)) ->  | C50: =_xlfn.IFS(שעות_עבודה7[[#This Row],[התחלה]]="","",WEEKDAY(שעות_עבודה7[[#This Row],[התחלה]])=1,"ראשון",WEEKDAY(שעות_עבודה7[[#This Row],[התחלה]])=2,"שני",WEEKDAY(שעות_עבודה7[[#This Row],[התחלה]])=3,"שלישי",WEEKDAY(שעות_עבודה7[[#This Row],[התחלה]])=4,"רביעי",WEEKDAY(שעות_עבודה7[[#This Row],[התחלה]])=5,"חמישי",WEEKDAY(שעות_עבודה7[[#This Row],[התחלה]])=6,"שישי",WEEKDAY(שעות_עבודה7[[#This Row],[התחלה]])=7,"מוצ""ש") ->  | D50: =IF(שעות_עבודה7[[#This Row],[התחלה]]="","",שעות_עבודה7[[#This Row],[התחלה]]) ->  | J50: =IF(IF(OR(שעות_עבודה7[[#This Row],[התחלה]]="",שעות_עבודה7[[#This Row],[סיום]]=""), IF(שעות_עבודה7[[#This Row],[הפחתת דקות]]>שעות_עבודה7[[#This Row],[הוספת דקות]],"",שעות_עבודה7[[#This Row],[הוספת דקות]]/1440-שעות_עבודה7[[#This Row],[הפחתת דקות]]/1440), IF(שעות_עבודה7[[#This Row],[סיום]]-שעות_עבודה7[[#This Row],[התחלה]]+שעות_עבודה7[[#This Row],[הוספת דקות]]/1440<שעות_עבודה7[[#This Row],[הפחתת דקות]]/1440,"", SUM(שעות_עבודה7[[#This Row],[סיום]]-שעות_עבודה7[[#This Row],[התחלה]],שעות_עבודה7[[#This Row],[הוספת דקות]]/1440,-שעות_עבודה7[[#This Row],[הפחתת דקות]]/1440)))=0,"", IF(OR(שעות_עבודה7[[#This Row],[התחלה]]="",שעות_עבודה7[[#This Row],[סיום]]=""), IF(שעות_עבודה7[[#This Row],[הפחתת דקות]]>שעות_עבודה7[[#This Row],[הוספת דקות]],"",שעות_עבודה7[[#This Row],[הוספת דקות]]/1440-שעות_עבודה7[[#This Row],[הפחתת דקות]]/1440), IF(שעות_עבודה7[[#This Row],[סיום]]-שעות_עבודה7[[#This Row],[התחלה]]+שעות_עבודה7[[#This Row],[הוספת דקות]]/1440<שעות_עבודה7[[#This Row],[הפחתת דקות]]/1440,"", SUM(שעות_עבודה7[[#This Row],[סיום]]-שעות_עבודה7[[#This Row],[התחלה]],שעות_עבודה7[[#This Row],[הוספת דקות]]/1440,-שעות_עבודה7[[#This Row],[הפחתת דקות]]/1440)))) ->  | K50: =IF(שעות_עבודה7[[#This Row],[שעות]]="","", IFERROR(IF(IF(VLOOKUP(שעות_עבודה7[[#This Row],[שם העבודה]],טבלה1[],5,FALSE)="דולרים-$", SUMPRODUCT((שעות_עבודה7[[#This Row],[שם העבודה]]=$O$9:$O$38)*שעות_עבודה7[[#This Row],[שעות]]*($P$9:$P$38*24*שער)), SUMPRODUCT((שעות_עבודה7[[#This Row],[שם העבודה]]=$O$9:$O$38)*שעות_עבודה7[[#This Row],[שעות]]*($P$9:$P$38*24)))=0,"", IF(VLOOKUP(שעות_עבודה7[[#This Row],[שם העבודה]],טבלה1[],5,FALSE)="דולרים-$", SUMPRODUCT((שעות_עבודה7[[#This Row],[שם העבודה]]=$O$9:$O$38)*שעות_עבודה7[[#This Row],[שעות]]*($P$9:$P$38*24*שער)), SUMPRODUCT((שעות_עבודה7[[#This Row],[שם העבודה]]=$O$9:$O$38)*שעות_עבודה7[[#This Row],[שעות]]*($P$9:$P$38*24)))),"")) -> 
B51: =IF(AND(שעות_עבודה7[[#This Row],[התחלה]]="",שעות_עבודה7[[#This Row],[שם העבודה]]=""),"",ROW(A43)) ->  | C51: =_xlfn.IFS(שעות_עבודה7[[#This Row],[התחלה]]="","",WEEKDAY(שעות_עבודה7[[#This Row],[התחלה]])=1,"ראשון",WEEKDAY(שעות_עבודה7[[#This Row],[התחלה]])=2,"שני",WEEKDAY(שעות_עבודה7[[#This Row],[התחלה]])=3,"שלישי",WEEKDAY(שעות_עבודה7[[#This Row],[התחלה]])=4,"רביעי",WEEKDAY(שעות_עבודה7[[#This Row],[התחלה]])=5,"חמישי",WEEKDAY(שעות_עבודה7[[#This Row],[התחלה]])=6,"שישי",WEEKDAY(שעות_עבודה7[[#This Row],[התחלה]])=7,"מוצ""ש") ->  | D51: =IF(שעות_עבודה7[[#This Row],[התחלה]]="","",שעות_עבודה7[[#This Row],[התחלה]]) ->  | J51: =IF(IF(OR(שעות_עבודה7[[#This Row],[התחלה]]="",שעות_עבודה7[[#This Row],[סיום]]=""), IF(שעות_עבודה7[[#This Row],[הפחתת דקות]]>שעות_עבודה7[[#This Row],[הוספת דקות]],"",שעות_עבודה7[[#This Row],[הוספת דקות]]/1440-שעות_עבודה7[[#This Row],[הפחתת דקות]]/1440), IF(שעות_עבודה7[[#This Row],[סיום]]-שעות_עבודה7[[#This Row],[התחלה]]+שעות_עבודה7[[#This Row],[הוספת דקות]]/1440<שעות_עבודה7[[#This Row],[הפחתת דקות]]/1440,"", SUM(שעות_עבודה7[[#This Row],[סיום]]-שעות_עבודה7[[#This Row],[התחלה]],שעות_עבודה7[[#This Row],[הוספת דקות]]/1440,-שעות_עבודה7[[#This Row],[הפחתת דקות]]/1440)))=0,"", IF(OR(שעות_עבודה7[[#This Row],[התחלה]]="",שעות_עבודה7[[#This Row],[סיום]]=""), IF(שעות_עבודה7[[#This Row],[הפחתת דקות]]>שעות_עבודה7[[#This Row],[הוספת דקות]],"",שעות_עבודה7[[#This Row],[הוספת דקות]]/1440-שעות_עבודה7[[#This Row],[הפחתת דקות]]/1440), IF(שעות_עבודה7[[#This Row],[סיום]]-שעות_עבודה7[[#This Row],[התחלה]]+שעות_עבודה7[[#This Row],[הוספת דקות]]/1440<שעות_עבודה7[[#This Row],[הפחתת דקות]]/1440,"", SUM(שעות_עבודה7[[#This Row],[סיום]]-שעות_עבודה7[[#This Row],[התחלה]],שעות_עבודה7[[#This Row],[הוספת דקות]]/1440,-שעות_עבודה7[[#This Row],[הפחתת דקות]]/1440)))) ->  | K51: =IF(שעות_עבודה7[[#This Row],[שעות]]="","", IFERROR(IF(IF(VLOOKUP(שעות_עבודה7[[#This Row],[שם העבודה]],טבלה1[],5,FALSE)="דולרים-$", SUMPRODUCT((שעות_עבודה7[[#This Row],[שם העבודה]]=$O$9:$O$38)*שעות_עבודה7[[#This Row],[שעות]]*($P$9:$P$38*24*שער)), SUMPRODUCT((שעות_עבודה7[[#This Row],[שם העבודה]]=$O$9:$O$38)*שעות_עבודה7[[#This Row],[שעות]]*($P$9:$P$38*24)))=0,"", IF(VLOOKUP(שעות_עבודה7[[#This Row],[שם העבודה]],טבלה1[],5,FALSE)="דולרים-$", SUMPRODUCT((שעות_עבודה7[[#This Row],[שם העבודה]]=$O$9:$O$38)*שעות_עבודה7[[#This Row],[שעות]]*($P$9:$P$38*24*שער)), SUMPRODUCT((שעות_עבודה7[[#This Row],[שם העבודה]]=$O$9:$O$38)*שעות_עבודה7[[#This Row],[שעות]]*($P$9:$P$38*24)))),"")) -> 
B52: =IF(AND(שעות_עבודה7[[#This Row],[התחלה]]="",שעות_עבודה7[[#This Row],[שם העבודה]]=""),"",ROW(A44)) ->  | C52: =_xlfn.IFS(שעות_עבודה7[[#This Row],[התחלה]]="","",WEEKDAY(שעות_עבודה7[[#This Row],[התחלה]])=1,"ראשון",WEEKDAY(שעות_עבודה7[[#This Row],[התחלה]])=2,"שני",WEEKDAY(שעות_עבודה7[[#This Row],[התחלה]])=3,"שלישי",WEEKDAY(שעות_עבודה7[[#This Row],[התחלה]])=4,"רביעי",WEEKDAY(שעות_עבודה7[[#This Row],[התחלה]])=5,"חמישי",WEEKDAY(שעות_עבודה7[[#This Row],[התחלה]])=6,"שישי",WEEKDAY(שעות_עבודה7[[#This Row],[התחלה]])=7,"מוצ""ש") ->  | D52: =IF(שעות_עבודה7[[#This Row],[התחלה]]="","",שעות_עבודה7[[#This Row],[התחלה]]) ->  | J52: =IF(IF(OR(שעות_עבודה7[[#This Row],[התחלה]]="",שעות_עבודה7[[#This Row],[סיום]]=""), IF(שעות_עבודה7[[#This Row],[הפחתת דקות]]>שעות_עבודה7[[#This Row],[הוספת דקות]],"",שעות_עבודה7[[#This Row],[הוספת דקות]]/1440-שעות_עבודה7[[#This Row],[הפחתת דקות]]/1440), IF(שעות_עבודה7[[#This Row],[סיום]]-שעות_עבודה7[[#This Row],[התחלה]]+שעות_עבודה7[[#This Row],[הוספת דקות]]/1440<שעות_עבודה7[[#This Row],[הפחתת דקות]]/1440,"", SUM(שעות_עבודה7[[#This Row],[סיום]]-שעות_עבודה7[[#This Row],[התחלה]],שעות_עבודה7[[#This Row],[הוספת דקות]]/1440,-שעות_עבודה7[[#This Row],[הפחתת דקות]]/1440)))=0,"", IF(OR(שעות_עבודה7[[#This Row],[התחלה]]="",שעות_עבודה7[[#This Row],[סיום]]=""), IF(שעות_עבודה7[[#This Row],[הפחתת דקות]]>שעות_עבודה7[[#This Row],[הוספת דקות]],"",שעות_עבודה7[[#This Row],[הוספת דקות]]/1440-שעות_עבודה7[[#This Row],[הפחתת דקות]]/1440), IF(שעות_עבודה7[[#This Row],[סיום]]-שעות_עבודה7[[#This Row],[התחלה]]+שעות_עבודה7[[#This Row],[הוספת דקות]]/1440<שעות_עבודה7[[#This Row],[הפחתת דקות]]/1440,"", SUM(שעות_עבודה7[[#This Row],[סיום]]-שעות_עבודה7[[#This Row],[התחלה]],שעות_עבודה7[[#This Row],[הוספת דקות]]/1440,-שעות_עבודה7[[#This Row],[הפחתת דקות]]/1440)))) ->  | K52: =IF(שעות_עבודה7[[#This Row],[שעות]]="","", IFERROR(IF(IF(VLOOKUP(שעות_עבודה7[[#This Row],[שם העבודה]],טבלה1[],5,FALSE)="דולרים-$", SUMPRODUCT((שעות_עבודה7[[#This Row],[שם העבודה]]=$O$9:$O$38)*שעות_עבודה7[[#This Row],[שעות]]*($P$9:$P$38*24*שער)), SUMPRODUCT((שעות_עבודה7[[#This Row],[שם העבודה]]=$O$9:$O$38)*שעות_עבודה7[[#This Row],[שעות]]*($P$9:$P$38*24)))=0,"", IF(VLOOKUP(שעות_עבודה7[[#This Row],[שם העבודה]],טבלה1[],5,FALSE)="דולרים-$", SUMPRODUCT((שעות_עבודה7[[#This Row],[שם העבודה]]=$O$9:$O$38)*שעות_עבודה7[[#This Row],[שעות]]*($P$9:$P$38*24*שער)), SUMPRODUCT((שעות_עבודה7[[#This Row],[שם העבודה]]=$O$9:$O$38)*שעות_עבודה7[[#This Row],[שעות]]*($P$9:$P$38*24)))),"")) ->  | R52: נוצר על ידי החפץ בעילו"ש לזיכוי הרבים. קרדיט ל- a5092920673@gmail.com. עותק חופשי - סיסמא 1234
B53: =IF(AND(שעות_עבודה7[[#This Row],[התחלה]]="",שעות_עבודה7[[#This Row],[שם העבודה]]=""),"",ROW(A45)) ->  | C53: =_xlfn.IFS(שעות_עבודה7[[#This Row],[התחלה]]="","",WEEKDAY(שעות_עבודה7[[#This Row],[התחלה]])=1,"ראשון",WEEKDAY(שעות_עבודה7[[#This Row],[התחלה]])=2,"שני",WEEKDAY(שעות_עבודה7[[#This Row],[התחלה]])=3,"שלישי",WEEKDAY(שעות_עבודה7[[#This Row],[התחלה]])=4,"רביעי",WEEKDAY(שעות_עבודה7[[#This Row],[התחלה]])=5,"חמישי",WEEKDAY(שעות_עבודה7[[#This Row],[התחלה]])=6,"שישי",WEEKDAY(שעות_עבודה7[[#This Row],[התחלה]])=7,"מוצ""ש") ->  | D53: =IF(שעות_עבודה7[[#This Row],[התחלה]]="","",שעות_עבודה7[[#This Row],[התחלה]]) ->  | J53: =IF(IF(OR(שעות_עבודה7[[#This Row],[התחלה]]="",שעות_עבודה7[[#This Row],[סיום]]=""), IF(שעות_עבודה7[[#This Row],[הפחתת דקות]]>שעות_עבודה7[[#This Row],[הוספת דקות]],"",שעות_עבודה7[[#This Row],[הוספת דקות]]/1440-שעות_עבודה7[[#This Row],[הפחתת דקות]]/1440), IF(שעות_עבודה7[[#This Row],[סיום]]-שעות_עבודה7[[#This Row],[התחלה]]+שעות_עבודה7[[#This Row],[הוספת דקות]]/1440<שעות_עבודה7[[#This Row],[הפחתת דקות]]/1440,"", SUM(שעות_עבודה7[[#This Row],[סיום]]-שעות_עבודה7[[#This Row],[התחלה]],שעות_עבודה7[[#This Row],[הוספת דקות]]/1440,-שעות_עבודה7[[#This Row],[הפחתת דקות]]/1440)))=0,"", IF(OR(שעות_עבודה7[[#This Row],[התחלה]]="",שעות_עבודה7[[#This Row],[סיום]]=""), IF(שעות_עבודה7[[#This Row],[הפחתת דקות]]>שעות_עבודה7[[#This Row],[הוספת דקות]],"",שעות_עבודה7[[#This Row],[הוספת דקות]]/1440-שעות_עבודה7[[#This Row],[הפחתת דקות]]/1440), IF(שעות_עבודה7[[#This Row],[סיום]]-שעות_עבודה7[[#This Row],[התחלה]]+שעות_עבודה7[[#This Row],[הוספת דקות]]/1440<שעות_עבודה7[[#This Row],[הפחתת דקות]]/1440,"", SUM(שעות_עבודה7[[#This Row],[סיום]]-שעות_עבודה7[[#This Row],[התחלה]],שעות_עבודה7[[#This Row],[הוספת דקות]]/1440,-שעות_עבודה7[[#This Row],[הפחתת דקות]]/1440)))) ->  | K53: =IF(שעות_עבודה7[[#This Row],[שעות]]="","", IFERROR(IF(IF(VLOOKUP(שעות_עבודה7[[#This Row],[שם העבודה]],טבלה1[],5,FALSE)="דולרים-$", SUMPRODUCT((שעות_עבודה7[[#This Row],[שם העבודה]]=$O$9:$O$38)*שעות_עבודה7[[#This Row],[שעות]]*($P$9:$P$38*24*שער)), SUMPRODUCT((שעות_עבודה7[[#This Row],[שם העבודה]]=$O$9:$O$38)*שעות_עבודה7[[#This Row],[שעות]]*($P$9:$P$38*24)))=0,"", IF(VLOOKUP(שעות_עבודה7[[#This Row],[שם העבודה]],טבלה1[],5,FALSE)="דולרים-$", SUMPRODUCT((שעות_עבודה7[[#This Row],[שם העבודה]]=$O$9:$O$38)*שעות_עבודה7[[#This Row],[שעות]]*($P$9:$P$38*24*שער)), SUMPRODUCT((שעות_עבודה7[[#This Row],[שם העבודה]]=$O$9:$O$38)*שעות_עבודה7[[#This Row],[שעות]]*($P$9:$P$38*24)))),"")) -> 
B54: =IF(AND(שעות_עבודה7[[#This Row],[התחלה]]="",שעות_עבודה7[[#This Row],[שם העבודה]]=""),"",ROW(A46)) ->  | C54: =_xlfn.IFS(שעות_עבודה7[[#This Row],[התחלה]]="","",WEEKDAY(שעות_עבודה7[[#This Row],[התחלה]])=1,"ראשון",WEEKDAY(שעות_עבודה7[[#This Row],[התחלה]])=2,"שני",WEEKDAY(שעות_עבודה7[[#This Row],[התחלה]])=3,"שלישי",WEEKDAY(שעות_עבודה7[[#This Row],[התחלה]])=4,"רביעי",WEEKDAY(שעות_עבודה7[[#This Row],[התחלה]])=5,"חמישי",WEEKDAY(שעות_עבודה7[[#This Row],[התחלה]])=6,"שישי",WEEKDAY(שעות_עבודה7[[#This Row],[התחלה]])=7,"מוצ""ש") ->  | D54: =IF(שעות_עבודה7[[#This Row],[התחלה]]="","",שעות_עבודה7[[#This Row],[התחלה]]) ->  | J54: =IF(IF(OR(שעות_עבודה7[[#This Row],[התחלה]]="",שעות_עבודה7[[#This Row],[סיום]]=""), IF(שעות_עבודה7[[#This Row],[הפחתת דקות]]>שעות_עבודה7[[#This Row],[הוספת דקות]],"",שעות_עבודה7[[#This Row],[הוספת דקות]]/1440-שעות_עבודה7[[#This Row],[הפחתת דקות]]/1440), IF(שעות_עבודה7[[#This Row],[סיום]]-שעות_עבודה7[[#This Row],[התחלה]]+שעות_עבודה7[[#This Row],[הוספת דקות]]/1440<שעות_עבודה7[[#This Row],[הפחתת דקות]]/1440,"", SUM(שעות_עבודה7[[#This Row],[סיום]]-שעות_עבודה7[[#This Row],[התחלה]],שעות_עבודה7[[#This Row],[הוספת דקות]]/1440,-שעות_עבודה7[[#This Row],[הפחתת דקות]]/1440)))=0,"", IF(OR(שעות_עבודה7[[#This Row],[התחלה]]="",שעות_עבודה7[[#This Row],[סיום]]=""), IF(שעות_עבודה7[[#This Row],[הפחתת דקות]]>שעות_עבודה7[[#This Row],[הוספת דקות]],"",שעות_עבודה7[[#This Row],[הוספת דקות]]/1440-שעות_עבודה7[[#This Row],[הפחתת דקות]]/1440), IF(שעות_עבודה7[[#This Row],[סיום]]-שעות_עבודה7[[#This Row],[התחלה]]+שעות_עבודה7[[#This Row],[הוספת דקות]]/1440<שעות_עבודה7[[#This Row],[הפחתת דקות]]/1440,"", SUM(שעות_עבודה7[[#This Row],[סיום]]-שעות_עבודה7[[#This Row],[התחלה]],שעות_עבודה7[[#This Row],[הוספת דקות]]/1440,-שעות_עבודה7[[#This Row],[הפחתת דקות]]/1440)))) ->  | K54: =IF(שעות_עבודה7[[#This Row],[שעות]]="","", IFERROR(IF(IF(VLOOKUP(שעות_עבודה7[[#This Row],[שם העבודה]],טבלה1[],5,FALSE)="דולרים-$", SUMPRODUCT((שעות_עבודה7[[#This Row],[שם העבודה]]=$O$9:$O$38)*שעות_עבודה7[[#This Row],[שעות]]*($P$9:$P$38*24*שער)), SUMPRODUCT((שעות_עבודה7[[#This Row],[שם העבודה]]=$O$9:$O$38)*שעות_עבודה7[[#This Row],[שעות]]*($P$9:$P$38*24)))=0,"", IF(VLOOKUP(שעות_עבודה7[[#This Row],[שם העבודה]],טבלה1[],5,FALSE)="דולרים-$", SUMPRODUCT((שעות_עבודה7[[#This Row],[שם העבודה]]=$O$9:$O$38)*שעות_עבודה7[[#This Row],[שעות]]*($P$9:$P$38*24*שער)), SUMPRODUCT((שעות_עבודה7[[#This Row],[שם העבודה]]=$O$9:$O$38)*שעות_עבודה7[[#This Row],[שעות]]*($P$9:$P$38*24)))),"")) -> 
B55: =IF(AND(שעות_עבודה7[[#This Row],[התחלה]]="",שעות_עבודה7[[#This Row],[שם העבודה]]=""),"",ROW(A47)) ->  | C55: =_xlfn.IFS(שעות_עבודה7[[#This Row],[התחלה]]="","",WEEKDAY(שעות_עבודה7[[#This Row],[התחלה]])=1,"ראשון",WEEKDAY(שעות_עבודה7[[#This Row],[התחלה]])=2,"שני",WEEKDAY(שעות_עבודה7[[#This Row],[התחלה]])=3,"שלישי",WEEKDAY(שעות_עבודה7[[#This Row],[התחלה]])=4,"רביעי",WEEKDAY(שעות_עבודה7[[#This Row],[התחלה]])=5,"חמישי",WEEKDAY(שעות_עבודה7[[#This Row],[התחלה]])=6,"שישי",WEEKDAY(שעות_עבודה7[[#This Row],[התחלה]])=7,"מוצ""ש") ->  | D55: =IF(שעות_עבודה7[[#This Row],[התחלה]]="","",שעות_עבודה7[[#This Row],[התחלה]]) ->  | J55: =IF(IF(OR(שעות_עבודה7[[#This Row],[התחלה]]="",שעות_עבודה7[[#This Row],[סיום]]=""), IF(שעות_עבודה7[[#This Row],[הפחתת דקות]]>שעות_עבודה7[[#This Row],[הוספת דקות]],"",שעות_עבודה7[[#This Row],[הוספת דקות]]/1440-שעות_עבודה7[[#This Row],[הפחתת דקות]]/1440), IF(שעות_עבודה7[[#This Row],[סיום]]-שעות_עבודה7[[#This Row],[התחלה]]+שעות_עבודה7[[#This Row],[הוספת דקות]]/1440<שעות_עבודה7[[#This Row],[הפחתת דקות]]/1440,"", SUM(שעות_עבודה7[[#This Row],[סיום]]-שעות_עבודה7[[#This Row],[התחלה]],שעות_עבודה7[[#This Row],[הוספת דקות]]/1440,-שעות_עבודה7[[#This Row],[הפחתת דקות]]/1440)))=0,"", IF(OR(שעות_עבודה7[[#This Row],[התחלה]]="",שעות_עבודה7[[#This Row],[סיום]]=""), IF(שעות_עבודה7[[#This Row],[הפחתת דקות]]>שעות_עבודה7[[#This Row],[הוספת דקות]],"",שעות_עבודה7[[#This Row],[הוספת דקות]]/1440-שעות_עבודה7[[#This Row],[הפחתת דקות]]/1440), IF(שעות_עבודה7[[#This Row],[סיום]]-שעות_עבודה7[[#This Row],[התחלה]]+שעות_עבודה7[[#This Row],[הוספת דקות]]/1440<שעות_עבודה7[[#This Row],[הפחתת דקות]]/1440,"", SUM(שעות_עבודה7[[#This Row],[סיום]]-שעות_עבודה7[[#This Row],[התחלה]],שעות_עבודה7[[#This Row],[הוספת דקות]]/1440,-שעות_עבודה7[[#This Row],[הפחתת דקות]]/1440)))) ->  | K55: =IF(שעות_עבודה7[[#This Row],[שעות]]="","", IFERROR(IF(IF(VLOOKUP(שעות_עבודה7[[#This Row],[שם העבודה]],טבלה1[],5,FALSE)="דולרים-$", SUMPRODUCT((שעות_עבודה7[[#This Row],[שם העבודה]]=$O$9:$O$38)*שעות_עבודה7[[#This Row],[שעות]]*($P$9:$P$38*24*שער)), SUMPRODUCT((שעות_עבודה7[[#This Row],[שם העבודה]]=$O$9:$O$38)*שעות_עבודה7[[#This Row],[שעות]]*($P$9:$P$38*24)))=0,"", IF(VLOOKUP(שעות_עבודה7[[#This Row],[שם העבודה]],טבלה1[],5,FALSE)="דולרים-$", SUMPRODUCT((שעות_עבודה7[[#This Row],[שם העבודה]]=$O$9:$O$38)*שעות_עבודה7[[#This Row],[שעות]]*($P$9:$P$38*24*שער)), SUMPRODUCT((שעות_עבודה7[[#This Row],[שם העבודה]]=$O$9:$O$38)*שעות_עבודה7[[#This Row],[שעות]]*($P$9:$P$38*24)))),"")) -> 
B56: =IF(AND(שעות_עבודה7[[#This Row],[התחלה]]="",שעות_עבודה7[[#This Row],[שם העבודה]]=""),"",ROW(A48)) ->  | C56: =_xlfn.IFS(שעות_עבודה7[[#This Row],[התחלה]]="","",WEEKDAY(שעות_עבודה7[[#This Row],[התחלה]])=1,"ראשון",WEEKDAY(שעות_עבודה7[[#This Row],[התחלה]])=2,"שני",WEEKDAY(שעות_עבודה7[[#This Row],[התחלה]])=3,"שלישי",WEEKDAY(שעות_עבודה7[[#This Row],[התחלה]])=4,"רביעי",WEEKDAY(שעות_עבודה7[[#This Row],[התחלה]])=5,"חמישי",WEEKDAY(שעות_עבודה7[[#This Row],[התחלה]])=6,"שישי",WEEKDAY(שעות_עבודה7[[#This Row],[התחלה]])=7,"מוצ""ש") ->  | D56: =IF(שעות_עבודה7[[#This Row],[התחלה]]="","",שעות_עבודה7[[#This Row],[התחלה]]) ->  | J56: =IF(IF(OR(שעות_עבודה7[[#This Row],[התחלה]]="",שעות_עבודה7[[#This Row],[סיום]]=""), IF(שעות_עבודה7[[#This Row],[הפחתת דקות]]>שעות_עבודה7[[#This Row],[הוספת דקות]],"",שעות_עבודה7[[#This Row],[הוספת דקות]]/1440-שעות_עבודה7[[#This Row],[הפחתת דקות]]/1440), IF(שעות_עבודה7[[#This Row],[סיום]]-שעות_עבודה7[[#This Row],[התחלה]]+שעות_עבודה7[[#This Row],[הוספת דקות]]/1440<שעות_עבודה7[[#This Row],[הפחתת דקות]]/1440,"", SUM(שעות_עבודה7[[#This Row],[סיום]]-שעות_עבודה7[[#This Row],[התחלה]],שעות_עבודה7[[#This Row],[הוספת דקות]]/1440,-שעות_עבודה7[[#This Row],[הפחתת דקות]]/1440)))=0,"", IF(OR(שעות_עבודה7[[#This Row],[התחלה]]="",שעות_עבודה7[[#This Row],[סיום]]=""), IF(שעות_עבודה7[[#This Row],[הפחתת דקות]]>שעות_עבודה7[[#This Row],[הוספת דקות]],"",שעות_עבודה7[[#This Row],[הוספת דקות]]/1440-שעות_עבודה7[[#This Row],[הפחתת דקות]]/1440), IF(שעות_עבודה7[[#This Row],[סיום]]-שעות_עבודה7[[#This Row],[התחלה]]+שעות_עבודה7[[#This Row],[הוספת דקות]]/1440<שעות_עבודה7[[#This Row],[הפחתת דקות]]/1440,"", SUM(שעות_עבודה7[[#This Row],[סיום]]-שעות_עבודה7[[#This Row],[התחלה]],שעות_עבודה7[[#This Row],[הוספת דקות]]/1440,-שעות_עבודה7[[#This Row],[הפחתת דקות]]/1440)))) ->  | K56: =IF(שעות_עבודה7[[#This Row],[שעות]]="","", IFERROR(IF(IF(VLOOKUP(שעות_עבודה7[[#This Row],[שם העבודה]],טבלה1[],5,FALSE)="דולרים-$", SUMPRODUCT((שעות_עבודה7[[#This Row],[שם העבודה]]=$O$9:$O$38)*שעות_עבודה7[[#This Row],[שעות]]*($P$9:$P$38*24*שער)), SUMPRODUCT((שעות_עבודה7[[#This Row],[שם העבודה]]=$O$9:$O$38)*שעות_עבודה7[[#This Row],[שעות]]*($P$9:$P$38*24)))=0,"", IF(VLOOKUP(שעות_עבודה7[[#This Row],[שם העבודה]],טבלה1[],5,FALSE)="דולרים-$", SUMPRODUCT((שעות_עבודה7[[#This Row],[שם העבודה]]=$O$9:$O$38)*שעות_עבודה7[[#This Row],[שעות]]*($P$9:$P$38*24*שער)), SUMPRODUCT((שעות_עבודה7[[#This Row],[שם העבודה]]=$O$9:$O$38)*שעות_עבודה7[[#This Row],[שעות]]*($P$9:$P$38*24)))),"")) -> 
B57: =IF(AND(שעות_עבודה7[[#This Row],[התחלה]]="",שעות_עבודה7[[#This Row],[שם העבודה]]=""),"",ROW(A49)) ->  | C57: =_xlfn.IFS(שעות_עבודה7[[#This Row],[התחלה]]="","",WEEKDAY(שעות_עבודה7[[#This Row],[התחלה]])=1,"ראשון",WEEKDAY(שעות_עבודה7[[#This Row],[התחלה]])=2,"שני",WEEKDAY(שעות_עבודה7[[#This Row],[התחלה]])=3,"שלישי",WEEKDAY(שעות_עבודה7[[#This Row],[התחלה]])=4,"רביעי",WEEKDAY(שעות_עבודה7[[#This Row],[התחלה]])=5,"חמישי",WEEKDAY(שעות_עבודה7[[#This Row],[התחלה]])=6,"שישי",WEEKDAY(שעות_עבודה7[[#This Row],[התחלה]])=7,"מוצ""ש") ->  | D57: =IF(שעות_עבודה7[[#This Row],[התחלה]]="","",שעות_עבודה7[[#This Row],[התחלה]]) ->  | J57: =IF(IF(OR(שעות_עבודה7[[#This Row],[התחלה]]="",שעות_עבודה7[[#This Row],[סיום]]=""), IF(שעות_עבודה7[[#This Row],[הפחתת דקות]]>שעות_עבודה7[[#This Row],[הוספת דקות]],"",שעות_עבודה7[[#This Row],[הוספת דקות]]/1440-שעות_עבודה7[[#This Row],[הפחתת דקות]]/1440), IF(שעות_עבודה7[[#This Row],[סיום]]-שעות_עבודה7[[#This Row],[התחלה]]+שעות_עבודה7[[#This Row],[הוספת דקות]]/1440<שעות_עבודה7[[#This Row],[הפחתת דקות]]/1440,"", SUM(שעות_עבודה7[[#This Row],[סיום]]-שעות_עבודה7[[#This Row],[התחלה]],שעות_עבודה7[[#This Row],[הוספת דקות]]/1440,-שעות_עבודה7[[#This Row],[הפחתת דקות]]/1440)))=0,"", IF(OR(שעות_עבודה7[[#This Row],[התחלה]]="",שעות_עבודה7[[#This Row],[סיום]]=""), IF(שעות_עבודה7[[#This Row],[הפחתת דקות]]>שעות_עבודה7[[#This Row],[הוספת דקות]],"",שעות_עבודה7[[#This Row],[הוספת דקות]]/1440-שעות_עבודה7[[#This Row],[הפחתת דקות]]/1440), IF(שעות_עבודה7[[#This Row],[סיום]]-שעות_עבודה7[[#This Row],[התחלה]]+שעות_עבודה7[[#This Row],[הוספת דקות]]/1440<שעות_עבודה7[[#This Row],[הפחתת דקות]]/1440,"", SUM(שעות_עבודה7[[#This Row],[סיום]]-שעות_עבודה7[[#This Row],[התחלה]],שעות_עבודה7[[#This Row],[הוספת דקות]]/1440,-שעות_עבודה7[[#This Row],[הפחתת דקות]]/1440)))) ->  | K57: =IF(שעות_עבודה7[[#This Row],[שעות]]="","", IFERROR(IF(IF(VLOOKUP(שעות_עבודה7[[#This Row],[שם העבודה]],טבלה1[],5,FALSE)="דולרים-$", SUMPRODUCT((שעות_עבודה7[[#This Row],[שם העבודה]]=$O$9:$O$38)*שעות_עבודה7[[#This Row],[שעות]]*($P$9:$P$38*24*שער)), SUMPRODUCT((שעות_עבודה7[[#This Row],[שם העבודה]]=$O$9:$O$38)*שעות_עבודה7[[#This Row],[שעות]]*($P$9:$P$38*24)))=0,"", IF(VLOOKUP(שעות_עבודה7[[#This Row],[שם העבודה]],טבלה1[],5,FALSE)="דולרים-$", SUMPRODUCT((שעות_עבודה7[[#This Row],[שם העבודה]]=$O$9:$O$38)*שעות_עבודה7[[#This Row],[שעות]]*($P$9:$P$38*24*שער)), SUMPRODUCT((שעות_עבודה7[[#This Row],[שם העבודה]]=$O$9:$O$38)*שעות_עבודה7[[#This Row],[שעות]]*($P$9:$P$38*24)))),"")) -> 
B58: =IF(AND(שעות_עבודה7[[#This Row],[התחלה]]="",שעות_עבודה7[[#This Row],[שם העבודה]]=""),"",ROW(A50)) ->  | C58: =_xlfn.IFS(שעות_עבודה7[[#This Row],[התחלה]]="","",WEEKDAY(שעות_עבודה7[[#This Row],[התחלה]])=1,"ראשון",WEEKDAY(שעות_עבודה7[[#This Row],[התחלה]])=2,"שני",WEEKDAY(שעות_עבודה7[[#This Row],[התחלה]])=3,"שלישי",WEEKDAY(שעות_עבודה7[[#This Row],[התחלה]])=4,"רביעי",WEEKDAY(שעות_עבודה7[[#This Row],[התחלה]])=5,"חמישי",WEEKDAY(שעות_עבודה7[[#This Row],[התחלה]])=6,"שישי",WEEKDAY(שעות_עבודה7[[#This Row],[התחלה]])=7,"מוצ""ש") ->  | D58: =IF(שעות_עבודה7[[#This Row],[התחלה]]="","",שעות_עבודה7[[#This Row],[התחלה]]) ->  | J58: =IF(IF(OR(שעות_עבודה7[[#This Row],[התחלה]]="",שעות_עבודה7[[#This Row],[סיום]]=""), IF(שעות_עבודה7[[#This Row],[הפחתת דקות]]>שעות_עבודה7[[#This Row],[הוספת דקות]],"",שעות_עבודה7[[#This Row],[הוספת דקות]]/1440-שעות_עבודה7[[#This Row],[הפחתת דקות]]/1440), IF(שעות_עבודה7[[#This Row],[סיום]]-שעות_עבודה7[[#This Row],[התחלה]]+שעות_עבודה7[[#This Row],[הוספת דקות]]/1440<שעות_עבודה7[[#This Row],[הפחתת דקות]]/1440,"", SUM(שעות_עבודה7[[#This Row],[סיום]]-שעות_עבודה7[[#This Row],[התחלה]],שעות_עבודה7[[#This Row],[הוספת דקות]]/1440,-שעות_עבודה7[[#This Row],[הפחתת דקות]]/1440)))=0,"", IF(OR(שעות_עבודה7[[#This Row],[התחלה]]="",שעות_עבודה7[[#This Row],[סיום]]=""), IF(שעות_עבודה7[[#This Row],[הפחתת דקות]]>שעות_עבודה7[[#This Row],[הוספת דקות]],"",שעות_עבודה7[[#This Row],[הוספת דקות]]/1440-שעות_עבודה7[[#This Row],[הפחתת דקות]]/1440), IF(שעות_עבודה7[[#This Row],[סיום]]-שעות_עבודה7[[#This Row],[התחלה]]+שעות_עבודה7[[#This Row],[הוספת דקות]]/1440<שעות_עבודה7[[#This Row],[הפחתת דקות]]/1440,"", SUM(שעות_עבודה7[[#This Row],[סיום]]-שעות_עבודה7[[#This Row],[התחלה]],שעות_עבודה7[[#This Row],[הוספת דקות]]/1440,-שעות_עבודה7[[#This Row],[הפחתת דקות]]/1440)))) ->  | K58: =IF(שעות_עבודה7[[#This Row],[שעות]]="","", IFERROR(IF(IF(VLOOKUP(שעות_עבודה7[[#This Row],[שם העבודה]],טבלה1[],5,FALSE)="דולרים-$", SUMPRODUCT((שעות_עבודה7[[#This Row],[שם העבודה]]=$O$9:$O$38)*שעות_עבודה7[[#This Row],[שעות]]*($P$9:$P$38*24*שער)), SUMPRODUCT((שעות_עבודה7[[#This Row],[שם העבודה]]=$O$9:$O$38)*שעות_עבודה7[[#This Row],[שעות]]*($P$9:$P$38*24)))=0,"", IF(VLOOKUP(שעות_עבודה7[[#This Row],[שם העבודה]],טבלה1[],5,FALSE)="דולרים-$", SUMPRODUCT((שעות_עבודה7[[#This Row],[שם העבודה]]=$O$9:$O$38)*שעות_עבודה7[[#This Row],[שעות]]*($P$9:$P$38*24*שער)), SUMPRODUCT((שעות_עבודה7[[#This Row],[שם העבודה]]=$O$9:$O$38)*שעות_עבודה7[[#This Row],[שעות]]*($P$9:$P$38*24)))),"")) -> 
B59: =IF(AND(שעות_עבודה7[[#This Row],[התחלה]]="",שעות_עבודה7[[#This Row],[שם העבודה]]=""),"",ROW(A51)) ->  | C59: =_xlfn.IFS(שעות_עבודה7[[#This Row],[התחלה]]="","",WEEKDAY(שעות_עבודה7[[#This Row],[התחלה]])=1,"ראשון",WEEKDAY(שעות_עבודה7[[#This Row],[התחלה]])=2,"שני",WEEKDAY(שעות_עבודה7[[#This Row],[התחלה]])=3,"שלישי",WEEKDAY(שעות_עבודה7[[#This Row],[התחלה]])=4,"רביעי",WEEKDAY(שעות_עבודה7[[#This Row],[התחלה]])=5,"חמישי",WEEKDAY(שעות_עבודה7[[#This Row],[התחלה]])=6,"שישי",WEEKDAY(שעות_עבודה7[[#This Row],[התחלה]])=7,"מוצ""ש") ->  | D59: =IF(שעות_עבודה7[[#This Row],[התחלה]]="","",שעות_עבודה7[[#This Row],[התחלה]]) ->  | J59: =IF(IF(OR(שעות_עבודה7[[#This Row],[התחלה]]="",שעות_עבודה7[[#This Row],[סיום]]=""), IF(שעות_עבודה7[[#This Row],[הפחתת דקות]]>שעות_עבודה7[[#This Row],[הוספת דקות]],"",שעות_עבודה7[[#This Row],[הוספת דקות]]/1440-שעות_עבודה7[[#This Row],[הפחתת דקות]]/1440), IF(שעות_עבודה7[[#This Row],[סיום]]-שעות_עבודה7[[#This Row],[התחלה]]+שעות_עבודה7[[#This Row],[הוספת דקות]]/1440<שעות_עבודה7[[#This Row],[הפחתת דקות]]/1440,"", SUM(שעות_עבודה7[[#This Row],[סיום]]-שעות_עבודה7[[#This Row],[התחלה]],שעות_עבודה7[[#This Row],[הוספת דקות]]/1440,-שעות_עבודה7[[#This Row],[הפחתת דקות]]/1440)))=0,"", IF(OR(שעות_עבודה7[[#This Row],[התחלה]]="",שעות_עבודה7[[#This Row],[סיום]]=""), IF(שעות_עבודה7[[#This Row],[הפחתת דקות]]>שעות_עבודה7[[#This Row],[הוספת דקות]],"",שעות_עבודה7[[#This Row],[הוספת דקות]]/1440-שעות_עבודה7[[#This Row],[הפחתת דקות]]/1440), IF(שעות_עבודה7[[#This Row],[סיום]]-שעות_עבודה7[[#This Row],[התחלה]]+שעות_עבודה7[[#This Row],[הוספת דקות]]/1440<שעות_עבודה7[[#This Row],[הפחתת דקות]]/1440,"", SUM(שעות_עבודה7[[#This Row],[סיום]]-שעות_עבודה7[[#This Row],[התחלה]],שעות_עבודה7[[#This Row],[הוספת דקות]]/1440,-שעות_עבודה7[[#This Row],[הפחתת דקות]]/1440)))) ->  | K59: =IF(שעות_עבודה7[[#This Row],[שעות]]="","", IFERROR(IF(IF(VLOOKUP(שעות_עבודה7[[#This Row],[שם העבודה]],טבלה1[],5,FALSE)="דולרים-$", SUMPRODUCT((שעות_עבודה7[[#This Row],[שם העבודה]]=$O$9:$O$38)*שעות_עבודה7[[#This Row],[שעות]]*($P$9:$P$38*24*שער)), SUMPRODUCT((שעות_עבודה7[[#This Row],[שם העבודה]]=$O$9:$O$38)*שעות_עבודה7[[#This Row],[שעות]]*($P$9:$P$38*24)))=0,"", IF(VLOOKUP(שעות_עבודה7[[#This Row],[שם העבודה]],טבלה1[],5,FALSE)="דולרים-$", SUMPRODUCT((שעות_עבודה7[[#This Row],[שם העבודה]]=$O$9:$O$38)*שעות_עבודה7[[#This Row],[שעות]]*($P$9:$P$38*24*שער)), SUMPRODUCT((שעות_עבודה7[[#This Row],[שם העבודה]]=$O$9:$O$38)*שעות_עבודה7[[#This Row],[שעות]]*($P$9:$P$38*24)))),"")) -> 
B60: =IF(AND(שעות_עבודה7[[#This Row],[התחלה]]="",שעות_עבודה7[[#This Row],[שם העבודה]]=""),"",ROW(A52)) ->  | C60: =_xlfn.IFS(שעות_עבודה7[[#This Row],[התחלה]]="","",WEEKDAY(שעות_עבודה7[[#This Row],[התחלה]])=1,"ראשון",WEEKDAY(שעות_עבודה7[[#This Row],[התחלה]])=2,"שני",WEEKDAY(שעות_עבודה7[[#This Row],[התחלה]])=3,"שלישי",WEEKDAY(שעות_עבודה7[[#This Row],[התחלה]])=4,"רביעי",WEEKDAY(שעות_עבודה7[[#This Row],[התחלה]])=5,"חמישי",WEEKDAY(שעות_עבודה7[[#This Row],[התחלה]])=6,"שישי",WEEKDAY(שעות_עבודה7[[#This Row],[התחלה]])=7,"מוצ""ש") ->  | D60: =IF(שעות_עבודה7[[#This Row],[התחלה]]="","",שעות_עבודה7[[#This Row],[התחלה]]) ->  | J60: =IF(IF(OR(שעות_עבודה7[[#This Row],[התחלה]]="",שעות_עבודה7[[#This Row],[סיום]]=""), IF(שעות_עבודה7[[#This Row],[הפחתת דקות]]>שעות_עבודה7[[#This Row],[הוספת דקות]],"",שעות_עבודה7[[#This Row],[הוספת דקות]]/1440-שעות_עבודה7[[#This Row],[הפחתת דקות]]/1440), IF(שעות_עבודה7[[#This Row],[סיום]]-שעות_עבודה7[[#This Row],[התחלה]]+שעות_עבודה7[[#This Row],[הוספת דקות]]/1440<שעות_עבודה7[[#This Row],[הפחתת דקות]]/1440,"", SUM(שעות_עבודה7[[#This Row],[סיום]]-שעות_עבודה7[[#This Row],[התחלה]],שעות_עבודה7[[#This Row],[הוספת דקות]]/1440,-שעות_עבודה7[[#This Row],[הפחתת דקות]]/1440)))=0,"", IF(OR(שעות_עבודה7[[#This Row],[התחלה]]="",שעות_עבודה7[[#This Row],[סיום]]=""), IF(שעות_עבודה7[[#This Row],[הפחתת דקות]]>שעות_עבודה7[[#This Row],[הוספת דקות]],"",שעות_עבודה7[[#This Row],[הוספת דקות]]/1440-שעות_עבודה7[[#This Row],[הפחתת דקות]]/1440), IF(שעות_עבודה7[[#This Row],[סיום]]-שעות_עבודה7[[#This Row],[התחלה]]+שעות_עבודה7[[#This Row],[הוספת דקות]]/1440<שעות_עבודה7[[#This Row],[הפחתת דקות]]/1440,"", SUM(שעות_עבודה7[[#This Row],[סיום]]-שעות_עבודה7[[#This Row],[התחלה]],שעות_עבודה7[[#This Row],[הוספת דקות]]/1440,-שעות_עבודה7[[#This Row],[הפחתת דקות]]/1440)))) ->  | K60: =IF(שעות_עבודה7[[#This Row],[שעות]]="","", IFERROR(IF(IF(VLOOKUP(שעות_עבודה7[[#This Row],[שם העבודה]],טבלה1[],5,FALSE)="דולרים-$", SUMPRODUCT((שעות_עבודה7[[#This Row],[שם העבודה]]=$O$9:$O$38)*שעות_עבודה7[[#This Row],[שעות]]*($P$9:$P$38*24*שער)), SUMPRODUCT((שעות_עבודה7[[#This Row],[שם העבודה]]=$O$9:$O$38)*שעות_עבודה7[[#This Row],[שעות]]*($P$9:$P$38*24)))=0,"", IF(VLOOKUP(שעות_עבודה7[[#This Row],[שם העבודה]],טבלה1[],5,FALSE)="דולרים-$", SUMPRODUCT((שעות_עבודה7[[#This Row],[שם העבודה]]=$O$9:$O$38)*שעות_עבודה7[[#This Row],[שעות]]*($P$9:$P$38*24*שער)), SUMPRODUCT((שעות_עבודה7[[#This Row],[שם העבודה]]=$O$9:$O$38)*שעות_עבודה7[[#This Row],[שעות]]*($P$9:$P$38*24)))),"")) -> 
B61: =IF(AND(שעות_עבודה7[[#This Row],[התחלה]]="",שעות_עבודה7[[#This Row],[שם העבודה]]=""),"",ROW(A53)) ->  | C61: =_xlfn.IFS(שעות_עבודה7[[#This Row],[התחלה]]="","",WEEKDAY(שעות_עבודה7[[#This Row],[התחלה]])=1,"ראשון",WEEKDAY(שעות_עבודה7[[#This Row],[התחלה]])=2,"שני",WEEKDAY(שעות_עבודה7[[#This Row],[התחלה]])=3,"שלישי",WEEKDAY(שעות_עבודה7[[#This Row],[התחלה]])=4,"רביעי",WEEKDAY(שעות_עבודה7[[#This Row],[התחלה]])=5,"חמישי",WEEKDAY(שעות_עבודה7[[#This Row],[התחלה]])=6,"שישי",WEEKDAY(שעות_עבודה7[[#This Row],[התחלה]])=7,"מוצ""ש") ->  | D61: =IF(שעות_עבודה7[[#This Row],[התחלה]]="","",שעות_עבודה7[[#This Row],[התחלה]]) ->  | J61: =IF(IF(OR(שעות_עבודה7[[#This Row],[התחלה]]="",שעות_עבודה7[[#This Row],[סיום]]=""), IF(שעות_עבודה7[[#This Row],[הפחתת דקות]]>שעות_עבודה7[[#This Row],[הוספת דקות]],"",שעות_עבודה7[[#This Row],[הוספת דקות]]/1440-שעות_עבודה7[[#This Row],[הפחתת דקות]]/1440), IF(שעות_עבודה7[[#This Row],[סיום]]-שעות_עבודה7[[#This Row],[התחלה]]+שעות_עבודה7[[#This Row],[הוספת דקות]]/1440<שעות_עבודה7[[#This Row],[הפחתת דקות]]/1440,"", SUM(שעות_עבודה7[[#This Row],[סיום]]-שעות_עבודה7[[#This Row],[התחלה]],שעות_עבודה7[[#This Row],[הוספת דקות]]/1440,-שעות_עבודה7[[#This Row],[הפחתת דקות]]/1440)))=0,"", IF(OR(שעות_עבודה7[[#This Row],[התחלה]]="",שעות_עבודה7[[#This Row],[סיום]]=""), IF(שעות_עבודה7[[#This Row],[הפחתת דקות]]>שעות_עבודה7[[#This Row],[הוספת דקות]],"",שעות_עבודה7[[#This Row],[הוספת דקות]]/1440-שעות_עבודה7[[#This Row],[הפחתת דקות]]/1440), IF(שעות_עבודה7[[#This Row],[סיום]]-שעות_עבודה7[[#This Row],[התחלה]]+שעות_עבודה7[[#This Row],[הוספת דקות]]/1440<שעות_עבודה7[[#This Row],[הפחתת דקות]]/1440,"", SUM(שעות_עבודה7[[#This Row],[סיום]]-שעות_עבודה7[[#This Row],[התחלה]],שעות_עבודה7[[#This Row],[הוספת דקות]]/1440,-שעות_עבודה7[[#This Row],[הפחתת דקות]]/1440)))) ->  | K61: =IF(שעות_עבודה7[[#This Row],[שעות]]="","", IFERROR(IF(IF(VLOOKUP(שעות_עבודה7[[#This Row],[שם העבודה]],טבלה1[],5,FALSE)="דולרים-$", SUMPRODUCT((שעות_עבודה7[[#This Row],[שם העבודה]]=$O$9:$O$38)*שעות_עבודה7[[#This Row],[שעות]]*($P$9:$P$38*24*שער)), SUMPRODUCT((שעות_עבודה7[[#This Row],[שם העבודה]]=$O$9:$O$38)*שעות_עבודה7[[#This Row],[שעות]]*($P$9:$P$38*24)))=0,"", IF(VLOOKUP(שעות_עבודה7[[#This Row],[שם העבודה]],טבלה1[],5,FALSE)="דולרים-$", SUMPRODUCT((שעות_עבודה7[[#This Row],[שם העבודה]]=$O$9:$O$38)*שעות_עבודה7[[#This Row],[שעות]]*($P$9:$P$38*24*שער)), SUMPRODUCT((שעות_עבודה7[[#This Row],[שם העבודה]]=$O$9:$O$38)*שעות_עבודה7[[#This Row],[שעות]]*($P$9:$P$38*24)))),"")) -> 
B62: =IF(AND(שעות_עבודה7[[#This Row],[התחלה]]="",שעות_עבודה7[[#This Row],[שם העבודה]]=""),"",ROW(A54)) ->  | C62: =_xlfn.IFS(שעות_עבודה7[[#This Row],[התחלה]]="","",WEEKDAY(שעות_עבודה7[[#This Row],[התחלה]])=1,"ראשון",WEEKDAY(שעות_עבודה7[[#This Row],[התחלה]])=2,"שני",WEEKDAY(שעות_עבודה7[[#This Row],[התחלה]])=3,"שלישי",WEEKDAY(שעות_עבודה7[[#This Row],[התחלה]])=4,"רביעי",WEEKDAY(שעות_עבודה7[[#This Row],[התחלה]])=5,"חמישי",WEEKDAY(שעות_עבודה7[[#This Row],[התחלה]])=6,"שישי",WEEKDAY(שעות_עבודה7[[#This Row],[התחלה]])=7,"מוצ""ש") ->  | D62: =IF(שעות_עבודה7[[#This Row],[התחלה]]="","",שעות_עבודה7[[#This Row],[התחלה]]) ->  | J62: =IF(IF(OR(שעות_עבודה7[[#This Row],[התחלה]]="",שעות_עבודה7[[#This Row],[סיום]]=""), IF(שעות_עבודה7[[#This Row],[הפחתת דקות]]>שעות_עבודה7[[#This Row],[הוספת דקות]],"",שעות_עבודה7[[#This Row],[הוספת דקות]]/1440-שעות_עבודה7[[#This Row],[הפחתת דקות]]/1440), IF(שעות_עבודה7[[#This Row],[סיום]]-שעות_עבודה7[[#This Row],[התחלה]]+שעות_עבודה7[[#This Row],[הוספת דקות]]/1440<שעות_עבודה7[[#This Row],[הפחתת דקות]]/1440,"", SUM(שעות_עבודה7[[#This Row],[סיום]]-שעות_עבודה7[[#This Row],[התחלה]],שעות_עבודה7[[#This Row],[הוספת דקות]]/1440,-שעות_עבודה7[[#This Row],[הפחתת דקות]]/1440)))=0,"", IF(OR(שעות_עבודה7[[#This Row],[התחלה]]="",שעות_עבודה7[[#This Row],[סיום]]=""), IF(שעות_עבודה7[[#This Row],[הפחתת דקות]]>שעות_עבודה7[[#This Row],[הוספת דקות]],"",שעות_עבודה7[[#This Row],[הוספת דקות]]/1440-שעות_עבודה7[[#This Row],[הפחתת דקות]]/1440), IF(שעות_עבודה7[[#This Row],[סיום]]-שעות_עבודה7[[#This Row],[התחלה]]+שעות_עבודה7[[#This Row],[הוספת דקות]]/1440<שעות_עבודה7[[#This Row],[הפחתת דקות]]/1440,"", SUM(שעות_עבודה7[[#This Row],[סיום]]-שעות_עבודה7[[#This Row],[התחלה]],שעות_עבודה7[[#This Row],[הוספת דקות]]/1440,-שעות_עבודה7[[#This Row],[הפחתת דקות]]/1440)))) ->  | K62: =IF(שעות_עבודה7[[#This Row],[שעות]]="","", IFERROR(IF(IF(VLOOKUP(שעות_עבודה7[[#This Row],[שם העבודה]],טבלה1[],5,FALSE)="דולרים-$", SUMPRODUCT((שעות_עבודה7[[#This Row],[שם העבודה]]=$O$9:$O$38)*שעות_עבודה7[[#This Row],[שעות]]*($P$9:$P$38*24*שער)), SUMPRODUCT((שעות_עבודה7[[#This Row],[שם העבודה]]=$O$9:$O$38)*שעות_עבודה7[[#This Row],[שעות]]*($P$9:$P$38*24)))=0,"", IF(VLOOKUP(שעות_עבודה7[[#This Row],[שם העבודה]],טבלה1[],5,FALSE)="דולרים-$", SUMPRODUCT((שעות_עבודה7[[#This Row],[שם העבודה]]=$O$9:$O$38)*שעות_עבודה7[[#This Row],[שעות]]*($P$9:$P$38*24*שער)), SUMPRODUCT((שעות_עבודה7[[#This Row],[שם העבודה]]=$O$9:$O$38)*שעות_עבודה7[[#This Row],[שעות]]*($P$9:$P$38*24)))),"")) -> 
B63: =IF(AND(שעות_עבודה7[[#This Row],[התחלה]]="",שעות_עבודה7[[#This Row],[שם העבודה]]=""),"",ROW(A55)) ->  | C63: =_xlfn.IFS(שעות_עבודה7[[#This Row],[התחלה]]="","",WEEKDAY(שעות_עבודה7[[#This Row],[התחלה]])=1,"ראשון",WEEKDAY(שעות_עבודה7[[#This Row],[התחלה]])=2,"שני",WEEKDAY(שעות_עבודה7[[#This Row],[התחלה]])=3,"שלישי",WEEKDAY(שעות_עבודה7[[#This Row],[התחלה]])=4,"רביעי",WEEKDAY(שעות_עבודה7[[#This Row],[התחלה]])=5,"חמישי",WEEKDAY(שעות_עבודה7[[#This Row],[התחלה]])=6,"שישי",WEEKDAY(שעות_עבודה7[[#This Row],[התחלה]])=7,"מוצ""ש") ->  | D63: =IF(שעות_עבודה7[[#This Row],[התחלה]]="","",שעות_עבודה7[[#This Row],[התחלה]]) ->  | J63: =IF(IF(OR(שעות_עבודה7[[#This Row],[התחלה]]="",שעות_עבודה7[[#This Row],[סיום]]=""), IF(שעות_עבודה7[[#This Row],[הפחתת דקות]]>שעות_עבודה7[[#This Row],[הוספת דקות]],"",שעות_עבודה7[[#This Row],[הוספת דקות]]/1440-שעות_עבודה7[[#This Row],[הפחתת דקות]]/1440), IF(שעות_עבודה7[[#This Row],[סיום]]-שעות_עבודה7[[#This Row],[התחלה]]+שעות_עבודה7[[#This Row],[הוספת דקות]]/1440<שעות_עבודה7[[#This Row],[הפחתת דקות]]/1440,"", SUM(שעות_עבודה7[[#This Row],[סיום]]-שעות_עבודה7[[#This Row],[התחלה]],שעות_עבודה7[[#This Row],[הוספת דקות]]/1440,-שעות_עבודה7[[#This Row],[הפחתת דקות]]/1440)))=0,"", IF(OR(שעות_עבודה7[[#This Row],[התחלה]]="",שעות_עבודה7[[#This Row],[סיום]]=""), IF(שעות_עבודה7[[#This Row],[הפחתת דקות]]>שעות_עבודה7[[#This Row],[הוספת דקות]],"",שעות_עבודה7[[#This Row],[הוספת דקות]]/1440-שעות_עבודה7[[#This Row],[הפחתת דקות]]/1440), IF(שעות_עבודה7[[#This Row],[סיום]]-שעות_עבודה7[[#This Row],[התחלה]]+שעות_עבודה7[[#This Row],[הוספת דקות]]/1440<שעות_עבודה7[[#This Row],[הפחתת דקות]]/1440,"", SUM(שעות_עבודה7[[#This Row],[סיום]]-שעות_עבודה7[[#This Row],[התחלה]],שעות_עבודה7[[#This Row],[הוספת דקות]]/1440,-שעות_עבודה7[[#This Row],[הפחתת דקות]]/1440)))) ->  | K63: =IF(שעות_עבודה7[[#This Row],[שעות]]="","", IFERROR(IF(IF(VLOOKUP(שעות_עבודה7[[#This Row],[שם העבודה]],טבלה1[],5,FALSE)="דולרים-$", SUMPRODUCT((שעות_עבודה7[[#This Row],[שם העבודה]]=$O$9:$O$38)*שעות_עבודה7[[#This Row],[שעות]]*($P$9:$P$38*24*שער)), SUMPRODUCT((שעות_עבודה7[[#This Row],[שם העבודה]]=$O$9:$O$38)*שעות_עבודה7[[#This Row],[שעות]]*($P$9:$P$38*24)))=0,"", IF(VLOOKUP(שעות_עבודה7[[#This Row],[שם העבודה]],טבלה1[],5,FALSE)="דולרים-$", SUMPRODUCT((שעות_עבודה7[[#This Row],[שם העבודה]]=$O$9:$O$38)*שעות_עבודה7[[#This Row],[שעות]]*($P$9:$P$38*24*שער)), SUMPRODUCT((שעות_עבודה7[[#This Row],[שם העבודה]]=$O$9:$O$38)*שעות_עבודה7[[#This Row],[שעות]]*($P$9:$P$38*24)))),"")) -> 
B64: =IF(AND(שעות_עבודה7[[#This Row],[התחלה]]="",שעות_עבודה7[[#This Row],[שם העבודה]]=""),"",ROW(A56)) ->  | C64: =_xlfn.IFS(שעות_עבודה7[[#This Row],[התחלה]]="","",WEEKDAY(שעות_עבודה7[[#This Row],[התחלה]])=1,"ראשון",WEEKDAY(שעות_עבודה7[[#This Row],[התחלה]])=2,"שני",WEEKDAY(שעות_עבודה7[[#This Row],[התחלה]])=3,"שלישי",WEEKDAY(שעות_עבודה7[[#This Row],[התחלה]])=4,"רביעי",WEEKDAY(שעות_עבודה7[[#This Row],[התחלה]])=5,"חמישי",WEEKDAY(שעות_עבודה7[[#This Row],[התחלה]])=6,"שישי",WEEKDAY(שעות_עבודה7[[#This Row],[התחלה]])=7,"מוצ""ש") ->  | D64: =IF(שעות_עבודה7[[#This Row],[התחלה]]="","",שעות_עבודה7[[#This Row],[התחלה]]) ->  | J64: =IF(IF(OR(שעות_עבודה7[[#This Row],[התחלה]]="",שעות_עבודה7[[#This Row],[סיום]]=""), IF(שעות_עבודה7[[#This Row],[הפחתת דקות]]>שעות_עבודה7[[#This Row],[הוספת דקות]],"",שעות_עבודה7[[#This Row],[הוספת דקות]]/1440-שעות_עבודה7[[#This Row],[הפחתת דקות]]/1440), IF(שעות_עבודה7[[#This Row],[סיום]]-שעות_עבודה7[[#This Row],[התחלה]]+שעות_עבודה7[[#This Row],[הוספת דקות]]/1440<שעות_עבודה7[[#This Row],[הפחתת דקות]]/1440,"", SUM(שעות_עבודה7[[#This Row],[סיום]]-שעות_עבודה7[[#This Row],[התחלה]],שעות_עבודה7[[#This Row],[הוספת דקות]]/1440,-שעות_עבודה7[[#This Row],[הפחתת דקות]]/1440)))=0,"", IF(OR(שעות_עבודה7[[#This Row],[התחלה]]="",שעות_עבודה7[[#This Row],[סיום]]=""), IF(שעות_עבודה7[[#This Row],[הפחתת דקות]]>שעות_עבודה7[[#This Row],[הוספת דקות]],"",שעות_עבודה7[[#This Row],[הוספת דקות]]/1440-שעות_עבודה7[[#This Row],[הפחתת דקות]]/1440), IF(שעות_עבודה7[[#This Row],[סיום]]-שעות_עבודה7[[#This Row],[התחלה]]+שעות_עבודה7[[#This Row],[הוספת דקות]]/1440<שעות_עבודה7[[#This Row],[הפחתת דקות]]/1440,"", SUM(שעות_עבודה7[[#This Row],[סיום]]-שעות_עבודה7[[#This Row],[התחלה]],שעות_עבודה7[[#This Row],[הוספת דקות]]/1440,-שעות_עבודה7[[#This Row],[הפחתת דקות]]/1440)))) ->  | K64: =IF(שעות_עבודה7[[#This Row],[שעות]]="","", IFERROR(IF(IF(VLOOKUP(שעות_עבודה7[[#This Row],[שם העבודה]],טבלה1[],5,FALSE)="דולרים-$", SUMPRODUCT((שעות_עבודה7[[#This Row],[שם העבודה]]=$O$9:$O$38)*שעות_עבודה7[[#This Row],[שעות]]*($P$9:$P$38*24*שער)), SUMPRODUCT((שעות_עבודה7[[#This Row],[שם העבודה]]=$O$9:$O$38)*שעות_עבודה7[[#This Row],[שעות]]*($P$9:$P$38*24)))=0,"", IF(VLOOKUP(שעות_עבודה7[[#This Row],[שם העבודה]],טבלה1[],5,FALSE)="דולרים-$", SUMPRODUCT((שעות_עבודה7[[#This Row],[שם העבודה]]=$O$9:$O$38)*שעות_עבודה7[[#This Row],[שעות]]*($P$9:$P$38*24*שער)), SUMPRODUCT((שעות_עבודה7[[#This Row],[שם העבודה]]=$O$9:$O$38)*שעות_עבודה7[[#This Row],[שעות]]*($P$9:$P$38*24)))),"")) -> 
B65: =IF(AND(שעות_עבודה7[[#This Row],[התחלה]]="",שעות_עבודה7[[#This Row],[שם העבודה]]=""),"",ROW(A57)) ->  | C65: =_xlfn.IFS(שעות_עבודה7[[#This Row],[התחלה]]="","",WEEKDAY(שעות_עבודה7[[#This Row],[התחלה]])=1,"ראשון",WEEKDAY(שעות_עבודה7[[#This Row],[התחלה]])=2,"שני",WEEKDAY(שעות_עבודה7[[#This Row],[התחלה]])=3,"שלישי",WEEKDAY(שעות_עבודה7[[#This Row],[התחלה]])=4,"רביעי",WEEKDAY(שעות_עבודה7[[#This Row],[התחלה]])=5,"חמישי",WEEKDAY(שעות_עבודה7[[#This Row],[התחלה]])=6,"שישי",WEEKDAY(שעות_עבודה7[[#This Row],[התחלה]])=7,"מוצ""ש") ->  | D65: =IF(שעות_עבודה7[[#This Row],[התחלה]]="","",שעות_עבודה7[[#This Row],[התחלה]]) ->  | J65: =IF(IF(OR(שעות_עבודה7[[#This Row],[התחלה]]="",שעות_עבודה7[[#This Row],[סיום]]=""), IF(שעות_עבודה7[[#This Row],[הפחתת דקות]]>שעות_עבודה7[[#This Row],[הוספת דקות]],"",שעות_עבודה7[[#This Row],[הוספת דקות]]/1440-שעות_עבודה7[[#This Row],[הפחתת דקות]]/1440), IF(שעות_עבודה7[[#This Row],[סיום]]-שעות_עבודה7[[#This Row],[התחלה]]+שעות_עבודה7[[#This Row],[הוספת דקות]]/1440<שעות_עבודה7[[#This Row],[הפחתת דקות]]/1440,"", SUM(שעות_עבודה7[[#This Row],[סיום]]-שעות_עבודה7[[#This Row],[התחלה]],שעות_עבודה7[[#This Row],[הוספת דקות]]/1440,-שעות_עבודה7[[#This Row],[הפחתת דקות]]/1440)))=0,"", IF(OR(שעות_עבודה7[[#This Row],[התחלה]]="",שעות_עבודה7[[#This Row],[סיום]]=""), IF(שעות_עבודה7[[#This Row],[הפחתת דקות]]>שעות_עבודה7[[#This Row],[הוספת דקות]],"",שעות_עבודה7[[#This Row],[הוספת דקות]]/1440-שעות_עבודה7[[#This Row],[הפחתת דקות]]/1440), IF(שעות_עבודה7[[#This Row],[סיום]]-שעות_עבודה7[[#This Row],[התחלה]]+שעות_עבודה7[[#This Row],[הוספת דקות]]/1440<שעות_עבודה7[[#This Row],[הפחתת דקות]]/1440,"", SUM(שעות_עבודה7[[#This Row],[סיום]]-שעות_עבודה7[[#This Row],[התחלה]],שעות_עבודה7[[#This Row],[הוספת דקות]]/1440,-שעות_עבודה7[[#This Row],[הפחתת דקות]]/1440)))) ->  | K65: =IF(שעות_עבודה7[[#This Row],[שעות]]="","", IFERROR(IF(IF(VLOOKUP(שעות_עבודה7[[#This Row],[שם העבודה]],טבלה1[],5,FALSE)="דולרים-$", SUMPRODUCT((שעות_עבודה7[[#This Row],[שם העבודה]]=$O$9:$O$38)*שעות_עבודה7[[#This Row],[שעות]]*($P$9:$P$38*24*שער)), SUMPRODUCT((שעות_עבודה7[[#This Row],[שם העבודה]]=$O$9:$O$38)*שעות_עבודה7[[#This Row],[שעות]]*($P$9:$P$38*24)))=0,"", IF(VLOOKUP(שעות_עבודה7[[#This Row],[שם העבודה]],טבלה1[],5,FALSE)="דולרים-$", SUMPRODUCT((שעות_עבודה7[[#This Row],[שם העבודה]]=$O$9:$O$38)*שעות_עבודה7[[#This Row],[שעות]]*($P$9:$P$38*24*שער)), SUMPRODUCT((שעות_עבודה7[[#This Row],[שם העבודה]]=$O$9:$O$38)*שעות_עבודה7[[#This Row],[שעות]]*($P$9:$P$38*24)))),"")) -> 
B66: =IF(AND(שעות_עבודה7[[#This Row],[התחלה]]="",שעות_עבודה7[[#This Row],[שם העבודה]]=""),"",ROW(A58)) ->  | C66: =_xlfn.IFS(שעות_עבודה7[[#This Row],[התחלה]]="","",WEEKDAY(שעות_עבודה7[[#This Row],[התחלה]])=1,"ראשון",WEEKDAY(שעות_עבודה7[[#This Row],[התחלה]])=2,"שני",WEEKDAY(שעות_עבודה7[[#This Row],[התחלה]])=3,"שלישי",WEEKDAY(שעות_עבודה7[[#This Row],[התחלה]])=4,"רביעי",WEEKDAY(שעות_עבודה7[[#This Row],[התחלה]])=5,"חמישי",WEEKDAY(שעות_עבודה7[[#This Row],[התחלה]])=6,"שישי",WEEKDAY(שעות_עבודה7[[#This Row],[התחלה]])=7,"מוצ""ש") ->  | D66: =IF(שעות_עבודה7[[#This Row],[התחלה]]="","",שעות_עבודה7[[#This Row],[התחלה]]) ->  | J66: =IF(IF(OR(שעות_עבודה7[[#This Row],[התחלה]]="",שעות_עבודה7[[#This Row],[סיום]]=""), IF(שעות_עבודה7[[#This Row],[הפחתת דקות]]>שעות_עבודה7[[#This Row],[הוספת דקות]],"",שעות_עבודה7[[#This Row],[הוספת דקות]]/1440-שעות_עבודה7[[#This Row],[הפחתת דקות]]/1440), IF(שעות_עבודה7[[#This Row],[סיום]]-שעות_עבודה7[[#This Row],[התחלה]]+שעות_עבודה7[[#This Row],[הוספת דקות]]/1440<שעות_עבודה7[[#This Row],[הפחתת דקות]]/1440,"", SUM(שעות_עבודה7[[#This Row],[סיום]]-שעות_עבודה7[[#This Row],[התחלה]],שעות_עבודה7[[#This Row],[הוספת דקות]]/1440,-שעות_עבודה7[[#This Row],[הפחתת דקות]]/1440)))=0,"", IF(OR(שעות_עבודה7[[#This Row],[התחלה]]="",שעות_עבודה7[[#This Row],[סיום]]=""), IF(שעות_עבודה7[[#This Row],[הפחתת דקות]]>שעות_עבודה7[[#This Row],[הוספת דקות]],"",שעות_עבודה7[[#This Row],[הוספת דקות]]/1440-שעות_עבודה7[[#This Row],[הפחתת דקות]]/1440), IF(שעות_עבודה7[[#This Row],[סיום]]-שעות_עבודה7[[#This Row],[התחלה]]+שעות_עבודה7[[#This Row],[הוספת דקות]]/1440<שעות_עבודה7[[#This Row],[הפחתת דקות]]/1440,"", SUM(שעות_עבודה7[[#This Row],[סיום]]-שעות_עבודה7[[#This Row],[התחלה]],שעות_עבודה7[[#This Row],[הוספת דקות]]/1440,-שעות_עבודה7[[#This Row],[הפחתת דקות]]/1440)))) ->  | K66: =IF(שעות_עבודה7[[#This Row],[שעות]]="","", IFERROR(IF(IF(VLOOKUP(שעות_עבודה7[[#This Row],[שם העבודה]],טבלה1[],5,FALSE)="דולרים-$", SUMPRODUCT((שעות_עבודה7[[#This Row],[שם העבודה]]=$O$9:$O$38)*שעות_עבודה7[[#This Row],[שעות]]*($P$9:$P$38*24*שער)), SUMPRODUCT((שעות_עבודה7[[#This Row],[שם העבודה]]=$O$9:$O$38)*שעות_עבודה7[[#This Row],[שעות]]*($P$9:$P$38*24)))=0,"", IF(VLOOKUP(שעות_עבודה7[[#This Row],[שם העבודה]],טבלה1[],5,FALSE)="דולרים-$", SUMPRODUCT((שעות_עבודה7[[#This Row],[שם העבודה]]=$O$9:$O$38)*שעות_עבודה7[[#This Row],[שעות]]*($P$9:$P$38*24*שער)), SUMPRODUCT((שעות_עבודה7[[#This Row],[שם העבודה]]=$O$9:$O$38)*שעות_עבודה7[[#This Row],[שעות]]*($P$9:$P$38*24)))),"")) -> 
B67: =IF(AND(שעות_עבודה7[[#This Row],[התחלה]]="",שעות_עבודה7[[#This Row],[שם העבודה]]=""),"",ROW(A59)) ->  | C67: =_xlfn.IFS(שעות_עבודה7[[#This Row],[התחלה]]="","",WEEKDAY(שעות_עבודה7[[#This Row],[התחלה]])=1,"ראשון",WEEKDAY(שעות_עבודה7[[#This Row],[התחלה]])=2,"שני",WEEKDAY(שעות_עבודה7[[#This Row],[התחלה]])=3,"שלישי",WEEKDAY(שעות_עבודה7[[#This Row],[התחלה]])=4,"רביעי",WEEKDAY(שעות_עבודה7[[#This Row],[התחלה]])=5,"חמישי",WEEKDAY(שעות_עבודה7[[#This Row],[התחלה]])=6,"שישי",WEEKDAY(שעות_עבודה7[[#This Row],[התחלה]])=7,"מוצ""ש") ->  | D67: =IF(שעות_עבודה7[[#This Row],[התחלה]]="","",שעות_עבודה7[[#This Row],[התחלה]]) ->  | J67: =IF(IF(OR(שעות_עבודה7[[#This Row],[התחלה]]="",שעות_עבודה7[[#This Row],[סיום]]=""), IF(שעות_עבודה7[[#This Row],[הפחתת דקות]]>שעות_עבודה7[[#This Row],[הוספת דקות]],"",שעות_עבודה7[[#This Row],[הוספת דקות]]/1440-שעות_עבודה7[[#This Row],[הפחתת דקות]]/1440), IF(שעות_עבודה7[[#This Row],[סיום]]-שעות_עבודה7[[#This Row],[התחלה]]+שעות_עבודה7[[#This Row],[הוספת דקות]]/1440<שעות_עבודה7[[#This Row],[הפחתת דקות]]/1440,"", SUM(שעות_עבודה7[[#This Row],[סיום]]-שעות_עבודה7[[#This Row],[התחלה]],שעות_עבודה7[[#This Row],[הוספת דקות]]/1440,-שעות_עבודה7[[#This Row],[הפחתת דקות]]/1440)))=0,"", IF(OR(שעות_עבודה7[[#This Row],[התחלה]]="",שעות_עבודה7[[#This Row],[סיום]]=""), IF(שעות_עבודה7[[#This Row],[הפחתת דקות]]>שעות_עבודה7[[#This Row],[הוספת דקות]],"",שעות_עבודה7[[#This Row],[הוספת דקות]]/1440-שעות_עבודה7[[#This Row],[הפחתת דקות]]/1440), IF(שעות_עבודה7[[#This Row],[סיום]]-שעות_עבודה7[[#This Row],[התחלה]]+שעות_עבודה7[[#This Row],[הוספת דקות]]/1440<שעות_עבודה7[[#This Row],[הפחתת דקות]]/1440,"", SUM(שעות_עבודה7[[#This Row],[סיום]]-שעות_עבודה7[[#This Row],[התחלה]],שעות_עבודה7[[#This Row],[הוספת דקות]]/1440,-שעות_עבודה7[[#This Row],[הפחתת דקות]]/1440)))) ->  | K67: =IF(שעות_עבודה7[[#This Row],[שעות]]="","", IFERROR(IF(IF(VLOOKUP(שעות_עבודה7[[#This Row],[שם העבודה]],טבלה1[],5,FALSE)="דולרים-$", SUMPRODUCT((שעות_עבודה7[[#This Row],[שם העבודה]]=$O$9:$O$38)*שעות_עבודה7[[#This Row],[שעות]]*($P$9:$P$38*24*שער)), SUMPRODUCT((שעות_עבודה7[[#This Row],[שם העבודה]]=$O$9:$O$38)*שעות_עבודה7[[#This Row],[שעות]]*($P$9:$P$38*24)))=0,"", IF(VLOOKUP(שעות_עבודה7[[#This Row],[שם העבודה]],טבלה1[],5,FALSE)="דולרים-$", SUMPRODUCT((שעות_עבודה7[[#This Row],[שם העבודה]]=$O$9:$O$38)*שעות_עבודה7[[#This Row],[שעות]]*($P$9:$P$38*24*שער)), SUMPRODUCT((שעות_עבודה7[[#This Row],[שם העבודה]]=$O$9:$O$38)*שעות_עבודה7[[#This Row],[שעות]]*($P$9:$P$38*24)))),"")) -> 
B68: =IF(AND(שעות_עבודה7[[#This Row],[התחלה]]="",שעות_עבודה7[[#This Row],[שם העבודה]]=""),"",ROW(A60)) ->  | C68: =_xlfn.IFS(שעות_עבודה7[[#This Row],[התחלה]]="","",WEEKDAY(שעות_עבודה7[[#This Row],[התחלה]])=1,"ראשון",WEEKDAY(שעות_עבודה7[[#This Row],[התחלה]])=2,"שני",WEEKDAY(שעות_עבודה7[[#This Row],[התחלה]])=3,"שלישי",WEEKDAY(שעות_עבודה7[[#This Row],[התחלה]])=4,"רביעי",WEEKDAY(שעות_עבודה7[[#This Row],[התחלה]])=5,"חמישי",WEEKDAY(שעות_עבודה7[[#This Row],[התחלה]])=6,"שישי",WEEKDAY(שעות_עבודה7[[#This Row],[התחלה]])=7,"מוצ""ש") ->  | D68: =IF(שעות_עבודה7[[#This Row],[התחלה]]="","",שעות_עבודה7[[#This Row],[התחלה]]) ->  | J68: =IF(IF(OR(שעות_עבודה7[[#This Row],[התחלה]]="",שעות_עבודה7[[#This Row],[סיום]]=""), IF(שעות_עבודה7[[#This Row],[הפחתת דקות]]>שעות_עבודה7[[#This Row],[הוספת דקות]],"",שעות_עבודה7[[#This Row],[הוספת דקות]]/1440-שעות_עבודה7[[#This Row],[הפחתת דקות]]/1440), IF(שעות_עבודה7[[#This Row],[סיום]]-שעות_עבודה7[[#This Row],[התחלה]]+שעות_עבודה7[[#This Row],[הוספת דקות]]/1440<שעות_עבודה7[[#This Row],[הפחתת דקות]]/1440,"", SUM(שעות_עבודה7[[#This Row],[סיום]]-שעות_עבודה7[[#This Row],[התחלה]],שעות_עבודה7[[#This Row],[הוספת דקות]]/1440,-שעות_עבודה7[[#This Row],[הפחתת דקות]]/1440)))=0,"", IF(OR(שעות_עבודה7[[#This Row],[התחלה]]="",שעות_עבודה7[[#This Row],[סיום]]=""), IF(שעות_עבודה7[[#This Row],[הפחתת דקות]]>שעות_עבודה7[[#This Row],[הוספת דקות]],"",שעות_עבודה7[[#This Row],[הוספת דקות]]/1440-שעות_עבודה7[[#This Row],[הפחתת דקות]]/1440), IF(שעות_עבודה7[[#This Row],[סיום]]-שעות_עבודה7[[#This Row],[התחלה]]+שעות_עבודה7[[#This Row],[הוספת דקות]]/1440<שעות_עבודה7[[#This Row],[הפחתת דקות]]/1440,"", SUM(שעות_עבודה7[[#This Row],[סיום]]-שעות_עבודה7[[#This Row],[התחלה]],שעות_עבודה7[[#This Row],[הוספת דקות]]/1440,-שעות_עבודה7[[#This Row],[הפחתת דקות]]/1440)))) ->  | K68: =IF(שעות_עבודה7[[#This Row],[שעות]]="","", IFERROR(IF(IF(VLOOKUP(שעות_עבודה7[[#This Row],[שם העבודה]],טבלה1[],5,FALSE)="דולרים-$", SUMPRODUCT((שעות_עבודה7[[#This Row],[שם העבודה]]=$O$9:$O$38)*שעות_עבודה7[[#This Row],[שעות]]*($P$9:$P$38*24*שער)), SUMPRODUCT((שעות_עבודה7[[#This Row],[שם העבודה]]=$O$9:$O$38)*שעות_עבודה7[[#This Row],[שעות]]*($P$9:$P$38*24)))=0,"", IF(VLOOKUP(שעות_עבודה7[[#This Row],[שם העבודה]],טבלה1[],5,FALSE)="דולרים-$", SUMPRODUCT((שעות_עבודה7[[#This Row],[שם העבודה]]=$O$9:$O$38)*שעות_עבודה7[[#This Row],[שעות]]*($P$9:$P$38*24*שער)), SUMPRODUCT((שעות_עבודה7[[#This Row],[שם העבודה]]=$O$9:$O$38)*שעות_עבודה7[[#This Row],[שעות]]*($P$9:$P$38*24)))),"")) -> 
B69: =IF(AND(שעות_עבודה7[[#This Row],[התחלה]]="",שעות_עבודה7[[#This Row],[שם העבודה]]=""),"",ROW(A61)) ->  | C69: =_xlfn.IFS(שעות_עבודה7[[#This Row],[התחלה]]="","",WEEKDAY(שעות_עבודה7[[#This Row],[התחלה]])=1,"ראשון",WEEKDAY(שעות_עבודה7[[#This Row],[התחלה]])=2,"שני",WEEKDAY(שעות_עבודה7[[#This Row],[התחלה]])=3,"שלישי",WEEKDAY(שעות_עבודה7[[#This Row],[התחלה]])=4,"רביעי",WEEKDAY(שעות_עבודה7[[#This Row],[התחלה]])=5,"חמישי",WEEKDAY(שעות_עבודה7[[#This Row],[התחלה]])=6,"שישי",WEEKDAY(שעות_עבודה7[[#This Row],[התחלה]])=7,"מוצ""ש") ->  | D69: =IF(שעות_עבודה7[[#This Row],[התחלה]]="","",שעות_עבודה7[[#This Row],[התחלה]]) ->  | J69: =IF(IF(OR(שעות_עבודה7[[#This Row],[התחלה]]="",שעות_עבודה7[[#This Row],[סיום]]=""), IF(שעות_עבודה7[[#This Row],[הפחתת דקות]]>שעות_עבודה7[[#This Row],[הוספת דקות]],"",שעות_עבודה7[[#This Row],[הוספת דקות]]/1440-שעות_עבודה7[[#This Row],[הפחתת דקות]]/1440), IF(שעות_עבודה7[[#This Row],[סיום]]-שעות_עבודה7[[#This Row],[התחלה]]+שעות_עבודה7[[#This Row],[הוספת דקות]]/1440<שעות_עבודה7[[#This Row],[הפחתת דקות]]/1440,"", SUM(שעות_עבודה7[[#This Row],[סיום]]-שעות_עבודה7[[#This Row],[התחלה]],שעות_עבודה7[[#This Row],[הוספת דקות]]/1440,-שעות_עבודה7[[#This Row],[הפחתת דקות]]/1440)))=0,"", IF(OR(שעות_עבודה7[[#This Row],[התחלה]]="",שעות_עבודה7[[#This Row],[סיום]]=""), IF(שעות_עבודה7[[#This Row],[הפחתת דקות]]>שעות_עבודה7[[#This Row],[הוספת דקות]],"",שעות_עבודה7[[#This Row],[הוספת דקות]]/1440-שעות_עבודה7[[#This Row],[הפחתת דקות]]/1440), IF(שעות_עבודה7[[#This Row],[סיום]]-שעות_עבודה7[[#This Row],[התחלה]]+שעות_עבודה7[[#This Row],[הוספת דקות]]/1440<שעות_עבודה7[[#This Row],[הפחתת דקות]]/1440,"", SUM(שעות_עבודה7[[#This Row],[סיום]]-שעות_עבודה7[[#This Row],[התחלה]],שעות_עבודה7[[#This Row],[הוספת דקות]]/1440,-שעות_עבודה7[[#This Row],[הפחתת דקות]]/1440)))) ->  | K69: =IF(שעות_עבודה7[[#This Row],[שעות]]="","", IFERROR(IF(IF(VLOOKUP(שעות_עבודה7[[#This Row],[שם העבודה]],טבלה1[],5,FALSE)="דולרים-$", SUMPRODUCT((שעות_עבודה7[[#This Row],[שם העבודה]]=$O$9:$O$38)*שעות_עבודה7[[#This Row],[שעות]]*($P$9:$P$38*24*שער)), SUMPRODUCT((שעות_עבודה7[[#This Row],[שם העבודה]]=$O$9:$O$38)*שעות_עבודה7[[#This Row],[שעות]]*($P$9:$P$38*24)))=0,"", IF(VLOOKUP(שעות_עבודה7[[#This Row],[שם העבודה]],טבלה1[],5,FALSE)="דולרים-$", SUMPRODUCT((שעות_עבודה7[[#This Row],[שם העבודה]]=$O$9:$O$38)*שעות_עבודה7[[#This Row],[שעות]]*($P$9:$P$38*24*שער)), SUMPRODUCT((שעות_עבודה7[[#This Row],[שם העבודה]]=$O$9:$O$38)*שעות_עבודה7[[#This Row],[שעות]]*($P$9:$P$38*24)))),"")) -> 
B70: =IF(AND(שעות_עבודה7[[#This Row],[התחלה]]="",שעות_עבודה7[[#This Row],[שם העבודה]]=""),"",ROW(A62)) ->  | C70: =_xlfn.IFS(שעות_עבודה7[[#This Row],[התחלה]]="","",WEEKDAY(שעות_עבודה7[[#This Row],[התחלה]])=1,"ראשון",WEEKDAY(שעות_עבודה7[[#This Row],[התחלה]])=2,"שני",WEEKDAY(שעות_עבודה7[[#This Row],[התחלה]])=3,"שלישי",WEEKDAY(שעות_עבודה7[[#This Row],[התחלה]])=4,"רביעי",WEEKDAY(שעות_עבודה7[[#This Row],[התחלה]])=5,"חמישי",WEEKDAY(שעות_עבודה7[[#This Row],[התחלה]])=6,"שישי",WEEKDAY(שעות_עבודה7[[#This Row],[התחלה]])=7,"מוצ""ש") ->  | D70: =IF(שעות_עבודה7[[#This Row],[התחלה]]="","",שעות_עבודה7[[#This Row],[התחלה]]) ->  | J70: =IF(IF(OR(שעות_עבודה7[[#This Row],[התחלה]]="",שעות_עבודה7[[#This Row],[סיום]]=""), IF(שעות_עבודה7[[#This Row],[הפחתת דקות]]>שעות_עבודה7[[#This Row],[הוספת דקות]],"",שעות_עבודה7[[#This Row],[הוספת דקות]]/1440-שעות_עבודה7[[#This Row],[הפחתת דקות]]/1440), IF(שעות_עבודה7[[#This Row],[סיום]]-שעות_עבודה7[[#This Row],[התחלה]]+שעות_עבודה7[[#This Row],[הוספת דקות]]/1440<שעות_עבודה7[[#This Row],[הפחתת דקות]]/1440,"", SUM(שעות_עבודה7[[#This Row],[סיום]]-שעות_עבודה7[[#This Row],[התחלה]],שעות_עבודה7[[#This Row],[הוספת דקות]]/1440,-שעות_עבודה7[[#This Row],[הפחתת דקות]]/1440)))=0,"", IF(OR(שעות_עבודה7[[#This Row],[התחלה]]="",שעות_עבודה7[[#This Row],[סיום]]=""), IF(שעות_עבודה7[[#This Row],[הפחתת דקות]]>שעות_עבודה7[[#This Row],[הוספת דקות]],"",שעות_עבודה7[[#This Row],[הוספת דקות]]/1440-שעות_עבודה7[[#This Row],[הפחתת דקות]]/1440), IF(שעות_עבודה7[[#This Row],[סיום]]-שעות_עבודה7[[#This Row],[התחלה]]+שעות_עבודה7[[#This Row],[הוספת דקות]]/1440<שעות_עבודה7[[#This Row],[הפחתת דקות]]/1440,"", SUM(שעות_עבודה7[[#This Row],[סיום]]-שעות_עבודה7[[#This Row],[התחלה]],שעות_עבודה7[[#This Row],[הוספת דקות]]/1440,-שעות_עבודה7[[#This Row],[הפחתת דקות]]/1440)))) ->  | K70: =IF(שעות_עבודה7[[#This Row],[שעות]]="","", IFERROR(IF(IF(VLOOKUP(שעות_עבודה7[[#This Row],[שם העבודה]],טבלה1[],5,FALSE)="דולרים-$", SUMPRODUCT((שעות_עבודה7[[#This Row],[שם העבודה]]=$O$9:$O$38)*שעות_עבודה7[[#This Row],[שעות]]*($P$9:$P$38*24*שער)), SUMPRODUCT((שעות_עבודה7[[#This Row],[שם העבודה]]=$O$9:$O$38)*שעות_עבודה7[[#This Row],[שעות]]*($P$9:$P$38*24)))=0,"", IF(VLOOKUP(שעות_עבודה7[[#This Row],[שם העבודה]],טבלה1[],5,FALSE)="דולרים-$", SUMPRODUCT((שעות_עבודה7[[#This Row],[שם העבודה]]=$O$9:$O$38)*שעות_עבודה7[[#This Row],[שעות]]*($P$9:$P$38*24*שער)), SUMPRODUCT((שעות_עבודה7[[#This Row],[שם העבודה]]=$O$9:$O$38)*שעות_עבודה7[[#This Row],[שעות]]*($P$9:$P$38*24)))),"")) -> 
B71: =IF(AND(שעות_עבודה7[[#This Row],[התחלה]]="",שעות_עבודה7[[#This Row],[שם העבודה]]=""),"",ROW(A63)) ->  | C71: =_xlfn.IFS(שעות_עבודה7[[#This Row],[התחלה]]="","",WEEKDAY(שעות_עבודה7[[#This Row],[התחלה]])=1,"ראשון",WEEKDAY(שעות_עבודה7[[#This Row],[התחלה]])=2,"שני",WEEKDAY(שעות_עבודה7[[#This Row],[התחלה]])=3,"שלישי",WEEKDAY(שעות_עבודה7[[#This Row],[התחלה]])=4,"רביעי",WEEKDAY(שעות_עבודה7[[#This Row],[התחלה]])=5,"חמישי",WEEKDAY(שעות_עבודה7[[#This Row],[התחלה]])=6,"שישי",WEEKDAY(שעות_עבודה7[[#This Row],[התחלה]])=7,"מוצ""ש") ->  | D71: =IF(שעות_עבודה7[[#This Row],[התחלה]]="","",שעות_עבודה7[[#This Row],[התחלה]]) ->  | J71: =IF(IF(OR(שעות_עבודה7[[#This Row],[התחלה]]="",שעות_עבודה7[[#This Row],[סיום]]=""), IF(שעות_עבודה7[[#This Row],[הפחתת דקות]]>שעות_עבודה7[[#This Row],[הוספת דקות]],"",שעות_עבודה7[[#This Row],[הוספת דקות]]/1440-שעות_עבודה7[[#This Row],[הפחתת דקות]]/1440), IF(שעות_עבודה7[[#This Row],[סיום]]-שעות_עבודה7[[#This Row],[התחלה]]+שעות_עבודה7[[#This Row],[הוספת דקות]]/1440<שעות_עבודה7[[#This Row],[הפחתת דקות]]/1440,"", SUM(שעות_עבודה7[[#This Row],[סיום]]-שעות_עבודה7[[#This Row],[התחלה]],שעות_עבודה7[[#This Row],[הוספת דקות]]/1440,-שעות_עבודה7[[#This Row],[הפחתת דקות]]/1440)))=0,"", IF(OR(שעות_עבודה7[[#This Row],[התחלה]]="",שעות_עבודה7[[#This Row],[סיום]]=""), IF(שעות_עבודה7[[#This Row],[הפחתת דקות]]>שעות_עבודה7[[#This Row],[הוספת דקות]],"",שעות_עבודה7[[#This Row],[הוספת דקות]]/1440-שעות_עבודה7[[#This Row],[הפחתת דקות]]/1440), IF(שעות_עבודה7[[#This Row],[סיום]]-שעות_עבודה7[[#This Row],[התחלה]]+שעות_עבודה7[[#This Row],[הוספת דקות]]/1440<שעות_עבודה7[[#This Row],[הפחתת דקות]]/1440,"", SUM(שעות_עבודה7[[#This Row],[סיום]]-שעות_עבודה7[[#This Row],[התחלה]],שעות_עבודה7[[#This Row],[הוספת דקות]]/1440,-שעות_עבודה7[[#This Row],[הפחתת דקות]]/1440)))) ->  | K71: =IF(שעות_עבודה7[[#This Row],[שעות]]="","", IFERROR(IF(IF(VLOOKUP(שעות_עבודה7[[#This Row],[שם העבודה]],טבלה1[],5,FALSE)="דולרים-$", SUMPRODUCT((שעות_עבודה7[[#This Row],[שם העבודה]]=$O$9:$O$38)*שעות_עבודה7[[#This Row],[שעות]]*($P$9:$P$38*24*שער)), SUMPRODUCT((שעות_עבודה7[[#This Row],[שם העבודה]]=$O$9:$O$38)*שעות_עבודה7[[#This Row],[שעות]]*($P$9:$P$38*24)))=0,"", IF(VLOOKUP(שעות_עבודה7[[#This Row],[שם העבודה]],טבלה1[],5,FALSE)="דולרים-$", SUMPRODUCT((שעות_עבודה7[[#This Row],[שם העבודה]]=$O$9:$O$38)*שעות_עבודה7[[#This Row],[שעות]]*($P$9:$P$38*24*שער)), SUMPRODUCT((שעות_עבודה7[[#This Row],[שם העבודה]]=$O$9:$O$38)*שעות_עבודה7[[#This Row],[שעות]]*($P$9:$P$38*24)))),"")) -> 
B72: =IF(AND(שעות_עבודה7[[#This Row],[התחלה]]="",שעות_עבודה7[[#This Row],[שם העבודה]]=""),"",ROW(A64)) ->  | C72: =_xlfn.IFS(שעות_עבודה7[[#This Row],[התחלה]]="","",WEEKDAY(שעות_עבודה7[[#This Row],[התחלה]])=1,"ראשון",WEEKDAY(שעות_עבודה7[[#This Row],[התחלה]])=2,"שני",WEEKDAY(שעות_עבודה7[[#This Row],[התחלה]])=3,"שלישי",WEEKDAY(שעות_עבודה7[[#This Row],[התחלה]])=4,"רביעי",WEEKDAY(שעות_עבודה7[[#This Row],[התחלה]])=5,"חמישי",WEEKDAY(שעות_עבודה7[[#This Row],[התחלה]])=6,"שישי",WEEKDAY(שעות_עבודה7[[#This Row],[התחלה]])=7,"מוצ""ש") ->  | D72: =IF(שעות_עבודה7[[#This Row],[התחלה]]="","",שעות_עבודה7[[#This Row],[התחלה]]) ->  | J72: =IF(IF(OR(שעות_עבודה7[[#This Row],[התחלה]]="",שעות_עבודה7[[#This Row],[סיום]]=""), IF(שעות_עבודה7[[#This Row],[הפחתת דקות]]>שעות_עבודה7[[#This Row],[הוספת דקות]],"",שעות_עבודה7[[#This Row],[הוספת דקות]]/1440-שעות_עבודה7[[#This Row],[הפחתת דקות]]/1440), IF(שעות_עבודה7[[#This Row],[סיום]]-שעות_עבודה7[[#This Row],[התחלה]]+שעות_עבודה7[[#This Row],[הוספת דקות]]/1440<שעות_עבודה7[[#This Row],[הפחתת דקות]]/1440,"", SUM(שעות_עבודה7[[#This Row],[סיום]]-שעות_עבודה7[[#This Row],[התחלה]],שעות_עבודה7[[#This Row],[הוספת דקות]]/1440,-שעות_עבודה7[[#This Row],[הפחתת דקות]]/1440)))=0,"", IF(OR(שעות_עבודה7[[#This Row],[התחלה]]="",שעות_עבודה7[[#This Row],[סיום]]=""), IF(שעות_עבודה7[[#This Row],[הפחתת דקות]]>שעות_עבודה7[[#This Row],[הוספת דקות]],"",שעות_עבודה7[[#This Row],[הוספת דקות]]/1440-שעות_עבודה7[[#This Row],[הפחתת דקות]]/1440), IF(שעות_עבודה7[[#This Row],[סיום]]-שעות_עבודה7[[#This Row],[התחלה]]+שעות_עבודה7[[#This Row],[הוספת דקות]]/1440<שעות_עבודה7[[#This Row],[הפחתת דקות]]/1440,"", SUM(שעות_עבודה7[[#This Row],[סיום]]-שעות_עבודה7[[#This Row],[התחלה]],שעות_עבודה7[[#This Row],[הוספת דקות]]/1440,-שעות_עבודה7[[#This Row],[הפחתת דקות]]/1440)))) ->  | K72: =IF(שעות_עבודה7[[#This Row],[שעות]]="","", IFERROR(IF(IF(VLOOKUP(שעות_עבודה7[[#This Row],[שם העבודה]],טבלה1[],5,FALSE)="דולרים-$", SUMPRODUCT((שעות_עבודה7[[#This Row],[שם העבודה]]=$O$9:$O$38)*שעות_עבודה7[[#This Row],[שעות]]*($P$9:$P$38*24*שער)), SUMPRODUCT((שעות_עבודה7[[#This Row],[שם העבודה]]=$O$9:$O$38)*שעות_עבודה7[[#This Row],[שעות]]*($P$9:$P$38*24)))=0,"", IF(VLOOKUP(שעות_עבודה7[[#This Row],[שם העבודה]],טבלה1[],5,FALSE)="דולרים-$", SUMPRODUCT((שעות_עבודה7[[#This Row],[שם העבודה]]=$O$9:$O$38)*שעות_עבודה7[[#This Row],[שעות]]*($P$9:$P$38*24*שער)), SUMPRODUCT((שעות_עבודה7[[#This Row],[שם העבודה]]=$O$9:$O$38)*שעות_עבודה7[[#This Row],[שעות]]*($P$9:$P$38*24)))),"")) -> 
B73: =IF(AND(שעות_עבודה7[[#This Row],[התחלה]]="",שעות_עבודה7[[#This Row],[שם העבודה]]=""),"",ROW(A65)) ->  | C73: =_xlfn.IFS(שעות_עבודה7[[#This Row],[התחלה]]="","",WEEKDAY(שעות_עבודה7[[#This Row],[התחלה]])=1,"ראשון",WEEKDAY(שעות_עבודה7[[#This Row],[התחלה]])=2,"שני",WEEKDAY(שעות_עבודה7[[#This Row],[התחלה]])=3,"שלישי",WEEKDAY(שעות_עבודה7[[#This Row],[התחלה]])=4,"רביעי",WEEKDAY(שעות_עבודה7[[#This Row],[התחלה]])=5,"חמישי",WEEKDAY(שעות_עבודה7[[#This Row],[התחלה]])=6,"שישי",WEEKDAY(שעות_עבודה7[[#This Row],[התחלה]])=7,"מוצ""ש") ->  | D73: =IF(שעות_עבודה7[[#This Row],[התחלה]]="","",שעות_עבודה7[[#This Row],[התחלה]]) ->  | J73: =IF(IF(OR(שעות_עבודה7[[#This Row],[התחלה]]="",שעות_עבודה7[[#This Row],[סיום]]=""), IF(שעות_עבודה7[[#This Row],[הפחתת דקות]]>שעות_עבודה7[[#This Row],[הוספת דקות]],"",שעות_עבודה7[[#This Row],[הוספת דקות]]/1440-שעות_עבודה7[[#This Row],[הפחתת דקות]]/1440), IF(שעות_עבודה7[[#This Row],[סיום]]-שעות_עבודה7[[#This Row],[התחלה]]+שעות_עבודה7[[#This Row],[הוספת דקות]]/1440<שעות_עבודה7[[#This Row],[הפחתת דקות]]/1440,"", SUM(שעות_עבודה7[[#This Row],[סיום]]-שעות_עבודה7[[#This Row],[התחלה]],שעות_עבודה7[[#This Row],[הוספת דקות]]/1440,-שעות_עבודה7[[#This Row],[הפחתת דקות]]/1440)))=0,"", IF(OR(שעות_עבודה7[[#This Row],[התחלה]]="",שעות_עבודה7[[#This Row],[סיום]]=""), IF(שעות_עבודה7[[#This Row],[הפחתת דקות]]>שעות_עבודה7[[#This Row],[הוספת דקות]],"",שעות_עבודה7[[#This Row],[הוספת דקות]]/1440-שעות_עבודה7[[#This Row],[הפחתת דקות]]/1440), IF(שעות_עבודה7[[#This Row],[סיום]]-שעות_עבודה7[[#This Row],[התחלה]]+שעות_עבודה7[[#This Row],[הוספת דקות]]/1440<שעות_עבודה7[[#This Row],[הפחתת דקות]]/1440,"", SUM(שעות_עבודה7[[#This Row],[סיום]]-שעות_עבודה7[[#This Row],[התחלה]],שעות_עבודה7[[#This Row],[הוספת דקות]]/1440,-שעות_עבודה7[[#This Row],[הפחתת דקות]]/1440)))) ->  | K73: =IF(שעות_עבודה7[[#This Row],[שעות]]="","", IFERROR(IF(IF(VLOOKUP(שעות_עבודה7[[#This Row],[שם העבודה]],טבלה1[],5,FALSE)="דולרים-$", SUMPRODUCT((שעות_עבודה7[[#This Row],[שם העבודה]]=$O$9:$O$38)*שעות_עבודה7[[#This Row],[שעות]]*($P$9:$P$38*24*שער)), SUMPRODUCT((שעות_עבודה7[[#This Row],[שם העבודה]]=$O$9:$O$38)*שעות_עבודה7[[#This Row],[שעות]]*($P$9:$P$38*24)))=0,"", IF(VLOOKUP(שעות_עבודה7[[#This Row],[שם העבודה]],טבלה1[],5,FALSE)="דולרים-$", SUMPRODUCT((שעות_עבודה7[[#This Row],[שם העבודה]]=$O$9:$O$38)*שעות_עבודה7[[#This Row],[שעות]]*($P$9:$P$38*24*שער)), SUMPRODUCT((שעות_עבודה7[[#This Row],[שם העבודה]]=$O$9:$O$38)*שעות_עבודה7[[#This Row],[שעות]]*($P$9:$P$38*24)))),"")) -> 
B74: =IF(AND(שעות_עבודה7[[#This Row],[התחלה]]="",שעות_עבודה7[[#This Row],[שם העבודה]]=""),"",ROW(A66)) ->  | C74: =_xlfn.IFS(שעות_עבודה7[[#This Row],[התחלה]]="","",WEEKDAY(שעות_עבודה7[[#This Row],[התחלה]])=1,"ראשון",WEEKDAY(שעות_עבודה7[[#This Row],[התחלה]])=2,"שני",WEEKDAY(שעות_עבודה7[[#This Row],[התחלה]])=3,"שלישי",WEEKDAY(שעות_עבודה7[[#This Row],[התחלה]])=4,"רביעי",WEEKDAY(שעות_עבודה7[[#This Row],[התחלה]])=5,"חמישי",WEEKDAY(שעות_עבודה7[[#This Row],[התחלה]])=6,"שישי",WEEKDAY(שעות_עבודה7[[#This Row],[התחלה]])=7,"מוצ""ש") ->  | D74: =IF(שעות_עבודה7[[#This Row],[התחלה]]="","",שעות_עבודה7[[#This Row],[התחלה]]) ->  | J74: =IF(IF(OR(שעות_עבודה7[[#This Row],[התחלה]]="",שעות_עבודה7[[#This Row],[סיום]]=""), IF(שעות_עבודה7[[#This Row],[הפחתת דקות]]>שעות_עבודה7[[#This Row],[הוספת דקות]],"",שעות_עבודה7[[#This Row],[הוספת דקות]]/1440-שעות_עבודה7[[#This Row],[הפחתת דקות]]/1440), IF(שעות_עבודה7[[#This Row],[סיום]]-שעות_עבודה7[[#This Row],[התחלה]]+שעות_עבודה7[[#This Row],[הוספת דקות]]/1440<שעות_עבודה7[[#This Row],[הפחתת דקות]]/1440,"", SUM(שעות_עבודה7[[#This Row],[סיום]]-שעות_עבודה7[[#This Row],[התחלה]],שעות_עבודה7[[#This Row],[הוספת דקות]]/1440,-שעות_עבודה7[[#This Row],[הפחתת דקות]]/1440)))=0,"", IF(OR(שעות_עבודה7[[#This Row],[התחלה]]="",שעות_עבודה7[[#This Row],[סיום]]=""), IF(שעות_עבודה7[[#This Row],[הפחתת דקות]]>שעות_עבודה7[[#This Row],[הוספת דקות]],"",שעות_עבודה7[[#This Row],[הוספת דקות]]/1440-שעות_עבודה7[[#This Row],[הפחתת דקות]]/1440), IF(שעות_עבודה7[[#This Row],[סיום]]-שעות_עבודה7[[#This Row],[התחלה]]+שעות_עבודה7[[#This Row],[הוספת דקות]]/1440<שעות_עבודה7[[#This Row],[הפחתת דקות]]/1440,"", SUM(שעות_עבודה7[[#This Row],[סיום]]-שעות_עבודה7[[#This Row],[התחלה]],שעות_עבודה7[[#This Row],[הוספת דקות]]/1440,-שעות_עבודה7[[#This Row],[הפחתת דקות]]/1440)))) ->  | K74: =IF(שעות_עבודה7[[#This Row],[שעות]]="","", IFERROR(IF(IF(VLOOKUP(שעות_עבודה7[[#This Row],[שם העבודה]],טבלה1[],5,FALSE)="דולרים-$", SUMPRODUCT((שעות_עבודה7[[#This Row],[שם העבודה]]=$O$9:$O$38)*שעות_עבודה7[[#This Row],[שעות]]*($P$9:$P$38*24*שער)), SUMPRODUCT((שעות_עבודה7[[#This Row],[שם העבודה]]=$O$9:$O$38)*שעות_עבודה7[[#This Row],[שעות]]*($P$9:$P$38*24)))=0,"", IF(VLOOKUP(שעות_עבודה7[[#This Row],[שם העבודה]],טבלה1[],5,FALSE)="דולרים-$", SUMPRODUCT((שעות_עבודה7[[#This Row],[שם העבודה]]=$O$9:$O$38)*שעות_עבודה7[[#This Row],[שעות]]*($P$9:$P$38*24*שער)), SUMPRODUCT((שעות_עבודה7[[#This Row],[שם העבודה]]=$O$9:$O$38)*שעות_עבודה7[[#This Row],[שעות]]*($P$9:$P$38*24)))),"")) -> 
B75: =IF(AND(שעות_עבודה7[[#This Row],[התחלה]]="",שעות_עבודה7[[#This Row],[שם העבודה]]=""),"",ROW(A67)) ->  | C75: =_xlfn.IFS(שעות_עבודה7[[#This Row],[התחלה]]="","",WEEKDAY(שעות_עבודה7[[#This Row],[התחלה]])=1,"ראשון",WEEKDAY(שעות_עבודה7[[#This Row],[התחלה]])=2,"שני",WEEKDAY(שעות_עבודה7[[#This Row],[התחלה]])=3,"שלישי",WEEKDAY(שעות_עבודה7[[#This Row],[התחלה]])=4,"רביעי",WEEKDAY(שעות_עבודה7[[#This Row],[התחלה]])=5,"חמישי",WEEKDAY(שעות_עבודה7[[#This Row],[התחלה]])=6,"שישי",WEEKDAY(שעות_עבודה7[[#This Row],[התחלה]])=7,"מוצ""ש") ->  | D75: =IF(שעות_עבודה7[[#This Row],[התחלה]]="","",שעות_עבודה7[[#This Row],[התחלה]]) ->  | J75: =IF(IF(OR(שעות_עבודה7[[#This Row],[התחלה]]="",שעות_עבודה7[[#This Row],[סיום]]=""), IF(שעות_עבודה7[[#This Row],[הפחתת דקות]]>שעות_עבודה7[[#This Row],[הוספת דקות]],"",שעות_עבודה7[[#This Row],[הוספת דקות]]/1440-שעות_עבודה7[[#This Row],[הפחתת דקות]]/1440), IF(שעות_עבודה7[[#This Row],[סיום]]-שעות_עבודה7[[#This Row],[התחלה]]+שעות_עבודה7[[#This Row],[הוספת דקות]]/1440<שעות_עבודה7[[#This Row],[הפחתת דקות]]/1440,"", SUM(שעות_עבודה7[[#This Row],[סיום]]-שעות_עבודה7[[#This Row],[התחלה]],שעות_עבודה7[[#This Row],[הוספת דקות]]/1440,-שעות_עבודה7[[#This Row],[הפחתת דקות]]/1440)))=0,"", IF(OR(שעות_עבודה7[[#This Row],[התחלה]]="",שעות_עבודה7[[#This Row],[סיום]]=""), IF(שעות_עבודה7[[#This Row],[הפחתת דקות]]>שעות_עבודה7[[#This Row],[הוספת דקות]],"",שעות_עבודה7[[#This Row],[הוספת דקות]]/1440-שעות_עבודה7[[#This Row],[הפחתת דקות]]/1440), IF(שעות_עבודה7[[#This Row],[סיום]]-שעות_עבודה7[[#This Row],[התחלה]]+שעות_עבודה7[[#This Row],[הוספת דקות]]/1440<שעות_עבודה7[[#This Row],[הפחתת דקות]]/1440,"", SUM(שעות_עבודה7[[#This Row],[סיום]]-שעות_עבודה7[[#This Row],[התחלה]],שעות_עבודה7[[#This Row],[הוספת דקות]]/1440,-שעות_עבודה7[[#This Row],[הפחתת דקות]]/1440)))) ->  | K75: =IF(שעות_עבודה7[[#This Row],[שעות]]="","", IFERROR(IF(IF(VLOOKUP(שעות_עבודה7[[#This Row],[שם העבודה]],טבלה1[],5,FALSE)="דולרים-$", SUMPRODUCT((שעות_עבודה7[[#This Row],[שם העבודה]]=$O$9:$O$38)*שעות_עבודה7[[#This Row],[שעות]]*($P$9:$P$38*24*שער)), SUMPRODUCT((שעות_עבודה7[[#This Row],[שם העבודה]]=$O$9:$O$38)*שעות_עבודה7[[#This Row],[שעות]]*($P$9:$P$38*24)))=0,"", IF(VLOOKUP(שעות_עבודה7[[#This Row],[שם העבודה]],טבלה1[],5,FALSE)="דולרים-$", SUMPRODUCT((שעות_עבודה7[[#This Row],[שם העבודה]]=$O$9:$O$38)*שעות_עבודה7[[#This Row],[שעות]]*($P$9:$P$38*24*שער)), SUMPRODUCT((שעות_עבודה7[[#This Row],[שם העבודה]]=$O$9:$O$38)*שעות_עבודה7[[#This Row],[שעות]]*($P$9:$P$38*24)))),"")) -> 
B76: =IF(AND(שעות_עבודה7[[#This Row],[התחלה]]="",שעות_עבודה7[[#This Row],[שם העבודה]]=""),"",ROW(A68)) ->  | C76: =_xlfn.IFS(שעות_עבודה7[[#This Row],[התחלה]]="","",WEEKDAY(שעות_עבודה7[[#This Row],[התחלה]])=1,"ראשון",WEEKDAY(שעות_עבודה7[[#This Row],[התחלה]])=2,"שני",WEEKDAY(שעות_עבודה7[[#This Row],[התחלה]])=3,"שלישי",WEEKDAY(שעות_עבודה7[[#This Row],[התחלה]])=4,"רביעי",WEEKDAY(שעות_עבודה7[[#This Row],[התחלה]])=5,"חמישי",WEEKDAY(שעות_עבודה7[[#This Row],[התחלה]])=6,"שישי",WEEKDAY(שעות_עבודה7[[#This Row],[התחלה]])=7,"מוצ""ש") ->  | D76: =IF(שעות_עבודה7[[#This Row],[התחלה]]="","",שעות_עבודה7[[#This Row],[התחלה]]) ->  | J76: =IF(IF(OR(שעות_עבודה7[[#This Row],[התחלה]]="",שעות_עבודה7[[#This Row],[סיום]]=""), IF(שעות_עבודה7[[#This Row],[הפחתת דקות]]>שעות_עבודה7[[#This Row],[הוספת דקות]],"",שעות_עבודה7[[#This Row],[הוספת דקות]]/1440-שעות_עבודה7[[#This Row],[הפחתת דקות]]/1440), IF(שעות_עבודה7[[#This Row],[סיום]]-שעות_עבודה7[[#This Row],[התחלה]]+שעות_עבודה7[[#This Row],[הוספת דקות]]/1440<שעות_עבודה7[[#This Row],[הפחתת דקות]]/1440,"", SUM(שעות_עבודה7[[#This Row],[סיום]]-שעות_עבודה7[[#This Row],[התחלה]],שעות_עבודה7[[#This Row],[הוספת דקות]]/1440,-שעות_עבודה7[[#This Row],[הפחתת דקות]]/1440)))=0,"", IF(OR(שעות_עבודה7[[#This Row],[התחלה]]="",שעות_עבודה7[[#This Row],[סיום]]=""), IF(שעות_עבודה7[[#This Row],[הפחתת דקות]]>שעות_עבודה7[[#This Row],[הוספת דקות]],"",שעות_עבודה7[[#This Row],[הוספת דקות]]/1440-שעות_עבודה7[[#This Row],[הפחתת דקות]]/1440), IF(שעות_עבודה7[[#This Row],[סיום]]-שעות_עבודה7[[#This Row],[התחלה]]+שעות_עבודה7[[#This Row],[הוספת דקות]]/1440<שעות_עבודה7[[#This Row],[הפחתת דקות]]/1440,"", SUM(שעות_עבודה7[[#This Row],[סיום]]-שעות_עבודה7[[#This Row],[התחלה]],שעות_עבודה7[[#This Row],[הוספת דקות]]/1440,-שעות_עבודה7[[#This Row],[הפחתת דקות]]/1440)))) ->  | K76: =IF(שעות_עבודה7[[#This Row],[שעות]]="","", IFERROR(IF(IF(VLOOKUP(שעות_עבודה7[[#This Row],[שם העבודה]],טבלה1[],5,FALSE)="דולרים-$", SUMPRODUCT((שעות_עבודה7[[#This Row],[שם העבודה]]=$O$9:$O$38)*שעות_עבודה7[[#This Row],[שעות]]*($P$9:$P$38*24*שער)), SUMPRODUCT((שעות_עבודה7[[#This Row],[שם העבודה]]=$O$9:$O$38)*שעות_עבודה7[[#This Row],[שעות]]*($P$9:$P$38*24)))=0,"", IF(VLOOKUP(שעות_עבודה7[[#This Row],[שם העבודה]],טבלה1[],5,FALSE)="דולרים-$", SUMPRODUCT((שעות_עבודה7[[#This Row],[שם העבודה]]=$O$9:$O$38)*שעות_עבודה7[[#This Row],[שעות]]*($P$9:$P$38*24*שער)), SUMPRODUCT((שעות_עבודה7[[#This Row],[שם העבודה]]=$O$9:$O$38)*שעות_עבודה7[[#This Row],[שעות]]*($P$9:$P$38*24)))),"")) -> 
B77: =IF(AND(שעות_עבודה7[[#This Row],[התחלה]]="",שעות_עבודה7[[#This Row],[שם העבודה]]=""),"",ROW(A69)) ->  | C77: =_xlfn.IFS(שעות_עבודה7[[#This Row],[התחלה]]="","",WEEKDAY(שעות_עבודה7[[#This Row],[התחלה]])=1,"ראשון",WEEKDAY(שעות_עבודה7[[#This Row],[התחלה]])=2,"שני",WEEKDAY(שעות_עבודה7[[#This Row],[התחלה]])=3,"שלישי",WEEKDAY(שעות_עבודה7[[#This Row],[התחלה]])=4,"רביעי",WEEKDAY(שעות_עבודה7[[#This Row],[התחלה]])=5,"חמישי",WEEKDAY(שעות_עבודה7[[#This Row],[התחלה]])=6,"שישי",WEEKDAY(שעות_עבודה7[[#This Row],[התחלה]])=7,"מוצ""ש") ->  | D77: =IF(שעות_עבודה7[[#This Row],[התחלה]]="","",שעות_עבודה7[[#This Row],[התחלה]]) ->  | J77: =IF(IF(OR(שעות_עבודה7[[#This Row],[התחלה]]="",שעות_עבודה7[[#This Row],[סיום]]=""), IF(שעות_עבודה7[[#This Row],[הפחתת דקות]]>שעות_עבודה7[[#This Row],[הוספת דקות]],"",שעות_עבודה7[[#This Row],[הוספת דקות]]/1440-שעות_עבודה7[[#This Row],[הפחתת דקות]]/1440), IF(שעות_עבודה7[[#This Row],[סיום]]-שעות_עבודה7[[#This Row],[התחלה]]+שעות_עבודה7[[#This Row],[הוספת דקות]]/1440<שעות_עבודה7[[#This Row],[הפחתת דקות]]/1440,"", SUM(שעות_עבודה7[[#This Row],[סיום]]-שעות_עבודה7[[#This Row],[התחלה]],שעות_עבודה7[[#This Row],[הוספת דקות]]/1440,-שעות_עבודה7[[#This Row],[הפחתת דקות]]/1440)))=0,"", IF(OR(שעות_עבודה7[[#This Row],[התחלה]]="",שעות_עבודה7[[#This Row],[סיום]]=""), IF(שעות_עבודה7[[#This Row],[הפחתת דקות]]>שעות_עבודה7[[#This Row],[הוספת דקות]],"",שעות_עבודה7[[#This Row],[הוספת דקות]]/1440-שעות_עבודה7[[#This Row],[הפחתת דקות]]/1440), IF(שעות_עבודה7[[#This Row],[סיום]]-שעות_עבודה7[[#This Row],[התחלה]]+שעות_עבודה7[[#This Row],[הוספת דקות]]/1440<שעות_עבודה7[[#This Row],[הפחתת דקות]]/1440,"", SUM(שעות_עבודה7[[#This Row],[סיום]]-שעות_עבודה7[[#This Row],[התחלה]],שעות_עבודה7[[#This Row],[הוספת דקות]]/1440,-שעות_עבודה7[[#This Row],[הפחתת דקות]]/1440)))) ->  | K77: =IF(שעות_עבודה7[[#This Row],[שעות]]="","", IFERROR(IF(IF(VLOOKUP(שעות_עבודה7[[#This Row],[שם העבודה]],טבלה1[],5,FALSE)="דולרים-$", SUMPRODUCT((שעות_עבודה7[[#This Row],[שם העבודה]]=$O$9:$O$38)*שעות_עבודה7[[#This Row],[שעות]]*($P$9:$P$38*24*שער)), SUMPRODUCT((שעות_עבודה7[[#This Row],[שם העבודה]]=$O$9:$O$38)*שעות_עבודה7[[#This Row],[שעות]]*($P$9:$P$38*24)))=0,"", IF(VLOOKUP(שעות_עבודה7[[#This Row],[שם העבודה]],טבלה1[],5,FALSE)="דולרים-$", SUMPRODUCT((שעות_עבודה7[[#This Row],[שם העבודה]]=$O$9:$O$38)*שעות_עבודה7[[#This Row],[שעות]]*($P$9:$P$38*24*שער)), SUMPRODUCT((שעות_עבודה7[[#This Row],[שם העבודה]]=$O$9:$O$38)*שעות_עבודה7[[#This Row],[שעות]]*($P$9:$P$38*24)))),"")) -> 
B78: =IF(AND(שעות_עבודה7[[#This Row],[התחלה]]="",שעות_עבודה7[[#This Row],[שם העבודה]]=""),"",ROW(A70)) ->  | C78: =_xlfn.IFS(שעות_עבודה7[[#This Row],[התחלה]]="","",WEEKDAY(שעות_עבודה7[[#This Row],[התחלה]])=1,"ראשון",WEEKDAY(שעות_עבודה7[[#This Row],[התחלה]])=2,"שני",WEEKDAY(שעות_עבודה7[[#This Row],[התחלה]])=3,"שלישי",WEEKDAY(שעות_עבודה7[[#This Row],[התחלה]])=4,"רביעי",WEEKDAY(שעות_עבודה7[[#This Row],[התחלה]])=5,"חמישי",WEEKDAY(שעות_עבודה7[[#This Row],[התחלה]])=6,"שישי",WEEKDAY(שעות_עבודה7[[#This Row],[התחלה]])=7,"מוצ""ש") ->  | D78: =IF(שעות_עבודה7[[#This Row],[התחלה]]="","",שעות_עבודה7[[#This Row],[התחלה]]) ->  | J78: =IF(IF(OR(שעות_עבודה7[[#This Row],[התחלה]]="",שעות_עבודה7[[#This Row],[סיום]]=""), IF(שעות_עבודה7[[#This Row],[הפחתת דקות]]>שעות_עבודה7[[#This Row],[הוספת דקות]],"",שעות_עבודה7[[#This Row],[הוספת דקות]]/1440-שעות_עבודה7[[#This Row],[הפחתת דקות]]/1440), IF(שעות_עבודה7[[#This Row],[סיום]]-שעות_עבודה7[[#This Row],[התחלה]]+שעות_עבודה7[[#This Row],[הוספת דקות]]/1440<שעות_עבודה7[[#This Row],[הפחתת דקות]]/1440,"", SUM(שעות_עבודה7[[#This Row],[סיום]]-שעות_עבודה7[[#This Row],[התחלה]],שעות_עבודה7[[#This Row],[הוספת דקות]]/1440,-שעות_עבודה7[[#This Row],[הפחתת דקות]]/1440)))=0,"", IF(OR(שעות_עבודה7[[#This Row],[התחלה]]="",שעות_עבודה7[[#This Row],[סיום]]=""), IF(שעות_עבודה7[[#This Row],[הפחתת דקות]]>שעות_עבודה7[[#This Row],[הוספת דקות]],"",שעות_עבודה7[[#This Row],[הוספת דקות]]/1440-שעות_עבודה7[[#This Row],[הפחתת דקות]]/1440), IF(שעות_עבודה7[[#This Row],[סיום]]-שעות_עבודה7[[#This Row],[התחלה]]+שעות_עבודה7[[#This Row],[הוספת דקות]]/1440<שעות_עבודה7[[#This Row],[הפחתת דקות]]/1440,"", SUM(שעות_עבודה7[[#This Row],[סיום]]-שעות_עבודה7[[#This Row],[התחלה]],שעות_עבודה7[[#This Row],[הוספת דקות]]/1440,-שעות_עבודה7[[#This Row],[הפחתת דקות]]/1440)))) ->  | K78: =IF(שעות_עבודה7[[#This Row],[שעות]]="","", IFERROR(IF(IF(VLOOKUP(שעות_עבודה7[[#This Row],[שם העבודה]],טבלה1[],5,FALSE)="דולרים-$", SUMPRODUCT((שעות_עבודה7[[#This Row],[שם העבודה]]=$O$9:$O$38)*שעות_עבודה7[[#This Row],[שעות]]*($P$9:$P$38*24*שער)), SUMPRODUCT((שעות_עבודה7[[#This Row],[שם העבודה]]=$O$9:$O$38)*שעות_עבודה7[[#This Row],[שעות]]*($P$9:$P$38*24)))=0,"", IF(VLOOKUP(שעות_עבודה7[[#This Row],[שם העבודה]],טבלה1[],5,FALSE)="דולרים-$", SUMPRODUCT((שעות_עבודה7[[#This Row],[שם העבודה]]=$O$9:$O$38)*שעות_עבודה7[[#This Row],[שעות]]*($P$9:$P$38*24*שער)), SUMPRODUCT((שעות_עבודה7[[#This Row],[שם העבודה]]=$O$9:$O$38)*שעות_עבודה7[[#This Row],[שעות]]*($P$9:$P$38*24)))),"")) -> 
B79: =IF(AND(שעות_עבודה7[[#This Row],[התחלה]]="",שעות_עבודה7[[#This Row],[שם העבודה]]=""),"",ROW(A71)) ->  | C79: =_xlfn.IFS(שעות_עבודה7[[#This Row],[התחלה]]="","",WEEKDAY(שעות_עבודה7[[#This Row],[התחלה]])=1,"ראשון",WEEKDAY(שעות_עבודה7[[#This Row],[התחלה]])=2,"שני",WEEKDAY(שעות_עבודה7[[#This Row],[התחלה]])=3,"שלישי",WEEKDAY(שעות_עבודה7[[#This Row],[התחלה]])=4,"רביעי",WEEKDAY(שעות_עבודה7[[#This Row],[התחלה]])=5,"חמישי",WEEKDAY(שעות_עבודה7[[#This Row],[התחלה]])=6,"שישי",WEEKDAY(שעות_עבודה7[[#This Row],[התחלה]])=7,"מוצ""ש") ->  | D79: =IF(שעות_עבודה7[[#This Row],[התחלה]]="","",שעות_עבודה7[[#This Row],[התחלה]]) ->  | J79: =IF(IF(OR(שעות_עבודה7[[#This Row],[התחלה]]="",שעות_עבודה7[[#This Row],[סיום]]=""), IF(שעות_עבודה7[[#This Row],[הפחתת דקות]]>שעות_עבודה7[[#This Row],[הוספת דקות]],"",שעות_עבודה7[[#This Row],[הוספת דקות]]/1440-שעות_עבודה7[[#This Row],[הפחתת דקות]]/1440), IF(שעות_עבודה7[[#This Row],[סיום]]-שעות_עבודה7[[#This Row],[התחלה]]+שעות_עבודה7[[#This Row],[הוספת דקות]]/1440<שעות_עבודה7[[#This Row],[הפחתת דקות]]/1440,"", SUM(שעות_עבודה7[[#This Row],[סיום]]-שעות_עבודה7[[#This Row],[התחלה]],שעות_עבודה7[[#This Row],[הוספת דקות]]/1440,-שעות_עבודה7[[#This Row],[הפחתת דקות]]/1440)))=0,"", IF(OR(שעות_עבודה7[[#This Row],[התחלה]]="",שעות_עבודה7[[#This Row],[סיום]]=""), IF(שעות_עבודה7[[#This Row],[הפחתת דקות]]>שעות_עבודה7[[#This Row],[הוספת דקות]],"",שעות_עבודה7[[#This Row],[הוספת דקות]]/1440-שעות_עבודה7[[#This Row],[הפחתת דקות]]/1440), IF(שעות_עבודה7[[#This Row],[סיום]]-שעות_עבודה7[[#This Row],[התחלה]]+שעות_עבודה7[[#This Row],[הוספת דקות]]/1440<שעות_עבודה7[[#This Row],[הפחתת דקות]]/1440,"", SUM(שעות_עבודה7[[#This Row],[סיום]]-שעות_עבודה7[[#This Row],[התחלה]],שעות_עבודה7[[#This Row],[הוספת דקות]]/1440,-שעות_עבודה7[[#This Row],[הפחתת דקות]]/1440)))) ->  | K79: =IF(שעות_עבודה7[[#This Row],[שעות]]="","", IFERROR(IF(IF(VLOOKUP(שעות_עבודה7[[#This Row],[שם העבודה]],טבלה1[],5,FALSE)="דולרים-$", SUMPRODUCT((שעות_עבודה7[[#This Row],[שם העבודה]]=$O$9:$O$38)*שעות_עבודה7[[#This Row],[שעות]]*($P$9:$P$38*24*שער)), SUMPRODUCT((שעות_עבודה7[[#This Row],[שם העבודה]]=$O$9:$O$38)*שעות_עבודה7[[#This Row],[שעות]]*($P$9:$P$38*24)))=0,"", IF(VLOOKUP(שעות_עבודה7[[#This Row],[שם העבודה]],טבלה1[],5,FALSE)="דולרים-$", SUMPRODUCT((שעות_עבודה7[[#This Row],[שם העבודה]]=$O$9:$O$38)*שעות_עבודה7[[#This Row],[שעות]]*($P$9:$P$38*24*שער)), SUMPRODUCT((שעות_עבודה7[[#This Row],[שם העבודה]]=$O$9:$O$38)*שעות_עבודה7[[#This Row],[שעות]]*($P$9:$P$38*24)))),"")) -> 
B80: =IF(AND(שעות_עבודה7[[#This Row],[התחלה]]="",שעות_עבודה7[[#This Row],[שם העבודה]]=""),"",ROW(A72)) ->  | C80: =_xlfn.IFS(שעות_עבודה7[[#This Row],[התחלה]]="","",WEEKDAY(שעות_עבודה7[[#This Row],[התחלה]])=1,"ראשון",WEEKDAY(שעות_עבודה7[[#This Row],[התחלה]])=2,"שני",WEEKDAY(שעות_עבודה7[[#This Row],[התחלה]])=3,"שלישי",WEEKDAY(שעות_עבודה7[[#This Row],[התחלה]])=4,"רביעי",WEEKDAY(שעות_עבודה7[[#This Row],[התחלה]])=5,"חמישי",WEEKDAY(שעות_עבודה7[[#This Row],[התחלה]])=6,"שישי",WEEKDAY(שעות_עבודה7[[#This Row],[התחלה]])=7,"מוצ""ש") ->  | D80: =IF(שעות_עבודה7[[#This Row],[התחלה]]="","",שעות_עבודה7[[#This Row],[התחלה]]) ->  | J80: =IF(IF(OR(שעות_עבודה7[[#This Row],[התחלה]]="",שעות_עבודה7[[#This Row],[סיום]]=""), IF(שעות_עבודה7[[#This Row],[הפחתת דקות]]>שעות_עבודה7[[#This Row],[הוספת דקות]],"",שעות_עבודה7[[#This Row],[הוספת דקות]]/1440-שעות_עבודה7[[#This Row],[הפחתת דקות]]/1440), IF(שעות_עבודה7[[#This Row],[סיום]]-שעות_עבודה7[[#This Row],[התחלה]]+שעות_עבודה7[[#This Row],[הוספת דקות]]/1440<שעות_עבודה7[[#This Row],[הפחתת דקות]]/1440,"", SUM(שעות_עבודה7[[#This Row],[סיום]]-שעות_עבודה7[[#This Row],[התחלה]],שעות_עבודה7[[#This Row],[הוספת דקות]]/1440,-שעות_עבודה7[[#This Row],[הפחתת דקות]]/1440)))=0,"", IF(OR(שעות_עבודה7[[#This Row],[התחלה]]="",שעות_עבודה7[[#This Row],[סיום]]=""), IF(שעות_עבודה7[[#This Row],[הפחתת דקות]]>שעות_עבודה7[[#This Row],[הוספת דקות]],"",שעות_עבודה7[[#This Row],[הוספת דקות]]/1440-שעות_עבודה7[[#This Row],[הפחתת דקות]]/1440), IF(שעות_עבודה7[[#This Row],[סיום]]-שעות_עבודה7[[#This Row],[התחלה]]+שעות_עבודה7[[#This Row],[הוספת דקות]]/1440<שעות_עבודה7[[#This Row],[הפחתת דקות]]/1440,"", SUM(שעות_עבודה7[[#This Row],[סיום]]-שעות_עבודה7[[#This Row],[התחלה]],שעות_עבודה7[[#This Row],[הוספת דקות]]/1440,-שעות_עבודה7[[#This Row],[הפחתת דקות]]/1440)))) ->  | K80: =IF(שעות_עבודה7[[#This Row],[שעות]]="","", IFERROR(IF(IF(VLOOKUP(שעות_עבודה7[[#This Row],[שם העבודה]],טבלה1[],5,FALSE)="דולרים-$", SUMPRODUCT((שעות_עבודה7[[#This Row],[שם העבודה]]=$O$9:$O$38)*שעות_עבודה7[[#This Row],[שעות]]*($P$9:$P$38*24*שער)), SUMPRODUCT((שעות_עבודה7[[#This Row],[שם העבודה]]=$O$9:$O$38)*שעות_עבודה7[[#This Row],[שעות]]*($P$9:$P$38*24)))=0,"", IF(VLOOKUP(שעות_עבודה7[[#This Row],[שם העבודה]],טבלה1[],5,FALSE)="דולרים-$", SUMPRODUCT((שעות_עבודה7[[#This Row],[שם העבודה]]=$O$9:$O$38)*שעות_עבודה7[[#This Row],[שעות]]*($P$9:$P$38*24*שער)), SUMPRODUCT((שעות_עבודה7[[#This Row],[שם העבודה]]=$O$9:$O$38)*שעות_עבודה7[[#This Row],[שעות]]*($P$9:$P$38*24)))),"")) -> 
B81: =IF(AND(שעות_עבודה7[[#This Row],[התחלה]]="",שעות_עבודה7[[#This Row],[שם העבודה]]=""),"",ROW(A73)) ->  | C81: =_xlfn.IFS(שעות_עבודה7[[#This Row],[התחלה]]="","",WEEKDAY(שעות_עבודה7[[#This Row],[התחלה]])=1,"ראשון",WEEKDAY(שעות_עבודה7[[#This Row],[התחלה]])=2,"שני",WEEKDAY(שעות_עבודה7[[#This Row],[התחלה]])=3,"שלישי",WEEKDAY(שעות_עבודה7[[#This Row],[התחלה]])=4,"רביעי",WEEKDAY(שעות_עבודה7[[#This Row],[התחלה]])=5,"חמישי",WEEKDAY(שעות_עבודה7[[#This Row],[התחלה]])=6,"שישי",WEEKDAY(שעות_עבודה7[[#This Row],[התחלה]])=7,"מוצ""ש") ->  | D81: =IF(שעות_עבודה7[[#This Row],[התחלה]]="","",שעות_עבודה7[[#This Row],[התחלה]]) ->  | J81: =IF(IF(OR(שעות_עבודה7[[#This Row],[התחלה]]="",שעות_עבודה7[[#This Row],[סיום]]=""), IF(שעות_עבודה7[[#This Row],[הפחתת דקות]]>שעות_עבודה7[[#This Row],[הוספת דקות]],"",שעות_עבודה7[[#This Row],[הוספת דקות]]/1440-שעות_עבודה7[[#This Row],[הפחתת דקות]]/1440), IF(שעות_עבודה7[[#This Row],[סיום]]-שעות_עבודה7[[#This Row],[התחלה]]+שעות_עבודה7[[#This Row],[הוספת דקות]]/1440<שעות_עבודה7[[#This Row],[הפחתת דקות]]/1440,"", SUM(שעות_עבודה7[[#This Row],[סיום]]-שעות_עבודה7[[#This Row],[התחלה]],שעות_עבודה7[[#This Row],[הוספת דקות]]/1440,-שעות_עבודה7[[#This Row],[הפחתת דקות]]/1440)))=0,"", IF(OR(שעות_עבודה7[[#This Row],[התחלה]]="",שעות_עבודה7[[#This Row],[סיום]]=""), IF(שעות_עבודה7[[#This Row],[הפחתת דקות]]>שעות_עבודה7[[#This Row],[הוספת דקות]],"",שעות_עבודה7[[#This Row],[הוספת דקות]]/1440-שעות_עבודה7[[#This Row],[הפחתת דקות]]/1440), IF(שעות_עבודה7[[#This Row],[סיום]]-שעות_עבודה7[[#This Row],[התחלה]]+שעות_עבודה7[[#This Row],[הוספת דקות]]/1440<שעות_עבודה7[[#This Row],[הפחתת דקות]]/1440,"", SUM(שעות_עבודה7[[#This Row],[סיום]]-שעות_עבודה7[[#This Row],[התחלה]],שעות_עבודה7[[#This Row],[הוספת דקות]]/1440,-שעות_עבודה7[[#This Row],[הפחתת דקות]]/1440)))) ->  | K81: =IF(שעות_עבודה7[[#This Row],[שעות]]="","", IFERROR(IF(IF(VLOOKUP(שעות_עבודה7[[#This Row],[שם העבודה]],טבלה1[],5,FALSE)="דולרים-$", SUMPRODUCT((שעות_עבודה7[[#This Row],[שם העבודה]]=$O$9:$O$38)*שעות_עבודה7[[#This Row],[שעות]]*($P$9:$P$38*24*שער)), SUMPRODUCT((שעות_עבודה7[[#This Row],[שם העבודה]]=$O$9:$O$38)*שעות_עבודה7[[#This Row],[שעות]]*($P$9:$P$38*24)))=0,"", IF(VLOOKUP(שעות_עבודה7[[#This Row],[שם העבודה]],טבלה1[],5,FALSE)="דולרים-$", SUMPRODUCT((שעות_עבודה7[[#This Row],[שם העבודה]]=$O$9:$O$38)*שעות_עבודה7[[#This Row],[שעות]]*($P$9:$P$38*24*שער)), SUMPRODUCT((שעות_עבודה7[[#This Row],[שם העבודה]]=$O$9:$O$38)*שעות_עבודה7[[#This Row],[שעות]]*($P$9:$P$38*24)))),"")) -> 
B82: =IF(AND(שעות_עבודה7[[#This Row],[התחלה]]="",שעות_עבודה7[[#This Row],[שם העבודה]]=""),"",ROW(A74)) ->  | C82: =_xlfn.IFS(שעות_עבודה7[[#This Row],[התחלה]]="","",WEEKDAY(שעות_עבודה7[[#This Row],[התחלה]])=1,"ראשון",WEEKDAY(שעות_עבודה7[[#This Row],[התחלה]])=2,"שני",WEEKDAY(שעות_עבודה7[[#This Row],[התחלה]])=3,"שלישי",WEEKDAY(שעות_עבודה7[[#This Row],[התחלה]])=4,"רביעי",WEEKDAY(שעות_עבודה7[[#This Row],[התחלה]])=5,"חמישי",WEEKDAY(שעות_עבודה7[[#This Row],[התחלה]])=6,"שישי",WEEKDAY(שעות_עבודה7[[#This Row],[התחלה]])=7,"מוצ""ש") ->  | D82: =IF(שעות_עבודה7[[#This Row],[התחלה]]="","",שעות_עבודה7[[#This Row],[התחלה]]) ->  | J82: =IF(IF(OR(שעות_עבודה7[[#This Row],[התחלה]]="",שעות_עבודה7[[#This Row],[סיום]]=""), IF(שעות_עבודה7[[#This Row],[הפחתת דקות]]>שעות_עבודה7[[#This Row],[הוספת דקות]],"",שעות_עבודה7[[#This Row],[הוספת דקות]]/1440-שעות_עבודה7[[#This Row],[הפחתת דקות]]/1440), IF(שעות_עבודה7[[#This Row],[סיום]]-שעות_עבודה7[[#This Row],[התחלה]]+שעות_עבודה7[[#This Row],[הוספת דקות]]/1440<שעות_עבודה7[[#This Row],[הפחתת דקות]]/1440,"", SUM(שעות_עבודה7[[#This Row],[סיום]]-שעות_עבודה7[[#This Row],[התחלה]],שעות_עבודה7[[#This Row],[הוספת דקות]]/1440,-שעות_עבודה7[[#This Row],[הפחתת דקות]]/1440)))=0,"", IF(OR(שעות_עבודה7[[#This Row],[התחלה]]="",שעות_עבודה7[[#This Row],[סיום]]=""), IF(שעות_עבודה7[[#This Row],[הפחתת דקות]]>שעות_עבודה7[[#This Row],[הוספת דקות]],"",שעות_עבודה7[[#This Row],[הוספת דקות]]/1440-שעות_עבודה7[[#This Row],[הפחתת דקות]]/1440), IF(שעות_עבודה7[[#This Row],[סיום]]-שעות_עבודה7[[#This Row],[התחלה]]+שעות_עבודה7[[#This Row],[הוספת דקות]]/1440<שעות_עבודה7[[#This Row],[הפחתת דקות]]/1440,"", SUM(שעות_עבודה7[[#This Row],[סיום]]-שעות_עבודה7[[#This Row],[התחלה]],שעות_עבודה7[[#This Row],[הוספת דקות]]/1440,-שעות_עבודה7[[#This Row],[הפחתת דקות]]/1440)))) ->  | K82: =IF(שעות_עבודה7[[#This Row],[שעות]]="","", IFERROR(IF(IF(VLOOKUP(שעות_עבודה7[[#This Row],[שם העבודה]],טבלה1[],5,FALSE)="דולרים-$", SUMPRODUCT((שעות_עבודה7[[#This Row],[שם העבודה]]=$O$9:$O$38)*שעות_עבודה7[[#This Row],[שעות]]*($P$9:$P$38*24*שער)), SUMPRODUCT((שעות_עבודה7[[#This Row],[שם העבודה]]=$O$9:$O$38)*שעות_עבודה7[[#This Row],[שעות]]*($P$9:$P$38*24)))=0,"", IF(VLOOKUP(שעות_עבודה7[[#This Row],[שם העבודה]],טבלה1[],5,FALSE)="דולרים-$", SUMPRODUCT((שעות_עבודה7[[#This Row],[שם העבודה]]=$O$9:$O$38)*שעות_עבודה7[[#This Row],[שעות]]*($P$9:$P$38*24*שער)), SUMPRODUCT((שעות_עבודה7[[#This Row],[שם העבודה]]=$O$9:$O$38)*שעות_עבודה7[[#This Row],[שעות]]*($P$9:$P$38*24)))),"")) -> 
B83: =IF(AND(שעות_עבודה7[[#This Row],[התחלה]]="",שעות_עבודה7[[#This Row],[שם העבודה]]=""),"",ROW(A75)) ->  | C83: =_xlfn.IFS(שעות_עבודה7[[#This Row],[התחלה]]="","",WEEKDAY(שעות_עבודה7[[#This Row],[התחלה]])=1,"ראשון",WEEKDAY(שעות_עבודה7[[#This Row],[התחלה]])=2,"שני",WEEKDAY(שעות_עבודה7[[#This Row],[התחלה]])=3,"שלישי",WEEKDAY(שעות_עבודה7[[#This Row],[התחלה]])=4,"רביעי",WEEKDAY(שעות_עבודה7[[#This Row],[התחלה]])=5,"חמישי",WEEKDAY(שעות_עבודה7[[#This Row],[התחלה]])=6,"שישי",WEEKDAY(שעות_עבודה7[[#This Row],[התחלה]])=7,"מוצ""ש") ->  | D83: =IF(שעות_עבודה7[[#This Row],[התחלה]]="","",שעות_עבודה7[[#This Row],[התחלה]]) ->  | J83: =IF(IF(OR(שעות_עבודה7[[#This Row],[התחלה]]="",שעות_עבודה7[[#This Row],[סיום]]=""), IF(שעות_עבודה7[[#This Row],[הפחתת דקות]]>שעות_עבודה7[[#This Row],[הוספת דקות]],"",שעות_עבודה7[[#This Row],[הוספת דקות]]/1440-שעות_עבודה7[[#This Row],[הפחתת דקות]]/1440), IF(שעות_עבודה7[[#This Row],[סיום]]-שעות_עבודה7[[#This Row],[התחלה]]+שעות_עבודה7[[#This Row],[הוספת דקות]]/1440<שעות_עבודה7[[#This Row],[הפחתת דקות]]/1440,"", SUM(שעות_עבודה7[[#This Row],[סיום]]-שעות_עבודה7[[#This Row],[התחלה]],שעות_עבודה7[[#This Row],[הוספת דקות]]/1440,-שעות_עבודה7[[#This Row],[הפחתת דקות]]/1440)))=0,"", IF(OR(שעות_עבודה7[[#This Row],[התחלה]]="",שעות_עבודה7[[#This Row],[סיום]]=""), IF(שעות_עבודה7[[#This Row],[הפחתת דקות]]>שעות_עבודה7[[#This Row],[הוספת דקות]],"",שעות_עבודה7[[#This Row],[הוספת דקות]]/1440-שעות_עבודה7[[#This Row],[הפחתת דקות]]/1440), IF(שעות_עבודה7[[#This Row],[סיום]]-שעות_עבודה7[[#This Row],[התחלה]]+שעות_עבודה7[[#This Row],[הוספת דקות]]/1440<שעות_עבודה7[[#This Row],[הפחתת דקות]]/1440,"", SUM(שעות_עבודה7[[#This Row],[סיום]]-שעות_עבודה7[[#This Row],[התחלה]],שעות_עבודה7[[#This Row],[הוספת דקות]]/1440,-שעות_עבודה7[[#This Row],[הפחתת דקות]]/1440)))) ->  | K83: =IF(שעות_עבודה7[[#This Row],[שעות]]="","", IFERROR(IF(IF(VLOOKUP(שעות_עבודה7[[#This Row],[שם העבודה]],טבלה1[],5,FALSE)="דולרים-$", SUMPRODUCT((שעות_עבודה7[[#This Row],[שם העבודה]]=$O$9:$O$38)*שעות_עבודה7[[#This Row],[שעות]]*($P$9:$P$38*24*שער)), SUMPRODUCT((שעות_עבודה7[[#This Row],[שם העבודה]]=$O$9:$O$38)*שעות_עבודה7[[#This Row],[שעות]]*($P$9:$P$38*24)))=0,"", IF(VLOOKUP(שעות_עבודה7[[#This Row],[שם העבודה]],טבלה1[],5,FALSE)="דולרים-$", SUMPRODUCT((שעות_עבודה7[[#This Row],[שם העבודה]]=$O$9:$O$38)*שעות_עבודה7[[#This Row],[שעות]]*($P$9:$P$38*24*שער)), SUMPRODUCT((שעות_עבודה7[[#This Row],[שם העבודה]]=$O$9:$O$38)*שעות_עבודה7[[#This Row],[שעות]]*($P$9:$P$38*24)))),"")) -> 
B84: =IF(AND(שעות_עבודה7[[#This Row],[התחלה]]="",שעות_עבודה7[[#This Row],[שם העבודה]]=""),"",ROW(A76)) ->  | C84: =_xlfn.IFS(שעות_עבודה7[[#This Row],[התחלה]]="","",WEEKDAY(שעות_עבודה7[[#This Row],[התחלה]])=1,"ראשון",WEEKDAY(שעות_עבודה7[[#This Row],[התחלה]])=2,"שני",WEEKDAY(שעות_עבודה7[[#This Row],[התחלה]])=3,"שלישי",WEEKDAY(שעות_עבודה7[[#This Row],[התחלה]])=4,"רביעי",WEEKDAY(שעות_עבודה7[[#This Row],[התחלה]])=5,"חמישי",WEEKDAY(שעות_עבודה7[[#This Row],[התחלה]])=6,"שישי",WEEKDAY(שעות_עבודה7[[#This Row],[התחלה]])=7,"מוצ""ש") ->  | D84: =IF(שעות_עבודה7[[#This Row],[התחלה]]="","",שעות_עבודה7[[#This Row],[התחלה]]) ->  | J84: =IF(IF(OR(שעות_עבודה7[[#This Row],[התחלה]]="",שעות_עבודה7[[#This Row],[סיום]]=""), IF(שעות_עבודה7[[#This Row],[הפחתת דקות]]>שעות_עבודה7[[#This Row],[הוספת דקות]],"",שעות_עבודה7[[#This Row],[הוספת דקות]]/1440-שעות_עבודה7[[#This Row],[הפחתת דקות]]/1440), IF(שעות_עבודה7[[#This Row],[סיום]]-שעות_עבודה7[[#This Row],[התחלה]]+שעות_עבודה7[[#This Row],[הוספת דקות]]/1440<שעות_עבודה7[[#This Row],[הפחתת דקות]]/1440,"", SUM(שעות_עבודה7[[#This Row],[סיום]]-שעות_עבודה7[[#This Row],[התחלה]],שעות_עבודה7[[#This Row],[הוספת דקות]]/1440,-שעות_עבודה7[[#This Row],[הפחתת דקות]]/1440)))=0,"", IF(OR(שעות_עבודה7[[#This Row],[התחלה]]="",שעות_עבודה7[[#This Row],[סיום]]=""), IF(שעות_עבודה7[[#This Row],[הפחתת דקות]]>שעות_עבודה7[[#This Row],[הוספת דקות]],"",שעות_עבודה7[[#This Row],[הוספת דקות]]/1440-שעות_עבודה7[[#This Row],[הפחתת דקות]]/1440), IF(שעות_עבודה7[[#This Row],[סיום]]-שעות_עבודה7[[#This Row],[התחלה]]+שעות_עבודה7[[#This Row],[הוספת דקות]]/1440<שעות_עבודה7[[#This Row],[הפחתת דקות]]/1440,"", SUM(שעות_עבודה7[[#This Row],[סיום]]-שעות_עבודה7[[#This Row],[התחלה]],שעות_עבודה7[[#This Row],[הוספת דקות]]/1440,-שעות_עבודה7[[#This Row],[הפחתת דקות]]/1440)))) ->  | K84: =IF(שעות_עבודה7[[#This Row],[שעות]]="","", IFERROR(IF(IF(VLOOKUP(שעות_עבודה7[[#This Row],[שם העבודה]],טבלה1[],5,FALSE)="דולרים-$", SUMPRODUCT((שעות_עבודה7[[#This Row],[שם העבודה]]=$O$9:$O$38)*שעות_עבודה7[[#This Row],[שעות]]*($P$9:$P$38*24*שער)), SUMPRODUCT((שעות_עבודה7[[#This Row],[שם העבודה]]=$O$9:$O$38)*שעות_עבודה7[[#This Row],[שעות]]*($P$9:$P$38*24)))=0,"", IF(VLOOKUP(שעות_עבודה7[[#This Row],[שם העבודה]],טבלה1[],5,FALSE)="דולרים-$", SUMPRODUCT((שעות_עבודה7[[#This Row],[שם העבודה]]=$O$9:$O$38)*שעות_עבודה7[[#This Row],[שעות]]*($P$9:$P$38*24*שער)), SUMPRODUCT((שעות_עבודה7[[#This Row],[שם העבודה]]=$O$9:$O$38)*שעות_עבודה7[[#This Row],[שעות]]*($P$9:$P$38*24)))),"")) -> 
B85: =IF(AND(שעות_עבודה7[[#This Row],[התחלה]]="",שעות_עבודה7[[#This Row],[שם העבודה]]=""),"",ROW(A77)) ->  | C85: =_xlfn.IFS(שעות_עבודה7[[#This Row],[התחלה]]="","",WEEKDAY(שעות_עבודה7[[#This Row],[התחלה]])=1,"ראשון",WEEKDAY(שעות_עבודה7[[#This Row],[התחלה]])=2,"שני",WEEKDAY(שעות_עבודה7[[#This Row],[התחלה]])=3,"שלישי",WEEKDAY(שעות_עבודה7[[#This Row],[התחלה]])=4,"רביעי",WEEKDAY(שעות_עבודה7[[#This Row],[התחלה]])=5,"חמישי",WEEKDAY(שעות_עבודה7[[#This Row],[התחלה]])=6,"שישי",WEEKDAY(שעות_עבודה7[[#This Row],[התחלה]])=7,"מוצ""ש") ->  | D85: =IF(שעות_עבודה7[[#This Row],[התחלה]]="","",שעות_עבודה7[[#This Row],[התחלה]]) ->  | J85: =IF(IF(OR(שעות_עבודה7[[#This Row],[התחלה]]="",שעות_עבודה7[[#This Row],[סיום]]=""), IF(שעות_עבודה7[[#This Row],[הפחתת דקות]]>שעות_עבודה7[[#This Row],[הוספת דקות]],"",שעות_עבודה7[[#This Row],[הוספת דקות]]/1440-שעות_עבודה7[[#This Row],[הפחתת דקות]]/1440), IF(שעות_עבודה7[[#This Row],[סיום]]-שעות_עבודה7[[#This Row],[התחלה]]+שעות_עבודה7[[#This Row],[הוספת דקות]]/1440<שעות_עבודה7[[#This Row],[הפחתת דקות]]/1440,"", SUM(שעות_עבודה7[[#This Row],[סיום]]-שעות_עבודה7[[#This Row],[התחלה]],שעות_עבודה7[[#This Row],[הוספת דקות]]/1440,-שעות_עבודה7[[#This Row],[הפחתת דקות]]/1440)))=0,"", IF(OR(שעות_עבודה7[[#This Row],[התחלה]]="",שעות_עבודה7[[#This Row],[סיום]]=""), IF(שעות_עבודה7[[#This Row],[הפחתת דקות]]>שעות_עבודה7[[#This Row],[הוספת דקות]],"",שעות_עבודה7[[#This Row],[הוספת דקות]]/1440-שעות_עבודה7[[#This Row],[הפחתת דקות]]/1440), IF(שעות_עבודה7[[#This Row],[סיום]]-שעות_עבודה7[[#This Row],[התחלה]]+שעות_עבודה7[[#This Row],[הוספת דקות]]/1440<שעות_עבודה7[[#This Row],[הפחתת דקות]]/1440,"", SUM(שעות_עבודה7[[#This Row],[סיום]]-שעות_עבודה7[[#This Row],[התחלה]],שעות_עבודה7[[#This Row],[הוספת דקות]]/1440,-שעות_עבודה7[[#This Row],[הפחתת דקות]]/1440)))) ->  | K85: =IF(שעות_עבודה7[[#This Row],[שעות]]="","", IFERROR(IF(IF(VLOOKUP(שעות_עבודה7[[#This Row],[שם העבודה]],טבלה1[],5,FALSE)="דולרים-$", SUMPRODUCT((שעות_עבודה7[[#This Row],[שם העבודה]]=$O$9:$O$38)*שעות_עבודה7[[#This Row],[שעות]]*($P$9:$P$38*24*שער)), SUMPRODUCT((שעות_עבודה7[[#This Row],[שם העבודה]]=$O$9:$O$38)*שעות_עבודה7[[#This Row],[שעות]]*($P$9:$P$38*24)))=0,"", IF(VLOOKUP(שעות_עבודה7[[#This Row],[שם העבודה]],טבלה1[],5,FALSE)="דולרים-$", SUMPRODUCT((שעות_עבודה7[[#This Row],[שם העבודה]]=$O$9:$O$38)*שעות_עבודה7[[#This Row],[שעות]]*($P$9:$P$38*24*שער)), SUMPRODUCT((שעות_עבודה7[[#This Row],[שם העבודה]]=$O$9:$O$38)*שעות_עבודה7[[#This Row],[שעות]]*($P$9:$P$38*24)))),"")) -> 
B86: =IF(AND(שעות_עבודה7[[#This Row],[התחלה]]="",שעות_עבודה7[[#This Row],[שם העבודה]]=""),"",ROW(A78)) ->  | C86: =_xlfn.IFS(שעות_עבודה7[[#This Row],[התחלה]]="","",WEEKDAY(שעות_עבודה7[[#This Row],[התחלה]])=1,"ראשון",WEEKDAY(שעות_עבודה7[[#This Row],[התחלה]])=2,"שני",WEEKDAY(שעות_עבודה7[[#This Row],[התחלה]])=3,"שלישי",WEEKDAY(שעות_עבודה7[[#This Row],[התחלה]])=4,"רביעי",WEEKDAY(שעות_עבודה7[[#This Row],[התחלה]])=5,"חמישי",WEEKDAY(שעות_עבודה7[[#This Row],[התחלה]])=6,"שישי",WEEKDAY(שעות_עבודה7[[#This Row],[התחלה]])=7,"מוצ""ש") ->  | D86: =IF(שעות_עבודה7[[#This Row],[התחלה]]="","",שעות_עבודה7[[#This Row],[התחלה]]) ->  | J86: =IF(IF(OR(שעות_עבודה7[[#This Row],[התחלה]]="",שעות_עבודה7[[#This Row],[סיום]]=""), IF(שעות_עבודה7[[#This Row],[הפחתת דקות]]>שעות_עבודה7[[#This Row],[הוספת דקות]],"",שעות_עבודה7[[#This Row],[הוספת דקות]]/1440-שעות_עבודה7[[#This Row],[הפחתת דקות]]/1440), IF(שעות_עבודה7[[#This Row],[סיום]]-שעות_עבודה7[[#This Row],[התחלה]]+שעות_עבודה7[[#This Row],[הוספת דקות]]/1440<שעות_עבודה7[[#This Row],[הפחתת דקות]]/1440,"", SUM(שעות_עבודה7[[#This Row],[סיום]]-שעות_עבודה7[[#This Row],[התחלה]],שעות_עבודה7[[#This Row],[הוספת דקות]]/1440,-שעות_עבודה7[[#This Row],[הפחתת דקות]]/1440)))=0,"", IF(OR(שעות_עבודה7[[#This Row],[התחלה]]="",שעות_עבודה7[[#This Row],[סיום]]=""), IF(שעות_עבודה7[[#This Row],[הפחתת דקות]]>שעות_עבודה7[[#This Row],[הוספת דקות]],"",שעות_עבודה7[[#This Row],[הוספת דקות]]/1440-שעות_עבודה7[[#This Row],[הפחתת דקות]]/1440), IF(שעות_עבודה7[[#This Row],[סיום]]-שעות_עבודה7[[#This Row],[התחלה]]+שעות_עבודה7[[#This Row],[הוספת דקות]]/1440<שעות_עבודה7[[#This Row],[הפחתת דקות]]/1440,"", SUM(שעות_עבודה7[[#This Row],[סיום]]-שעות_עבודה7[[#This Row],[התחלה]],שעות_עבודה7[[#This Row],[הוספת דקות]]/1440,-שעות_עבודה7[[#This Row],[הפחתת דקות]]/1440)))) ->  | K86: =IF(שעות_עבודה7[[#This Row],[שעות]]="","", IFERROR(IF(IF(VLOOKUP(שעות_עבודה7[[#This Row],[שם העבודה]],טבלה1[],5,FALSE)="דולרים-$", SUMPRODUCT((שעות_עבודה7[[#This Row],[שם העבודה]]=$O$9:$O$38)*שעות_עבודה7[[#This Row],[שעות]]*($P$9:$P$38*24*שער)), SUMPRODUCT((שעות_עבודה7[[#This Row],[שם העבודה]]=$O$9:$O$38)*שעות_עבודה7[[#This Row],[שעות]]*($P$9:$P$38*24)))=0,"", IF(VLOOKUP(שעות_עבודה7[[#This Row],[שם העבודה]],טבלה1[],5,FALSE)="דולרים-$", SUMPRODUCT((שעות_עבודה7[[#This Row],[שם העבודה]]=$O$9:$O$38)*שעות_עבודה7[[#This Row],[שעות]]*($P$9:$P$38*24*שער)), SUMPRODUCT((שעות_עבודה7[[#This Row],[שם העבודה]]=$O$9:$O$38)*שעות_עבודה7[[#This Row],[שעות]]*($P$9:$P$38*24)))),"")) -> 
B87: =IF(AND(שעות_עבודה7[[#This Row],[התחלה]]="",שעות_עבודה7[[#This Row],[שם העבודה]]=""),"",ROW(A79)) ->  | C87: =_xlfn.IFS(שעות_עבודה7[[#This Row],[התחלה]]="","",WEEKDAY(שעות_עבודה7[[#This Row],[התחלה]])=1,"ראשון",WEEKDAY(שעות_עבודה7[[#This Row],[התחלה]])=2,"שני",WEEKDAY(שעות_עבודה7[[#This Row],[התחלה]])=3,"שלישי",WEEKDAY(שעות_עבודה7[[#This Row],[התחלה]])=4,"רביעי",WEEKDAY(שעות_עבודה7[[#This Row],[התחלה]])=5,"חמישי",WEEKDAY(שעות_עבודה7[[#This Row],[התחלה]])=6,"שישי",WEEKDAY(שעות_עבודה7[[#This Row],[התחלה]])=7,"מוצ""ש") ->  | D87: =IF(שעות_עבודה7[[#This Row],[התחלה]]="","",שעות_עבודה7[[#This Row],[התחלה]]) ->  | J87: =IF(IF(OR(שעות_עבודה7[[#This Row],[התחלה]]="",שעות_עבודה7[[#This Row],[סיום]]=""), IF(שעות_עבודה7[[#This Row],[הפחתת דקות]]>שעות_עבודה7[[#This Row],[הוספת דקות]],"",שעות_עבודה7[[#This Row],[הוספת דקות]]/1440-שעות_עבודה7[[#This Row],[הפחתת דקות]]/1440), IF(שעות_עבודה7[[#This Row],[סיום]]-שעות_עבודה7[[#This Row],[התחלה]]+שעות_עבודה7[[#This Row],[הוספת דקות]]/1440<שעות_עבודה7[[#This Row],[הפחתת דקות]]/1440,"", SUM(שעות_עבודה7[[#This Row],[סיום]]-שעות_עבודה7[[#This Row],[התחלה]],שעות_עבודה7[[#This Row],[הוספת דקות]]/1440,-שעות_עבודה7[[#This Row],[הפחתת דקות]]/1440)))=0,"", IF(OR(שעות_עבודה7[[#This Row],[התחלה]]="",שעות_עבודה7[[#This Row],[סיום]]=""), IF(שעות_עבודה7[[#This Row],[הפחתת דקות]]>שעות_עבודה7[[#This Row],[הוספת דקות]],"",שעות_עבודה7[[#This Row],[הוספת דקות]]/1440-שעות_עבודה7[[#This Row],[הפחתת דקות]]/1440), IF(שעות_עבודה7[[#This Row],[סיום]]-שעות_עבודה7[[#This Row],[התחלה]]+שעות_עבודה7[[#This Row],[הוספת דקות]]/1440<שעות_עבודה7[[#This Row],[הפחתת דקות]]/1440,"", SUM(שעות_עבודה7[[#This Row],[סיום]]-שעות_עבודה7[[#This Row],[התחלה]],שעות_עבודה7[[#This Row],[הוספת דקות]]/1440,-שעות_עבודה7[[#This Row],[הפחתת דקות]]/1440)))) ->  | K87: =IF(שעות_עבודה7[[#This Row],[שעות]]="","", IFERROR(IF(IF(VLOOKUP(שעות_עבודה7[[#This Row],[שם העבודה]],טבלה1[],5,FALSE)="דולרים-$", SUMPRODUCT((שעות_עבודה7[[#This Row],[שם העבודה]]=$O$9:$O$38)*שעות_עבודה7[[#This Row],[שעות]]*($P$9:$P$38*24*שער)), SUMPRODUCT((שעות_עבודה7[[#This Row],[שם העבודה]]=$O$9:$O$38)*שעות_עבודה7[[#This Row],[שעות]]*($P$9:$P$38*24)))=0,"", IF(VLOOKUP(שעות_עבודה7[[#This Row],[שם העבודה]],טבלה1[],5,FALSE)="דולרים-$", SUMPRODUCT((שעות_עבודה7[[#This Row],[שם העבודה]]=$O$9:$O$38)*שעות_עבודה7[[#This Row],[שעות]]*($P$9:$P$38*24*שער)), SUMPRODUCT((שעות_עבודה7[[#This Row],[שם העבודה]]=$O$9:$O$38)*שעות_עבודה7[[#This Row],[שעות]]*($P$9:$P$38*24)))),"")) -> 
B88: =IF(AND(שעות_עבודה7[[#This Row],[התחלה]]="",שעות_עבודה7[[#This Row],[שם העבודה]]=""),"",ROW(A80)) ->  | C88: =_xlfn.IFS(שעות_עבודה7[[#This Row],[התחלה]]="","",WEEKDAY(שעות_עבודה7[[#This Row],[התחלה]])=1,"ראשון",WEEKDAY(שעות_עבודה7[[#This Row],[התחלה]])=2,"שני",WEEKDAY(שעות_עבודה7[[#This Row],[התחלה]])=3,"שלישי",WEEKDAY(שעות_עבודה7[[#This Row],[התחלה]])=4,"רביעי",WEEKDAY(שעות_עבודה7[[#This Row],[התחלה]])=5,"חמישי",WEEKDAY(שעות_עבודה7[[#This Row],[התחלה]])=6,"שישי",WEEKDAY(שעות_עבודה7[[#This Row],[התחלה]])=7,"מוצ""ש") ->  | D88: =IF(שעות_עבודה7[[#This Row],[התחלה]]="","",שעות_עבודה7[[#This Row],[התחלה]]) ->  | J88: =IF(IF(OR(שעות_עבודה7[[#This Row],[התחלה]]="",שעות_עבודה7[[#This Row],[סיום]]=""), IF(שעות_עבודה7[[#This Row],[הפחתת דקות]]>שעות_עבודה7[[#This Row],[הוספת דקות]],"",שעות_עבודה7[[#This Row],[הוספת דקות]]/1440-שעות_עבודה7[[#This Row],[הפחתת דקות]]/1440), IF(שעות_עבודה7[[#This Row],[סיום]]-שעות_עבודה7[[#This Row],[התחלה]]+שעות_עבודה7[[#This Row],[הוספת דקות]]/1440<שעות_עבודה7[[#This Row],[הפחתת דקות]]/1440,"", SUM(שעות_עבודה7[[#This Row],[סיום]]-שעות_עבודה7[[#This Row],[התחלה]],שעות_עבודה7[[#This Row],[הוספת דקות]]/1440,-שעות_עבודה7[[#This Row],[הפחתת דקות]]/1440)))=0,"", IF(OR(שעות_עבודה7[[#This Row],[התחלה]]="",שעות_עבודה7[[#This Row],[סיום]]=""), IF(שעות_עבודה7[[#This Row],[הפחתת דקות]]>שעות_עבודה7[[#This Row],[הוספת דקות]],"",שעות_עבודה7[[#This Row],[הוספת דקות]]/1440-שעות_עבודה7[[#This Row],[הפחתת דקות]]/1440), IF(שעות_עבודה7[[#This Row],[סיום]]-שעות_עבודה7[[#This Row],[התחלה]]+שעות_עבודה7[[#This Row],[הוספת דקות]]/1440<שעות_עבודה7[[#This Row],[הפחתת דקות]]/1440,"", SUM(שעות_עבודה7[[#This Row],[סיום]]-שעות_עבודה7[[#This Row],[התחלה]],שעות_עבודה7[[#This Row],[הוספת דקות]]/1440,-שעות_עבודה7[[#This Row],[הפחתת דקות]]/1440)))) ->  | K88: =IF(שעות_עבודה7[[#This Row],[שעות]]="","", IFERROR(IF(IF(VLOOKUP(שעות_עבודה7[[#This Row],[שם העבודה]],טבלה1[],5,FALSE)="דולרים-$", SUMPRODUCT((שעות_עבודה7[[#This Row],[שם העבודה]]=$O$9:$O$38)*שעות_עבודה7[[#This Row],[שעות]]*($P$9:$P$38*24*שער)), SUMPRODUCT((שעות_עבודה7[[#This Row],[שם העבודה]]=$O$9:$O$38)*שעות_עבודה7[[#This Row],[שעות]]*($P$9:$P$38*24)))=0,"", IF(VLOOKUP(שעות_עבודה7[[#This Row],[שם העבודה]],טבלה1[],5,FALSE)="דולרים-$", SUMPRODUCT((שעות_עבודה7[[#This Row],[שם העבודה]]=$O$9:$O$38)*שעות_עבודה7[[#This Row],[שעות]]*($P$9:$P$38*24*שער)), SUMPRODUCT((שעות_עבודה7[[#This Row],[שם העבודה]]=$O$9:$O$38)*שעות_עבודה7[[#This Row],[שעות]]*($P$9:$P$38*24)))),"")) -> 
B89: =IF(AND(שעות_עבודה7[[#This Row],[התחלה]]="",שעות_עבודה7[[#This Row],[שם העבודה]]=""),"",ROW(A81)) ->  | C89: =_xlfn.IFS(שעות_עבודה7[[#This Row],[התחלה]]="","",WEEKDAY(שעות_עבודה7[[#This Row],[התחלה]])=1,"ראשון",WEEKDAY(שעות_עבודה7[[#This Row],[התחלה]])=2,"שני",WEEKDAY(שעות_עבודה7[[#This Row],[התחלה]])=3,"שלישי",WEEKDAY(שעות_עבודה7[[#This Row],[התחלה]])=4,"רביעי",WEEKDAY(שעות_עבודה7[[#This Row],[התחלה]])=5,"חמישי",WEEKDAY(שעות_עבודה7[[#This Row],[התחלה]])=6,"שישי",WEEKDAY(שעות_עבודה7[[#This Row],[התחלה]])=7,"מוצ""ש") ->  | D89: =IF(שעות_עבודה7[[#This Row],[התחלה]]="","",שעות_עבודה7[[#This Row],[התחלה]]) ->  | J89: =IF(IF(OR(שעות_עבודה7[[#This Row],[התחלה]]="",שעות_עבודה7[[#This Row],[סיום]]=""), IF(שעות_עבודה7[[#This Row],[הפחתת דקות]]>שעות_עבודה7[[#This Row],[הוספת דקות]],"",שעות_עבודה7[[#This Row],[הוספת דקות]]/1440-שעות_עבודה7[[#This Row],[הפחתת דקות]]/1440), IF(שעות_עבודה7[[#This Row],[סיום]]-שעות_עבודה7[[#This Row],[התחלה]]+שעות_עבודה7[[#This Row],[הוספת דקות]]/1440<שעות_עבודה7[[#This Row],[הפחתת דקות]]/1440,"", SUM(שעות_עבודה7[[#This Row],[סיום]]-שעות_עבודה7[[#This Row],[התחלה]],שעות_עבודה7[[#This Row],[הוספת דקות]]/1440,-שעות_עבודה7[[#This Row],[הפחתת דקות]]/1440)))=0,"", IF(OR(שעות_עבודה7[[#This Row],[התחלה]]="",שעות_עבודה7[[#This Row],[סיום]]=""), IF(שעות_עבודה7[[#This Row],[הפחתת דקות]]>שעות_עבודה7[[#This Row],[הוספת דקות]],"",שעות_עבודה7[[#This Row],[הוספת דקות]]/1440-שעות_עבודה7[[#This Row],[הפחתת דקות]]/1440), IF(שעות_עבודה7[[#This Row],[סיום]]-שעות_עבודה7[[#This Row],[התחלה]]+שעות_עבודה7[[#This Row],[הוספת דקות]]/1440<שעות_עבודה7[[#This Row],[הפחתת דקות]]/1440,"", SUM(שעות_עבודה7[[#This Row],[סיום]]-שעות_עבודה7[[#This Row],[התחלה]],שעות_עבודה7[[#This Row],[הוספת דקות]]/1440,-שעות_עבודה7[[#This Row],[הפחתת דקות]]/1440)))) ->  | K89: =IF(שעות_עבודה7[[#This Row],[שעות]]="","", IFERROR(IF(IF(VLOOKUP(שעות_עבודה7[[#This Row],[שם העבודה]],טבלה1[],5,FALSE)="דולרים-$", SUMPRODUCT((שעות_עבודה7[[#This Row],[שם העבודה]]=$O$9:$O$38)*שעות_עבודה7[[#This Row],[שעות]]*($P$9:$P$38*24*שער)), SUMPRODUCT((שעות_עבודה7[[#This Row],[שם העבודה]]=$O$9:$O$38)*שעות_עבודה7[[#This Row],[שעות]]*($P$9:$P$38*24)))=0,"", IF(VLOOKUP(שעות_עבודה7[[#This Row],[שם העבודה]],טבלה1[],5,FALSE)="דולרים-$", SUMPRODUCT((שעות_עבודה7[[#This Row],[שם העבודה]]=$O$9:$O$38)*שעות_עבודה7[[#This Row],[שעות]]*($P$9:$P$38*24*שער)), SUMPRODUCT((שעות_עבודה7[[#This Row],[שם העבודה]]=$O$9:$O$38)*שעות_עבודה7[[#This Row],[שעות]]*($P$9:$P$38*24)))),"")) -> 
B90: =IF(AND(שעות_עבודה7[[#This Row],[התחלה]]="",שעות_עבודה7[[#This Row],[שם העבודה]]=""),"",ROW(A82)) ->  | C90: =_xlfn.IFS(שעות_עבודה7[[#This Row],[התחלה]]="","",WEEKDAY(שעות_עבודה7[[#This Row],[התחלה]])=1,"ראשון",WEEKDAY(שעות_עבודה7[[#This Row],[התחלה]])=2,"שני",WEEKDAY(שעות_עבודה7[[#This Row],[התחלה]])=3,"שלישי",WEEKDAY(שעות_עבודה7[[#This Row],[התחלה]])=4,"רביעי",WEEKDAY(שעות_עבודה7[[#This Row],[התחלה]])=5,"חמישי",WEEKDAY(שעות_עבודה7[[#This Row],[התחלה]])=6,"שישי",WEEKDAY(שעות_עבודה7[[#This Row],[התחלה]])=7,"מוצ""ש") ->  | D90: =IF(שעות_עבודה7[[#This Row],[התחלה]]="","",שעות_עבודה7[[#This Row],[התחלה]]) ->  | J90: =IF(IF(OR(שעות_עבודה7[[#This Row],[התחלה]]="",שעות_עבודה7[[#This Row],[סיום]]=""), IF(שעות_עבודה7[[#This Row],[הפחתת דקות]]>שעות_עבודה7[[#This Row],[הוספת דקות]],"",שעות_עבודה7[[#This Row],[הוספת דקות]]/1440-שעות_עבודה7[[#This Row],[הפחתת דקות]]/1440), IF(שעות_עבודה7[[#This Row],[סיום]]-שעות_עבודה7[[#This Row],[התחלה]]+שעות_עבודה7[[#This Row],[הוספת דקות]]/1440<שעות_עבודה7[[#This Row],[הפחתת דקות]]/1440,"", SUM(שעות_עבודה7[[#This Row],[סיום]]-שעות_עבודה7[[#This Row],[התחלה]],שעות_עבודה7[[#This Row],[הוספת דקות]]/1440,-שעות_עבודה7[[#This Row],[הפחתת דקות]]/1440)))=0,"", IF(OR(שעות_עבודה7[[#This Row],[התחלה]]="",שעות_עבודה7[[#This Row],[סיום]]=""), IF(שעות_עבודה7[[#This Row],[הפחתת דקות]]>שעות_עבודה7[[#This Row],[הוספת דקות]],"",שעות_עבודה7[[#This Row],[הוספת דקות]]/1440-שעות_עבודה7[[#This Row],[הפחתת דקות]]/1440), IF(שעות_עבודה7[[#This Row],[סיום]]-שעות_עבודה7[[#This Row],[התחלה]]+שעות_עבודה7[[#This Row],[הוספת דקות]]/1440<שעות_עבודה7[[#This Row],[הפחתת דקות]]/1440,"", SUM(שעות_עבודה7[[#This Row],[סיום]]-שעות_עבודה7[[#This Row],[התחלה]],שעות_עבודה7[[#This Row],[הוספת דקות]]/1440,-שעות_עבודה7[[#This Row],[הפחתת דקות]]/1440)))) ->  | K90: =IF(שעות_עבודה7[[#This Row],[שעות]]="","", IFERROR(IF(IF(VLOOKUP(שעות_עבודה7[[#This Row],[שם העבודה]],טבלה1[],5,FALSE)="דולרים-$", SUMPRODUCT((שעות_עבודה7[[#This Row],[שם העבודה]]=$O$9:$O$38)*שעות_עבודה7[[#This Row],[שעות]]*($P$9:$P$38*24*שער)), SUMPRODUCT((שעות_עבודה7[[#This Row],[שם העבודה]]=$O$9:$O$38)*שעות_עבודה7[[#This Row],[שעות]]*($P$9:$P$38*24)))=0,"", IF(VLOOKUP(שעות_עבודה7[[#This Row],[שם העבודה]],טבלה1[],5,FALSE)="דולרים-$", SUMPRODUCT((שעות_עבודה7[[#This Row],[שם העבודה]]=$O$9:$O$38)*שעות_עבודה7[[#This Row],[שעות]]*($P$9:$P$38*24*שער)), SUMPRODUCT((שעות_עבודה7[[#This Row],[שם העבודה]]=$O$9:$O$38)*שעות_עבודה7[[#This Row],[שעות]]*($P$9:$P$38*24)))),"")) -> 
B91: =IF(AND(שעות_עבודה7[[#This Row],[התחלה]]="",שעות_עבודה7[[#This Row],[שם העבודה]]=""),"",ROW(A83)) ->  | C91: =_xlfn.IFS(שעות_עבודה7[[#This Row],[התחלה]]="","",WEEKDAY(שעות_עבודה7[[#This Row],[התחלה]])=1,"ראשון",WEEKDAY(שעות_עבודה7[[#This Row],[התחלה]])=2,"שני",WEEKDAY(שעות_עבודה7[[#This Row],[התחלה]])=3,"שלישי",WEEKDAY(שעות_עבודה7[[#This Row],[התחלה]])=4,"רביעי",WEEKDAY(שעות_עבודה7[[#This Row],[התחלה]])=5,"חמישי",WEEKDAY(שעות_עבודה7[[#This Row],[התחלה]])=6,"שישי",WEEKDAY(שעות_עבודה7[[#This Row],[התחלה]])=7,"מוצ""ש") ->  | D91: =IF(שעות_עבודה7[[#This Row],[התחלה]]="","",שעות_עבודה7[[#This Row],[התחלה]]) ->  | J91: =IF(IF(OR(שעות_עבודה7[[#This Row],[התחלה]]="",שעות_עבודה7[[#This Row],[סיום]]=""), IF(שעות_עבודה7[[#This Row],[הפחתת דקות]]>שעות_עבודה7[[#This Row],[הוספת דקות]],"",שעות_עבודה7[[#This Row],[הוספת דקות]]/1440-שעות_עבודה7[[#This Row],[הפחתת דקות]]/1440), IF(שעות_עבודה7[[#This Row],[סיום]]-שעות_עבודה7[[#This Row],[התחלה]]+שעות_עבודה7[[#This Row],[הוספת דקות]]/1440<שעות_עבודה7[[#This Row],[הפחתת דקות]]/1440,"", SUM(שעות_עבודה7[[#This Row],[סיום]]-שעות_עבודה7[[#This Row],[התחלה]],שעות_עבודה7[[#This Row],[הוספת דקות]]/1440,-שעות_עבודה7[[#This Row],[הפחתת דקות]]/1440)))=0,"", IF(OR(שעות_עבודה7[[#This Row],[התחלה]]="",שעות_עבודה7[[#This Row],[סיום]]=""), IF(שעות_עבודה7[[#This Row],[הפחתת דקות]]>שעות_עבודה7[[#This Row],[הוספת דקות]],"",שעות_עבודה7[[#This Row],[הוספת דקות]]/1440-שעות_עבודה7[[#This Row],[הפחתת דקות]]/1440), IF(שעות_עבודה7[[#This Row],[סיום]]-שעות_עבודה7[[#This Row],[התחלה]]+שעות_עבודה7[[#This Row],[הוספת דקות]]/1440<שעות_עבודה7[[#This Row],[הפחתת דקות]]/1440,"", SUM(שעות_עבודה7[[#This Row],[סיום]]-שעות_עבודה7[[#This Row],[התחלה]],שעות_עבודה7[[#This Row],[הוספת דקות]]/1440,-שעות_עבודה7[[#This Row],[הפחתת דקות]]/1440)))) ->  | K91: =IF(שעות_עבודה7[[#This Row],[שעות]]="","", IFERROR(IF(IF(VLOOKUP(שעות_עבודה7[[#This Row],[שם העבודה]],טבלה1[],5,FALSE)="דולרים-$", SUMPRODUCT((שעות_עבודה7[[#This Row],[שם העבודה]]=$O$9:$O$38)*שעות_עבודה7[[#This Row],[שעות]]*($P$9:$P$38*24*שער)), SUMPRODUCT((שעות_עבודה7[[#This Row],[שם העבודה]]=$O$9:$O$38)*שעות_עבודה7[[#This Row],[שעות]]*($P$9:$P$38*24)))=0,"", IF(VLOOKUP(שעות_עבודה7[[#This Row],[שם העבודה]],טבלה1[],5,FALSE)="דולרים-$", SUMPRODUCT((שעות_עבודה7[[#This Row],[שם העבודה]]=$O$9:$O$38)*שעות_עבודה7[[#This Row],[שעות]]*($P$9:$P$38*24*שער)), SUMPRODUCT((שעות_עבודה7[[#This Row],[שם העבודה]]=$O$9:$O$38)*שעות_עבודה7[[#This Row],[שעות]]*($P$9:$P$38*24)))),"")) -> 
B92: =IF(AND(שעות_עבודה7[[#This Row],[התחלה]]="",שעות_עבודה7[[#This Row],[שם העבודה]]=""),"",ROW(A84)) ->  | C92: =_xlfn.IFS(שעות_עבודה7[[#This Row],[התחלה]]="","",WEEKDAY(שעות_עבודה7[[#This Row],[התחלה]])=1,"ראשון",WEEKDAY(שעות_עבודה7[[#This Row],[התחלה]])=2,"שני",WEEKDAY(שעות_עבודה7[[#This Row],[התחלה]])=3,"שלישי",WEEKDAY(שעות_עבודה7[[#This Row],[התחלה]])=4,"רביעי",WEEKDAY(שעות_עבודה7[[#This Row],[התחלה]])=5,"חמישי",WEEKDAY(שעות_עבודה7[[#This Row],[התחלה]])=6,"שישי",WEEKDAY(שעות_עבודה7[[#This Row],[התחלה]])=7,"מוצ""ש") ->  | D92: =IF(שעות_עבודה7[[#This Row],[התחלה]]="","",שעות_עבודה7[[#This Row],[התחלה]]) ->  | J92: =IF(IF(OR(שעות_עבודה7[[#This Row],[התחלה]]="",שעות_עבודה7[[#This Row],[סיום]]=""), IF(שעות_עבודה7[[#This Row],[הפחתת דקות]]>שעות_עבודה7[[#This Row],[הוספת דקות]],"",שעות_עבודה7[[#This Row],[הוספת דקות]]/1440-שעות_עבודה7[[#This Row],[הפחתת דקות]]/1440), IF(שעות_עבודה7[[#This Row],[סיום]]-שעות_עבודה7[[#This Row],[התחלה]]+שעות_עבודה7[[#This Row],[הוספת דקות]]/1440<שעות_עבודה7[[#This Row],[הפחתת דקות]]/1440,"", SUM(שעות_עבודה7[[#This Row],[סיום]]-שעות_עבודה7[[#This Row],[התחלה]],שעות_עבודה7[[#This Row],[הוספת דקות]]/1440,-שעות_עבודה7[[#This Row],[הפחתת דקות]]/1440)))=0,"", IF(OR(שעות_עבודה7[[#This Row],[התחלה]]="",שעות_עבודה7[[#This Row],[סיום]]=""), IF(שעות_עבודה7[[#This Row],[הפחתת דקות]]>שעות_עבודה7[[#This Row],[הוספת דקות]],"",שעות_עבודה7[[#This Row],[הוספת דקות]]/1440-שעות_עבודה7[[#This Row],[הפחתת דקות]]/1440), IF(שעות_עבודה7[[#This Row],[סיום]]-שעות_עבודה7[[#This Row],[התחלה]]+שעות_עבודה7[[#This Row],[הוספת דקות]]/1440<שעות_עבודה7[[#This Row],[הפחתת דקות]]/1440,"", SUM(שעות_עבודה7[[#This Row],[סיום]]-שעות_עבודה7[[#This Row],[התחלה]],שעות_עבודה7[[#This Row],[הוספת דקות]]/1440,-שעות_עבודה7[[#This Row],[הפחתת דקות]]/1440)))) ->  | K92: =IF(שעות_עבודה7[[#This Row],[שעות]]="","", IFERROR(IF(IF(VLOOKUP(שעות_עבודה7[[#This Row],[שם העבודה]],טבלה1[],5,FALSE)="דולרים-$", SUMPRODUCT((שעות_עבודה7[[#This Row],[שם העבודה]]=$O$9:$O$38)*שעות_עבודה7[[#This Row],[שעות]]*($P$9:$P$38*24*שער)), SUMPRODUCT((שעות_עבודה7[[#This Row],[שם העבודה]]=$O$9:$O$38)*שעות_עבודה7[[#This Row],[שעות]]*($P$9:$P$38*24)))=0,"", IF(VLOOKUP(שעות_עבודה7[[#This Row],[שם העבודה]],טבלה1[],5,FALSE)="דולרים-$", SUMPRODUCT((שעות_עבודה7[[#This Row],[שם העבודה]]=$O$9:$O$38)*שעות_עבודה7[[#This Row],[שעות]]*($P$9:$P$38*24*שער)), SUMPRODUCT((שעות_עבודה7[[#This Row],[שם העבודה]]=$O$9:$O$38)*שעות_עבודה7[[#This Row],[שעות]]*($P$9:$P$38*24)))),"")) -> 
B93: =IF(AND(שעות_עבודה7[[#This Row],[התחלה]]="",שעות_עבודה7[[#This Row],[שם העבודה]]=""),"",ROW(A85)) ->  | C93: =_xlfn.IFS(שעות_עבודה7[[#This Row],[התחלה]]="","",WEEKDAY(שעות_עבודה7[[#This Row],[התחלה]])=1,"ראשון",WEEKDAY(שעות_עבודה7[[#This Row],[התחלה]])=2,"שני",WEEKDAY(שעות_עבודה7[[#This Row],[התחלה]])=3,"שלישי",WEEKDAY(שעות_עבודה7[[#This Row],[התחלה]])=4,"רביעי",WEEKDAY(שעות_עבודה7[[#This Row],[התחלה]])=5,"חמישי",WEEKDAY(שעות_עבודה7[[#This Row],[התחלה]])=6,"שישי",WEEKDAY(שעות_עבודה7[[#This Row],[התחלה]])=7,"מוצ""ש") ->  | D93: =IF(שעות_עבודה7[[#This Row],[התחלה]]="","",שעות_עבודה7[[#This Row],[התחלה]]) ->  | J93: =IF(IF(OR(שעות_עבודה7[[#This Row],[התחלה]]="",שעות_עבודה7[[#This Row],[סיום]]=""), IF(שעות_עבודה7[[#This Row],[הפחתת דקות]]>שעות_עבודה7[[#This Row],[הוספת דקות]],"",שעות_עבודה7[[#This Row],[הוספת דקות]]/1440-שעות_עבודה7[[#This Row],[הפחתת דקות]]/1440), IF(שעות_עבודה7[[#This Row],[סיום]]-שעות_עבודה7[[#This Row],[התחלה]]+שעות_עבודה7[[#This Row],[הוספת דקות]]/1440<שעות_עבודה7[[#This Row],[הפחתת דקות]]/1440,"", SUM(שעות_עבודה7[[#This Row],[סיום]]-שעות_עבודה7[[#This Row],[התחלה]],שעות_עבודה7[[#This Row],[הוספת דקות]]/1440,-שעות_עבודה7[[#This Row],[הפחתת דקות]]/1440)))=0,"", IF(OR(שעות_עבודה7[[#This Row],[התחלה]]="",שעות_עבודה7[[#This Row],[סיום]]=""), IF(שעות_עבודה7[[#This Row],[הפחתת דקות]]>שעות_עבודה7[[#This Row],[הוספת דקות]],"",שעות_עבודה7[[#This Row],[הוספת דקות]]/1440-שעות_עבודה7[[#This Row],[הפחתת דקות]]/1440), IF(שעות_עבודה7[[#This Row],[סיום]]-שעות_עבודה7[[#This Row],[התחלה]]+שעות_עבודה7[[#This Row],[הוספת דקות]]/1440<שעות_עבודה7[[#This Row],[הפחתת דקות]]/1440,"", SUM(שעות_עבודה7[[#This Row],[סיום]]-שעות_עבודה7[[#This Row],[התחלה]],שעות_עבודה7[[#This Row],[הוספת דקות]]/1440,-שעות_עבודה7[[#This Row],[הפחתת דקות]]/1440)))) ->  | K93: =IF(שעות_עבודה7[[#This Row],[שעות]]="","", IFERROR(IF(IF(VLOOKUP(שעות_עבודה7[[#This Row],[שם העבודה]],טבלה1[],5,FALSE)="דולרים-$", SUMPRODUCT((שעות_עבודה7[[#This Row],[שם העבודה]]=$O$9:$O$38)*שעות_עבודה7[[#This Row],[שעות]]*($P$9:$P$38*24*שער)), SUMPRODUCT((שעות_עבודה7[[#This Row],[שם העבודה]]=$O$9:$O$38)*שעות_עבודה7[[#This Row],[שעות]]*($P$9:$P$38*24)))=0,"", IF(VLOOKUP(שעות_עבודה7[[#This Row],[שם העבודה]],טבלה1[],5,FALSE)="דולרים-$", SUMPRODUCT((שעות_עבודה7[[#This Row],[שם העבודה]]=$O$9:$O$38)*שעות_עבודה7[[#This Row],[שעות]]*($P$9:$P$38*24*שער)), SUMPRODUCT((שעות_עבודה7[[#This Row],[שם העבודה]]=$O$9:$O$38)*שעות_עבודה7[[#This Row],[שעות]]*($P$9:$P$38*24)))),"")) -> 
B94: =IF(AND(שעות_עבודה7[[#This Row],[התחלה]]="",שעות_עבודה7[[#This Row],[שם העבודה]]=""),"",ROW(A86)) ->  | C94: =_xlfn.IFS(שעות_עבודה7[[#This Row],[התחלה]]="","",WEEKDAY(שעות_עבודה7[[#This Row],[התחלה]])=1,"ראשון",WEEKDAY(שעות_עבודה7[[#This Row],[התחלה]])=2,"שני",WEEKDAY(שעות_עבודה7[[#This Row],[התחלה]])=3,"שלישי",WEEKDAY(שעות_עבודה7[[#This Row],[התחלה]])=4,"רביעי",WEEKDAY(שעות_עבודה7[[#This Row],[התחלה]])=5,"חמישי",WEEKDAY(שעות_עבודה7[[#This Row],[התחלה]])=6,"שישי",WEEKDAY(שעות_עבודה7[[#This Row],[התחלה]])=7,"מוצ""ש") ->  | D94: =IF(שעות_עבודה7[[#This Row],[התחלה]]="","",שעות_עבודה7[[#This Row],[התחלה]]) ->  | J94: =IF(IF(OR(שעות_עבודה7[[#This Row],[התחלה]]="",שעות_עבודה7[[#This Row],[סיום]]=""), IF(שעות_עבודה7[[#This Row],[הפחתת דקות]]>שעות_עבודה7[[#This Row],[הוספת דקות]],"",שעות_עבודה7[[#This Row],[הוספת דקות]]/1440-שעות_עבודה7[[#This Row],[הפחתת דקות]]/1440), IF(שעות_עבודה7[[#This Row],[סיום]]-שעות_עבודה7[[#This Row],[התחלה]]+שעות_עבודה7[[#This Row],[הוספת דקות]]/1440<שעות_עבודה7[[#This Row],[הפחתת דקות]]/1440,"", SUM(שעות_עבודה7[[#This Row],[סיום]]-שעות_עבודה7[[#This Row],[התחלה]],שעות_עבודה7[[#This Row],[הוספת דקות]]/1440,-שעות_עבודה7[[#This Row],[הפחתת דקות]]/1440)))=0,"", IF(OR(שעות_עבודה7[[#This Row],[התחלה]]="",שעות_עבודה7[[#This Row],[סיום]]=""), IF(שעות_עבודה7[[#This Row],[הפחתת דקות]]>שעות_עבודה7[[#This Row],[הוספת דקות]],"",שעות_עבודה7[[#This Row],[הוספת דקות]]/1440-שעות_עבודה7[[#This Row],[הפחתת דקות]]/1440), IF(שעות_עבודה7[[#This Row],[סיום]]-שעות_עבודה7[[#This Row],[התחלה]]+שעות_עבודה7[[#This Row],[הוספת דקות]]/1440<שעות_עבודה7[[#This Row],[הפחתת דקות]]/1440,"", SUM(שעות_עבודה7[[#This Row],[סיום]]-שעות_עבודה7[[#This Row],[התחלה]],שעות_עבודה7[[#This Row],[הוספת דקות]]/1440,-שעות_עבודה7[[#This Row],[הפחתת דקות]]/1440)))) ->  | K94: =IF(שעות_עבודה7[[#This Row],[שעות]]="","", IFERROR(IF(IF(VLOOKUP(שעות_עבודה7[[#This Row],[שם העבודה]],טבלה1[],5,FALSE)="דולרים-$", SUMPRODUCT((שעות_עבודה7[[#This Row],[שם העבודה]]=$O$9:$O$38)*שעות_עבודה7[[#This Row],[שעות]]*($P$9:$P$38*24*שער)), SUMPRODUCT((שעות_עבודה7[[#This Row],[שם העבודה]]=$O$9:$O$38)*שעות_עבודה7[[#This Row],[שעות]]*($P$9:$P$38*24)))=0,"", IF(VLOOKUP(שעות_עבודה7[[#This Row],[שם העבודה]],טבלה1[],5,FALSE)="דולרים-$", SUMPRODUCT((שעות_עבודה7[[#This Row],[שם העבודה]]=$O$9:$O$38)*שעות_עבודה7[[#This Row],[שעות]]*($P$9:$P$38*24*שער)), SUMPRODUCT((שעות_עבודה7[[#This Row],[שם העבודה]]=$O$9:$O$38)*שעות_עבודה7[[#This Row],[שעות]]*($P$9:$P$38*24)))),"")) -> 
B95: =IF(AND(שעות_עבודה7[[#This Row],[התחלה]]="",שעות_עבודה7[[#This Row],[שם העבודה]]=""),"",ROW(A87)) ->  | C95: =_xlfn.IFS(שעות_עבודה7[[#This Row],[התחלה]]="","",WEEKDAY(שעות_עבודה7[[#This Row],[התחלה]])=1,"ראשון",WEEKDAY(שעות_עבודה7[[#This Row],[התחלה]])=2,"שני",WEEKDAY(שעות_עבודה7[[#This Row],[התחלה]])=3,"שלישי",WEEKDAY(שעות_עבודה7[[#This Row],[התחלה]])=4,"רביעי",WEEKDAY(שעות_עבודה7[[#This Row],[התחלה]])=5,"חמישי",WEEKDAY(שעות_עבודה7[[#This Row],[התחלה]])=6,"שישי",WEEKDAY(שעות_עבודה7[[#This Row],[התחלה]])=7,"מוצ""ש") ->  | D95: =IF(שעות_עבודה7[[#This Row],[התחלה]]="","",שעות_עבודה7[[#This Row],[התחלה]]) ->  | J95: =IF(IF(OR(שעות_עבודה7[[#This Row],[התחלה]]="",שעות_עבודה7[[#This Row],[סיום]]=""), IF(שעות_עבודה7[[#This Row],[הפחתת דקות]]>שעות_עבודה7[[#This Row],[הוספת דקות]],"",שעות_עבודה7[[#This Row],[הוספת דקות]]/1440-שעות_עבודה7[[#This Row],[הפחתת דקות]]/1440), IF(שעות_עבודה7[[#This Row],[סיום]]-שעות_עבודה7[[#This Row],[התחלה]]+שעות_עבודה7[[#This Row],[הוספת דקות]]/1440<שעות_עבודה7[[#This Row],[הפחתת דקות]]/1440,"", SUM(שעות_עבודה7[[#This Row],[סיום]]-שעות_עבודה7[[#This Row],[התחלה]],שעות_עבודה7[[#This Row],[הוספת דקות]]/1440,-שעות_עבודה7[[#This Row],[הפחתת דקות]]/1440)))=0,"", IF(OR(שעות_עבודה7[[#This Row],[התחלה]]="",שעות_עבודה7[[#This Row],[סיום]]=""), IF(שעות_עבודה7[[#This Row],[הפחתת דקות]]>שעות_עבודה7[[#This Row],[הוספת דקות]],"",שעות_עבודה7[[#This Row],[הוספת דקות]]/1440-שעות_עבודה7[[#This Row],[הפחתת דקות]]/1440), IF(שעות_עבודה7[[#This Row],[סיום]]-שעות_עבודה7[[#This Row],[התחלה]]+שעות_עבודה7[[#This Row],[הוספת דקות]]/1440<שעות_עבודה7[[#This Row],[הפחתת דקות]]/1440,"", SUM(שעות_עבודה7[[#This Row],[סיום]]-שעות_עבודה7[[#This Row],[התחלה]],שעות_עבודה7[[#This Row],[הוספת דקות]]/1440,-שעות_עבודה7[[#This Row],[הפחתת דקות]]/1440)))) ->  | K95: =IF(שעות_עבודה7[[#This Row],[שעות]]="","", IFERROR(IF(IF(VLOOKUP(שעות_עבודה7[[#This Row],[שם העבודה]],טבלה1[],5,FALSE)="דולרים-$", SUMPRODUCT((שעות_עבודה7[[#This Row],[שם העבודה]]=$O$9:$O$38)*שעות_עבודה7[[#This Row],[שעות]]*($P$9:$P$38*24*שער)), SUMPRODUCT((שעות_עבודה7[[#This Row],[שם העבודה]]=$O$9:$O$38)*שעות_עבודה7[[#This Row],[שעות]]*($P$9:$P$38*24)))=0,"", IF(VLOOKUP(שעות_עבודה7[[#This Row],[שם העבודה]],טבלה1[],5,FALSE)="דולרים-$", SUMPRODUCT((שעות_עבודה7[[#This Row],[שם העבודה]]=$O$9:$O$38)*שעות_עבודה7[[#This Row],[שעות]]*($P$9:$P$38*24*שער)), SUMPRODUCT((שעות_עבודה7[[#This Row],[שם העבודה]]=$O$9:$O$38)*שעות_עבודה7[[#This Row],[שעות]]*($P$9:$P$38*24)))),"")) -> 
B96: =IF(AND(שעות_עבודה7[[#This Row],[התחלה]]="",שעות_עבודה7[[#This Row],[שם העבודה]]=""),"",ROW(A88)) ->  | C96: =_xlfn.IFS(שעות_עבודה7[[#This Row],[התחלה]]="","",WEEKDAY(שעות_עבודה7[[#This Row],[התחלה]])=1,"ראשון",WEEKDAY(שעות_עבודה7[[#This Row],[התחלה]])=2,"שני",WEEKDAY(שעות_עבודה7[[#This Row],[התחלה]])=3,"שלישי",WEEKDAY(שעות_עבודה7[[#This Row],[התחלה]])=4,"רביעי",WEEKDAY(שעות_עבודה7[[#This Row],[התחלה]])=5,"חמישי",WEEKDAY(שעות_עבודה7[[#This Row],[התחלה]])=6,"שישי",WEEKDAY(שעות_עבודה7[[#This Row],[התחלה]])=7,"מוצ""ש") ->  | D96: =IF(שעות_עבודה7[[#This Row],[התחלה]]="","",שעות_עבודה7[[#This Row],[התחלה]]) ->  | J96: =IF(IF(OR(שעות_עבודה7[[#This Row],[התחלה]]="",שעות_עבודה7[[#This Row],[סיום]]=""), IF(שעות_עבודה7[[#This Row],[הפחתת דקות]]>שעות_עבודה7[[#This Row],[הוספת דקות]],"",שעות_עבודה7[[#This Row],[הוספת דקות]]/1440-שעות_עבודה7[[#This Row],[הפחתת דקות]]/1440), IF(שעות_עבודה7[[#This Row],[סיום]]-שעות_עבודה7[[#This Row],[התחלה]]+שעות_עבודה7[[#This Row],[הוספת דקות]]/1440<שעות_עבודה7[[#This Row],[הפחתת דקות]]/1440,"", SUM(שעות_עבודה7[[#This Row],[סיום]]-שעות_עבודה7[[#This Row],[התחלה]],שעות_עבודה7[[#This Row],[הוספת דקות]]/1440,-שעות_עבודה7[[#This Row],[הפחתת דקות]]/1440)))=0,"", IF(OR(שעות_עבודה7[[#This Row],[התחלה]]="",שעות_עבודה7[[#This Row],[סיום]]=""), IF(שעות_עבודה7[[#This Row],[הפחתת דקות]]>שעות_עבודה7[[#This Row],[הוספת דקות]],"",שעות_עבודה7[[#This Row],[הוספת דקות]]/1440-שעות_עבודה7[[#This Row],[הפחתת דקות]]/1440), IF(שעות_עבודה7[[#This Row],[סיום]]-שעות_עבודה7[[#This Row],[התחלה]]+שעות_עבודה7[[#This Row],[הוספת דקות]]/1440<שעות_עבודה7[[#This Row],[הפחתת דקות]]/1440,"", SUM(שעות_עבודה7[[#This Row],[סיום]]-שעות_עבודה7[[#This Row],[התחלה]],שעות_עבודה7[[#This Row],[הוספת דקות]]/1440,-שעות_עבודה7[[#This Row],[הפחתת דקות]]/1440)))) ->  | K96: =IF(שעות_עבודה7[[#This Row],[שעות]]="","", IFERROR(IF(IF(VLOOKUP(שעות_עבודה7[[#This Row],[שם העבודה]],טבלה1[],5,FALSE)="דולרים-$", SUMPRODUCT((שעות_עבודה7[[#This Row],[שם העבודה]]=$O$9:$O$38)*שעות_עבודה7[[#This Row],[שעות]]*($P$9:$P$38*24*שער)), SUMPRODUCT((שעות_עבודה7[[#This Row],[שם העבודה]]=$O$9:$O$38)*שעות_עבודה7[[#This Row],[שעות]]*($P$9:$P$38*24)))=0,"", IF(VLOOKUP(שעות_עבודה7[[#This Row],[שם העבודה]],טבלה1[],5,FALSE)="דולרים-$", SUMPRODUCT((שעות_עבודה7[[#This Row],[שם העבודה]]=$O$9:$O$38)*שעות_עבודה7[[#This Row],[שעות]]*($P$9:$P$38*24*שער)), SUMPRODUCT((שעות_עבודה7[[#This Row],[שם העבודה]]=$O$9:$O$38)*שעות_עבודה7[[#This Row],[שעות]]*($P$9:$P$38*24)))),"")) -> 
B97: =IF(AND(שעות_עבודה7[[#This Row],[התחלה]]="",שעות_עבודה7[[#This Row],[שם העבודה]]=""),"",ROW(A89)) ->  | C97: =_xlfn.IFS(שעות_עבודה7[[#This Row],[התחלה]]="","",WEEKDAY(שעות_עבודה7[[#This Row],[התחלה]])=1,"ראשון",WEEKDAY(שעות_עבודה7[[#This Row],[התחלה]])=2,"שני",WEEKDAY(שעות_עבודה7[[#This Row],[התחלה]])=3,"שלישי",WEEKDAY(שעות_עבודה7[[#This Row],[התחלה]])=4,"רביעי",WEEKDAY(שעות_עבודה7[[#This Row],[התחלה]])=5,"חמישי",WEEKDAY(שעות_עבודה7[[#This Row],[התחלה]])=6,"שישי",WEEKDAY(שעות_עבודה7[[#This Row],[התחלה]])=7,"מוצ""ש") ->  | D97: =IF(שעות_עבודה7[[#This Row],[התחלה]]="","",שעות_עבודה7[[#This Row],[התחלה]]) ->  | J97: =IF(IF(OR(שעות_עבודה7[[#This Row],[התחלה]]="",שעות_עבודה7[[#This Row],[סיום]]=""), IF(שעות_עבודה7[[#This Row],[הפחתת דקות]]>שעות_עבודה7[[#This Row],[הוספת דקות]],"",שעות_עבודה7[[#This Row],[הוספת דקות]]/1440-שעות_עבודה7[[#This Row],[הפחתת דקות]]/1440), IF(שעות_עבודה7[[#This Row],[סיום]]-שעות_עבודה7[[#This Row],[התחלה]]+שעות_עבודה7[[#This Row],[הוספת דקות]]/1440<שעות_עבודה7[[#This Row],[הפחתת דקות]]/1440,"", SUM(שעות_עבודה7[[#This Row],[סיום]]-שעות_עבודה7[[#This Row],[התחלה]],שעות_עבודה7[[#This Row],[הוספת דקות]]/1440,-שעות_עבודה7[[#This Row],[הפחתת דקות]]/1440)))=0,"", IF(OR(שעות_עבודה7[[#This Row],[התחלה]]="",שעות_עבודה7[[#This Row],[סיום]]=""), IF(שעות_עבודה7[[#This Row],[הפחתת דקות]]>שעות_עבודה7[[#This Row],[הוספת דקות]],"",שעות_עבודה7[[#This Row],[הוספת דקות]]/1440-שעות_עבודה7[[#This Row],[הפחתת דקות]]/1440), IF(שעות_עבודה7[[#This Row],[סיום]]-שעות_עבודה7[[#This Row],[התחלה]]+שעות_עבודה7[[#This Row],[הוספת דקות]]/1440<שעות_עבודה7[[#This Row],[הפחתת דקות]]/1440,"", SUM(שעות_עבודה7[[#This Row],[סיום]]-שעות_עבודה7[[#This Row],[התחלה]],שעות_עבודה7[[#This Row],[הוספת דקות]]/1440,-שעות_עבודה7[[#This Row],[הפחתת דקות]]/1440)))) ->  | K97: =IF(שעות_עבודה7[[#This Row],[שעות]]="","", IFERROR(IF(IF(VLOOKUP(שעות_עבודה7[[#This Row],[שם העבודה]],טבלה1[],5,FALSE)="דולרים-$", SUMPRODUCT((שעות_עבודה7[[#This Row],[שם העבודה]]=$O$9:$O$38)*שעות_עבודה7[[#This Row],[שעות]]*($P$9:$P$38*24*שער)), SUMPRODUCT((שעות_עבודה7[[#This Row],[שם העבודה]]=$O$9:$O$38)*שעות_עבודה7[[#This Row],[שעות]]*($P$9:$P$38*24)))=0,"", IF(VLOOKUP(שעות_עבודה7[[#This Row],[שם העבודה]],טבלה1[],5,FALSE)="דולרים-$", SUMPRODUCT((שעות_עבודה7[[#This Row],[שם העבודה]]=$O$9:$O$38)*שעות_עבודה7[[#This Row],[שעות]]*($P$9:$P$38*24*שער)), SUMPRODUCT((שעות_עבודה7[[#This Row],[שם העבודה]]=$O$9:$O$38)*שעות_עבודה7[[#This Row],[שעות]]*($P$9:$P$38*24)))),"")) -> 
B98: =IF(AND(שעות_עבודה7[[#This Row],[התחלה]]="",שעות_עבודה7[[#This Row],[שם העבודה]]=""),"",ROW(A90)) ->  | C98: =_xlfn.IFS(שעות_עבודה7[[#This Row],[התחלה]]="","",WEEKDAY(שעות_עבודה7[[#This Row],[התחלה]])=1,"ראשון",WEEKDAY(שעות_עבודה7[[#This Row],[התחלה]])=2,"שני",WEEKDAY(שעות_עבודה7[[#This Row],[התחלה]])=3,"שלישי",WEEKDAY(שעות_עבודה7[[#This Row],[התחלה]])=4,"רביעי",WEEKDAY(שעות_עבודה7[[#This Row],[התחלה]])=5,"חמישי",WEEKDAY(שעות_עבודה7[[#This Row],[התחלה]])=6,"שישי",WEEKDAY(שעות_עבודה7[[#This Row],[התחלה]])=7,"מוצ""ש") ->  | D98: =IF(שעות_עבודה7[[#This Row],[התחלה]]="","",שעות_עבודה7[[#This Row],[התחלה]]) ->  | J98: =IF(IF(OR(שעות_עבודה7[[#This Row],[התחלה]]="",שעות_עבודה7[[#This Row],[סיום]]=""), IF(שעות_עבודה7[[#This Row],[הפחתת דקות]]>שעות_עבודה7[[#This Row],[הוספת דקות]],"",שעות_עבודה7[[#This Row],[הוספת דקות]]/1440-שעות_עבודה7[[#This Row],[הפחתת דקות]]/1440), IF(שעות_עבודה7[[#This Row],[סיום]]-שעות_עבודה7[[#This Row],[התחלה]]+שעות_עבודה7[[#This Row],[הוספת דקות]]/1440<שעות_עבודה7[[#This Row],[הפחתת דקות]]/1440,"", SUM(שעות_עבודה7[[#This Row],[סיום]]-שעות_עבודה7[[#This Row],[התחלה]],שעות_עבודה7[[#This Row],[הוספת דקות]]/1440,-שעות_עבודה7[[#This Row],[הפחתת דקות]]/1440)))=0,"", IF(OR(שעות_עבודה7[[#This Row],[התחלה]]="",שעות_עבודה7[[#This Row],[סיום]]=""), IF(שעות_עבודה7[[#This Row],[הפחתת דקות]]>שעות_עבודה7[[#This Row],[הוספת דקות]],"",שעות_עבודה7[[#This Row],[הוספת דקות]]/1440-שעות_עבודה7[[#This Row],[הפחתת דקות]]/1440), IF(שעות_עבודה7[[#This Row],[סיום]]-שעות_עבודה7[[#This Row],[התחלה]]+שעות_עבודה7[[#This Row],[הוספת דקות]]/1440<שעות_עבודה7[[#This Row],[הפחתת דקות]]/1440,"", SUM(שעות_עבודה7[[#This Row],[סיום]]-שעות_עבודה7[[#This Row],[התחלה]],שעות_עבודה7[[#This Row],[הוספת דקות]]/1440,-שעות_עבודה7[[#This Row],[הפחתת דקות]]/1440)))) ->  | K98: =IF(שעות_עבודה7[[#This Row],[שעות]]="","", IFERROR(IF(IF(VLOOKUP(שעות_עבודה7[[#This Row],[שם העבודה]],טבלה1[],5,FALSE)="דולרים-$", SUMPRODUCT((שעות_עבודה7[[#This Row],[שם העבודה]]=$O$9:$O$38)*שעות_עבודה7[[#This Row],[שעות]]*($P$9:$P$38*24*שער)), SUMPRODUCT((שעות_עבודה7[[#This Row],[שם העבודה]]=$O$9:$O$38)*שעות_עבודה7[[#This Row],[שעות]]*($P$9:$P$38*24)))=0,"", IF(VLOOKUP(שעות_עבודה7[[#This Row],[שם העבודה]],טבלה1[],5,FALSE)="דולרים-$", SUMPRODUCT((שעות_עבודה7[[#This Row],[שם העבודה]]=$O$9:$O$38)*שעות_עבודה7[[#This Row],[שעות]]*($P$9:$P$38*24*שער)), SUMPRODUCT((שעות_עבודה7[[#This Row],[שם העבודה]]=$O$9:$O$38)*שעות_עבודה7[[#This Row],[שעות]]*($P$9:$P$38*24)))),"")) -> 
B99: =IF(AND(שעות_עבודה7[[#This Row],[התחלה]]="",שעות_עבודה7[[#This Row],[שם העבודה]]=""),"",ROW(A91)) ->  | C99: =_xlfn.IFS(שעות_עבודה7[[#This Row],[התחלה]]="","",WEEKDAY(שעות_עבודה7[[#This Row],[התחלה]])=1,"ראשון",WEEKDAY(שעות_עבודה7[[#This Row],[התחלה]])=2,"שני",WEEKDAY(שעות_עבודה7[[#This Row],[התחלה]])=3,"שלישי",WEEKDAY(שעות_עבודה7[[#This Row],[התחלה]])=4,"רביעי",WEEKDAY(שעות_עבודה7[[#This Row],[התחלה]])=5,"חמישי",WEEKDAY(שעות_עבודה7[[#This Row],[התחלה]])=6,"שישי",WEEKDAY(שעות_עבודה7[[#This Row],[התחלה]])=7,"מוצ""ש") ->  | D99: =IF(שעות_עבודה7[[#This Row],[התחלה]]="","",שעות_עבודה7[[#This Row],[התחלה]]) ->  | J99: =IF(IF(OR(שעות_עבודה7[[#This Row],[התחלה]]="",שעות_עבודה7[[#This Row],[סיום]]=""), IF(שעות_עבודה7[[#This Row],[הפחתת דקות]]>שעות_עבודה7[[#This Row],[הוספת דקות]],"",שעות_עבודה7[[#This Row],[הוספת דקות]]/1440-שעות_עבודה7[[#This Row],[הפחתת דקות]]/1440), IF(שעות_עבודה7[[#This Row],[סיום]]-שעות_עבודה7[[#This Row],[התחלה]]+שעות_עבודה7[[#This Row],[הוספת דקות]]/1440<שעות_עבודה7[[#This Row],[הפחתת דקות]]/1440,"", SUM(שעות_עבודה7[[#This Row],[סיום]]-שעות_עבודה7[[#This Row],[התחלה]],שעות_עבודה7[[#This Row],[הוספת דקות]]/1440,-שעות_עבודה7[[#This Row],[הפחתת דקות]]/1440)))=0,"", IF(OR(שעות_עבודה7[[#This Row],[התחלה]]="",שעות_עבודה7[[#This Row],[סיום]]=""), IF(שעות_עבודה7[[#This Row],[הפחתת דקות]]>שעות_עבודה7[[#This Row],[הוספת דקות]],"",שעות_עבודה7[[#This Row],[הוספת דקות]]/1440-שעות_עבודה7[[#This Row],[הפחתת דקות]]/1440), IF(שעות_עבודה7[[#This Row],[סיום]]-שעות_עבודה7[[#This Row],[התחלה]]+שעות_עבודה7[[#This Row],[הוספת דקות]]/1440<שעות_עבודה7[[#This Row],[הפחתת דקות]]/1440,"", SUM(שעות_עבודה7[[#This Row],[סיום]]-שעות_עבודה7[[#This Row],[התחלה]],שעות_עבודה7[[#This Row],[הוספת דקות]]/1440,-שעות_עבודה7[[#This Row],[הפחתת דקות]]/1440)))) ->  | K99: =IF(שעות_עבודה7[[#This Row],[שעות]]="","", IFERROR(IF(IF(VLOOKUP(שעות_עבודה7[[#This Row],[שם העבודה]],טבלה1[],5,FALSE)="דולרים-$", SUMPRODUCT((שעות_עבודה7[[#This Row],[שם העבודה]]=$O$9:$O$38)*שעות_עבודה7[[#This Row],[שעות]]*($P$9:$P$38*24*שער)), SUMPRODUCT((שעות_עבודה7[[#This Row],[שם העבודה]]=$O$9:$O$38)*שעות_עבודה7[[#This Row],[שעות]]*($P$9:$P$38*24)))=0,"", IF(VLOOKUP(שעות_עבודה7[[#This Row],[שם העבודה]],טבלה1[],5,FALSE)="דולרים-$", SUMPRODUCT((שעות_עבודה7[[#This Row],[שם העבודה]]=$O$9:$O$38)*שעות_עבודה7[[#This Row],[שעות]]*($P$9:$P$38*24*שער)), SUMPRODUCT((שעות_עבודה7[[#This Row],[שם העבודה]]=$O$9:$O$38)*שעות_עבודה7[[#This Row],[שעות]]*($P$9:$P$38*24)))),"")) -> 
B100: =IF(AND(שעות_עבודה7[[#This Row],[התחלה]]="",שעות_עבודה7[[#This Row],[שם העבודה]]=""),"",ROW(A92)) ->  | C100: =_xlfn.IFS(שעות_עבודה7[[#This Row],[התחלה]]="","",WEEKDAY(שעות_עבודה7[[#This Row],[התחלה]])=1,"ראשון",WEEKDAY(שעות_עבודה7[[#This Row],[התחלה]])=2,"שני",WEEKDAY(שעות_עבודה7[[#This Row],[התחלה]])=3,"שלישי",WEEKDAY(שעות_עבודה7[[#This Row],[התחלה]])=4,"רביעי",WEEKDAY(שעות_עבודה7[[#This Row],[התחלה]])=5,"חמישי",WEEKDAY(שעות_עבודה7[[#This Row],[התחלה]])=6,"שישי",WEEKDAY(שעות_עבודה7[[#This Row],[התחלה]])=7,"מוצ""ש") ->  | D100: =IF(שעות_עבודה7[[#This Row],[התחלה]]="","",שעות_עבודה7[[#This Row],[התחלה]]) ->  | J100: =IF(IF(OR(שעות_עבודה7[[#This Row],[התחלה]]="",שעות_עבודה7[[#This Row],[סיום]]=""), IF(שעות_עבודה7[[#This Row],[הפחתת דקות]]>שעות_עבודה7[[#This Row],[הוספת דקות]],"",שעות_עבודה7[[#This Row],[הוספת דקות]]/1440-שעות_עבודה7[[#This Row],[הפחתת דקות]]/1440), IF(שעות_עבודה7[[#This Row],[סיום]]-שעות_עבודה7[[#This Row],[התחלה]]+שעות_עבודה7[[#This Row],[הוספת דקות]]/1440<שעות_עבודה7[[#This Row],[הפחתת דקות]]/1440,"", SUM(שעות_עבודה7[[#This Row],[סיום]]-שעות_עבודה7[[#This Row],[התחלה]],שעות_עבודה7[[#This Row],[הוספת דקות]]/1440,-שעות_עבודה7[[#This Row],[הפחתת דקות]]/1440)))=0,"", IF(OR(שעות_עבודה7[[#This Row],[התחלה]]="",שעות_עבודה7[[#This Row],[סיום]]=""), IF(שעות_עבודה7[[#This Row],[הפחתת דקות]]>שעות_עבודה7[[#This Row],[הוספת דקות]],"",שעות_עבודה7[[#This Row],[הוספת דקות]]/1440-שעות_עבודה7[[#This Row],[הפחתת דקות]]/1440), IF(שעות_עבודה7[[#This Row],[סיום]]-שעות_עבודה7[[#This Row],[התחלה]]+שעות_עבודה7[[#This Row],[הוספת דקות]]/1440<שעות_עבודה7[[#This Row],[הפחתת דקות]]/1440,"", SUM(שעות_עבודה7[[#This Row],[סיום]]-שעות_עבודה7[[#This Row],[התחלה]],שעות_עבודה7[[#This Row],[הוספת דקות]]/1440,-שעות_עבודה7[[#This Row],[הפחתת דקות]]/1440)))) ->  | K100: =IF(שעות_עבודה7[[#This Row],[שעות]]="","", IFERROR(IF(IF(VLOOKUP(שעות_עבודה7[[#This Row],[שם העבודה]],טבלה1[],5,FALSE)="דולרים-$", SUMPRODUCT((שעות_עבודה7[[#This Row],[שם העבודה]]=$O$9:$O$38)*שעות_עבודה7[[#This Row],[שעות]]*($P$9:$P$38*24*שער)), SUMPRODUCT((שעות_עבודה7[[#This Row],[שם העבודה]]=$O$9:$O$38)*שעות_עבודה7[[#This Row],[שעות]]*($P$9:$P$38*24)))=0,"", IF(VLOOKUP(שעות_עבודה7[[#This Row],[שם העבודה]],טבלה1[],5,FALSE)="דולרים-$", SUMPRODUCT((שעות_עבודה7[[#This Row],[שם העבודה]]=$O$9:$O$38)*שעות_עבודה7[[#This Row],[שעות]]*($P$9:$P$38*24*שער)), SUMPRODUCT((שעות_עבודה7[[#This Row],[שם העבודה]]=$O$9:$O$38)*שעות_עבודה7[[#This Row],[שעות]]*($P$9:$P$38*24)))),"")) -> 
B101: =IF(AND(שעות_עבודה7[[#This Row],[התחלה]]="",שעות_עבודה7[[#This Row],[שם העבודה]]=""),"",ROW(A93)) ->  | C101: =_xlfn.IFS(שעות_עבודה7[[#This Row],[התחלה]]="","",WEEKDAY(שעות_עבודה7[[#This Row],[התחלה]])=1,"ראשון",WEEKDAY(שעות_עבודה7[[#This Row],[התחלה]])=2,"שני",WEEKDAY(שעות_עבודה7[[#This Row],[התחלה]])=3,"שלישי",WEEKDAY(שעות_עבודה7[[#This Row],[התחלה]])=4,"רביעי",WEEKDAY(שעות_עבודה7[[#This Row],[התחלה]])=5,"חמישי",WEEKDAY(שעות_עבודה7[[#This Row],[התחלה]])=6,"שישי",WEEKDAY(שעות_עבודה7[[#This Row],[התחלה]])=7,"מוצ""ש") ->  | D101: =IF(שעות_עבודה7[[#This Row],[התחלה]]="","",שעות_עבודה7[[#This Row],[התחלה]]) ->  | J101: =IF(IF(OR(שעות_עבודה7[[#This Row],[התחלה]]="",שעות_עבודה7[[#This Row],[סיום]]=""), IF(שעות_עבודה7[[#This Row],[הפחתת דקות]]>שעות_עבודה7[[#This Row],[הוספת דקות]],"",שעות_עבודה7[[#This Row],[הוספת דקות]]/1440-שעות_עבודה7[[#This Row],[הפחתת דקות]]/1440), IF(שעות_עבודה7[[#This Row],[סיום]]-שעות_עבודה7[[#This Row],[התחלה]]+שעות_עבודה7[[#This Row],[הוספת דקות]]/1440<שעות_עבודה7[[#This Row],[הפחתת דקות]]/1440,"", SUM(שעות_עבודה7[[#This Row],[סיום]]-שעות_עבודה7[[#This Row],[התחלה]],שעות_עבודה7[[#This Row],[הוספת דקות]]/1440,-שעות_עבודה7[[#This Row],[הפחתת דקות]]/1440)))=0,"", IF(OR(שעות_עבודה7[[#This Row],[התחלה]]="",שעות_עבודה7[[#This Row],[סיום]]=""), IF(שעות_עבודה7[[#This Row],[הפחתת דקות]]>שעות_עבודה7[[#This Row],[הוספת דקות]],"",שעות_עבודה7[[#This Row],[הוספת דקות]]/1440-שעות_עבודה7[[#This Row],[הפחתת דקות]]/1440), IF(שעות_עבודה7[[#This Row],[סיום]]-שעות_עבודה7[[#This Row],[התחלה]]+שעות_עבודה7[[#This Row],[הוספת דקות]]/1440<שעות_עבודה7[[#This Row],[הפחתת דקות]]/1440,"", SUM(שעות_עבודה7[[#This Row],[סיום]]-שעות_עבודה7[[#This Row],[התחלה]],שעות_עבודה7[[#This Row],[הוספת דקות]]/1440,-שעות_עבודה7[[#This Row],[הפחתת דקות]]/1440)))) ->  | K101: =IF(שעות_עבודה7[[#This Row],[שעות]]="","", IFERROR(IF(IF(VLOOKUP(שעות_עבודה7[[#This Row],[שם העבודה]],טבלה1[],5,FALSE)="דולרים-$", SUMPRODUCT((שעות_עבודה7[[#This Row],[שם העבודה]]=$O$9:$O$38)*שעות_עבודה7[[#This Row],[שעות]]*($P$9:$P$38*24*שער)), SUMPRODUCT((שעות_עבודה7[[#This Row],[שם העבודה]]=$O$9:$O$38)*שעות_עבודה7[[#This Row],[שעות]]*($P$9:$P$38*24)))=0,"", IF(VLOOKUP(שעות_עבודה7[[#This Row],[שם העבודה]],טבלה1[],5,FALSE)="דולרים-$", SUMPRODUCT((שעות_עבודה7[[#This Row],[שם העבודה]]=$O$9:$O$38)*שעות_עבודה7[[#This Row],[שעות]]*($P$9:$P$38*24*שער)), SUMPRODUCT((שעות_עבודה7[[#This Row],[שם העבודה]]=$O$9:$O$38)*שעות_עבודה7[[#This Row],[שעות]]*($P$9:$P$38*24)))),"")) -> 
B102: =IF(AND(שעות_עבודה7[[#This Row],[התחלה]]="",שעות_עבודה7[[#This Row],[שם העבודה]]=""),"",ROW(A94)) ->  | C102: =_xlfn.IFS(שעות_עבודה7[[#This Row],[התחלה]]="","",WEEKDAY(שעות_עבודה7[[#This Row],[התחלה]])=1,"ראשון",WEEKDAY(שעות_עבודה7[[#This Row],[התחלה]])=2,"שני",WEEKDAY(שעות_עבודה7[[#This Row],[התחלה]])=3,"שלישי",WEEKDAY(שעות_עבודה7[[#This Row],[התחלה]])=4,"רביעי",WEEKDAY(שעות_עבודה7[[#This Row],[התחלה]])=5,"חמישי",WEEKDAY(שעות_עבודה7[[#This Row],[התחלה]])=6,"שישי",WEEKDAY(שעות_עבודה7[[#This Row],[התחלה]])=7,"מוצ""ש") ->  | D102: =IF(שעות_עבודה7[[#This Row],[התחלה]]="","",שעות_עבודה7[[#This Row],[התחלה]]) ->  | J102: =IF(IF(OR(שעות_עבודה7[[#This Row],[התחלה]]="",שעות_עבודה7[[#This Row],[סיום]]=""), IF(שעות_עבודה7[[#This Row],[הפחתת דקות]]>שעות_עבודה7[[#This Row],[הוספת דקות]],"",שעות_עבודה7[[#This Row],[הוספת דקות]]/1440-שעות_עבודה7[[#This Row],[הפחתת דקות]]/1440), IF(שעות_עבודה7[[#This Row],[סיום]]-שעות_עבודה7[[#This Row],[התחלה]]+שעות_עבודה7[[#This Row],[הוספת דקות]]/1440<שעות_עבודה7[[#This Row],[הפחתת דקות]]/1440,"", SUM(שעות_עבודה7[[#This Row],[סיום]]-שעות_עבודה7[[#This Row],[התחלה]],שעות_עבודה7[[#This Row],[הוספת דקות]]/1440,-שעות_עבודה7[[#This Row],[הפחתת דקות]]/1440)))=0,"", IF(OR(שעות_עבודה7[[#This Row],[התחלה]]="",שעות_עבודה7[[#This Row],[סיום]]=""), IF(שעות_עבודה7[[#This Row],[הפחתת דקות]]>שעות_עבודה7[[#This Row],[הוספת דקות]],"",שעות_עבודה7[[#This Row],[הוספת דקות]]/1440-שעות_עבודה7[[#This Row],[הפחתת דקות]]/1440), IF(שעות_עבודה7[[#This Row],[סיום]]-שעות_עבודה7[[#This Row],[התחלה]]+שעות_עבודה7[[#This Row],[הוספת דקות]]/1440<שעות_עבודה7[[#This Row],[הפחתת דקות]]/1440,"", SUM(שעות_עבודה7[[#This Row],[סיום]]-שעות_עבודה7[[#This Row],[התחלה]],שעות_עבודה7[[#This Row],[הוספת דקות]]/1440,-שעות_עבודה7[[#This Row],[הפחתת דקות]]/1440)))) ->  | K102: =IF(שעות_עבודה7[[#This Row],[שעות]]="","", IFERROR(IF(IF(VLOOKUP(שעות_עבודה7[[#This Row],[שם העבודה]],טבלה1[],5,FALSE)="דולרים-$", SUMPRODUCT((שעות_עבודה7[[#This Row],[שם העבודה]]=$O$9:$O$38)*שעות_עבודה7[[#This Row],[שעות]]*($P$9:$P$38*24*שער)), SUMPRODUCT((שעות_עבודה7[[#This Row],[שם העבודה]]=$O$9:$O$38)*שעות_עבודה7[[#This Row],[שעות]]*($P$9:$P$38*24)))=0,"", IF(VLOOKUP(שעות_עבודה7[[#This Row],[שם העבודה]],טבלה1[],5,FALSE)="דולרים-$", SUMPRODUCT((שעות_עבודה7[[#This Row],[שם העבודה]]=$O$9:$O$38)*שעות_עבודה7[[#This Row],[שעות]]*($P$9:$P$38*24*שער)), SUMPRODUCT((שעות_עבודה7[[#This Row],[שם העבודה]]=$O$9:$O$38)*שעות_עבודה7[[#This Row],[שעות]]*($P$9:$P$38*24)))),"")) -> 
B103: =IF(AND(שעות_עבודה7[[#This Row],[התחלה]]="",שעות_עבודה7[[#This Row],[שם העבודה]]=""),"",ROW(A95)) ->  | C103: =_xlfn.IFS(שעות_עבודה7[[#This Row],[התחלה]]="","",WEEKDAY(שעות_עבודה7[[#This Row],[התחלה]])=1,"ראשון",WEEKDAY(שעות_עבודה7[[#This Row],[התחלה]])=2,"שני",WEEKDAY(שעות_עבודה7[[#This Row],[התחלה]])=3,"שלישי",WEEKDAY(שעות_עבודה7[[#This Row],[התחלה]])=4,"רביעי",WEEKDAY(שעות_עבודה7[[#This Row],[התחלה]])=5,"חמישי",WEEKDAY(שעות_עבודה7[[#This Row],[התחלה]])=6,"שישי",WEEKDAY(שעות_עבודה7[[#This Row],[התחלה]])=7,"מוצ""ש") ->  | D103: =IF(שעות_עבודה7[[#This Row],[התחלה]]="","",שעות_עבודה7[[#This Row],[התחלה]]) ->  | J103: =IF(IF(OR(שעות_עבודה7[[#This Row],[התחלה]]="",שעות_עבודה7[[#This Row],[סיום]]=""), IF(שעות_עבודה7[[#This Row],[הפחתת דקות]]>שעות_עבודה7[[#This Row],[הוספת דקות]],"",שעות_עבודה7[[#This Row],[הוספת דקות]]/1440-שעות_עבודה7[[#This Row],[הפחתת דקות]]/1440), IF(שעות_עבודה7[[#This Row],[סיום]]-שעות_עבודה7[[#This Row],[התחלה]]+שעות_עבודה7[[#This Row],[הוספת דקות]]/1440<שעות_עבודה7[[#This Row],[הפחתת דקות]]/1440,"", SUM(שעות_עבודה7[[#This Row],[סיום]]-שעות_עבודה7[[#This Row],[התחלה]],שעות_עבודה7[[#This Row],[הוספת דקות]]/1440,-שעות_עבודה7[[#This Row],[הפחתת דקות]]/1440)))=0,"", IF(OR(שעות_עבודה7[[#This Row],[התחלה]]="",שעות_עבודה7[[#This Row],[סיום]]=""), IF(שעות_עבודה7[[#This Row],[הפחתת דקות]]>שעות_עבודה7[[#This Row],[הוספת דקות]],"",שעות_עבודה7[[#This Row],[הוספת דקות]]/1440-שעות_עבודה7[[#This Row],[הפחתת דקות]]/1440), IF(שעות_עבודה7[[#This Row],[סיום]]-שעות_עבודה7[[#This Row],[התחלה]]+שעות_עבודה7[[#This Row],[הוספת דקות]]/1440<שעות_עבודה7[[#This Row],[הפחתת דקות]]/1440,"", SUM(שעות_עבודה7[[#This Row],[סיום]]-שעות_עבודה7[[#This Row],[התחלה]],שעות_עבודה7[[#This Row],[הוספת דקות]]/1440,-שעות_עבודה7[[#This Row],[הפחתת דקות]]/1440)))) ->  | K103: =IF(שעות_עבודה7[[#This Row],[שעות]]="","", IFERROR(IF(IF(VLOOKUP(שעות_עבודה7[[#This Row],[שם העבודה]],טבלה1[],5,FALSE)="דולרים-$", SUMPRODUCT((שעות_עבודה7[[#This Row],[שם העבודה]]=$O$9:$O$38)*שעות_עבודה7[[#This Row],[שעות]]*($P$9:$P$38*24*שער)), SUMPRODUCT((שעות_עבודה7[[#This Row],[שם העבודה]]=$O$9:$O$38)*שעות_עבודה7[[#This Row],[שעות]]*($P$9:$P$38*24)))=0,"", IF(VLOOKUP(שעות_עבודה7[[#This Row],[שם העבודה]],טבלה1[],5,FALSE)="דולרים-$", SUMPRODUCT((שעות_עבודה7[[#This Row],[שם העבודה]]=$O$9:$O$38)*שעות_עבודה7[[#This Row],[שעות]]*($P$9:$P$38*24*שער)), SUMPRODUCT((שעות_עבודה7[[#This Row],[שם העבודה]]=$O$9:$O$38)*שעות_עבודה7[[#This Row],[שעות]]*($P$9:$P$38*24)))),"")) -> 
B104: =IF(AND(שעות_עבודה7[[#This Row],[התחלה]]="",שעות_עבודה7[[#This Row],[שם העבודה]]=""),"",ROW(A96)) ->  | C104: =_xlfn.IFS(שעות_עבודה7[[#This Row],[התחלה]]="","",WEEKDAY(שעות_עבודה7[[#This Row],[התחלה]])=1,"ראשון",WEEKDAY(שעות_עבודה7[[#This Row],[התחלה]])=2,"שני",WEEKDAY(שעות_עבודה7[[#This Row],[התחלה]])=3,"שלישי",WEEKDAY(שעות_עבודה7[[#This Row],[התחלה]])=4,"רביעי",WEEKDAY(שעות_עבודה7[[#This Row],[התחלה]])=5,"חמישי",WEEKDAY(שעות_עבודה7[[#This Row],[התחלה]])=6,"שישי",WEEKDAY(שעות_עבודה7[[#This Row],[התחלה]])=7,"מוצ""ש") ->  | D104: =IF(שעות_עבודה7[[#This Row],[התחלה]]="","",שעות_עבודה7[[#This Row],[התחלה]]) ->  | J104: =IF(IF(OR(שעות_עבודה7[[#This Row],[התחלה]]="",שעות_עבודה7[[#This Row],[סיום]]=""), IF(שעות_עבודה7[[#This Row],[הפחתת דקות]]>שעות_עבודה7[[#This Row],[הוספת דקות]],"",שעות_עבודה7[[#This Row],[הוספת דקות]]/1440-שעות_עבודה7[[#This Row],[הפחתת דקות]]/1440), IF(שעות_עבודה7[[#This Row],[סיום]]-שעות_עבודה7[[#This Row],[התחלה]]+שעות_עבודה7[[#This Row],[הוספת דקות]]/1440<שעות_עבודה7[[#This Row],[הפחתת דקות]]/1440,"", SUM(שעות_עבודה7[[#This Row],[סיום]]-שעות_עבודה7[[#This Row],[התחלה]],שעות_עבודה7[[#This Row],[הוספת דקות]]/1440,-שעות_עבודה7[[#This Row],[הפחתת דקות]]/1440)))=0,"", IF(OR(שעות_עבודה7[[#This Row],[התחלה]]="",שעות_עבודה7[[#This Row],[סיום]]=""), IF(שעות_עבודה7[[#This Row],[הפחתת דקות]]>שעות_עבודה7[[#This Row],[הוספת דקות]],"",שעות_עבודה7[[#This Row],[הוספת דקות]]/1440-שעות_עבודה7[[#This Row],[הפחתת דקות]]/1440), IF(שעות_עבודה7[[#This Row],[סיום]]-שעות_עבודה7[[#This Row],[התחלה]]+שעות_עבודה7[[#This Row],[הוספת דקות]]/1440<שעות_עבודה7[[#This Row],[הפחתת דקות]]/1440,"", SUM(שעות_עבודה7[[#This Row],[סיום]]-שעות_עבודה7[[#This Row],[התחלה]],שעות_עבודה7[[#This Row],[הוספת דקות]]/1440,-שעות_עבודה7[[#This Row],[הפחתת דקות]]/1440)))) ->  | K104: =IF(שעות_עבודה7[[#This Row],[שעות]]="","", IFERROR(IF(IF(VLOOKUP(שעות_עבודה7[[#This Row],[שם העבודה]],טבלה1[],5,FALSE)="דולרים-$", SUMPRODUCT((שעות_עבודה7[[#This Row],[שם העבודה]]=$O$9:$O$38)*שעות_עבודה7[[#This Row],[שעות]]*($P$9:$P$38*24*שער)), SUMPRODUCT((שעות_עבודה7[[#This Row],[שם העבודה]]=$O$9:$O$38)*שעות_עבודה7[[#This Row],[שעות]]*($P$9:$P$38*24)))=0,"", IF(VLOOKUP(שעות_עבודה7[[#This Row],[שם העבודה]],טבלה1[],5,FALSE)="דולרים-$", SUMPRODUCT((שעות_עבודה7[[#This Row],[שם העבודה]]=$O$9:$O$38)*שעות_עבודה7[[#This Row],[שעות]]*($P$9:$P$38*24*שער)), SUMPRODUCT((שעות_עבודה7[[#This Row],[שם העבודה]]=$O$9:$O$38)*שעות_עבודה7[[#This Row],[שעות]]*($P$9:$P$38*24)))),"")) -> 
B105: =IF(AND(שעות_עבודה7[[#This Row],[התחלה]]="",שעות_עבודה7[[#This Row],[שם העבודה]]=""),"",ROW(A97)) ->  | C105: =_xlfn.IFS(שעות_עבודה7[[#This Row],[התחלה]]="","",WEEKDAY(שעות_עבודה7[[#This Row],[התחלה]])=1,"ראשון",WEEKDAY(שעות_עבודה7[[#This Row],[התחלה]])=2,"שני",WEEKDAY(שעות_עבודה7[[#This Row],[התחלה]])=3,"שלישי",WEEKDAY(שעות_עבודה7[[#This Row],[התחלה]])=4,"רביעי",WEEKDAY(שעות_עבודה7[[#This Row],[התחלה]])=5,"חמישי",WEEKDAY(שעות_עבודה7[[#This Row],[התחלה]])=6,"שישי",WEEKDAY(שעות_עבודה7[[#This Row],[התחלה]])=7,"מוצ""ש") ->  | D105: =IF(שעות_עבודה7[[#This Row],[התחלה]]="","",שעות_עבודה7[[#This Row],[התחלה]]) ->  | J105: =IF(IF(OR(שעות_עבודה7[[#This Row],[התחלה]]="",שעות_עבודה7[[#This Row],[סיום]]=""), IF(שעות_עבודה7[[#This Row],[הפחתת דקות]]>שעות_עבודה7[[#This Row],[הוספת דקות]],"",שעות_עבודה7[[#This Row],[הוספת דקות]]/1440-שעות_עבודה7[[#This Row],[הפחתת דקות]]/1440), IF(שעות_עבודה7[[#This Row],[סיום]]-שעות_עבודה7[[#This Row],[התחלה]]+שעות_עבודה7[[#This Row],[הוספת דקות]]/1440<שעות_עבודה7[[#This Row],[הפחתת דקות]]/1440,"", SUM(שעות_עבודה7[[#This Row],[סיום]]-שעות_עבודה7[[#This Row],[התחלה]],שעות_עבודה7[[#This Row],[הוספת דקות]]/1440,-שעות_עבודה7[[#This Row],[הפחתת דקות]]/1440)))=0,"", IF(OR(שעות_עבודה7[[#This Row],[התחלה]]="",שעות_עבודה7[[#This Row],[סיום]]=""), IF(שעות_עבודה7[[#This Row],[הפחתת דקות]]>שעות_עבודה7[[#This Row],[הוספת דקות]],"",שעות_עבודה7[[#This Row],[הוספת דקות]]/1440-שעות_עבודה7[[#This Row],[הפחתת דקות]]/1440), IF(שעות_עבודה7[[#This Row],[סיום]]-שעות_עבודה7[[#This Row],[התחלה]]+שעות_עבודה7[[#This Row],[הוספת דקות]]/1440<שעות_עבודה7[[#This Row],[הפחתת דקות]]/1440,"", SUM(שעות_עבודה7[[#This Row],[סיום]]-שעות_עבודה7[[#This Row],[התחלה]],שעות_עבודה7[[#This Row],[הוספת דקות]]/1440,-שעות_עבודה7[[#This Row],[הפחתת דקות]]/1440)))) ->  | K105: =IF(שעות_עבודה7[[#This Row],[שעות]]="","", IFERROR(IF(IF(VLOOKUP(שעות_עבודה7[[#This Row],[שם העבודה]],טבלה1[],5,FALSE)="דולרים-$", SUMPRODUCT((שעות_עבודה7[[#This Row],[שם העבודה]]=$O$9:$O$38)*שעות_עבודה7[[#This Row],[שעות]]*($P$9:$P$38*24*שער)), SUMPRODUCT((שעות_עבודה7[[#This Row],[שם העבודה]]=$O$9:$O$38)*שעות_עבודה7[[#This Row],[שעות]]*($P$9:$P$38*24)))=0,"", IF(VLOOKUP(שעות_עבודה7[[#This Row],[שם העבודה]],טבלה1[],5,FALSE)="דולרים-$", SUMPRODUCT((שעות_עבודה7[[#This Row],[שם העבודה]]=$O$9:$O$38)*שעות_עבודה7[[#This Row],[שעות]]*($P$9:$P$38*24*שער)), SUMPRODUCT((שעות_עבודה7[[#This Row],[שם העבודה]]=$O$9:$O$38)*שעות_עבודה7[[#This Row],[שעות]]*($P$9:$P$38*24)))),"")) -> 
B106: =IF(AND(שעות_עבודה7[[#This Row],[התחלה]]="",שעות_עבודה7[[#This Row],[שם העבודה]]=""),"",ROW(A98)) ->  | C106: =_xlfn.IFS(שעות_עבודה7[[#This Row],[התחלה]]="","",WEEKDAY(שעות_עבודה7[[#This Row],[התחלה]])=1,"ראשון",WEEKDAY(שעות_עבודה7[[#This Row],[התחלה]])=2,"שני",WEEKDAY(שעות_עבודה7[[#This Row],[התחלה]])=3,"שלישי",WEEKDAY(שעות_עבודה7[[#This Row],[התחלה]])=4,"רביעי",WEEKDAY(שעות_עבודה7[[#This Row],[התחלה]])=5,"חמישי",WEEKDAY(שעות_עבודה7[[#This Row],[התחלה]])=6,"שישי",WEEKDAY(שעות_עבודה7[[#This Row],[התחלה]])=7,"מוצ""ש") ->  | D106: =IF(שעות_עבודה7[[#This Row],[התחלה]]="","",שעות_עבודה7[[#This Row],[התחלה]]) ->  | J106: =IF(IF(OR(שעות_עבודה7[[#This Row],[התחלה]]="",שעות_עבודה7[[#This Row],[סיום]]=""), IF(שעות_עבודה7[[#This Row],[הפחתת דקות]]>שעות_עבודה7[[#This Row],[הוספת דקות]],"",שעות_עבודה7[[#This Row],[הוספת דקות]]/1440-שעות_עבודה7[[#This Row],[הפחתת דקות]]/1440), IF(שעות_עבודה7[[#This Row],[סיום]]-שעות_עבודה7[[#This Row],[התחלה]]+שעות_עבודה7[[#This Row],[הוספת דקות]]/1440<שעות_עבודה7[[#This Row],[הפחתת דקות]]/1440,"", SUM(שעות_עבודה7[[#This Row],[סיום]]-שעות_עבודה7[[#This Row],[התחלה]],שעות_עבודה7[[#This Row],[הוספת דקות]]/1440,-שעות_עבודה7[[#This Row],[הפחתת דקות]]/1440)))=0,"", IF(OR(שעות_עבודה7[[#This Row],[התחלה]]="",שעות_עבודה7[[#This Row],[סיום]]=""), IF(שעות_עבודה7[[#This Row],[הפחתת דקות]]>שעות_עבודה7[[#This Row],[הוספת דקות]],"",שעות_עבודה7[[#This Row],[הוספת דקות]]/1440-שעות_עבודה7[[#This Row],[הפחתת דקות]]/1440), IF(שעות_עבודה7[[#This Row],[סיום]]-שעות_עבודה7[[#This Row],[התחלה]]+שעות_עבודה7[[#This Row],[הוספת דקות]]/1440<שעות_עבודה7[[#This Row],[הפחתת דקות]]/1440,"", SUM(שעות_עבודה7[[#This Row],[סיום]]-שעות_עבודה7[[#This Row],[התחלה]],שעות_עבודה7[[#This Row],[הוספת דקות]]/1440,-שעות_עבודה7[[#This Row],[הפחתת דקות]]/1440)))) ->  | K106: =IF(שעות_עבודה7[[#This Row],[שעות]]="","", IFERROR(IF(IF(VLOOKUP(שעות_עבודה7[[#This Row],[שם העבודה]],טבלה1[],5,FALSE)="דולרים-$", SUMPRODUCT((שעות_עבודה7[[#This Row],[שם העבודה]]=$O$9:$O$38)*שעות_עבודה7[[#This Row],[שעות]]*($P$9:$P$38*24*שער)), SUMPRODUCT((שעות_עבודה7[[#This Row],[שם העבודה]]=$O$9:$O$38)*שעות_עבודה7[[#This Row],[שעות]]*($P$9:$P$38*24)))=0,"", IF(VLOOKUP(שעות_עבודה7[[#This Row],[שם העבודה]],טבלה1[],5,FALSE)="דולרים-$", SUMPRODUCT((שעות_עבודה7[[#This Row],[שם העבודה]]=$O$9:$O$38)*שעות_עבודה7[[#This Row],[שעות]]*($P$9:$P$38*24*שער)), SUMPRODUCT((שעות_עבודה7[[#This Row],[שם העבודה]]=$O$9:$O$38)*שעות_עבודה7[[#This Row],[שעות]]*($P$9:$P$38*24)))),"")) -> 
B107: =IF(AND(שעות_עבודה7[[#This Row],[התחלה]]="",שעות_עבודה7[[#This Row],[שם העבודה]]=""),"",ROW(A99)) ->  | C107: =_xlfn.IFS(שעות_עבודה7[[#This Row],[התחלה]]="","",WEEKDAY(שעות_עבודה7[[#This Row],[התחלה]])=1,"ראשון",WEEKDAY(שעות_עבודה7[[#This Row],[התחלה]])=2,"שני",WEEKDAY(שעות_עבודה7[[#This Row],[התחלה]])=3,"שלישי",WEEKDAY(שעות_עבודה7[[#This Row],[התחלה]])=4,"רביעי",WEEKDAY(שעות_עבודה7[[#This Row],[התחלה]])=5,"חמישי",WEEKDAY(שעות_עבודה7[[#This Row],[התחלה]])=6,"שישי",WEEKDAY(שעות_עבודה7[[#This Row],[התחלה]])=7,"מוצ""ש") ->  | D107: =IF(שעות_עבודה7[[#This Row],[התחלה]]="","",שעות_עבודה7[[#This Row],[התחלה]]) ->  | J107: =IF(IF(OR(שעות_עבודה7[[#This Row],[התחלה]]="",שעות_עבודה7[[#This Row],[סיום]]=""), IF(שעות_עבודה7[[#This Row],[הפחתת דקות]]>שעות_עבודה7[[#This Row],[הוספת דקות]],"",שעות_עבודה7[[#This Row],[הוספת דקות]]/1440-שעות_עבודה7[[#This Row],[הפחתת דקות]]/1440), IF(שעות_עבודה7[[#This Row],[סיום]]-שעות_עבודה7[[#This Row],[התחלה]]+שעות_עבודה7[[#This Row],[הוספת דקות]]/1440<שעות_עבודה7[[#This Row],[הפחתת דקות]]/1440,"", SUM(שעות_עבודה7[[#This Row],[סיום]]-שעות_עבודה7[[#This Row],[התחלה]],שעות_עבודה7[[#This Row],[הוספת דקות]]/1440,-שעות_עבודה7[[#This Row],[הפחתת דקות]]/1440)))=0,"", IF(OR(שעות_עבודה7[[#This Row],[התחלה]]="",שעות_עבודה7[[#This Row],[סיום]]=""), IF(שעות_עבודה7[[#This Row],[הפחתת דקות]]>שעות_עבודה7[[#This Row],[הוספת דקות]],"",שעות_עבודה7[[#This Row],[הוספת דקות]]/1440-שעות_עבודה7[[#This Row],[הפחתת דקות]]/1440), IF(שעות_עבודה7[[#This Row],[סיום]]-שעות_עבודה7[[#This Row],[התחלה]]+שעות_עבודה7[[#This Row],[הוספת דקות]]/1440<שעות_עבודה7[[#This Row],[הפחתת דקות]]/1440,"", SUM(שעות_עבודה7[[#This Row],[סיום]]-שעות_עבודה7[[#This Row],[התחלה]],שעות_עבודה7[[#This Row],[הוספת דקות]]/1440,-שעות_עבודה7[[#This Row],[הפחתת דקות]]/1440)))) ->  | K107: =IF(שעות_עבודה7[[#This Row],[שעות]]="","", IFERROR(IF(IF(VLOOKUP(שעות_עבודה7[[#This Row],[שם העבודה]],טבלה1[],5,FALSE)="דולרים-$", SUMPRODUCT((שעות_עבודה7[[#This Row],[שם העבודה]]=$O$9:$O$38)*שעות_עבודה7[[#This Row],[שעות]]*($P$9:$P$38*24*שער)), SUMPRODUCT((שעות_עבודה7[[#This Row],[שם העבודה]]=$O$9:$O$38)*שעות_עבודה7[[#This Row],[שעות]]*($P$9:$P$38*24)))=0,"", IF(VLOOKUP(שעות_עבודה7[[#This Row],[שם העבודה]],טבלה1[],5,FALSE)="דולרים-$", SUMPRODUCT((שעות_עבודה7[[#This Row],[שם העבודה]]=$O$9:$O$38)*שעות_עבודה7[[#This Row],[שעות]]*($P$9:$P$38*24*שער)), SUMPRODUCT((שעות_עבודה7[[#This Row],[שם העבודה]]=$O$9:$O$38)*שעות_עבודה7[[#This Row],[שעות]]*($P$9:$P$38*24)))),"")) -> 
B108: =IF(AND(שעות_עבודה7[[#This Row],[התחלה]]="",שעות_עבודה7[[#This Row],[שם העבודה]]=""),"",ROW(A100)) ->  | C108: =_xlfn.IFS(שעות_עבודה7[[#This Row],[התחלה]]="","",WEEKDAY(שעות_עבודה7[[#This Row],[התחלה]])=1,"ראשון",WEEKDAY(שעות_עבודה7[[#This Row],[התחלה]])=2,"שני",WEEKDAY(שעות_עבודה7[[#This Row],[התחלה]])=3,"שלישי",WEEKDAY(שעות_עבודה7[[#This Row],[התחלה]])=4,"רביעי",WEEKDAY(שעות_עבודה7[[#This Row],[התחלה]])=5,"חמישי",WEEKDAY(שעות_עבודה7[[#This Row],[התחלה]])=6,"שישי",WEEKDAY(שעות_עבודה7[[#This Row],[התחלה]])=7,"מוצ""ש") ->  | D108: =IF(שעות_עבודה7[[#This Row],[התחלה]]="","",שעות_עבודה7[[#This Row],[התחלה]]) ->  | J108: =IF(IF(OR(שעות_עבודה7[[#This Row],[התחלה]]="",שעות_עבודה7[[#This Row],[סיום]]=""), IF(שעות_עבודה7[[#This Row],[הפחתת דקות]]>שעות_עבודה7[[#This Row],[הוספת דקות]],"",שעות_עבודה7[[#This Row],[הוספת דקות]]/1440-שעות_עבודה7[[#This Row],[הפחתת דקות]]/1440), IF(שעות_עבודה7[[#This Row],[סיום]]-שעות_עבודה7[[#This Row],[התחלה]]+שעות_עבודה7[[#This Row],[הוספת דקות]]/1440<שעות_עבודה7[[#This Row],[הפחתת דקות]]/1440,"", SUM(שעות_עבודה7[[#This Row],[סיום]]-שעות_עבודה7[[#This Row],[התחלה]],שעות_עבודה7[[#This Row],[הוספת דקות]]/1440,-שעות_עבודה7[[#This Row],[הפחתת דקות]]/1440)))=0,"", IF(OR(שעות_עבודה7[[#This Row],[התחלה]]="",שעות_עבודה7[[#This Row],[סיום]]=""), IF(שעות_עבודה7[[#This Row],[הפחתת דקות]]>שעות_עבודה7[[#This Row],[הוספת דקות]],"",שעות_עבודה7[[#This Row],[הוספת דקות]]/1440-שעות_עבודה7[[#This Row],[הפחתת דקות]]/1440), IF(שעות_עבודה7[[#This Row],[סיום]]-שעות_עבודה7[[#This Row],[התחלה]]+שעות_עבודה7[[#This Row],[הוספת דקות]]/1440<שעות_עבודה7[[#This Row],[הפחתת דקות]]/1440,"", SUM(שעות_עבודה7[[#This Row],[סיום]]-שעות_עבודה7[[#This Row],[התחלה]],שעות_עבודה7[[#This Row],[הוספת דקות]]/1440,-שעות_עבודה7[[#This Row],[הפחתת דקות]]/1440)))) ->  | K108: =IF(שעות_עבודה7[[#This Row],[שעות]]="","", IFERROR(IF(IF(VLOOKUP(שעות_עבודה7[[#This Row],[שם העבודה]],טבלה1[],5,FALSE)="דולרים-$", SUMPRODUCT((שעות_עבודה7[[#This Row],[שם העבודה]]=$O$9:$O$38)*שעות_עבודה7[[#This Row],[שעות]]*($P$9:$P$38*24*שער)), SUMPRODUCT((שעות_עבודה7[[#This Row],[שם העבודה]]=$O$9:$O$38)*שעות_עבודה7[[#This Row],[שעות]]*($P$9:$P$38*24)))=0,"", IF(VLOOKUP(שעות_עבודה7[[#This Row],[שם העבודה]],טבלה1[],5,FALSE)="דולרים-$", SUMPRODUCT((שעות_עבודה7[[#This Row],[שם העבודה]]=$O$9:$O$38)*שעות_עבודה7[[#This Row],[שעות]]*($P$9:$P$38*24*שער)), SUMPRODUCT((שעות_עבודה7[[#This Row],[שם העבודה]]=$O$9:$O$38)*שעות_עבודה7[[#This Row],[שעות]]*($P$9:$P$38*24)))),"")) -> 
B109: =IF(AND(שעות_עבודה7[[#This Row],[התחלה]]="",שעות_עבודה7[[#This Row],[שם העבודה]]=""),"",ROW(A101)) ->  | C109: =_xlfn.IFS(שעות_עבודה7[[#This Row],[התחלה]]="","",WEEKDAY(שעות_עבודה7[[#This Row],[התחלה]])=1,"ראשון",WEEKDAY(שעות_עבודה7[[#This Row],[התחלה]])=2,"שני",WEEKDAY(שעות_עבודה7[[#This Row],[התחלה]])=3,"שלישי",WEEKDAY(שעות_עבודה7[[#This Row],[התחלה]])=4,"רביעי",WEEKDAY(שעות_עבודה7[[#This Row],[התחלה]])=5,"חמישי",WEEKDAY(שעות_עבודה7[[#This Row],[התחלה]])=6,"שישי",WEEKDAY(שעות_עבודה7[[#This Row],[התחלה]])=7,"מוצ""ש") ->  | D109: =IF(שעות_עבודה7[[#This Row],[התחלה]]="","",שעות_עבודה7[[#This Row],[התחלה]]) ->  | J109: =IF(IF(OR(שעות_עבודה7[[#This Row],[התחלה]]="",שעות_עבודה7[[#This Row],[סיום]]=""), IF(שעות_עבודה7[[#This Row],[הפחתת דקות]]>שעות_עבודה7[[#This Row],[הוספת דקות]],"",שעות_עבודה7[[#This Row],[הוספת דקות]]/1440-שעות_עבודה7[[#This Row],[הפחתת דקות]]/1440), IF(שעות_עבודה7[[#This Row],[סיום]]-שעות_עבודה7[[#This Row],[התחלה]]+שעות_עבודה7[[#This Row],[הוספת דקות]]/1440<שעות_עבודה7[[#This Row],[הפחתת דקות]]/1440,"", SUM(שעות_עבודה7[[#This Row],[סיום]]-שעות_עבודה7[[#This Row],[התחלה]],שעות_עבודה7[[#This Row],[הוספת דקות]]/1440,-שעות_עבודה7[[#This Row],[הפחתת דקות]]/1440)))=0,"", IF(OR(שעות_עבודה7[[#This Row],[התחלה]]="",שעות_עבודה7[[#This Row],[סיום]]=""), IF(שעות_עבודה7[[#This Row],[הפחתת דקות]]>שעות_עבודה7[[#This Row],[הוספת דקות]],"",שעות_עבודה7[[#This Row],[הוספת דקות]]/1440-שעות_עבודה7[[#This Row],[הפחתת דקות]]/1440), IF(שעות_עבודה7[[#This Row],[סיום]]-שעות_עבודה7[[#This Row],[התחלה]]+שעות_עבודה7[[#This Row],[הוספת דקות]]/1440<שעות_עבודה7[[#This Row],[הפחתת דקות]]/1440,"", SUM(שעות_עבודה7[[#This Row],[סיום]]-שעות_עבודה7[[#This Row],[התחלה]],שעות_עבודה7[[#This Row],[הוספת דקות]]/1440,-שעות_עבודה7[[#This Row],[הפחתת דקות]]/1440)))) ->  | K109: =IF(שעות_עבודה7[[#This Row],[שעות]]="","", IFERROR(IF(IF(VLOOKUP(שעות_עבודה7[[#This Row],[שם העבודה]],טבלה1[],5,FALSE)="דולרים-$", SUMPRODUCT((שעות_עבודה7[[#This Row],[שם העבודה]]=$O$9:$O$38)*שעות_עבודה7[[#This Row],[שעות]]*($P$9:$P$38*24*שער)), SUMPRODUCT((שעות_עבודה7[[#This Row],[שם העבודה]]=$O$9:$O$38)*שעות_עבודה7[[#This Row],[שעות]]*($P$9:$P$38*24)))=0,"", IF(VLOOKUP(שעות_עבודה7[[#This Row],[שם העבודה]],טבלה1[],5,FALSE)="דולרים-$", SUMPRODUCT((שעות_עבודה7[[#This Row],[שם העבודה]]=$O$9:$O$38)*שעות_עבודה7[[#This Row],[שעות]]*($P$9:$P$38*24*שער)), SUMPRODUCT((שעות_עבודה7[[#This Row],[שם העבודה]]=$O$9:$O$38)*שעות_עבודה7[[#This Row],[שעות]]*($P$9:$P$38*24)))),"")) -> 
B110: =IF(AND(שעות_עבודה7[[#This Row],[התחלה]]="",שעות_עבודה7[[#This Row],[שם העבודה]]=""),"",ROW(A102)) ->  | C110: =_xlfn.IFS(שעות_עבודה7[[#This Row],[התחלה]]="","",WEEKDAY(שעות_עבודה7[[#This Row],[התחלה]])=1,"ראשון",WEEKDAY(שעות_עבודה7[[#This Row],[התחלה]])=2,"שני",WEEKDAY(שעות_עבודה7[[#This Row],[התחלה]])=3,"שלישי",WEEKDAY(שעות_עבודה7[[#This Row],[התחלה]])=4,"רביעי",WEEKDAY(שעות_עבודה7[[#This Row],[התחלה]])=5,"חמישי",WEEKDAY(שעות_עבודה7[[#This Row],[התחלה]])=6,"שישי",WEEKDAY(שעות_עבודה7[[#This Row],[התחלה]])=7,"מוצ""ש") ->  | D110: =IF(שעות_עבודה7[[#This Row],[התחלה]]="","",שעות_עבודה7[[#This Row],[התחלה]]) ->  | J110: =IF(IF(OR(שעות_עבודה7[[#This Row],[התחלה]]="",שעות_עבודה7[[#This Row],[סיום]]=""), IF(שעות_עבודה7[[#This Row],[הפחתת דקות]]>שעות_עבודה7[[#This Row],[הוספת דקות]],"",שעות_עבודה7[[#This Row],[הוספת דקות]]/1440-שעות_עבודה7[[#This Row],[הפחתת דקות]]/1440), IF(שעות_עבודה7[[#This Row],[סיום]]-שעות_עבודה7[[#This Row],[התחלה]]+שעות_עבודה7[[#This Row],[הוספת דקות]]/1440<שעות_עבודה7[[#This Row],[הפחתת דקות]]/1440,"", SUM(שעות_עבודה7[[#This Row],[סיום]]-שעות_עבודה7[[#This Row],[התחלה]],שעות_עבודה7[[#This Row],[הוספת דקות]]/1440,-שעות_עבודה7[[#This Row],[הפחתת דקות]]/1440)))=0,"", IF(OR(שעות_עבודה7[[#This Row],[התחלה]]="",שעות_עבודה7[[#This Row],[סיום]]=""), IF(שעות_עבודה7[[#This Row],[הפחתת דקות]]>שעות_עבודה7[[#This Row],[הוספת דקות]],"",שעות_עבודה7[[#This Row],[הוספת דקות]]/1440-שעות_עבודה7[[#This Row],[הפחתת דקות]]/1440), IF(שעות_עבודה7[[#This Row],[סיום]]-שעות_עבודה7[[#This Row],[התחלה]]+שעות_עבודה7[[#This Row],[הוספת דקות]]/1440<שעות_עבודה7[[#This Row],[הפחתת דקות]]/1440,"", SUM(שעות_עבודה7[[#This Row],[סיום]]-שעות_עבודה7[[#This Row],[התחלה]],שעות_עבודה7[[#This Row],[הוספת דקות]]/1440,-שעות_עבודה7[[#This Row],[הפחתת דקות]]/1440)))) ->  | K110: =IF(שעות_עבודה7[[#This Row],[שעות]]="","", IFERROR(IF(IF(VLOOKUP(שעות_עבודה7[[#This Row],[שם העבודה]],טבלה1[],5,FALSE)="דולרים-$", SUMPRODUCT((שעות_עבודה7[[#This Row],[שם העבודה]]=$O$9:$O$38)*שעות_עבודה7[[#This Row],[שעות]]*($P$9:$P$38*24*שער)), SUMPRODUCT((שעות_עבודה7[[#This Row],[שם העבודה]]=$O$9:$O$38)*שעות_עבודה7[[#This Row],[שעות]]*($P$9:$P$38*24)))=0,"", IF(VLOOKUP(שעות_עבודה7[[#This Row],[שם העבודה]],טבלה1[],5,FALSE)="דולרים-$", SUMPRODUCT((שעות_עבודה7[[#This Row],[שם העבודה]]=$O$9:$O$38)*שעות_עבודה7[[#This Row],[שעות]]*($P$9:$P$38*24*שער)), SUMPRODUCT((שעות_עבודה7[[#This Row],[שם העבודה]]=$O$9:$O$38)*שעות_עבודה7[[#This Row],[שעות]]*($P$9:$P$38*24)))),"")) -> 
B111: =IF(AND(שעות_עבודה7[[#This Row],[התחלה]]="",שעות_עבודה7[[#This Row],[שם העבודה]]=""),"",ROW(A103)) ->  | C111: =_xlfn.IFS(שעות_עבודה7[[#This Row],[התחלה]]="","",WEEKDAY(שעות_עבודה7[[#This Row],[התחלה]])=1,"ראשון",WEEKDAY(שעות_עבודה7[[#This Row],[התחלה]])=2,"שני",WEEKDAY(שעות_עבודה7[[#This Row],[התחלה]])=3,"שלישי",WEEKDAY(שעות_עבודה7[[#This Row],[התחלה]])=4,"רביעי",WEEKDAY(שעות_עבודה7[[#This Row],[התחלה]])=5,"חמישי",WEEKDAY(שעות_עבודה7[[#This Row],[התחלה]])=6,"שישי",WEEKDAY(שעות_עבודה7[[#This Row],[התחלה]])=7,"מוצ""ש") ->  | D111: =IF(שעות_עבודה7[[#This Row],[התחלה]]="","",שעות_עבודה7[[#This Row],[התחלה]]) ->  | J111: =IF(IF(OR(שעות_עבודה7[[#This Row],[התחלה]]="",שעות_עבודה7[[#This Row],[סיום]]=""), IF(שעות_עבודה7[[#This Row],[הפחתת דקות]]>שעות_עבודה7[[#This Row],[הוספת דקות]],"",שעות_עבודה7[[#This Row],[הוספת דקות]]/1440-שעות_עבודה7[[#This Row],[הפחתת דקות]]/1440), IF(שעות_עבודה7[[#This Row],[סיום]]-שעות_עבודה7[[#This Row],[התחלה]]+שעות_עבודה7[[#This Row],[הוספת דקות]]/1440<שעות_עבודה7[[#This Row],[הפחתת דקות]]/1440,"", SUM(שעות_עבודה7[[#This Row],[סיום]]-שעות_עבודה7[[#This Row],[התחלה]],שעות_עבודה7[[#This Row],[הוספת דקות]]/1440,-שעות_עבודה7[[#This Row],[הפחתת דקות]]/1440)))=0,"", IF(OR(שעות_עבודה7[[#This Row],[התחלה]]="",שעות_עבודה7[[#This Row],[סיום]]=""), IF(שעות_עבודה7[[#This Row],[הפחתת דקות]]>שעות_עבודה7[[#This Row],[הוספת דקות]],"",שעות_עבודה7[[#This Row],[הוספת דקות]]/1440-שעות_עבודה7[[#This Row],[הפחתת דקות]]/1440), IF(שעות_עבודה7[[#This Row],[סיום]]-שעות_עבודה7[[#This Row],[התחלה]]+שעות_עבודה7[[#This Row],[הוספת דקות]]/1440<שעות_עבודה7[[#This Row],[הפחתת דקות]]/1440,"", SUM(שעות_עבודה7[[#This Row],[סיום]]-שעות_עבודה7[[#This Row],[התחלה]],שעות_עבודה7[[#This Row],[הוספת דקות]]/1440,-שעות_עבודה7[[#This Row],[הפחתת דקות]]/1440)))) ->  | K111: =IF(שעות_עבודה7[[#This Row],[שעות]]="","", IFERROR(IF(IF(VLOOKUP(שעות_עבודה7[[#This Row],[שם העבודה]],טבלה1[],5,FALSE)="דולרים-$", SUMPRODUCT((שעות_עבודה7[[#This Row],[שם העבודה]]=$O$9:$O$38)*שעות_עבודה7[[#This Row],[שעות]]*($P$9:$P$38*24*שער)), SUMPRODUCT((שעות_עבודה7[[#This Row],[שם העבודה]]=$O$9:$O$38)*שעות_עבודה7[[#This Row],[שעות]]*($P$9:$P$38*24)))=0,"", IF(VLOOKUP(שעות_עבודה7[[#This Row],[שם העבודה]],טבלה1[],5,FALSE)="דולרים-$", SUMPRODUCT((שעות_עבודה7[[#This Row],[שם העבודה]]=$O$9:$O$38)*שעות_עבודה7[[#This Row],[שעות]]*($P$9:$P$38*24*שער)), SUMPRODUCT((שעות_עבודה7[[#This Row],[שם העבודה]]=$O$9:$O$38)*שעות_עבודה7[[#This Row],[שעות]]*($P$9:$P$38*24)))),"")) -> 
B112: =IF(AND(שעות_עבודה7[[#This Row],[התחלה]]="",שעות_עבודה7[[#This Row],[שם העבודה]]=""),"",ROW(A104)) ->  | C112: =_xlfn.IFS(שעות_עבודה7[[#This Row],[התחלה]]="","",WEEKDAY(שעות_עבודה7[[#This Row],[התחלה]])=1,"ראשון",WEEKDAY(שעות_עבודה7[[#This Row],[התחלה]])=2,"שני",WEEKDAY(שעות_עבודה7[[#This Row],[התחלה]])=3,"שלישי",WEEKDAY(שעות_עבודה7[[#This Row],[התחלה]])=4,"רביעי",WEEKDAY(שעות_עבודה7[[#This Row],[התחלה]])=5,"חמישי",WEEKDAY(שעות_עבודה7[[#This Row],[התחלה]])=6,"שישי",WEEKDAY(שעות_עבודה7[[#This Row],[התחלה]])=7,"מוצ""ש") ->  | D112: =IF(שעות_עבודה7[[#This Row],[התחלה]]="","",שעות_עבודה7[[#This Row],[התחלה]]) ->  | J112: =IF(IF(OR(שעות_עבודה7[[#This Row],[התחלה]]="",שעות_עבודה7[[#This Row],[סיום]]=""), IF(שעות_עבודה7[[#This Row],[הפחתת דקות]]>שעות_עבודה7[[#This Row],[הוספת דקות]],"",שעות_עבודה7[[#This Row],[הוספת דקות]]/1440-שעות_עבודה7[[#This Row],[הפחתת דקות]]/1440), IF(שעות_עבודה7[[#This Row],[סיום]]-שעות_עבודה7[[#This Row],[התחלה]]+שעות_עבודה7[[#This Row],[הוספת דקות]]/1440<שעות_עבודה7[[#This Row],[הפחתת דקות]]/1440,"", SUM(שעות_עבודה7[[#This Row],[סיום]]-שעות_עבודה7[[#This Row],[התחלה]],שעות_עבודה7[[#This Row],[הוספת דקות]]/1440,-שעות_עבודה7[[#This Row],[הפחתת דקות]]/1440)))=0,"", IF(OR(שעות_עבודה7[[#This Row],[התחלה]]="",שעות_עבודה7[[#This Row],[סיום]]=""), IF(שעות_עבודה7[[#This Row],[הפחתת דקות]]>שעות_עבודה7[[#This Row],[הוספת דקות]],"",שעות_עבודה7[[#This Row],[הוספת דקות]]/1440-שעות_עבודה7[[#This Row],[הפחתת דקות]]/1440), IF(שעות_עבודה7[[#This Row],[סיום]]-שעות_עבודה7[[#This Row],[התחלה]]+שעות_עבודה7[[#This Row],[הוספת דקות]]/1440<שעות_עבודה7[[#This Row],[הפחתת דקות]]/1440,"", SUM(שעות_עבודה7[[#This Row],[סיום]]-שעות_עבודה7[[#This Row],[התחלה]],שעות_עבודה7[[#This Row],[הוספת דקות]]/1440,-שעות_עבודה7[[#This Row],[הפחתת דקות]]/1440)))) ->  | K112: =IF(שעות_עבודה7[[#This Row],[שעות]]="","", IFERROR(IF(IF(VLOOKUP(שעות_עבודה7[[#This Row],[שם העבודה]],טבלה1[],5,FALSE)="דולרים-$", SUMPRODUCT((שעות_עבודה7[[#This Row],[שם העבודה]]=$O$9:$O$38)*שעות_עבודה7[[#This Row],[שעות]]*($P$9:$P$38*24*שער)), SUMPRODUCT((שעות_עבודה7[[#This Row],[שם העבודה]]=$O$9:$O$38)*שעות_עבודה7[[#This Row],[שעות]]*($P$9:$P$38*24)))=0,"", IF(VLOOKUP(שעות_עבודה7[[#This Row],[שם העבודה]],טבלה1[],5,FALSE)="דולרים-$", SUMPRODUCT((שעות_עבודה7[[#This Row],[שם העבודה]]=$O$9:$O$38)*שעות_עבודה7[[#This Row],[שעות]]*($P$9:$P$38*24*שער)), SUMPRODUCT((שעות_עבודה7[[#This Row],[שם העבודה]]=$O$9:$O$38)*שעות_עבודה7[[#This Row],[שעות]]*($P$9:$P$38*24)))),"")) -> 
B113: =IF(AND(שעות_עבודה7[[#This Row],[התחלה]]="",שעות_עבודה7[[#This Row],[שם העבודה]]=""),"",ROW(A105)) ->  | C113: =_xlfn.IFS(שעות_עבודה7[[#This Row],[התחלה]]="","",WEEKDAY(שעות_עבודה7[[#This Row],[התחלה]])=1,"ראשון",WEEKDAY(שעות_עבודה7[[#This Row],[התחלה]])=2,"שני",WEEKDAY(שעות_עבודה7[[#This Row],[התחלה]])=3,"שלישי",WEEKDAY(שעות_עבודה7[[#This Row],[התחלה]])=4,"רביעי",WEEKDAY(שעות_עבודה7[[#This Row],[התחלה]])=5,"חמישי",WEEKDAY(שעות_עבודה7[[#This Row],[התחלה]])=6,"שישי",WEEKDAY(שעות_עבודה7[[#This Row],[התחלה]])=7,"מוצ""ש") ->  | D113: =IF(שעות_עבודה7[[#This Row],[התחלה]]="","",שעות_עבודה7[[#This Row],[התחלה]]) ->  | J113: =IF(IF(OR(שעות_עבודה7[[#This Row],[התחלה]]="",שעות_עבודה7[[#This Row],[סיום]]=""), IF(שעות_עבודה7[[#This Row],[הפחתת דקות]]>שעות_עבודה7[[#This Row],[הוספת דקות]],"",שעות_עבודה7[[#This Row],[הוספת דקות]]/1440-שעות_עבודה7[[#This Row],[הפחתת דקות]]/1440), IF(שעות_עבודה7[[#This Row],[סיום]]-שעות_עבודה7[[#This Row],[התחלה]]+שעות_עבודה7[[#This Row],[הוספת דקות]]/1440<שעות_עבודה7[[#This Row],[הפחתת דקות]]/1440,"", SUM(שעות_עבודה7[[#This Row],[סיום]]-שעות_עבודה7[[#This Row],[התחלה]],שעות_עבודה7[[#This Row],[הוספת דקות]]/1440,-שעות_עבודה7[[#This Row],[הפחתת דקות]]/1440)))=0,"", IF(OR(שעות_עבודה7[[#This Row],[התחלה]]="",שעות_עבודה7[[#This Row],[סיום]]=""), IF(שעות_עבודה7[[#This Row],[הפחתת דקות]]>שעות_עבודה7[[#This Row],[הוספת דקות]],"",שעות_עבודה7[[#This Row],[הוספת דקות]]/1440-שעות_עבודה7[[#This Row],[הפחתת דקות]]/1440), IF(שעות_עבודה7[[#This Row],[סיום]]-שעות_עבודה7[[#This Row],[התחלה]]+שעות_עבודה7[[#This Row],[הוספת דקות]]/1440<שעות_עבודה7[[#This Row],[הפחתת דקות]]/1440,"", SUM(שעות_עבודה7[[#This Row],[סיום]]-שעות_עבודה7[[#This Row],[התחלה]],שעות_עבודה7[[#This Row],[הוספת דקות]]/1440,-שעות_עבודה7[[#This Row],[הפחתת דקות]]/1440)))) ->  | K113: =IF(שעות_עבודה7[[#This Row],[שעות]]="","", IFERROR(IF(IF(VLOOKUP(שעות_עבודה7[[#This Row],[שם העבודה]],טבלה1[],5,FALSE)="דולרים-$", SUMPRODUCT((שעות_עבודה7[[#This Row],[שם העבודה]]=$O$9:$O$38)*שעות_עבודה7[[#This Row],[שעות]]*($P$9:$P$38*24*שער)), SUMPRODUCT((שעות_עבודה7[[#This Row],[שם העבודה]]=$O$9:$O$38)*שעות_עבודה7[[#This Row],[שעות]]*($P$9:$P$38*24)))=0,"", IF(VLOOKUP(שעות_עבודה7[[#This Row],[שם העבודה]],טבלה1[],5,FALSE)="דולרים-$", SUMPRODUCT((שעות_עבודה7[[#This Row],[שם העבודה]]=$O$9:$O$38)*שעות_עבודה7[[#This Row],[שעות]]*($P$9:$P$38*24*שער)), SUMPRODUCT((שעות_עבודה7[[#This Row],[שם העבודה]]=$O$9:$O$38)*שעות_עבודה7[[#This Row],[שעות]]*($P$9:$P$38*24)))),"")) -> 
B114: =IF(AND(שעות_עבודה7[[#This Row],[התחלה]]="",שעות_עבודה7[[#This Row],[שם העבודה]]=""),"",ROW(A106)) ->  | C114: =_xlfn.IFS(שעות_עבודה7[[#This Row],[התחלה]]="","",WEEKDAY(שעות_עבודה7[[#This Row],[התחלה]])=1,"ראשון",WEEKDAY(שעות_עבודה7[[#This Row],[התחלה]])=2,"שני",WEEKDAY(שעות_עבודה7[[#This Row],[התחלה]])=3,"שלישי",WEEKDAY(שעות_עבודה7[[#This Row],[התחלה]])=4,"רביעי",WEEKDAY(שעות_עבודה7[[#This Row],[התחלה]])=5,"חמישי",WEEKDAY(שעות_עבודה7[[#This Row],[התחלה]])=6,"שישי",WEEKDAY(שעות_עבודה7[[#This Row],[התחלה]])=7,"מוצ""ש") ->  | D114: =IF(שעות_עבודה7[[#This Row],[התחלה]]="","",שעות_עבודה7[[#This Row],[התחלה]]) ->  | J114: =IF(IF(OR(שעות_עבודה7[[#This Row],[התחלה]]="",שעות_עבודה7[[#This Row],[סיום]]=""), IF(שעות_עבודה7[[#This Row],[הפחתת דקות]]>שעות_עבודה7[[#This Row],[הוספת דקות]],"",שעות_עבודה7[[#This Row],[הוספת דקות]]/1440-שעות_עבודה7[[#This Row],[הפחתת דקות]]/1440), IF(שעות_עבודה7[[#This Row],[סיום]]-שעות_עבודה7[[#This Row],[התחלה]]+שעות_עבודה7[[#This Row],[הוספת דקות]]/1440<שעות_עבודה7[[#This Row],[הפחתת דקות]]/1440,"", SUM(שעות_עבודה7[[#This Row],[סיום]]-שעות_עבודה7[[#This Row],[התחלה]],שעות_עבודה7[[#This Row],[הוספת דקות]]/1440,-שעות_עבודה7[[#This Row],[הפחתת דקות]]/1440)))=0,"", IF(OR(שעות_עבודה7[[#This Row],[התחלה]]="",שעות_עבודה7[[#This Row],[סיום]]=""), IF(שעות_עבודה7[[#This Row],[הפחתת דקות]]>שעות_עבודה7[[#This Row],[הוספת דקות]],"",שעות_עבודה7[[#This Row],[הוספת דקות]]/1440-שעות_עבודה7[[#This Row],[הפחתת דקות]]/1440), IF(שעות_עבודה7[[#This Row],[סיום]]-שעות_עבודה7[[#This Row],[התחלה]]+שעות_עבודה7[[#This Row],[הוספת דקות]]/1440<שעות_עבודה7[[#This Row],[הפחתת דקות]]/1440,"", SUM(שעות_עבודה7[[#This Row],[סיום]]-שעות_עבודה7[[#This Row],[התחלה]],שעות_עבודה7[[#This Row],[הוספת דקות]]/1440,-שעות_עבודה7[[#This Row],[הפחתת דקות]]/1440)))) ->  | K114: =IF(שעות_עבודה7[[#This Row],[שעות]]="","", IFERROR(IF(IF(VLOOKUP(שעות_עבודה7[[#This Row],[שם העבודה]],טבלה1[],5,FALSE)="דולרים-$", SUMPRODUCT((שעות_עבודה7[[#This Row],[שם העבודה]]=$O$9:$O$38)*שעות_עבודה7[[#This Row],[שעות]]*($P$9:$P$38*24*שער)), SUMPRODUCT((שעות_עבודה7[[#This Row],[שם העבודה]]=$O$9:$O$38)*שעות_עבודה7[[#This Row],[שעות]]*($P$9:$P$38*24)))=0,"", IF(VLOOKUP(שעות_עבודה7[[#This Row],[שם העבודה]],טבלה1[],5,FALSE)="דולרים-$", SUMPRODUCT((שעות_עבודה7[[#This Row],[שם העבודה]]=$O$9:$O$38)*שעות_עבודה7[[#This Row],[שעות]]*($P$9:$P$38*24*שער)), SUMPRODUCT((שעות_עבודה7[[#This Row],[שם העבודה]]=$O$9:$O$38)*שעות_עבודה7[[#This Row],[שעות]]*($P$9:$P$38*24)))),"")) -> 
B115: =IF(AND(שעות_עבודה7[[#This Row],[התחלה]]="",שעות_עבודה7[[#This Row],[שם העבודה]]=""),"",ROW(A107)) ->  | C115: =_xlfn.IFS(שעות_עבודה7[[#This Row],[התחלה]]="","",WEEKDAY(שעות_עבודה7[[#This Row],[התחלה]])=1,"ראשון",WEEKDAY(שעות_עבודה7[[#This Row],[התחלה]])=2,"שני",WEEKDAY(שעות_עבודה7[[#This Row],[התחלה]])=3,"שלישי",WEEKDAY(שעות_עבודה7[[#This Row],[התחלה]])=4,"רביעי",WEEKDAY(שעות_עבודה7[[#This Row],[התחלה]])=5,"חמישי",WEEKDAY(שעות_עבודה7[[#This Row],[התחלה]])=6,"שישי",WEEKDAY(שעות_עבודה7[[#This Row],[התחלה]])=7,"מוצ""ש") ->  | D115: =IF(שעות_עבודה7[[#This Row],[התחלה]]="","",שעות_עבודה7[[#This Row],[התחלה]]) ->  | J115: =IF(IF(OR(שעות_עבודה7[[#This Row],[התחלה]]="",שעות_עבודה7[[#This Row],[סיום]]=""), IF(שעות_עבודה7[[#This Row],[הפחתת דקות]]>שעות_עבודה7[[#This Row],[הוספת דקות]],"",שעות_עבודה7[[#This Row],[הוספת דקות]]/1440-שעות_עבודה7[[#This Row],[הפחתת דקות]]/1440), IF(שעות_עבודה7[[#This Row],[סיום]]-שעות_עבודה7[[#This Row],[התחלה]]+שעות_עבודה7[[#This Row],[הוספת דקות]]/1440<שעות_עבודה7[[#This Row],[הפחתת דקות]]/1440,"", SUM(שעות_עבודה7[[#This Row],[סיום]]-שעות_עבודה7[[#This Row],[התחלה]],שעות_עבודה7[[#This Row],[הוספת דקות]]/1440,-שעות_עבודה7[[#This Row],[הפחתת דקות]]/1440)))=0,"", IF(OR(שעות_עבודה7[[#This Row],[התחלה]]="",שעות_עבודה7[[#This Row],[סיום]]=""), IF(שעות_עבודה7[[#This Row],[הפחתת דקות]]>שעות_עבודה7[[#This Row],[הוספת דקות]],"",שעות_עבודה7[[#This Row],[הוספת דקות]]/1440-שעות_עבודה7[[#This Row],[הפחתת דקות]]/1440), IF(שעות_עבודה7[[#This Row],[סיום]]-שעות_עבודה7[[#This Row],[התחלה]]+שעות_עבודה7[[#This Row],[הוספת דקות]]/1440<שעות_עבודה7[[#This Row],[הפחתת דקות]]/1440,"", SUM(שעות_עבודה7[[#This Row],[סיום]]-שעות_עבודה7[[#This Row],[התחלה]],שעות_עבודה7[[#This Row],[הוספת דקות]]/1440,-שעות_עבודה7[[#This Row],[הפחתת דקות]]/1440)))) ->  | K115: =IF(שעות_עבודה7[[#This Row],[שעות]]="","", IFERROR(IF(IF(VLOOKUP(שעות_עבודה7[[#This Row],[שם העבודה]],טבלה1[],5,FALSE)="דולרים-$", SUMPRODUCT((שעות_עבודה7[[#This Row],[שם העבודה]]=$O$9:$O$38)*שעות_עבודה7[[#This Row],[שעות]]*($P$9:$P$38*24*שער)), SUMPRODUCT((שעות_עבודה7[[#This Row],[שם העבודה]]=$O$9:$O$38)*שעות_עבודה7[[#This Row],[שעות]]*($P$9:$P$38*24)))=0,"", IF(VLOOKUP(שעות_עבודה7[[#This Row],[שם העבודה]],טבלה1[],5,FALSE)="דולרים-$", SUMPRODUCT((שעות_עבודה7[[#This Row],[שם העבודה]]=$O$9:$O$38)*שעות_עבודה7[[#This Row],[שעות]]*($P$9:$P$38*24*שער)), SUMPRODUCT((שעות_עבודה7[[#This Row],[שם העבודה]]=$O$9:$O$38)*שעות_עבודה7[[#This Row],[שעות]]*($P$9:$P$38*24)))),"")) -> 
B116: =IF(AND(שעות_עבודה7[[#This Row],[התחלה]]="",שעות_עבודה7[[#This Row],[שם העבודה]]=""),"",ROW(A108)) ->  | C116: =_xlfn.IFS(שעות_עבודה7[[#This Row],[התחלה]]="","",WEEKDAY(שעות_עבודה7[[#This Row],[התחלה]])=1,"ראשון",WEEKDAY(שעות_עבודה7[[#This Row],[התחלה]])=2,"שני",WEEKDAY(שעות_עבודה7[[#This Row],[התחלה]])=3,"שלישי",WEEKDAY(שעות_עבודה7[[#This Row],[התחלה]])=4,"רביעי",WEEKDAY(שעות_עבודה7[[#This Row],[התחלה]])=5,"חמישי",WEEKDAY(שעות_עבודה7[[#This Row],[התחלה]])=6,"שישי",WEEKDAY(שעות_עבודה7[[#This Row],[התחלה]])=7,"מוצ""ש") ->  | D116: =IF(שעות_עבודה7[[#This Row],[התחלה]]="","",שעות_עבודה7[[#This Row],[התחלה]]) ->  | J116: =IF(IF(OR(שעות_עבודה7[[#This Row],[התחלה]]="",שעות_עבודה7[[#This Row],[סיום]]=""), IF(שעות_עבודה7[[#This Row],[הפחתת דקות]]>שעות_עבודה7[[#This Row],[הוספת דקות]],"",שעות_עבודה7[[#This Row],[הוספת דקות]]/1440-שעות_עבודה7[[#This Row],[הפחתת דקות]]/1440), IF(שעות_עבודה7[[#This Row],[סיום]]-שעות_עבודה7[[#This Row],[התחלה]]+שעות_עבודה7[[#This Row],[הוספת דקות]]/1440<שעות_עבודה7[[#This Row],[הפחתת דקות]]/1440,"", SUM(שעות_עבודה7[[#This Row],[סיום]]-שעות_עבודה7[[#This Row],[התחלה]],שעות_עבודה7[[#This Row],[הוספת דקות]]/1440,-שעות_עבודה7[[#This Row],[הפחתת דקות]]/1440)))=0,"", IF(OR(שעות_עבודה7[[#This Row],[התחלה]]="",שעות_עבודה7[[#This Row],[סיום]]=""), IF(שעות_עבודה7[[#This Row],[הפחתת דקות]]>שעות_עבודה7[[#This Row],[הוספת דקות]],"",שעות_עבודה7[[#This Row],[הוספת דקות]]/1440-שעות_עבודה7[[#This Row],[הפחתת דקות]]/1440), IF(שעות_עבודה7[[#This Row],[סיום]]-שעות_עבודה7[[#This Row],[התחלה]]+שעות_עבודה7[[#This Row],[הוספת דקות]]/1440<שעות_עבודה7[[#This Row],[הפחתת דקות]]/1440,"", SUM(שעות_עבודה7[[#This Row],[סיום]]-שעות_עבודה7[[#This Row],[התחלה]],שעות_עבודה7[[#This Row],[הוספת דקות]]/1440,-שעות_עבודה7[[#This Row],[הפחתת דקות]]/1440)))) ->  | K116: =IF(שעות_עבודה7[[#This Row],[שעות]]="","", IFERROR(IF(IF(VLOOKUP(שעות_עבודה7[[#This Row],[שם העבודה]],טבלה1[],5,FALSE)="דולרים-$", SUMPRODUCT((שעות_עבודה7[[#This Row],[שם העבודה]]=$O$9:$O$38)*שעות_עבודה7[[#This Row],[שעות]]*($P$9:$P$38*24*שער)), SUMPRODUCT((שעות_עבודה7[[#This Row],[שם העבודה]]=$O$9:$O$38)*שעות_עבודה7[[#This Row],[שעות]]*($P$9:$P$38*24)))=0,"", IF(VLOOKUP(שעות_עבודה7[[#This Row],[שם העבודה]],טבלה1[],5,FALSE)="דולרים-$", SUMPRODUCT((שעות_עבודה7[[#This Row],[שם העבודה]]=$O$9:$O$38)*שעות_עבודה7[[#This Row],[שעות]]*($P$9:$P$38*24*שער)), SUMPRODUCT((שעות_עבודה7[[#This Row],[שם העבודה]]=$O$9:$O$38)*שעות_עבודה7[[#This Row],[שעות]]*($P$9:$P$38*24)))),"")) -> 
B117: =IF(AND(שעות_עבודה7[[#This Row],[התחלה]]="",שעות_עבודה7[[#This Row],[שם העבודה]]=""),"",ROW(A109)) ->  | C117: =_xlfn.IFS(שעות_עבודה7[[#This Row],[התחלה]]="","",WEEKDAY(שעות_עבודה7[[#This Row],[התחלה]])=1,"ראשון",WEEKDAY(שעות_עבודה7[[#This Row],[התחלה]])=2,"שני",WEEKDAY(שעות_עבודה7[[#This Row],[התחלה]])=3,"שלישי",WEEKDAY(שעות_עבודה7[[#This Row],[התחלה]])=4,"רביעי",WEEKDAY(שעות_עבודה7[[#This Row],[התחלה]])=5,"חמישי",WEEKDAY(שעות_עבודה7[[#This Row],[התחלה]])=6,"שישי",WEEKDAY(שעות_עבודה7[[#This Row],[התחלה]])=7,"מוצ""ש") ->  | D117: =IF(שעות_עבודה7[[#This Row],[התחלה]]="","",שעות_עבודה7[[#This Row],[התחלה]]) ->  | J117: =IF(IF(OR(שעות_עבודה7[[#This Row],[התחלה]]="",שעות_עבודה7[[#This Row],[סיום]]=""), IF(שעות_עבודה7[[#This Row],[הפחתת דקות]]>שעות_עבודה7[[#This Row],[הוספת דקות]],"",שעות_עבודה7[[#This Row],[הוספת דקות]]/1440-שעות_עבודה7[[#This Row],[הפחתת דקות]]/1440), IF(שעות_עבודה7[[#This Row],[סיום]]-שעות_עבודה7[[#This Row],[התחלה]]+שעות_עבודה7[[#This Row],[הוספת דקות]]/1440<שעות_עבודה7[[#This Row],[הפחתת דקות]]/1440,"", SUM(שעות_עבודה7[[#This Row],[סיום]]-שעות_עבודה7[[#This Row],[התחלה]],שעות_עבודה7[[#This Row],[הוספת דקות]]/1440,-שעות_עבודה7[[#This Row],[הפחתת דקות]]/1440)))=0,"", IF(OR(שעות_עבודה7[[#This Row],[התחלה]]="",שעות_עבודה7[[#This Row],[סיום]]=""), IF(שעות_עבודה7[[#This Row],[הפחתת דקות]]>שעות_עבודה7[[#This Row],[הוספת דקות]],"",שעות_עבודה7[[#This Row],[הוספת דקות]]/1440-שעות_עבודה7[[#This Row],[הפחתת דקות]]/1440), IF(שעות_עבודה7[[#This Row],[סיום]]-שעות_עבודה7[[#This Row],[התחלה]]+שעות_עבודה7[[#This Row],[הוספת דקות]]/1440<שעות_עבודה7[[#This Row],[הפחתת דקות]]/1440,"", SUM(שעות_עבודה7[[#This Row],[סיום]]-שעות_עבודה7[[#This Row],[התחלה]],שעות_עבודה7[[#This Row],[הוספת דקות]]/1440,-שעות_עבודה7[[#This Row],[הפחתת דקות]]/1440)))) ->  | K117: =IF(שעות_עבודה7[[#This Row],[שעות]]="","", IFERROR(IF(IF(VLOOKUP(שעות_עבודה7[[#This Row],[שם העבודה]],טבלה1[],5,FALSE)="דולרים-$", SUMPRODUCT((שעות_עבודה7[[#This Row],[שם העבודה]]=$O$9:$O$38)*שעות_עבודה7[[#This Row],[שעות]]*($P$9:$P$38*24*שער)), SUMPRODUCT((שעות_עבודה7[[#This Row],[שם העבודה]]=$O$9:$O$38)*שעות_עבודה7[[#This Row],[שעות]]*($P$9:$P$38*24)))=0,"", IF(VLOOKUP(שעות_עבודה7[[#This Row],[שם העבודה]],טבלה1[],5,FALSE)="דולרים-$", SUMPRODUCT((שעות_עבודה7[[#This Row],[שם העבודה]]=$O$9:$O$38)*שעות_עבודה7[[#This Row],[שעות]]*($P$9:$P$38*24*שער)), SUMPRODUCT((שעות_עבודה7[[#This Row],[שם העבודה]]=$O$9:$O$38)*שעות_עבודה7[[#This Row],[שעות]]*($P$9:$P$38*24)))),"")) -> 
B118: =IF(AND(שעות_עבודה7[[#This Row],[התחלה]]="",שעות_עבודה7[[#This Row],[שם העבודה]]=""),"",ROW(A110)) ->  | C118: =_xlfn.IFS(שעות_עבודה7[[#This Row],[התחלה]]="","",WEEKDAY(שעות_עבודה7[[#This Row],[התחלה]])=1,"ראשון",WEEKDAY(שעות_עבודה7[[#This Row],[התחלה]])=2,"שני",WEEKDAY(שעות_עבודה7[[#This Row],[התחלה]])=3,"שלישי",WEEKDAY(שעות_עבודה7[[#This Row],[התחלה]])=4,"רביעי",WEEKDAY(שעות_עבודה7[[#This Row],[התחלה]])=5,"חמישי",WEEKDAY(שעות_עבודה7[[#This Row],[התחלה]])=6,"שישי",WEEKDAY(שעות_עבודה7[[#This Row],[התחלה]])=7,"מוצ""ש") ->  | D118: =IF(שעות_עבודה7[[#This Row],[התחלה]]="","",שעות_עבודה7[[#This Row],[התחלה]]) ->  | J118: =IF(IF(OR(שעות_עבודה7[[#This Row],[התחלה]]="",שעות_עבודה7[[#This Row],[סיום]]=""), IF(שעות_עבודה7[[#This Row],[הפחתת דקות]]>שעות_עבודה7[[#This Row],[הוספת דקות]],"",שעות_עבודה7[[#This Row],[הוספת דקות]]/1440-שעות_עבודה7[[#This Row],[הפחתת דקות]]/1440), IF(שעות_עבודה7[[#This Row],[סיום]]-שעות_עבודה7[[#This Row],[התחלה]]+שעות_עבודה7[[#This Row],[הוספת דקות]]/1440<שעות_עבודה7[[#This Row],[הפחתת דקות]]/1440,"", SUM(שעות_עבודה7[[#This Row],[סיום]]-שעות_עבודה7[[#This Row],[התחלה]],שעות_עבודה7[[#This Row],[הוספת דקות]]/1440,-שעות_עבודה7[[#This Row],[הפחתת דקות]]/1440)))=0,"", IF(OR(שעות_עבודה7[[#This Row],[התחלה]]="",שעות_עבודה7[[#This Row],[סיום]]=""), IF(שעות_עבודה7[[#This Row],[הפחתת דקות]]>שעות_עבודה7[[#This Row],[הוספת דקות]],"",שעות_עבודה7[[#This Row],[הוספת דקות]]/1440-שעות_עבודה7[[#This Row],[הפחתת דקות]]/1440), IF(שעות_עבודה7[[#This Row],[סיום]]-שעות_עבודה7[[#This Row],[התחלה]]+שעות_עבודה7[[#This Row],[הוספת דקות]]/1440<שעות_עבודה7[[#This Row],[הפחתת דקות]]/1440,"", SUM(שעות_עבודה7[[#This Row],[סיום]]-שעות_עבודה7[[#This Row],[התחלה]],שעות_עבודה7[[#This Row],[הוספת דקות]]/1440,-שעות_עבודה7[[#This Row],[הפחתת דקות]]/1440)))) ->  | K118: =IF(שעות_עבודה7[[#This Row],[שעות]]="","", IFERROR(IF(IF(VLOOKUP(שעות_עבודה7[[#This Row],[שם העבודה]],טבלה1[],5,FALSE)="דולרים-$", SUMPRODUCT((שעות_עבודה7[[#This Row],[שם העבודה]]=$O$9:$O$38)*שעות_עבודה7[[#This Row],[שעות]]*($P$9:$P$38*24*שער)), SUMPRODUCT((שעות_עבודה7[[#This Row],[שם העבודה]]=$O$9:$O$38)*שעות_עבודה7[[#This Row],[שעות]]*($P$9:$P$38*24)))=0,"", IF(VLOOKUP(שעות_עבודה7[[#This Row],[שם העבודה]],טבלה1[],5,FALSE)="דולרים-$", SUMPRODUCT((שעות_עבודה7[[#This Row],[שם העבודה]]=$O$9:$O$38)*שעות_עבודה7[[#This Row],[שעות]]*($P$9:$P$38*24*שער)), SUMPRODUCT((שעות_עבודה7[[#This Row],[שם העבודה]]=$O$9:$O$38)*שעות_עבודה7[[#This Row],[שעות]]*($P$9:$P$38*24)))),"")) -> 
B119: =IF(AND(שעות_עבודה7[[#This Row],[התחלה]]="",שעות_עבודה7[[#This Row],[שם העבודה]]=""),"",ROW(A111)) ->  | C119: =_xlfn.IFS(שעות_עבודה7[[#This Row],[התחלה]]="","",WEEKDAY(שעות_עבודה7[[#This Row],[התחלה]])=1,"ראשון",WEEKDAY(שעות_עבודה7[[#This Row],[התחלה]])=2,"שני",WEEKDAY(שעות_עבודה7[[#This Row],[התחלה]])=3,"שלישי",WEEKDAY(שעות_עבודה7[[#This Row],[התחלה]])=4,"רביעי",WEEKDAY(שעות_עבודה7[[#This Row],[התחלה]])=5,"חמישי",WEEKDAY(שעות_עבודה7[[#This Row],[התחלה]])=6,"שישי",WEEKDAY(שעות_עבודה7[[#This Row],[התחלה]])=7,"מוצ""ש") ->  | D119: =IF(שעות_עבודה7[[#This Row],[התחלה]]="","",שעות_עבודה7[[#This Row],[התחלה]]) ->  | J119: =IF(IF(OR(שעות_עבודה7[[#This Row],[התחלה]]="",שעות_עבודה7[[#This Row],[סיום]]=""), IF(שעות_עבודה7[[#This Row],[הפחתת דקות]]>שעות_עבודה7[[#This Row],[הוספת דקות]],"",שעות_עבודה7[[#This Row],[הוספת דקות]]/1440-שעות_עבודה7[[#This Row],[הפחתת דקות]]/1440), IF(שעות_עבודה7[[#This Row],[סיום]]-שעות_עבודה7[[#This Row],[התחלה]]+שעות_עבודה7[[#This Row],[הוספת דקות]]/1440<שעות_עבודה7[[#This Row],[הפחתת דקות]]/1440,"", SUM(שעות_עבודה7[[#This Row],[סיום]]-שעות_עבודה7[[#This Row],[התחלה]],שעות_עבודה7[[#This Row],[הוספת דקות]]/1440,-שעות_עבודה7[[#This Row],[הפחתת דקות]]/1440)))=0,"", IF(OR(שעות_עבודה7[[#This Row],[התחלה]]="",שעות_עבודה7[[#This Row],[סיום]]=""), IF(שעות_עבודה7[[#This Row],[הפחתת דקות]]>שעות_עבודה7[[#This Row],[הוספת דקות]],"",שעות_עבודה7[[#This Row],[הוספת דקות]]/1440-שעות_עבודה7[[#This Row],[הפחתת דקות]]/1440), IF(שעות_עבודה7[[#This Row],[סיום]]-שעות_עבודה7[[#This Row],[התחלה]]+שעות_עבודה7[[#This Row],[הוספת דקות]]/1440<שעות_עבודה7[[#This Row],[הפחתת דקות]]/1440,"", SUM(שעות_עבודה7[[#This Row],[סיום]]-שעות_עבודה7[[#This Row],[התחלה]],שעות_עבודה7[[#This Row],[הוספת דקות]]/1440,-שעות_עבודה7[[#This Row],[הפחתת דקות]]/1440)))) ->  | K119: =IF(שעות_עבודה7[[#This Row],[שעות]]="","", IFERROR(IF(IF(VLOOKUP(שעות_עבודה7[[#This Row],[שם העבודה]],טבלה1[],5,FALSE)="דולרים-$", SUMPRODUCT((שעות_עבודה7[[#This Row],[שם העבודה]]=$O$9:$O$38)*שעות_עבודה7[[#This Row],[שעות]]*($P$9:$P$38*24*שער)), SUMPRODUCT((שעות_עבודה7[[#This Row],[שם העבודה]]=$O$9:$O$38)*שעות_עבודה7[[#This Row],[שעות]]*($P$9:$P$38*24)))=0,"", IF(VLOOKUP(שעות_עבודה7[[#This Row],[שם העבודה]],טבלה1[],5,FALSE)="דולרים-$", SUMPRODUCT((שעות_עבודה7[[#This Row],[שם העבודה]]=$O$9:$O$38)*שעות_עבודה7[[#This Row],[שעות]]*($P$9:$P$38*24*שער)), SUMPRODUCT((שעות_עבודה7[[#This Row],[שם העבודה]]=$O$9:$O$38)*שעות_עבודה7[[#This Row],[שעות]]*($P$9:$P$38*24)))),"")) -> 
B120: =IF(AND(שעות_עבודה7[[#This Row],[התחלה]]="",שעות_עבודה7[[#This Row],[שם העבודה]]=""),"",ROW(A112)) ->  | C120: =_xlfn.IFS(שעות_עבודה7[[#This Row],[התחלה]]="","",WEEKDAY(שעות_עבודה7[[#This Row],[התחלה]])=1,"ראשון",WEEKDAY(שעות_עבודה7[[#This Row],[התחלה]])=2,"שני",WEEKDAY(שעות_עבודה7[[#This Row],[התחלה]])=3,"שלישי",WEEKDAY(שעות_עבודה7[[#This Row],[התחלה]])=4,"רביעי",WEEKDAY(שעות_עבודה7[[#This Row],[התחלה]])=5,"חמישי",WEEKDAY(שעות_עבודה7[[#This Row],[התחלה]])=6,"שישי",WEEKDAY(שעות_עבודה7[[#This Row],[התחלה]])=7,"מוצ""ש") ->  | D120: =IF(שעות_עבודה7[[#This Row],[התחלה]]="","",שעות_עבודה7[[#This Row],[התחלה]]) ->  | J120: =IF(IF(OR(שעות_עבודה7[[#This Row],[התחלה]]="",שעות_עבודה7[[#This Row],[סיום]]=""), IF(שעות_עבודה7[[#This Row],[הפחתת דקות]]>שעות_עבודה7[[#This Row],[הוספת דקות]],"",שעות_עבודה7[[#This Row],[הוספת דקות]]/1440-שעות_עבודה7[[#This Row],[הפחתת דקות]]/1440), IF(שעות_עבודה7[[#This Row],[סיום]]-שעות_עבודה7[[#This Row],[התחלה]]+שעות_עבודה7[[#This Row],[הוספת דקות]]/1440<שעות_עבודה7[[#This Row],[הפחתת דקות]]/1440,"", SUM(שעות_עבודה7[[#This Row],[סיום]]-שעות_עבודה7[[#This Row],[התחלה]],שעות_עבודה7[[#This Row],[הוספת דקות]]/1440,-שעות_עבודה7[[#This Row],[הפחתת דקות]]/1440)))=0,"", IF(OR(שעות_עבודה7[[#This Row],[התחלה]]="",שעות_עבודה7[[#This Row],[סיום]]=""), IF(שעות_עבודה7[[#This Row],[הפחתת דקות]]>שעות_עבודה7[[#This Row],[הוספת דקות]],"",שעות_עבודה7[[#This Row],[הוספת דקות]]/1440-שעות_עבודה7[[#This Row],[הפחתת דקות]]/1440), IF(שעות_עבודה7[[#This Row],[סיום]]-שעות_עבודה7[[#This Row],[התחלה]]+שעות_עבודה7[[#This Row],[הוספת דקות]]/1440<שעות_עבודה7[[#This Row],[הפחתת דקות]]/1440,"", SUM(שעות_עבודה7[[#This Row],[סיום]]-שעות_עבודה7[[#This Row],[התחלה]],שעות_עבודה7[[#This Row],[הוספת דקות]]/1440,-שעות_עבודה7[[#This Row],[הפחתת דקות]]/1440)))) ->  | K120: =IF(שעות_עבודה7[[#This Row],[שעות]]="","", IFERROR(IF(IF(VLOOKUP(שעות_עבודה7[[#This Row],[שם העבודה]],טבלה1[],5,FALSE)="דולרים-$", SUMPRODUCT((שעות_עבודה7[[#This Row],[שם העבודה]]=$O$9:$O$38)*שעות_עבודה7[[#This Row],[שעות]]*($P$9:$P$38*24*שער)), SUMPRODUCT((שעות_עבודה7[[#This Row],[שם העבודה]]=$O$9:$O$38)*שעות_עבודה7[[#This Row],[שעות]]*($P$9:$P$38*24)))=0,"", IF(VLOOKUP(שעות_עבודה7[[#This Row],[שם העבודה]],טבלה1[],5,FALSE)="דולרים-$", SUMPRODUCT((שעות_עבודה7[[#This Row],[שם העבודה]]=$O$9:$O$38)*שעות_עבודה7[[#This Row],[שעות]]*($P$9:$P$38*24*שער)), SUMPRODUCT((שעות_עבודה7[[#This Row],[שם העבודה]]=$O$9:$O$38)*שעות_עבודה7[[#This Row],[שעות]]*($P$9:$P$38*24)))),"")) -> 
B121: =IF(AND(שעות_עבודה7[[#This Row],[התחלה]]="",שעות_עבודה7[[#This Row],[שם העבודה]]=""),"",ROW(A113)) ->  | C121: =_xlfn.IFS(שעות_עבודה7[[#This Row],[התחלה]]="","",WEEKDAY(שעות_עבודה7[[#This Row],[התחלה]])=1,"ראשון",WEEKDAY(שעות_עבודה7[[#This Row],[התחלה]])=2,"שני",WEEKDAY(שעות_עבודה7[[#This Row],[התחלה]])=3,"שלישי",WEEKDAY(שעות_עבודה7[[#This Row],[התחלה]])=4,"רביעי",WEEKDAY(שעות_עבודה7[[#This Row],[התחלה]])=5,"חמישי",WEEKDAY(שעות_עבודה7[[#This Row],[התחלה]])=6,"שישי",WEEKDAY(שעות_עבודה7[[#This Row],[התחלה]])=7,"מוצ""ש") ->  | D121: =IF(שעות_עבודה7[[#This Row],[התחלה]]="","",שעות_עבודה7[[#This Row],[התחלה]]) ->  | J121: =IF(IF(OR(שעות_עבודה7[[#This Row],[התחלה]]="",שעות_עבודה7[[#This Row],[סיום]]=""), IF(שעות_עבודה7[[#This Row],[הפחתת דקות]]>שעות_עבודה7[[#This Row],[הוספת דקות]],"",שעות_עבודה7[[#This Row],[הוספת דקות]]/1440-שעות_עבודה7[[#This Row],[הפחתת דקות]]/1440), IF(שעות_עבודה7[[#This Row],[סיום]]-שעות_עבודה7[[#This Row],[התחלה]]+שעות_עבודה7[[#This Row],[הוספת דקות]]/1440<שעות_עבודה7[[#This Row],[הפחתת דקות]]/1440,"", SUM(שעות_עבודה7[[#This Row],[סיום]]-שעות_עבודה7[[#This Row],[התחלה]],שעות_עבודה7[[#This Row],[הוספת דקות]]/1440,-שעות_עבודה7[[#This Row],[הפחתת דקות]]/1440)))=0,"", IF(OR(שעות_עבודה7[[#This Row],[התחלה]]="",שעות_עבודה7[[#This Row],[סיום]]=""), IF(שעות_עבודה7[[#This Row],[הפחתת דקות]]>שעות_עבודה7[[#This Row],[הוספת דקות]],"",שעות_עבודה7[[#This Row],[הוספת דקות]]/1440-שעות_עבודה7[[#This Row],[הפחתת דקות]]/1440), IF(שעות_עבודה7[[#This Row],[סיום]]-שעות_עבודה7[[#This Row],[התחלה]]+שעות_עבודה7[[#This Row],[הוספת דקות]]/1440<שעות_עבודה7[[#This Row],[הפחתת דקות]]/1440,"", SUM(שעות_עבודה7[[#This Row],[סיום]]-שעות_עבודה7[[#This Row],[התחלה]],שעות_עבודה7[[#This Row],[הוספת דקות]]/1440,-שעות_עבודה7[[#This Row],[הפחתת דקות]]/1440)))) ->  | K121: =IF(שעות_עבודה7[[#This Row],[שעות]]="","", IFERROR(IF(IF(VLOOKUP(שעות_עבודה7[[#This Row],[שם העבודה]],טבלה1[],5,FALSE)="דולרים-$", SUMPRODUCT((שעות_עבודה7[[#This Row],[שם העבודה]]=$O$9:$O$38)*שעות_עבודה7[[#This Row],[שעות]]*($P$9:$P$38*24*שער)), SUMPRODUCT((שעות_עבודה7[[#This Row],[שם העבודה]]=$O$9:$O$38)*שעות_עבודה7[[#This Row],[שעות]]*($P$9:$P$38*24)))=0,"", IF(VLOOKUP(שעות_עבודה7[[#This Row],[שם העבודה]],טבלה1[],5,FALSE)="דולרים-$", SUMPRODUCT((שעות_עבודה7[[#This Row],[שם העבודה]]=$O$9:$O$38)*שעות_עבודה7[[#This Row],[שעות]]*($P$9:$P$38*24*שער)), SUMPRODUCT((שעות_עבודה7[[#This Row],[שם העבודה]]=$O$9:$O$38)*שעות_עבודה7[[#This Row],[שעות]]*($P$9:$P$38*24)))),"")) -> 
B122: =IF(AND(שעות_עבודה7[[#This Row],[התחלה]]="",שעות_עבודה7[[#This Row],[שם העבודה]]=""),"",ROW(A114)) ->  | C122: =_xlfn.IFS(שעות_עבודה7[[#This Row],[התחלה]]="","",WEEKDAY(שעות_עבודה7[[#This Row],[התחלה]])=1,"ראשון",WEEKDAY(שעות_עבודה7[[#This Row],[התחלה]])=2,"שני",WEEKDAY(שעות_עבודה7[[#This Row],[התחלה]])=3,"שלישי",WEEKDAY(שעות_עבודה7[[#This Row],[התחלה]])=4,"רביעי",WEEKDAY(שעות_עבודה7[[#This Row],[התחלה]])=5,"חמישי",WEEKDAY(שעות_עבודה7[[#This Row],[התחלה]])=6,"שישי",WEEKDAY(שעות_עבודה7[[#This Row],[התחלה]])=7,"מוצ""ש") ->  | D122: =IF(שעות_עבודה7[[#This Row],[התחלה]]="","",שעות_עבודה7[[#This Row],[התחלה]]) ->  | J122: =IF(IF(OR(שעות_עבודה7[[#This Row],[התחלה]]="",שעות_עבודה7[[#This Row],[סיום]]=""), IF(שעות_עבודה7[[#This Row],[הפחתת דקות]]>שעות_עבודה7[[#This Row],[הוספת דקות]],"",שעות_עבודה7[[#This Row],[הוספת דקות]]/1440-שעות_עבודה7[[#This Row],[הפחתת דקות]]/1440), IF(שעות_עבודה7[[#This Row],[סיום]]-שעות_עבודה7[[#This Row],[התחלה]]+שעות_עבודה7[[#This Row],[הוספת דקות]]/1440<שעות_עבודה7[[#This Row],[הפחתת דקות]]/1440,"", SUM(שעות_עבודה7[[#This Row],[סיום]]-שעות_עבודה7[[#This Row],[התחלה]],שעות_עבודה7[[#This Row],[הוספת דקות]]/1440,-שעות_עבודה7[[#This Row],[הפחתת דקות]]/1440)))=0,"", IF(OR(שעות_עבודה7[[#This Row],[התחלה]]="",שעות_עבודה7[[#This Row],[סיום]]=""), IF(שעות_עבודה7[[#This Row],[הפחתת דקות]]>שעות_עבודה7[[#This Row],[הוספת דקות]],"",שעות_עבודה7[[#This Row],[הוספת דקות]]/1440-שעות_עבודה7[[#This Row],[הפחתת דקות]]/1440), IF(שעות_עבודה7[[#This Row],[סיום]]-שעות_עבודה7[[#This Row],[התחלה]]+שעות_עבודה7[[#This Row],[הוספת דקות]]/1440<שעות_עבודה7[[#This Row],[הפחתת דקות]]/1440,"", SUM(שעות_עבודה7[[#This Row],[סיום]]-שעות_עבודה7[[#This Row],[התחלה]],שעות_עבודה7[[#This Row],[הוספת דקות]]/1440,-שעות_עבודה7[[#This Row],[הפחתת דקות]]/1440)))) ->  | K122: =IF(שעות_עבודה7[[#This Row],[שעות]]="","", IFERROR(IF(IF(VLOOKUP(שעות_עבודה7[[#This Row],[שם העבודה]],טבלה1[],5,FALSE)="דולרים-$", SUMPRODUCT((שעות_עבודה7[[#This Row],[שם העבודה]]=$O$9:$O$38)*שעות_עבודה7[[#This Row],[שעות]]*($P$9:$P$38*24*שער)), SUMPRODUCT((שעות_עבודה7[[#This Row],[שם העבודה]]=$O$9:$O$38)*שעות_עבודה7[[#This Row],[שעות]]*($P$9:$P$38*24)))=0,"", IF(VLOOKUP(שעות_עבודה7[[#This Row],[שם העבודה]],טבלה1[],5,FALSE)="דולרים-$", SUMPRODUCT((שעות_עבודה7[[#This Row],[שם העבודה]]=$O$9:$O$38)*שעות_עבודה7[[#This Row],[שעות]]*($P$9:$P$38*24*שער)), SUMPRODUCT((שעות_עבודה7[[#This Row],[שם העבודה]]=$O$9:$O$38)*שעות_עבודה7[[#This Row],[שעות]]*($P$9:$P$38*24)))),"")) -> 
B123: =IF(AND(שעות_עבודה7[[#This Row],[התחלה]]="",שעות_עבודה7[[#This Row],[שם העבודה]]=""),"",ROW(A115)) ->  | C123: =_xlfn.IFS(שעות_עבודה7[[#This Row],[התחלה]]="","",WEEKDAY(שעות_עבודה7[[#This Row],[התחלה]])=1,"ראשון",WEEKDAY(שעות_עבודה7[[#This Row],[התחלה]])=2,"שני",WEEKDAY(שעות_עבודה7[[#This Row],[התחלה]])=3,"שלישי",WEEKDAY(שעות_עבודה7[[#This Row],[התחלה]])=4,"רביעי",WEEKDAY(שעות_עבודה7[[#This Row],[התחלה]])=5,"חמישי",WEEKDAY(שעות_עבודה7[[#This Row],[התחלה]])=6,"שישי",WEEKDAY(שעות_עבודה7[[#This Row],[התחלה]])=7,"מוצ""ש") ->  | D123: =IF(שעות_עבודה7[[#This Row],[התחלה]]="","",שעות_עבודה7[[#This Row],[התחלה]]) ->  | J123: =IF(IF(OR(שעות_עבודה7[[#This Row],[התחלה]]="",שעות_עבודה7[[#This Row],[סיום]]=""), IF(שעות_עבודה7[[#This Row],[הפחתת דקות]]>שעות_עבודה7[[#This Row],[הוספת דקות]],"",שעות_עבודה7[[#This Row],[הוספת דקות]]/1440-שעות_עבודה7[[#This Row],[הפחתת דקות]]/1440), IF(שעות_עבודה7[[#This Row],[סיום]]-שעות_עבודה7[[#This Row],[התחלה]]+שעות_עבודה7[[#This Row],[הוספת דקות]]/1440<שעות_עבודה7[[#This Row],[הפחתת דקות]]/1440,"", SUM(שעות_עבודה7[[#This Row],[סיום]]-שעות_עבודה7[[#This Row],[התחלה]],שעות_עבודה7[[#This Row],[הוספת דקות]]/1440,-שעות_עבודה7[[#This Row],[הפחתת דקות]]/1440)))=0,"", IF(OR(שעות_עבודה7[[#This Row],[התחלה]]="",שעות_עבודה7[[#This Row],[סיום]]=""), IF(שעות_עבודה7[[#This Row],[הפחתת דקות]]>שעות_עבודה7[[#This Row],[הוספת דקות]],"",שעות_עבודה7[[#This Row],[הוספת דקות]]/1440-שעות_עבודה7[[#This Row],[הפחתת דקות]]/1440), IF(שעות_עבודה7[[#This Row],[סיום]]-שעות_עבודה7[[#This Row],[התחלה]]+שעות_עבודה7[[#This Row],[הוספת דקות]]/1440<שעות_עבודה7[[#This Row],[הפחתת דקות]]/1440,"", SUM(שעות_עבודה7[[#This Row],[סיום]]-שעות_עבודה7[[#This Row],[התחלה]],שעות_עבודה7[[#This Row],[הוספת דקות]]/1440,-שעות_עבודה7[[#This Row],[הפחתת דקות]]/1440)))) ->  | K123: =IF(שעות_עבודה7[[#This Row],[שעות]]="","", IFERROR(IF(IF(VLOOKUP(שעות_עבודה7[[#This Row],[שם העבודה]],טבלה1[],5,FALSE)="דולרים-$", SUMPRODUCT((שעות_עבודה7[[#This Row],[שם העבודה]]=$O$9:$O$38)*שעות_עבודה7[[#This Row],[שעות]]*($P$9:$P$38*24*שער)), SUMPRODUCT((שעות_עבודה7[[#This Row],[שם העבודה]]=$O$9:$O$38)*שעות_עבודה7[[#This Row],[שעות]]*($P$9:$P$38*24)))=0,"", IF(VLOOKUP(שעות_עבודה7[[#This Row],[שם העבודה]],טבלה1[],5,FALSE)="דולרים-$", SUMPRODUCT((שעות_עבודה7[[#This Row],[שם העבודה]]=$O$9:$O$38)*שעות_עבודה7[[#This Row],[שעות]]*($P$9:$P$38*24*שער)), SUMPRODUCT((שעות_עבודה7[[#This Row],[שם העבודה]]=$O$9:$O$38)*שעות_עבודה7[[#This Row],[שעות]]*($P$9:$P$38*24)))),"")) -> 
B124: =IF(AND(שעות_עבודה7[[#This Row],[התחלה]]="",שעות_עבודה7[[#This Row],[שם העבודה]]=""),"",ROW(A116)) ->  | C124: =_xlfn.IFS(שעות_עבודה7[[#This Row],[התחלה]]="","",WEEKDAY(שעות_עבודה7[[#This Row],[התחלה]])=1,"ראשון",WEEKDAY(שעות_עבודה7[[#This Row],[התחלה]])=2,"שני",WEEKDAY(שעות_עבודה7[[#This Row],[התחלה]])=3,"שלישי",WEEKDAY(שעות_עבודה7[[#This Row],[התחלה]])=4,"רביעי",WEEKDAY(שעות_עבודה7[[#This Row],[התחלה]])=5,"חמישי",WEEKDAY(שעות_עבודה7[[#This Row],[התחלה]])=6,"שישי",WEEKDAY(שעות_עבודה7[[#This Row],[התחלה]])=7,"מוצ""ש") ->  | D124: =IF(שעות_עבודה7[[#This Row],[התחלה]]="","",שעות_עבודה7[[#This Row],[התחלה]]) ->  | J124: =IF(IF(OR(שעות_עבודה7[[#This Row],[התחלה]]="",שעות_עבודה7[[#This Row],[סיום]]=""), IF(שעות_עבודה7[[#This Row],[הפחתת דקות]]>שעות_עבודה7[[#This Row],[הוספת דקות]],"",שעות_עבודה7[[#This Row],[הוספת דקות]]/1440-שעות_עבודה7[[#This Row],[הפחתת דקות]]/1440), IF(שעות_עבודה7[[#This Row],[סיום]]-שעות_עבודה7[[#This Row],[התחלה]]+שעות_עבודה7[[#This Row],[הוספת דקות]]/1440<שעות_עבודה7[[#This Row],[הפחתת דקות]]/1440,"", SUM(שעות_עבודה7[[#This Row],[סיום]]-שעות_עבודה7[[#This Row],[התחלה]],שעות_עבודה7[[#This Row],[הוספת דקות]]/1440,-שעות_עבודה7[[#This Row],[הפחתת דקות]]/1440)))=0,"", IF(OR(שעות_עבודה7[[#This Row],[התחלה]]="",שעות_עבודה7[[#This Row],[סיום]]=""), IF(שעות_עבודה7[[#This Row],[הפחתת דקות]]>שעות_עבודה7[[#This Row],[הוספת דקות]],"",שעות_עבודה7[[#This Row],[הוספת דקות]]/1440-שעות_עבודה7[[#This Row],[הפחתת דקות]]/1440), IF(שעות_עבודה7[[#This Row],[סיום]]-שעות_עבודה7[[#This Row],[התחלה]]+שעות_עבודה7[[#This Row],[הוספת דקות]]/1440<שעות_עבודה7[[#This Row],[הפחתת דקות]]/1440,"", SUM(שעות_עבודה7[[#This Row],[סיום]]-שעות_עבודה7[[#This Row],[התחלה]],שעות_עבודה7[[#This Row],[הוספת דקות]]/1440,-שעות_עבודה7[[#This Row],[הפחתת דקות]]/1440)))) ->  | K124: =IF(שעות_עבודה7[[#This Row],[שעות]]="","", IFERROR(IF(IF(VLOOKUP(שעות_עבודה7[[#This Row],[שם העבודה]],טבלה1[],5,FALSE)="דולרים-$", SUMPRODUCT((שעות_עבודה7[[#This Row],[שם העבודה]]=$O$9:$O$38)*שעות_עבודה7[[#This Row],[שעות]]*($P$9:$P$38*24*שער)), SUMPRODUCT((שעות_עבודה7[[#This Row],[שם העבודה]]=$O$9:$O$38)*שעות_עבודה7[[#This Row],[שעות]]*($P$9:$P$38*24)))=0,"", IF(VLOOKUP(שעות_עבודה7[[#This Row],[שם העבודה]],טבלה1[],5,FALSE)="דולרים-$", SUMPRODUCT((שעות_עבודה7[[#This Row],[שם העבודה]]=$O$9:$O$38)*שעות_עבודה7[[#This Row],[שעות]]*($P$9:$P$38*24*שער)), SUMPRODUCT((שעות_עבודה7[[#This Row],[שם העבודה]]=$O$9:$O$38)*שעות_עבודה7[[#This Row],[שעות]]*($P$9:$P$38*24)))),"")) -> 
B125: =IF(AND(שעות_עבודה7[[#This Row],[התחלה]]="",שעות_עבודה7[[#This Row],[שם העבודה]]=""),"",ROW(A117)) ->  | C125: =_xlfn.IFS(שעות_עבודה7[[#This Row],[התחלה]]="","",WEEKDAY(שעות_עבודה7[[#This Row],[התחלה]])=1,"ראשון",WEEKDAY(שעות_עבודה7[[#This Row],[התחלה]])=2,"שני",WEEKDAY(שעות_עבודה7[[#This Row],[התחלה]])=3,"שלישי",WEEKDAY(שעות_עבודה7[[#This Row],[התחלה]])=4,"רביעי",WEEKDAY(שעות_עבודה7[[#This Row],[התחלה]])=5,"חמישי",WEEKDAY(שעות_עבודה7[[#This Row],[התחלה]])=6,"שישי",WEEKDAY(שעות_עבודה7[[#This Row],[התחלה]])=7,"מוצ""ש") ->  | D125: =IF(שעות_עבודה7[[#This Row],[התחלה]]="","",שעות_עבודה7[[#This Row],[התחלה]]) ->  | J125: =IF(IF(OR(שעות_עבודה7[[#This Row],[התחלה]]="",שעות_עבודה7[[#This Row],[סיום]]=""), IF(שעות_עבודה7[[#This Row],[הפחתת דקות]]>שעות_עבודה7[[#This Row],[הוספת דקות]],"",שעות_עבודה7[[#This Row],[הוספת דקות]]/1440-שעות_עבודה7[[#This Row],[הפחתת דקות]]/1440), IF(שעות_עבודה7[[#This Row],[סיום]]-שעות_עבודה7[[#This Row],[התחלה]]+שעות_עבודה7[[#This Row],[הוספת דקות]]/1440<שעות_עבודה7[[#This Row],[הפחתת דקות]]/1440,"", SUM(שעות_עבודה7[[#This Row],[סיום]]-שעות_עבודה7[[#This Row],[התחלה]],שעות_עבודה7[[#This Row],[הוספת דקות]]/1440,-שעות_עבודה7[[#This Row],[הפחתת דקות]]/1440)))=0,"", IF(OR(שעות_עבודה7[[#This Row],[התחלה]]="",שעות_עבודה7[[#This Row],[סיום]]=""), IF(שעות_עבודה7[[#This Row],[הפחתת דקות]]>שעות_עבודה7[[#This Row],[הוספת דקות]],"",שעות_עבודה7[[#This Row],[הוספת דקות]]/1440-שעות_עבודה7[[#This Row],[הפחתת דקות]]/1440), IF(שעות_עבודה7[[#This Row],[סיום]]-שעות_עבודה7[[#This Row],[התחלה]]+שעות_עבודה7[[#This Row],[הוספת דקות]]/1440<שעות_עבודה7[[#This Row],[הפחתת דקות]]/1440,"", SUM(שעות_עבודה7[[#This Row],[סיום]]-שעות_עבודה7[[#This Row],[התחלה]],שעות_עבודה7[[#This Row],[הוספת דקות]]/1440,-שעות_עבודה7[[#This Row],[הפחתת דקות]]/1440)))) ->  | K125: =IF(שעות_עבודה7[[#This Row],[שעות]]="","", IFERROR(IF(IF(VLOOKUP(שעות_עבודה7[[#This Row],[שם העבודה]],טבלה1[],5,FALSE)="דולרים-$", SUMPRODUCT((שעות_עבודה7[[#This Row],[שם העבודה]]=$O$9:$O$38)*שעות_עבודה7[[#This Row],[שעות]]*($P$9:$P$38*24*שער)), SUMPRODUCT((שעות_עבודה7[[#This Row],[שם העבודה]]=$O$9:$O$38)*שעות_עבודה7[[#This Row],[שעות]]*($P$9:$P$38*24)))=0,"", IF(VLOOKUP(שעות_עבודה7[[#This Row],[שם העבודה]],טבלה1[],5,FALSE)="דולרים-$", SUMPRODUCT((שעות_עבודה7[[#This Row],[שם העבודה]]=$O$9:$O$38)*שעות_עבודה7[[#This Row],[שעות]]*($P$9:$P$38*24*שער)), SUMPRODUCT((שעות_עבודה7[[#This Row],[שם העבודה]]=$O$9:$O$38)*שעות_עבודה7[[#This Row],[שעות]]*($P$9:$P$38*24)))),"")) -> 
B126: =IF(AND(שעות_עבודה7[[#This Row],[התחלה]]="",שעות_עבודה7[[#This Row],[שם העבודה]]=""),"",ROW(A118)) ->  | C126: =_xlfn.IFS(שעות_עבודה7[[#This Row],[התחלה]]="","",WEEKDAY(שעות_עבודה7[[#This Row],[התחלה]])=1,"ראשון",WEEKDAY(שעות_עבודה7[[#This Row],[התחלה]])=2,"שני",WEEKDAY(שעות_עבודה7[[#This Row],[התחלה]])=3,"שלישי",WEEKDAY(שעות_עבודה7[[#This Row],[התחלה]])=4,"רביעי",WEEKDAY(שעות_עבודה7[[#This Row],[התחלה]])=5,"חמישי",WEEKDAY(שעות_עבודה7[[#This Row],[התחלה]])=6,"שישי",WEEKDAY(שעות_עבודה7[[#This Row],[התחלה]])=7,"מוצ""ש") ->  | D126: =IF(שעות_עבודה7[[#This Row],[התחלה]]="","",שעות_עבודה7[[#This Row],[התחלה]]) ->  | J126: =IF(IF(OR(שעות_עבודה7[[#This Row],[התחלה]]="",שעות_עבודה7[[#This Row],[סיום]]=""), IF(שעות_עבודה7[[#This Row],[הפחתת דקות]]>שעות_עבודה7[[#This Row],[הוספת דקות]],"",שעות_עבודה7[[#This Row],[הוספת דקות]]/1440-שעות_עבודה7[[#This Row],[הפחתת דקות]]/1440), IF(שעות_עבודה7[[#This Row],[סיום]]-שעות_עבודה7[[#This Row],[התחלה]]+שעות_עבודה7[[#This Row],[הוספת דקות]]/1440<שעות_עבודה7[[#This Row],[הפחתת דקות]]/1440,"", SUM(שעות_עבודה7[[#This Row],[סיום]]-שעות_עבודה7[[#This Row],[התחלה]],שעות_עבודה7[[#This Row],[הוספת דקות]]/1440,-שעות_עבודה7[[#This Row],[הפחתת דקות]]/1440)))=0,"", IF(OR(שעות_עבודה7[[#This Row],[התחלה]]="",שעות_עבודה7[[#This Row],[סיום]]=""), IF(שעות_עבודה7[[#This Row],[הפחתת דקות]]>שעות_עבודה7[[#This Row],[הוספת דקות]],"",שעות_עבודה7[[#This Row],[הוספת דקות]]/1440-שעות_עבודה7[[#This Row],[הפחתת דקות]]/1440), IF(שעות_עבודה7[[#This Row],[סיום]]-שעות_עבודה7[[#This Row],[התחלה]]+שעות_עבודה7[[#This Row],[הוספת דקות]]/1440<שעות_עבודה7[[#This Row],[הפחתת דקות]]/1440,"", SUM(שעות_עבודה7[[#This Row],[סיום]]-שעות_עבודה7[[#This Row],[התחלה]],שעות_עבודה7[[#This Row],[הוספת דקות]]/1440,-שעות_עבודה7[[#This Row],[הפחתת דקות]]/1440)))) ->  | K126: =IF(שעות_עבודה7[[#This Row],[שעות]]="","", IFERROR(IF(IF(VLOOKUP(שעות_עבודה7[[#This Row],[שם העבודה]],טבלה1[],5,FALSE)="דולרים-$", SUMPRODUCT((שעות_עבודה7[[#This Row],[שם העבודה]]=$O$9:$O$38)*שעות_עבודה7[[#This Row],[שעות]]*($P$9:$P$38*24*שער)), SUMPRODUCT((שעות_עבודה7[[#This Row],[שם העבודה]]=$O$9:$O$38)*שעות_עבודה7[[#This Row],[שעות]]*($P$9:$P$38*24)))=0,"", IF(VLOOKUP(שעות_עבודה7[[#This Row],[שם העבודה]],טבלה1[],5,FALSE)="דולרים-$", SUMPRODUCT((שעות_עבודה7[[#This Row],[שם העבודה]]=$O$9:$O$38)*שעות_עבודה7[[#This Row],[שעות]]*($P$9:$P$38*24*שער)), SUMPRODUCT((שעות_עבודה7[[#This Row],[שם העבודה]]=$O$9:$O$38)*שעות_עבודה7[[#This Row],[שעות]]*($P$9:$P$38*24)))),"")) -> 
